Workbook

Sheet Coordonnées_client (hidden)
A1: # | B1: Type de contact | C1: Client | D1: Type de Client | E1: Marque | F1: Adresse | G1: CP | H1: Ville | I1: Téléphone | J1: Site web | K1: Nom (contact) | L1: Prénom (contact) | M1: Poste | N1: Ligne directe | O1: Mail | P1: Mail Compta | Q1: Commentaire
C4: Conditions de règlement: | D4: Comptant (1ère commande) puis 30j net (commandes suivantes)

Sheet Produits (hidden)
A1: # | B1: Désignation | C1: Contenance | D1: Emballage | E1: Colisage | F1: Prix HT | G1: Prix TTC | H1: Taux de remise | I1: Prix remisé HT | J1: Tx TVA | K1: TVA | L1: TVA 5,5% | M1: TVA 20% | N1: Code EAN | O1: Poids Brut | P1: N° de ligne | Q1: Remise générale:
A2: TVA55 | B2: Autre(s) article(s) TVA 5,5 % (voir liste ci-dessous) | F2: =IF(J2="Multiple",VLOOKUP(A2,Produits_composes!$A$1:$AA$30,24,FALSE),ROUNDDOWN(G2*100/(100+J2*100),2)) ->  | I2: =IF(H2=0,F2,ROUNDUP($F2-$F2*$H2,2)) ->  | J2: 0.055 | K2: =G2-F2 ->  | L2: =IF($J2="Multiple",VLOOKUP($A2,Produits_composes!$A$1:$AA$30,25,FALSE),IF($J2=5.5%,$F2*(1+$J2)-$F2,"")) ->  | M2: =IF($J2="Multiple",VLOOKUP(A2,Produits_composes!$A$1:$AA$30,26,FALSE),IF($J2=20%,$F2*(1+$J2)-$F2,"")) ->  | P2: 1 | Q2: 0.2
A3: TVA20 | B3: Autre(s) article(s) TVA 20 % (voir liste ci-dessous) | F3: =IF(J3="Multiple",VLOOKUP(A3,Produits_composes!$A$1:$AA$30,24,FALSE),ROUNDDOWN(G3*100/(100+J3*100),2)) ->  | J3: 0.2 | L3: =IF($J3="Multiple",VLOOKUP($A3,Produits_composes!$A$1:$AA$30,25,FALSE),IF($J3=5.5%,$F3*(1+$J3)-$F3,"")) ->  | M3: =IF($J3="Multiple",VLOOKUP(A3,Produits_composes!$A$1:$AA$30,26,FALSE),IF($J3=20%,$F3*(1+$J3)-$F3,"")) ->  | P3: 2
A4: 1A | B4: Pruneaux d'Agen BIO | C4: 500g | D4: Sachet | E4: 25 | F4: =IF(J4="Multiple",VLOOKUP(A4,Produits_composes!$A$1:$AA$30,24,FALSE),ROUNDDOWN(G4*100/(100+J4*100),5)) -> 5.21327 | G4: 5.5 | H4: =$Q$2 -> 0.2 | I4: 4.18 | J4: 0.055 | K4: 0.28673 | L4: =IF($J4="Multiple",VLOOKUP($A4,Produits_composes!$A$1:$AA$30,25,FALSE),IF($J4=5.5%,$F4*(1+$J4)-$F4,"")) -> 0.28672985 | M4: =IF($J4="Multiple",VLOOKUP(A4,Produits_composes!$A$1:$AA$30,26,FALSE),IF($J4=20%,$F4*(1+$J4)-$F4,"")) ->  | N4: 3760219062868 | O4: 1000 | P4: 3
A5: 1B | B5: Pruneaux d'Agen BIO | C5: 1kg | D5: Sachet | E5: 14 | F5: =IF(J5="Multiple",VLOOKUP(A5,Produits_composes!$A$1:$AA$30,24,FALSE),ROUNDDOWN(G5*100/(100+J5*100),5)) -> 9.47867 | G5: 10 | H5: =$Q$2 -> 0.2 | I5: 7.59 | J5: 0.055 | K5: 0.52133 | L5: =IF($J5="Multiple",VLOOKUP($A5,Produits_composes!$A$1:$AA$30,25,FALSE),IF($J5=5.5%,$F5*(1+$J5)-$F5,"")) -> 0.52132685 | M5: =IF($J5="Multiple",VLOOKUP(A5,Produits_composes!$A$1:$AA$30,26,FALSE),IF($J5=20%,$F5*(1+$J5)-$F5,"")) ->  | N5: 3760219062851 | O5: 1000 | P5: 4
A6: 1C | B6: Pruneaux d’Agen BIO dénoyautés | C6: 500g | D6: Sachet | E6: 25 | F6: =IF(J6="Multiple",VLOOKUP(A6,Produits_composes!$A$1:$AA$30,24,FALSE),ROUNDDOWN(G6*100/(100+J6*100),5)) -> 7.29857 | G6: 7.7 | H6: =$Q$2 -> 0.2 | I6: 5.84 | J6: 0.055 | K6: 0.40143 | L6: =IF($J6="Multiple",VLOOKUP($A6,Produits_composes!$A$1:$AA$30,25,FALSE),IF($J6=5.5%,$F6*(1+$J6)-$F6,"")) -> 0.40142135 | M6: =IF($J6="Multiple",VLOOKUP(A6,Produits_composes!$A$1:$AA$30,26,FALSE),IF($J6=20%,$F6*(1+$J6)-$F6,"")) ->  | N6: 3760219062844 | O6: 500 | P6: 5
A7: 1D | B7: Pruneaux d’Agen BIO dénoyautés | C7: 1kg | D7: Sachet | E7: 14 | F7: =IF(J7="Multiple",VLOOKUP(A7,Produits_composes!$A$1:$AA$30,24,FALSE),ROUNDDOWN(G7*100/(100+J7*100),5)) -> 13.27014 | G7: 14 | H7: =$Q$2 -> 0.2 | I7: 10.62 | J7: 0.055 | K7: 0.72986 | L7: =IF($J7="Multiple",VLOOKUP($A7,Produits_composes!$A$1:$AA$30,25,FALSE),IF($J7=5.5%,$F7*(1+$J7)-$F7,"")) -> 0.7298577 | M7: =IF($J7="Multiple",VLOOKUP(A7,Produits_composes!$A$1:$AA$30,26,FALSE),IF($J7=20%,$F7*(1+$J7)-$F7,"")) ->  | N7: 3760219062837 | O7: 1000 | P7: 6
A8: 2A | B8: Crème de pruneaux BIO | C8: 210g | D8: Bocal | E8: 24 | F8: =IF(J8="Multiple",VLOOKUP(A8,Produits_composes!$A$1:$AA$30,24,FALSE),ROUNDDOWN(G8*100/(100+J8*100),5)) -> 3.98104 | G8: 4.2 | H8: =$Q$2 -> 0.2 | I8: 3.19 | J8: 0.055 | K8: 0.21896 | L8: =IF($J8="Multiple",VLOOKUP($A8,Produits_composes!$A$1:$AA$30,25,FALSE),IF($J8=5.5%,$F8*(1+$J8)-$F8,"")) -> 0.2189572 | M8: =IF($J8="Multiple",VLOOKUP(A8,Produits_composes!$A$1:$AA$30,26,FALSE),IF($J8=20%,$F8*(1+$J8)-$F8,"")) ->  | N8: 3760219062820 | O8: 380 | P8: 7
A9: 3A | B9: Jus de pruneaux BIO | C9: 25cl | D9: Bouteille | E9: 12 | F9: =IF(J9="Multiple",VLOOKUP(A9,Produits_composes!$A$1:$AA$30,24,FALSE),ROUNDDOWN(G9*100/(100+J9*100),5)) -> 2.36966 | G9: 2.5 | H9: =IF($Q$2>=20%,20%,$Q$2) -> 0.2 | I9: 1.9 | J9: 0.055 | K9: 0.13034 | L9: =IF($J9="Multiple",VLOOKUP($A9,Produits_composes!$A$1:$AA$30,25,FALSE),IF($J9=5.5%,$F9*(1+$J9)-$F9,"")) -> 0.1303313 | M9: =IF($J9="Multiple",VLOOKUP(A9,Produits_composes!$A$1:$AA$30,26,FALSE),IF($J9=20%,$F9*(1+$J9)-$F9,"")) ->  | N9: 3760219062813 | O9: 400 | P9: 8
A10: 3B | B10: Jus de pruneaux BIO | C10: 1L | D10: Bouteille | E10: 6 | F10: =IF(J10="Multiple",VLOOKUP(A10,Produits_composes!$A$1:$AA$30,24,FALSE),ROUNDDOWN(G10*100/(100+J10*100),5)) -> 5.59241 | G10: 5.9 | H10: 0.2 | I10: 4.48 | J10: 0.055 | K10: 0.30759 | L10: =IF($J10="Multiple",VLOOKUP($A10,Produits_composes!$A$1:$AA$30,25,FALSE),IF($J10=5.5%,$F10*(1+$J10)-$F10,"")) -> 0.30758255 | M10: =IF($J10="Multiple",VLOOKUP(A10,Produits_composes!$A$1:$AA$30,26,FALSE),IF($J10=20%,$F10*(1+$J10)-$F10,"")) ->  | N10: 3760219062899 | O10: 1450 | P10: 8
A11: 4A | B11: Jus de fruit BIO - Pomme / Abricot | C11: 25cl | D11: Bouteille | E11: 12 | F11: =IF(J11="Multiple",VLOOKUP(A11,Produits_composes!$A$1:$AA$30,24,FALSE),ROUNDDOWN(G11*100/(100+J11*100),5)) -> 2.36966 | G11: 2.5 | H11: 0.05 | I11: 2.26 | J11: 0.055 | K11: 0.13034 | L11: =IF($J11="Multiple",VLOOKUP($A11,Produits_composes!$A$1:$AA$30,25,FALSE),IF($J11=5.5%,$F11*(1+$J11)-$F11,"")) -> 0.1303313 | M11: =IF($J11="Multiple",VLOOKUP(A11,Produits_composes!$A$1:$AA$30,26,FALSE),IF($J11=20%,$F11*(1+$J11)-$F11,"")) ->  | N11: 3760219062806 | O11: 400 | P11: 9
A12: 4B | B12: Jus de fruit BIO - Pomme / Cerise | C12: 25cl | D12: Bouteille | E12: 12 | F12: =IF(J12="Multiple",VLOOKUP(A12,Produits_composes!$A$1:$AA$30,24,FALSE),ROUNDDOWN(G12*100/(100+J12*100),5)) -> 2.36966 | G12: 2.5 | H12: 0.05 | I12: 2.26 | J12: 0.055 | K12: 0.13034 | L12: =IF($J12="Multiple",VLOOKUP($A12,Produits_composes!$A$1:$AA$30,25,FALSE),IF($J12=5.5%,$F12*(1+$J12)-$F12,"")) -> 0.1303313 | M12: =IF($J12="Multiple",VLOOKUP(A12,Produits_composes!$A$1:$AA$30,26,FALSE),IF($J12=20%,$F12*(1+$J12)-$F12,"")) ->  | N12: 3760219062790 | O12: 400 | P12: 10
A13: 4C | B13: Jus de fruit BIO - Pomme / Poire | C13: 25cl | D13: Bouteille | E13: 12 | F13: =IF(J13="Multiple",VLOOKUP(A13,Produits_composes!$A$1:$AA$30,24,FALSE),ROUNDDOWN(G13*100/(100+J13*100),5)) -> 2.36966 | G13: 2.5 | H13: 0.05 | I13: 2.26 | J13: 0.055 | K13: 0.13034 | L13: =IF($J13="Multiple",VLOOKUP($A13,Produits_composes!$A$1:$AA$30,25,FALSE),IF($J13=5.5%,$F13*(1+$J13)-$F13,"")) -> 0.1303313 | M13: =IF($J13="Multiple",VLOOKUP(A13,Produits_composes!$A$1:$AA$30,26,FALSE),IF($J13=20%,$F13*(1+$J13)-$F13,"")) ->  | N13: 3760219062783 | O13: 400 | P13: 11
A14: 4D | B14: Jus de fruit BIO - Pomme / Prunes | C14: 25cl | D14: Bouteille | E14: 12 | F14: =IF(J14="Multiple",VLOOKUP(A14,Produits_composes!$A$1:$AA$30,24,FALSE),ROUNDDOWN(G14*100/(100+J14*100),5)) -> 2.36966 | G14: 2.5 | H14: 0.05 | I14: 2.26 | J14: 0.055 | K14: 0.13034 | L14: =IF($J14="Multiple",VLOOKUP($A14,Produits_composes!$A$1:$AA$30,25,FALSE),IF($J14=5.5%,$F14*(1+$J14)-$F14,"")) -> 0.1303313 | M14: =IF($J14="Multiple",VLOOKUP(A14,Produits_composes!$A$1:$AA$30,26,FALSE),IF($J14=20%,$F14*(1+$J14)-$F14,"")) ->  | N14: 3760219062776 | O14: 400 | P14: 12
A15: 5A | B15: Farine de sarrasin BIO | C15: 1kg | D15: Sachet | E15: 6 | F15: =IF(J15="Multiple",VLOOKUP(A15,Produits_composes!$A$1:$AA$30,24,FALSE),ROUNDDOWN(G15*100/(100+J15*100),5)) -> 3.79146 | G15: 4 | H15: 0.05 | I15: 3.61 | J15: 0.055 | K15: 0.20854 | L15: =IF($J15="Multiple",VLOOKUP($A15,Produits_composes!$A$1:$AA$30,25,FALSE),IF($J15=5.5%,$F15*(1+$J15)-$F15,"")) -> 0.2085303 | M15: =IF($J15="Multiple",VLOOKUP(A15,Produits_composes!$A$1:$AA$30,26,FALSE),IF($J15=20%,$F15*(1+$J15)-$F15,"")) ->  | N15: 3760219062769 | O15: 1000 | P15: 13
A16: 5B | B16: Farine de petit épeautre BIO | C16: 1kg | D16: Sachet | E16: 6 | F16: =IF(J16="Multiple",VLOOKUP(A16,Produits_composes!$A$1:$AA$30,24,FALSE),ROUNDDOWN(G16*100/(100+J16*100),5)) -> 4.73933 | G16: 5 | H16: 0.05 | I16: 4.51 | J16: 0.055 | K16: 0.26067 | L16: =IF($J16="Multiple",VLOOKUP($A16,Produits_composes!$A$1:$AA$30,25,FALSE),IF($J16=5.5%,$F16*(1+$J16)-$F16,"")) -> 0.26066315 | M16: =IF($J16="Multiple",VLOOKUP(A16,Produits_composes!$A$1:$AA$30,26,FALSE),IF($J16=20%,$F16*(1+$J16)-$F16,"")) ->  | N16: 3760219062752 | O16: 1000 | P16: 14
A17: 5C | B17: Farine T80 BIO | C17: 1kg | D17: Sachet | E17: 6 | F17: =IF(J17="Multiple",VLOOKUP(A17,Produits_composes!$A$1:$AA$30,24,FALSE),ROUNDDOWN(G17*100/(100+J17*100),5)) -> 2.18009 | G17: 2.3 | H17: 0.05 | I17: 2.08 | J17: 0.055 | K17: 0.11991 | L17: =IF($J17="Multiple",VLOOKUP($A17,Produits_composes!$A$1:$AA$30,25,FALSE),IF($J17=5.5%,$F17*(1+$J17)-$F17,"")) -> 0.11990495 | M17: =IF($J17="Multiple",VLOOKUP(A17,Produits_composes!$A$1:$AA$30,26,FALSE),IF($J17=20%,$F17*(1+$J17)-$F17,"")) ->  | N17: 3760219062745 | O17: 1000 | P17: 15
A18: 5D | B18: Huile vierge de tournesol BIO | C18: 1L | D18: Bouteille | E18: 6 | F18: =IF(J18="Multiple",VLOOKUP(A18,Produits_composes!$A$1:$AA$30,24,FALSE),ROUNDDOWN(G18*100/(100+J18*100),5)) -> 4.07582 | G18: 4.3 | H18: 0.05 | I18: 3.88 | J18: 0.055 | K18: 0.22418 | L18: =IF($J18="Multiple",VLOOKUP($A18,Produits_composes!$A$1:$AA$30,25,FALSE),IF($J18=5.5%,$F18*(1+$J18)-$F18,"")) -> 0.2241701 | M18: =IF($J18="Multiple",VLOOKUP(A18,Produits_composes!$A$1:$AA$30,26,FALSE),IF($J18=20%,$F18*(1+$J18)-$F18,"")) ->  | N18: 3760219062738 | O18: 1450 | P18: 16
A19: 6A | B19: Pruneaux d’Agen (33/44) - Boîte Or | C19: 1kg | D19: Boite métal | E19: 6 | F19: =IF(J19="Multiple",VLOOKUP(A19,Produits_composes!$A$1:$AA$30,24,FALSE),ROUNDDOWN(G19*100/(100+J19*100),5)) -> 9.9526 | G19: 10.5 | H19: =$Q$2 -> 0.2 | I19: 7.97 | J19: 0.055 | K19: 0.5474 | L19: =IF($J19="Multiple",VLOOKUP($A19,Produits_composes!$A$1:$AA$30,25,FALSE),IF($J19=5.5%,$F19*(1+$J19)-$F19,"")) -> 0.547393 | M19: =IF($J19="Multiple",VLOOKUP(A19,Produits_composes!$A$1:$AA$30,26,FALSE),IF($J19=20%,$F19*(1+$J19)-$F19,"")) ->  | N19: 3760219062721 | O19: 1210 | P19: 17
A20: 6B | B20: Pruneaux d’Agen (30/35) - Boîte Or | C20: 1kg | D20: Boite métal | E20: 6 | F20: =IF(J20="Multiple",VLOOKUP(A20,Produits_composes!$A$1:$AA$30,24,FALSE),ROUNDDOWN(G20*100/(100+J20*100),5)) -> 11.3744 | G20: 12 | H20: 0.2 | I20: 9.1 | J20: 0.055 | K20: 0.6256 | L20: =IF($J20="Multiple",VLOOKUP($A20,Produits_composes!$A$1:$AA$30,25,FALSE),IF($J20=5.5%,$F20*(1+$J20)-$F20,"")) -> 0.625592 | M20: =IF($J20="Multiple",VLOOKUP(A20,Produits_composes!$A$1:$AA$30,26,FALSE),IF($J20=20%,$F20*(1+$J20)-$F20,"")) ->  | N20: 3760219062714 | O20: 1210 | P20: 18
A21: 6C | B21: Pruneaux d’Agen dénoyautés (44/55) - Boîte Or | C21: 1kg | D21: Boite métal | E21: 6 | F21: =IF(J21="Multiple",VLOOKUP(A21,Produits_composes!$A$1:$AA$30,24,FALSE),ROUNDDOWN(G21*100/(100+J21*100),5)) -> 12.32227 | G21: 13 | H21: 0.2 | I21: 9.86 | J21: 0.055 | K21: 0.67773 | L21: =IF($J21="Multiple",VLOOKUP($A21,Produits_composes!$A$1:$AA$30,25,FALSE),IF($J21=5.5%,$F21*(1+$J21)-$F21,"")) -> 0.67772485 | M21: =IF($J21="Multiple",VLOOKUP(A21,Produits_composes!$A$1:$AA$30,26,FALSE),IF($J21=20%,$F21*(1+$J21)-$F21,"")) ->  | N21: 3760219062707 | O21: 1210 | P21: 19
A22: 7A | B22: Pruneaux d’Agen Mi-Cuit | C22: 500g | D22: Sachet | E22: 25 | F22: =IF(J22="Multiple",VLOOKUP(A22,Produits_composes!$A$1:$AA$30,24,FALSE),ROUNDDOWN(G22*100/(100+J22*100),5)) -> 4.07582 | G22: 4.3 | H22: =IF($Q$2>=20%,20%,$Q$2) -> 0.2 | I22: 3.27 | J22: 0.055 | K22: 0.22418 | L22: =IF($J22="Multiple",VLOOKUP($A22,Produits_composes!$A$1:$AA$30,25,FALSE),IF($J22=5.5%,$F22*(1+$J22)-$F22,"")) -> 0.2241701 | M22: =IF($J22="Multiple",VLOOKUP(A22,Produits_composes!$A$1:$AA$30,26,FALSE),IF($J22=20%,$F22*(1+$J22)-$F22,"")) ->  | N22: 3760219062691 | O22: 500 | P22: 20
A23: 7B | B23: Pruneaux d’Agen Mi-Cuit | C23: 1kg | D23: Sachet | E23: 14 | F23: =IF(J23="Multiple",VLOOKUP(A23,Produits_composes!$A$1:$AA$30,24,FALSE),ROUNDDOWN(G23*100/(100+J23*100),5)) -> 6.87203 | G23: 7.25 | H23: 0.2 | I23: 5.5 | J23: 0.055 | K23: 0.37797 | L23: =IF($J23="Multiple",VLOOKUP($A23,Produits_composes!$A$1:$AA$30,25,FALSE),IF($J23=5.5%,$F23*(1+$J23)-$F23,"")) -> 0.37796165 | M23: =IF($J23="Multiple",VLOOKUP(A23,Produits_composes!$A$1:$AA$30,26,FALSE),IF($J23=20%,$F23*(1+$J23)-$F23,"")) ->  | N23: 3760219062684 | O23: 1000 | P23: 21
A24: 8A | B24: Pruneaux d’Agen (cal. 33/44) | C24: 250g | D24: Sachet | E24: 50 | F24: =IF(J24="Multiple",VLOOKUP(A24,Produits_composes!$A$1:$AA$30,24,FALSE),ROUNDDOWN(G24*100/(100+J24*100),5)) -> 3.03317 | G24: 3.2 | H24: 0.2 | I24: 2.43 | J24: 0.055 | K24: 0.16683 | L24: =IF($J24="Multiple",VLOOKUP($A24,Produits_composes!$A$1:$AA$30,25,FALSE),IF($J24=5.5%,$F24*(1+$J24)-$F24,"")) -> 0.16682435 | M24: =IF($J24="Multiple",VLOOKUP(A24,Produits_composes!$A$1:$AA$30,26,FALSE),IF($J24=20%,$F24*(1+$J24)-$F24,"")) ->  | N24: 3760219062677 | O24: 250 | P24: 22
A25: 8B | B25: Pruneaux d’Agen (cal. 33/44) | C25: 500g | D25: Sachet | E25: 25 | F25: =IF(J25="Multiple",VLOOKUP(A25,Produits_composes!$A$1:$AA$30,24,FALSE),ROUNDDOWN(G25*100/(100+J25*100),5)) -> 3.60189 | G25: 3.8 | H25: 0.2 | I25: 2.89 | J25: 0.055 | K25: 0.19811 | L25: =IF($J25="Multiple",VLOOKUP($A25,Produits_composes!$A$1:$AA$30,25,FALSE),IF($J25=5.5%,$F25*(1+$J25)-$F25,"")) -> 0.19810395 | M25: =IF($J25="Multiple",VLOOKUP(A25,Produits_composes!$A$1:$AA$30,26,FALSE),IF($J25=20%,$F25*(1+$J25)-$F25,"")) ->  | N25: 3760219062660 | O25: 500 | P25: 23
A26: 8C | B26: Pruneaux d’Agen (cal. 33/44) | C26: 1kg | D26: Sachet | E26: 14 | F26: =IF(J26="Multiple",VLOOKUP(A26,Produits_composes!$A$1:$AA$30,24,FALSE),ROUNDDOWN(G26*100/(100+J26*100),5)) -> 6.16113 | G26: 6.5 | H26: 0.2 | I26: 4.93 | J26: 0.055 | K26: 0.33887 | L26: =IF($J26="Multiple",VLOOKUP($A26,Produits_composes!$A$1:$AA$30,25,FALSE),IF($J26=5.5%,$F26*(1+$J26)-$F26,"")) -> 0.33886215 | M26: =IF($J26="Multiple",VLOOKUP(A26,Produits_composes!$A$1:$AA$30,26,FALSE),IF($J26=20%,$F26*(1+$J26)-$F26,"")) ->  | N26: 3760219062653 | O26: 1000 | P26: 24
A27: 8D | B27: Pruneaux d’Agen (cal. 30/35) | C27: 500g | D27: Sachet | E27: 25 | F27: =IF(J27="Multiple",VLOOKUP(A27,Produits_composes!$A$1:$AA$30,24,FALSE),ROUNDDOWN(G27*100/(100+J27*100),5)) -> 4.64454 | G27: 4.9 | H27: 0.2 | I27: 3.72 | J27: 0.055 | K27: 0.25546 | L27: =IF($J27="Multiple",VLOOKUP($A27,Produits_composes!$A$1:$AA$30,25,FALSE),IF($J27=5.5%,$F27*(1+$J27)-$F27,"")) -> 0.2554497 | M27: =IF($J27="Multiple",VLOOKUP(A27,Produits_composes!$A$1:$AA$30,26,FALSE),IF($J27=20%,$F27*(1+$J27)-$F27,"")) ->  | N27: 3760219062646 | O27: 500 | P27: 25
A28: 8E | B28: Pruneaux d’Agen (cal. 30/35) | C28: 1kg | D28: Sachet | E28: 14 | F28: =IF(J28="Multiple",VLOOKUP(A28,Produits_composes!$A$1:$AA$30,24,FALSE),ROUNDDOWN(G28*100/(100+J28*100),5)) -> 7.67772 | G28: 8.1 | H28: 0.2 | I28: 6.15 | J28: 0.055 | K28: 0.42228 | L28: =IF($J28="Multiple",VLOOKUP($A28,Produits_composes!$A$1:$AA$30,25,FALSE),IF($J28=5.5%,$F28*(1+$J28)-$F28,"")) -> 0.4222746 | M28: =IF($J28="Multiple",VLOOKUP(A28,Produits_composes!$A$1:$AA$30,26,FALSE),IF($J28=20%,$F28*(1+$J28)-$F28,"")) ->  | N28: 3760219062639 | O28: 1000 | P28: 26
A29: 8F | B29: Pruneaux d’Agen (cal. 25/30) | C29: 500g | D29: Sachet | E29: 25 | F29: =IF(J29="Multiple",VLOOKUP(A29,Produits_composes!$A$1:$AA$30,24,FALSE),ROUNDDOWN(G29*100/(100+J29*100),5)) -> 4.83412 | G29: 5.1 | H29: 0.2 | I29: 3.87 | J29: 0.055 | K29: 0.26588 | L29: =IF($J29="Multiple",VLOOKUP($A29,Produits_composes!$A$1:$AA$30,25,FALSE),IF($J29=5.5%,$F29*(1+$J29)-$F29,"")) -> 0.2658766 | M29: =IF($J29="Multiple",VLOOKUP(A29,Produits_composes!$A$1:$AA$30,26,FALSE),IF($J29=20%,$F29*(1+$J29)-$F29,"")) ->  | N29: 3760219062622 | O29: 500 | P29: 27
A30: 8G | B30: Pruneaux d’Agen (cal. 25/30) | C30: 1kg | D30: Sachet | E30: 14 | F30: =IF(J30="Multiple",VLOOKUP(A30,Produits_composes!$A$1:$AA$30,24,FALSE),ROUNDDOWN(G30*100/(100+J30*100),2)) -> 8.05 | G30: 8.5 | H30: 0.2 | I30: 6.44 | J30: 0.055 | K30: 0.45 | L30: =IF($J30="Multiple",VLOOKUP($A30,Produits_composes!$A$1:$AA$30,25,FALSE),IF($J30=5.5%,$F30*(1+$J30)-$F30,"")) -> 0.44275 | M30: =IF($J30="Multiple",VLOOKUP(A30,Produits_composes!$A$1:$AA$30,26,FALSE),IF($J30=20%,$F30*(1+$J30)-$F30,"")) ->  | N30: 3760219062615 | O30: 1000 | P30: 28
A31: 8H | B31: Pruneaux d’Agen (cal. 33/44) | C31: 5kg (2x2,5kg) | D31: Sachet | E31: 4 | F31: =IF(J31="Multiple",VLOOKUP(A31,Produits_composes!$A$1:$AA$30,24,FALSE),ROUNDDOWN(G31*100/(100+J31*100),5)) -> 26.91943 | G31: 28.4 | H31: =IF($Q$2>=23%,23%,$Q$2) -> 0.2 | I31: =IF(H31=0,F31,ROUNDUP($F31-$F31*$H31,2)) -> 21.54 | J31: 0.055 | K31: =G31-F31 -> 1.48057 | L31: =IF($J31="Multiple",VLOOKUP($A31,Produits_composes!$A$1:$AA$30,25,FALSE),IF($J31=5.5%,$F31*(1+$J31)-$F31,"")) -> 1.48056865 | M31: =IF($J31="Multiple",VLOOKUP(A31,Produits_composes!$A$1:$AA$30,26,FALSE),IF($J31=20%,$F31*(1+$J31)-$F31,"")) ->  | N31: 3760219062608 | O31: 5500 | P31: 29
A32: 8I | B32: Pruneaux d’Agen (cal. 33/44) avec conservateur e200 | C32: 14kg | D32: Sachet | E32: 1 | F32: =IF(J32="Multiple",VLOOKUP(A32,Produits_composes!$A$1:$AA$30,24,FALSE),ROUNDDOWN(G32*100/(100+J32*100),5)) -> 74.88151 | G32: 79 | H32: =IF($Q$2>=23%,23%,$Q$2) -> 0.2 | I32: =IF(H32=0,F32,ROUNDUP($F32-$F32*$H32,2)) -> 59.91 | J32: 0.055 | K32: =G32-F32 -> 4.11849 | L32: =IF($J32="Multiple",VLOOKUP($A32,Produits_composes!$A$1:$AA$30,25,FALSE),IF($J32=5.5%,$F32*(1+$J32)-$F32,"")) -> 4.11848305 | M32: =IF($J32="Multiple",VLOOKUP(A32,Produits_composes!$A$1:$AA$30,26,FALSE),IF($J32=20%,$F32*(1+$J32)-$F32,"")) ->  | N32: 3760219062592 | O32: 14500 | P32: 30
A33: 9A | B33: Pruneaux d’Agen dénoyautés (cal. 44/55) | C33: 250g | D33: Sachet | E33: 50 | F33: =IF(J33="Multiple",VLOOKUP(A33,Produits_composes!$A$1:$AA$30,24,FALSE),ROUNDDOWN(G33*100/(100+J33*100),2)) -> 3.31 | G33: 3.5 | H33: 0.2 | I33: 2.65 | J33: 0.055 | K33: 0.19 | L33: =IF($J33="Multiple",VLOOKUP($A33,Produits_composes!$A$1:$AA$30,25,FALSE),IF($J33=5.5%,$F33*(1+$J33)-$F33,"")) -> 0.18205 | M33: =IF($J33="Multiple",VLOOKUP(A33,Produits_composes!$A$1:$AA$30,26,FALSE),IF($J33=20%,$F33*(1+$J33)-$F33,"")) ->  | N33: 3760219062585 | O33: 250 | P33: 31
A34: 9B | B34: Pruneaux d’Agen dénoyautés (cal. 44/55) | C34: 500g | D34: Sachet | E34: 25 | F34: =IF(J34="Multiple",VLOOKUP(A34,Produits_composes!$A$1:$AA$30,24,FALSE),ROUNDDOWN(G34*100/(100+J34*100),5)) -> 4.54976 | G34: 4.8 | H34: 0.2 | I34: 3.64 | J34: 0.055 | K34: 0.25024 | L34: =IF($J34="Multiple",VLOOKUP($A34,Produits_composes!$A$1:$AA$30,25,FALSE),IF($J34=5.5%,$F34*(1+$J34)-$F34,"")) -> 0.2502368 | M34: =IF($J34="Multiple",VLOOKUP(A34,Produits_composes!$A$1:$AA$30,26,FALSE),IF($J34=20%,$F34*(1+$J34)-$F34,"")) ->  | N34: 3760219062578 | O34: 500 | P34: 32
A35: 9C | B35: Pruneaux d’Agen dénoyautés (cal. 44/55) | C35: 1kg | D35: Sachet | E35: 14 | F35: =IF(J35="Multiple",VLOOKUP(A35,Produits_composes!$A$1:$AA$30,24,FALSE),ROUNDDOWN(G35*100/(100+J35*100),5)) -> 8.43601 | G35: 8.9 | H35: 0.2 | I35: 6.75 | J35: 0.055 | K35: 0.46399 | L35: =IF($J35="Multiple",VLOOKUP($A35,Produits_composes!$A$1:$AA$30,25,FALSE),IF($J35=5.5%,$F35*(1+$J35)-$F35,"")) -> 0.46398055 | M35: =IF($J35="Multiple",VLOOKUP(A35,Produits_composes!$A$1:$AA$30,26,FALSE),IF($J35=20%,$F35*(1+$J35)-$F35,"")) ->  | N35: 3760219062561 | O35: 1000 | P35: 33
A36: 9D | B36: Pruneaux d’Agen dénoyautés (cal. 30/35) | C36: 500g | D36: Sachet | E36: 25 | F36: =IF(J36="Multiple",VLOOKUP(A36,Produits_composes!$A$1:$AA$30,24,FALSE),ROUNDDOWN(G36*100/(100+J36*100),5)) -> 5.21327 | G36: 5.5 | H36: 0.2 | I36: 4.18 | J36: 0.055 | K36: 0.28673 | L36: =IF($J36="Multiple",VLOOKUP($A36,Produits_composes!$A$1:$AA$30,25,FALSE),IF($J36=5.5%,$F36*(1+$J36)-$F36,"")) -> 0.28672985 | M36: =IF($J36="Multiple",VLOOKUP(A36,Produits_composes!$A$1:$AA$30,26,FALSE),IF($J36=20%,$F36*(1+$J36)-$F36,"")) ->  | N36: 3760219062554 | O36: 500 | P36: 34
A37: 9E | B37: Pruneaux d’Agen dénoyautés (cal. 30/35) | C37: 1kg | D37: Sachet | E37: 14 | F37: =IF(J37="Multiple",VLOOKUP(A37,Produits_composes!$A$1:$AA$30,24,FALSE),ROUNDDOWN(G37*100/(100+J37*100),5)) -> 8.72037 | G37: 9.2 | H37: 0.2 | I37: 6.98 | J37: 0.055 | K37: 0.47963 | L37: =IF($J37="Multiple",VLOOKUP($A37,Produits_composes!$A$1:$AA$30,25,FALSE),IF($J37=5.5%,$F37*(1+$J37)-$F37,"")) -> 0.47962035 | M37: =IF($J37="Multiple",VLOOKUP(A37,Produits_composes!$A$1:$AA$30,26,FALSE),IF($J37=20%,$F37*(1+$J37)-$F37,"")) ->  | N37: 3760219062547 | O37: 1000 | P37: 35
A38: 10A | B38: Jus de Pruneaux | C38: 1L | D38: Bouteille | E38: 6 | F38: =IF(J38="Multiple",VLOOKUP(A38,Produits_composes!$A$1:$AA$30,24,FALSE),ROUNDDOWN(G38*100/(100+J38*100),5)) -> 3.98104 | G38: 4.2 | H38: 0.2 | I38: 3.19 | J38: 0.055 | K38: 0.21896 | L38: =IF($J38="Multiple",VLOOKUP($A38,Produits_composes!$A$1:$AA$30,25,FALSE),IF($J38=5.5%,$F38*(1+$J38)-$F38,"")) -> 0.2189572 | M38: =IF($J38="Multiple",VLOOKUP(A38,Produits_composes!$A$1:$AA$30,26,FALSE),IF($J38=20%,$F38*(1+$J38)-$F38,"")) ->  | N38: 3760219062530 | O38: 1450 | P38: 36
A39: 10B | B39: Jus de Pruneaux | C39: 25cl | D39: Bouteille | E39: 12 | F39: =IF(J39="Multiple",VLOOKUP(A39,Produits_composes!$A$1:$AA$30,24,FALSE),ROUNDDOWN(G39*100/(100+J39*100),5)) -> 2.0853 | G39: 2.2 | H39: 0.2 | I39: 1.67 | J39: 0.055 | K39: 0.1147 | L39: =IF($J39="Multiple",VLOOKUP($A39,Produits_composes!$A$1:$AA$30,25,FALSE),IF($J39=5.5%,$F39*(1+$J39)-$F39,"")) -> 0.1146915 | M39: =IF($J39="Multiple",VLOOKUP(A39,Produits_composes!$A$1:$AA$30,26,FALSE),IF($J39=20%,$F39*(1+$J39)-$F39,"")) ->  | N39: 3760219062905 | O39: 400 | P39: 37
A40: 11A | B40: Pétillant de pruneaux | C40: 0,75L | D40: Bouteille | E40: 6 | F40: =IF(J40="Multiple",VLOOKUP(A40,Produits_composes!$A$1:$AA$30,24,FALSE),ROUNDDOWN(G40*100/(100+J40*100),5)) -> 5.59241 | G40: 5.9 | H40: 0.2 | I40: 4.48 | J40: 0.055 | K40: 0.30759 | L40: =IF($J40="Multiple",VLOOKUP($A40,Produits_composes!$A$1:$AA$30,25,FALSE),IF($J40=5.5%,$F40*(1+$J40)-$F40,"")) -> 0.30758255 | M40: =IF($J40="Multiple",VLOOKUP(A40,Produits_composes!$A$1:$AA$30,26,FALSE),IF($J40=20%,$F40*(1+$J40)-$F40,"")) ->  | N40: 3760219062523 | O40: 1350 | P40: 38
A41: 12A | B41: Pruneaux d’Agen secs | C41: 500g | D41: Sachet | E41: 25 | F41: =IF(J41="Multiple",VLOOKUP(A41,Produits_composes!$A$1:$AA$30,24,FALSE),ROUNDDOWN(G41*100/(100+J41*100),5)) -> 2.36966 | G41: 2.5 | H41: 0.2 | I41: 1.9 | J41: 0.055 | K41: 0.13034 | L41: =IF($J41="Multiple",VLOOKUP($A41,Produits_composes!$A$1:$AA$30,25,FALSE),IF($J41=5.5%,$F41*(1+$J41)-$F41,"")) -> 0.1303313 | M41: =IF($J41="Multiple",VLOOKUP(A41,Produits_composes!$A$1:$AA$30,26,FALSE),IF($J41=20%,$F41*(1+$J41)-$F41,"")) ->  | N41: 3760219062516 | O41: 500 | P41: 39
A42: 12B | B42: Pruneaux d’Agen secs | C42: 1kg | D42: Sachet | E42: 14 | F42: =IF(J42="Multiple",VLOOKUP(A42,Produits_composes!$A$1:$AA$30,24,FALSE),ROUNDDOWN(G42*100/(100+J42*100),5)) -> 4.64454 | G42: 4.9 | H42: 0.2 | I42: 3.72 | J42: 0.055 | K42: 0.25546 | L42: =IF($J42="Multiple",VLOOKUP($A42,Produits_composes!$A$1:$AA$30,25,FALSE),IF($J42=5.5%,$F42*(1+$J42)-$F42,"")) -> 0.2554497 | M42: =IF($J42="Multiple",VLOOKUP(A42,Produits_composes!$A$1:$AA$30,26,FALSE),IF($J42=20%,$F42*(1+$J42)-$F42,"")) ->  | N42: 3760219062509 | O42: 1000 | P42: 40
A43: 13A | B43: Crème de pruneaux | C43: 220g | D43: Bocal | E43: 24 | F43: =IF(J43="Multiple",VLOOKUP(A43,Produits_composes!$A$1:$AA$30,24,FALSE),ROUNDDOWN(G43*100/(100+J43*100),5)) -> 3.03317 | G43: 3.2 | H43: 0.2 | I43: 2.43 | J43: 0.055 | K43: 0.16683 | L43: =IF($J43="Multiple",VLOOKUP($A43,Produits_composes!$A$1:$AA$30,25,FALSE),IF($J43=5.5%,$F43*(1+$J43)-$F43,"")) -> 0.16682435 | M43: =IF($J43="Multiple",VLOOKUP(A43,Produits_composes!$A$1:$AA$30,26,FALSE),IF($J43=20%,$F43*(1+$J43)-$F43,"")) ->  | N43: 3760219062493 | O43: 380 | P43: 41
A44: 13B | B44: Crème de pruneaux | C44: 320g | D44: Bocal | E44: 24 | F44: =IF(J44="Multiple",VLOOKUP(A44,Produits_composes!$A$1:$AA$30,24,FALSE),ROUNDDOWN(G44*100/(100+J44*100),5)) -> 3.98104 | G44: 4.2 | H44: =$Q$2+8% -> 0.28 | I44: 2.87 | J44: 0.055 | K44: 0.21896 | L44: =IF($J44="Multiple",VLOOKUP($A44,Produits_composes!$A$1:$AA$30,25,FALSE),IF($J44=5.5%,$F44*(1+$J44)-$F44,"")) -> 0.2189572 | M44: =IF($J44="Multiple",VLOOKUP(A44,Produits_composes!$A$1:$AA$30,26,FALSE),IF($J44=20%,$F44*(1+$J44)-$F44,"")) ->  | N44: 3760219062486 | O44: 525 | P44: 42
A45: 14A | B45: Pulpe de pruneaux | C45: 310g | D45: Bocal | E45: 24 | F45: =IF(J45="Multiple",VLOOKUP(A45,Produits_composes!$A$1:$AA$30,24,FALSE),ROUNDDOWN(G45*100/(100+J45*100),5)) -> 3.98104 | G45: 4.2 | H45: =$Q$2+8% -> 0.28 | I45: 2.87 | J45: 0.055 | K45: 0.21896 | L45: =IF($J45="Multiple",VLOOKUP($A45,Produits_composes!$A$1:$AA$30,25,FALSE),IF($J45=5.5%,$F45*(1+$J45)-$F45,"")) -> 0.2189572 | M45: =IF($J45="Multiple",VLOOKUP(A45,Produits_composes!$A$1:$AA$30,26,FALSE),IF($J45=20%,$F45*(1+$J45)-$F45,"")) ->  | N45: 3760219062479 | O45: 530 | P45: 43
A46: 15A | B46: Pruneaux au sirop | C46: 320g | D46: Bocal | E46: 14 | F46: =IF(J46="Multiple",VLOOKUP(A46,Produits_composes!$A$1:$AA$30,24,FALSE),ROUNDDOWN(G46*100/(100+J46*100),5)) -> 3.22274 | G46: 3.4 | H46: =$Q$2 -> 0.2 | I46: 2.58 | J46: 0.055 | K46: 0.17726 | L46: =IF($J46="Multiple",VLOOKUP($A46,Produits_composes!$A$1:$AA$30,25,FALSE),IF($J46=5.5%,$F46*(1+$J46)-$F46,"")) -> 0.1772507 | M46: =IF($J46="Multiple",VLOOKUP(A46,Produits_composes!$A$1:$AA$30,26,FALSE),IF($J46=20%,$F46*(1+$J46)-$F46,"")) ->  | N46: 3760219062462 | O46: 565 | P46: 44
A47: 16A | B47: Confiture de Prune d'Ente allégée | C47: 250g | D47: Bocal | E47: 10 | F47: =IF(J47="Multiple",VLOOKUP(A47,Produits_composes!$A$1:$AA$30,24,FALSE),ROUNDDOWN(G47*100/(100+J47*100),5)) -> 3.79146 | G47: 4 | H47: 0.2 | I47: 3.04 | J47: 0.055 | K47: 0.20854 | L47: =IF($J47="Multiple",VLOOKUP($A47,Produits_composes!$A$1:$AA$30,25,FALSE),IF($J47=5.5%,$F47*(1+$J47)-$F47,"")) -> 0.2085303 | M47: =IF($J47="Multiple",VLOOKUP(A47,Produits_composes!$A$1:$AA$30,26,FALSE),IF($J47=20%,$F47*(1+$J47)-$F47,"")) ->  | N47: 3760219062455 | O47: 465 | P47: 45
A48: 16B | B48: Confiture de Prune Reine-Claude allégée | C48: 250g | D48: Bocal | E48: 10 | F48: =IF(J48="Multiple",VLOOKUP(A48,Produits_composes!$A$1:$AA$30,24,FALSE),ROUNDDOWN(G48*100/(100+J48*100),5)) -> 3.79146 | G48: 4 | H48: 0.2 | I48: 3.04 | J48: 0.055 | K48: 0.20854 | L48: =IF($J48="Multiple",VLOOKUP($A48,Produits_composes!$A$1:$AA$30,25,FALSE),IF($J48=5.5%,$F48*(1+$J48)-$F48,"")) -> 0.2085303 | M48: =IF($J48="Multiple",VLOOKUP(A48,Produits_composes!$A$1:$AA$30,26,FALSE),IF($J48=20%,$F48*(1+$J48)-$F48,"")) ->  | N48: 3760219062448 | O48: 465 | P48: 46
A49: 16C | B49: Confiture de Fraise | C49: 250g | D49: Bocal | E49: 10 | F49: =IF(J49="Multiple",VLOOKUP(A49,Produits_composes!$A$1:$AA$30,24,FALSE),ROUNDDOWN(G49*100/(100+J49*100),5)) -> 3.79146 | G49: 4 | H49: 0.2 | I49: 3.04 | J49: 0.055 | K49: 0.20854 | L49: =IF($J49="Multiple",VLOOKUP($A49,Produits_composes!$A$1:$AA$30,25,FALSE),IF($J49=5.5%,$F49*(1+$J49)-$F49,"")) -> 0.2085303 | M49: =IF($J49="Multiple",VLOOKUP(A49,Produits_composes!$A$1:$AA$30,26,FALSE),IF($J49=20%,$F49*(1+$J49)-$F49,"")) ->  | N49: 3760219062431 | O49: 465 | P49: 47
A50: 17A | B50: Confiture de Prune d'Ente allégée | C50: 330g | D50: Bocal | E50: 14 | F50: =IF(J50="Multiple",VLOOKUP(A50,Produits_composes!$A$1:$AA$30,24,FALSE),ROUNDDOWN(G50*100/(100+J50*100),5)) -> 4.2654 | G50: 4.5 | H50: 0.2 | I50: 3.42 | J50: 0.055 | K50: 0.2346 | L50: =IF($J50="Multiple",VLOOKUP($A50,Produits_composes!$A$1:$AA$30,25,FALSE),IF($J50=5.5%,$F50*(1+$J50)-$F50,"")) -> 0.234597 | M50: =IF($J50="Multiple",VLOOKUP(A50,Produits_composes!$A$1:$AA$30,26,FALSE),IF($J50=20%,$F50*(1+$J50)-$F50,"")) ->  | N50: 3760219062424 | O50: 560 | P50: 48
A51: 17B | B51: Confiture de Prune Reine-Claude allégée | C51: 330g | D51: Bocal | E51: 14 | F51: =IF(J51="Multiple",VLOOKUP(A51,Produits_composes!$A$1:$AA$30,24,FALSE),ROUNDDOWN(G51*100/(100+J51*100),5)) -> 4.2654 | G51: 4.5 | H51: 0.2 | I51: 3.42 | J51: 0.055 | K51: 0.2346 | L51: =IF($J51="Multiple",VLOOKUP($A51,Produits_composes!$A$1:$AA$30,25,FALSE),IF($J51=5.5%,$F51*(1+$J51)-$F51,"")) -> 0.234597 | M51: =IF($J51="Multiple",VLOOKUP(A51,Produits_composes!$A$1:$AA$30,26,FALSE),IF($J51=20%,$F51*(1+$J51)-$F51,"")) ->  | N51: 3760219062417 | O51: 560 | P51: 49
A52: 17C | B52: Confiture de Fraise | C52: 330g | D52: Bocal | E52: 14 | F52: =IF(J52="Multiple",VLOOKUP(A52,Produits_composes!$A$1:$AA$30,24,FALSE),ROUNDDOWN(G52*100/(100+J52*100),5)) -> 4.2654 | G52: 4.5 | H52: 0.2 | I52: 3.42 | J52: 0.055 | K52: 0.2346 | L52: =IF($J52="Multiple",VLOOKUP($A52,Produits_composes!$A$1:$AA$30,25,FALSE),IF($J52=5.5%,$F52*(1+$J52)-$F52,"")) -> 0.234597 | M52: =IF($J52="Multiple",VLOOKUP(A52,Produits_composes!$A$1:$AA$30,26,FALSE),IF($J52=20%,$F52*(1+$J52)-$F52,"")) ->  | N52: 3760219062400 | O52: 560 | P52: 50
A53: 18A | B53: Nougat aux pruneaux | C53: 100g | D53: Sachet | E53: 10 | F53: =IF(J53="Multiple",VLOOKUP(A53,Produits_composes!$A$1:$AA$30,24,FALSE),ROUNDDOWN(G53*100/(100+J53*100),5)) -> 4.58333 | G53: 5.5 | H53: 0.2 | I53: 3.67 | J53: 0.2 | K53: 0.91667 | L53: =IF($J53="Multiple",VLOOKUP($A53,Produits_composes!$A$1:$AA$30,25,FALSE),IF($J53=5.5%,$F53*(1+$J53)-$F53,"")) ->  | M53: =IF($J53="Multiple",VLOOKUP(A53,Produits_composes!$A$1:$AA$30,26,FALSE),IF($J53=20%,$F53*(1+$J53)-$F53,"")) -> 0.916666 | N53: 3760219062394 | O53: 100 | P53: 51
A54: 18B | B54: Nougat aux pruneaux | C54: 150g | D54: Sachet | E54: 10 | F54: =IF(J54="Multiple",VLOOKUP(A54,Produits_composes!$A$1:$AA$30,24,FALSE),ROUNDDOWN(G54*100/(100+J54*100),5)) -> 6.66666 | G54: 8 | H54: 0.2 | I54: 5.34 | J54: 0.2 | K54: 1.33334 | L54: =IF($J54="Multiple",VLOOKUP($A54,Produits_composes!$A$1:$AA$30,25,FALSE),IF($J54=5.5%,$F54*(1+$J54)-$F54,"")) ->  | M54: =IF($J54="Multiple",VLOOKUP(A54,Produits_composes!$A$1:$AA$30,26,FALSE),IF($J54=20%,$F54*(1+$J54)-$F54,"")) -> 1.333332 | N54: 3760219062387 | O54: 150 | P54: 52
A55: 19A | B55: Mendiants chocolat noir | C55: 150g | D55: Sachet | E55: 10 | F55: =IF(J55="Multiple",VLOOKUP(A55,Produits_composes!$A$1:$AA$30,24,FALSE),ROUNDDOWN(G55*100/(100+J55*100),5)) -> 5.6872 | G55: 6 | H55: 0.2 | I55: 4.55 | J55: 0.055 | K55: 0.3128 | L55: =IF($J55="Multiple",VLOOKUP($A55,Produits_composes!$A$1:$AA$30,25,FALSE),IF($J55=5.5%,$F55*(1+$J55)-$F55,"")) -> 0.312796 | M55: =IF($J55="Multiple",VLOOKUP(A55,Produits_composes!$A$1:$AA$30,26,FALSE),IF($J55=20%,$F55*(1+$J55)-$F55,"")) ->  | N55: 3760219062370 | O55: 150 | P55: 53
A56: 19B | B56: Mendiants chocolat noir | C56: 200g | D56: Sachet | E56: 10 | F56: =IF(J56="Multiple",VLOOKUP(A56,Produits_composes!$A$1:$AA$30,24,FALSE),ROUNDDOWN(G56*100/(100+J56*100),2)) -> 3.75 | G56: 7.5 | H56: 0.2 | I56: 3 | J56: TRUE | K56: 3.75 | L56: =IF($J56="Multiple",VLOOKUP($A56,Produits_composes!$A$1:$AA$30,25,FALSE),IF($J56=5.5%,$F56*(1+$J56)-$F56,"")) ->  | M56: =IF($J56="Multiple",VLOOKUP(A56,Produits_composes!$A$1:$AA$30,26,FALSE),IF($J56=20%,$F56*(1+$J56)-$F56,"")) ->  | N56: 3760219062363 | O56: 200 | P56: 54
A57: 20A | B57: Mendiants chocolat lait | C57: 150g | D57: Sachet | E57: 10 | F57: =IF(J57="Multiple",VLOOKUP(A57,Produits_composes!$A$1:$AA$30,24,FALSE),ROUNDDOWN(G57*100/(100+J57*100),5)) -> 5.6872 | G57: 6 | H57: 0.2 | I57: 4.55 | J57: 0.055 | K57: 0.3128 | L57: =IF($J57="Multiple",VLOOKUP($A57,Produits_composes!$A$1:$AA$30,25,FALSE),IF($J57=5.5%,$F57*(1+$J57)-$F57,"")) -> 0.312796 | M57: =IF($J57="Multiple",VLOOKUP(A57,Produits_composes!$A$1:$AA$30,26,FALSE),IF($J57=20%,$F57*(1+$J57)-$F57,"")) ->  | N57: 3760219062356 | O57: 150 | P57: 55
A58: 20B | B58: Mendiants chocolat lait | C58: 200g | D58: Sachet | E58: 10 | F58: =IF(J58="Multiple",VLOOKUP(A58,Produits_composes!$A$1:$AA$30,24,FALSE),ROUNDDOWN(G58*100/(100+J58*100),2)) -> 7.1 | G58: 7.5 | H58: 0.2 | I58: 5.68 | J58: 0.055 | K58: 0.4 | L58: =IF($J58="Multiple",VLOOKUP($A58,Produits_composes!$A$1:$AA$30,25,FALSE),IF($J58=5.5%,$F58*(1+$J58)-$F58,"")) -> 0.3905 | M58: =IF($J58="Multiple",VLOOKUP(A58,Produits_composes!$A$1:$AA$30,26,FALSE),IF($J58=20%,$F58*(1+$J58)-$F58,"")) ->  | N58: 3760219062349 | O58: 200 | P58: 56
A59: 21A | B59: Pâtes de fruit - (saveur à préciser) | C59: 150g | D59: Sachet | E59: 10 | F59: =IF(J59="Multiple",VLOOKUP(A59,Produits_composes!$A$1:$AA$30,24,FALSE),ROUNDDOWN(G59*100/(100+J59*100),5)) -> 5.6872 | G59: 6 | H59: 0.2 | I59: 4.55 | J59: 0.055 | K59: 0.3128 | L59: =IF($J59="Multiple",VLOOKUP($A59,Produits_composes!$A$1:$AA$30,25,FALSE),IF($J59=5.5%,$F59*(1+$J59)-$F59,"")) -> 0.312796 | M59: =IF($J59="Multiple",VLOOKUP(A59,Produits_composes!$A$1:$AA$30,26,FALSE),IF($J59=20%,$F59*(1+$J59)-$F59,"")) ->  | N59: 3760219062332 | O59: 100 | P59: 57
A60: 21B | B60: Pâtes de fruit - Mixte (mélange) | C60: 150g | D60: Sachet | E60: 10 | F60: =IF(J60="Multiple",VLOOKUP(A60,Produits_composes!$A$1:$AA$30,24,FALSE),ROUNDDOWN(G60*100/(100+J60*100),5)) -> 6.16113 | G60: 6.5 | H60: 0.2 | I60: 4.93 | J60: 0.055 | K60: 0.33887 | L60: =IF($J60="Multiple",VLOOKUP($A60,Produits_composes!$A$1:$AA$30,25,FALSE),IF($J60=5.5%,$F60*(1+$J60)-$F60,"")) -> 0.33886215 | M60: =IF($J60="Multiple",VLOOKUP(A60,Produits_composes!$A$1:$AA$30,26,FALSE),IF($J60=20%,$F60*(1+$J60)-$F60,"")) ->  | N60: 3760219062325 | O60: 100 | P60: 58
A61: 22A | B61: Pâtes de velours chocolat | C61: 150g | D61: Sachet | E61: 10 | F61: =IF(J61="Multiple",VLOOKUP(A61,Produits_composes!$A$1:$AA$30,24,FALSE),ROUNDDOWN(G61*100/(100+J61*100),5)) -> 6.16113 | G61: 6.5 | H61: 0.2 | I61: 4.93 | J61: 0.055 | K61: 0.33887 | L61: =IF($J61="Multiple",VLOOKUP($A61,Produits_composes!$A$1:$AA$30,25,FALSE),IF($J61=5.5%,$F61*(1+$J61)-$F61,"")) -> 0.33886215 | M61: =IF($J61="Multiple",VLOOKUP(A61,Produits_composes!$A$1:$AA$30,26,FALSE),IF($J61=20%,$F61*(1+$J61)-$F61,"")) ->  | N61: 3760219062318 | O61: 100 | P61: 59
A62: 23A | B62: Madeleines à la crème de pruneau (env. 5 unités) | C62: 100g | D62: Sachet | E62: 10 | F62: =IF(J62="Multiple",VLOOKUP(A62,Produits_composes!$A$1:$AA$30,24,FALSE),ROUNDDOWN(G62*100/(100+J62*100),5)) -> 2.46445 | G62: 2.6 | H62: 0.2 | I62: 1.98 | J62: 0.055 | K62: 0.13555 | L62: =IF($J62="Multiple",VLOOKUP($A62,Produits_composes!$A$1:$AA$30,25,FALSE),IF($J62=5.5%,$F62*(1+$J62)-$F62,"")) -> 0.13554475 | M62: =IF($J62="Multiple",VLOOKUP(A62,Produits_composes!$A$1:$AA$30,26,FALSE),IF($J62=20%,$F62*(1+$J62)-$F62,"")) ->  | N62: 3760219062301 | O62: 100 | P62: 60
A63: 23B | B63: Madeleines à la crème de pruneau (env. 8 unités) | C63: 150g | D63: Sachet | E63: 10 | F63: =IF(J63="Multiple",VLOOKUP(A63,Produits_composes!$A$1:$AA$30,24,FALSE),ROUNDDOWN(G63*100/(100+J63*100),5)) -> 3.69668 | G63: 3.9 | H63: 0.2 | I63: 2.96 | J63: 0.055 | K63: 0.20332 | L63: =IF($J63="Multiple",VLOOKUP($A63,Produits_composes!$A$1:$AA$30,25,FALSE),IF($J63=5.5%,$F63*(1+$J63)-$F63,"")) -> 0.2033174 | M63: =IF($J63="Multiple",VLOOKUP(A63,Produits_composes!$A$1:$AA$30,26,FALSE),IF($J63=20%,$F63*(1+$J63)-$F63,"")) ->  | N63: 3760219062295 | O63: 150 | P63: 61
A64: 24A | B64: Pruneaux fourrés - Boîte Or des 100 ans | C64: 350g | D64: Boite métal | E64: 6 | F64: =IF(J64="Multiple",VLOOKUP(A64,Produits_composes!$A$1:$AA$30,24,FALSE),ROUNDDOWN(G64*100/(100+J64*100),5)) -> 12.41666 | G64: 14.9 | H64: =IF($Q$2>=25%,25%,$Q$2) -> 0.2 | I64: 9.94 | J64: 0.2 | K64: 2.48334 | L64: =IF($J64="Multiple",VLOOKUP($A64,Produits_composes!$A$1:$AA$30,25,FALSE),IF($J64=5.5%,$F64*(1+$J64)-$F64,"")) ->  | M64: =IF($J64="Multiple",VLOOKUP(A64,Produits_composes!$A$1:$AA$30,26,FALSE),IF($J64=20%,$F64*(1+$J64)-$F64,"")) -> 2.483332 | N64: 3760219062288 | O64: 560 | P64: 62
A65: 24B | B65: Pruneaux fourrés Armagnac - Boîte Or des 100 ans | C65: 350g | D65: Boite métal | E65: 6 | F65: =IF(J65="Multiple",VLOOKUP(A65,Produits_composes!$A$1:$AA$30,24,FALSE),ROUNDDOWN(G65*100/(100+J65*100),5)) -> 12.91666 | G65: 15.5 | H65: 0.2 | I65: 10.34 | J65: 0.2 | K65: 2.58334 | L65: =IF($J65="Multiple",VLOOKUP($A65,Produits_composes!$A$1:$AA$30,25,FALSE),IF($J65=5.5%,$F65*(1+$J65)-$F65,"")) ->  | M65: =IF($J65="Multiple",VLOOKUP(A65,Produits_composes!$A$1:$AA$30,26,FALSE),IF($J65=20%,$F65*(1+$J65)-$F65,"")) -> 2.583332 | N65: 3760219062271 | O65: 560 | P65: 63
A66: 24C | B66: Pruneaux fourrés - Boîte Or des 100 ans | C66: 600g | D66: Boite métal | E66: 6 | F66: =IF(J66="Multiple",VLOOKUP(A66,Produits_composes!$A$1:$AA$30,24,FALSE),ROUNDDOWN(G66*100/(100+J66*100),5)) -> 17.83333 | G66: 21.4 | H66: 0.2 | I66: 14.27 | J66: 0.2 | K66: 3.56667 | L66: =IF($J66="Multiple",VLOOKUP($A66,Produits_composes!$A$1:$AA$30,25,FALSE),IF($J66=5.5%,$F66*(1+$J66)-$F66,"")) ->  | M66: =IF($J66="Multiple",VLOOKUP(A66,Produits_composes!$A$1:$AA$30,26,FALSE),IF($J66=20%,$F66*(1+$J66)-$F66,"")) -> 3.566666 | N66: 3760219062264 | O66: 915 | P66: 64
A67: 24D | B67: Pruneaux fourrés Armagnac - Boîte Or des 100 ans | C67: 600g | D67: Boite métal | E67: 6 | F67: =IF(J67="Multiple",VLOOKUP(A67,Produits_composes!$A$1:$AA$30,24,FALSE),ROUNDDOWN(G67*100/(100+J67*100),5)) -> 18.33333 | G67: 22 | H67: 0.2 | I67: 14.67 | J67: 0.2 | K67: 3.66667 | L67: =IF($J67="Multiple",VLOOKUP($A67,Produits_composes!$A$1:$AA$30,25,FALSE),IF($J67=5.5%,$F67*(1+$J67)-$F67,"")) ->  | M67: =IF($J67="Multiple",VLOOKUP(A67,Produits_composes!$A$1:$AA$30,26,FALSE),IF($J67=20%,$F67*(1+$J67)-$F67,"")) -> 3.666666 | N67: 3760219062257 | O67: 915 | P67: 65
A68: 24E | B68: Pruneaux fourrés - Boîte Or des 100 ans | C68: 850g | D68: Boite métal | E68: 6 | F68: =IF(J68="Multiple",VLOOKUP(A68,Produits_composes!$A$1:$AA$30,24,FALSE),ROUNDDOWN(G68*100/(100+J68*100),5)) -> 23.66666 | G68: 28.4 | H68: 0.2 | I68: =IF(H68=0,F68,ROUNDUP($F68-$F68*$H68,2)) -> 18.94 | J68: 0.2 | K68: =G68-F68 -> 4.73334 | L68: =IF($J68="Multiple",VLOOKUP($A68,Produits_composes!$A$1:$AA$30,25,FALSE),IF($J68=5.5%,$F68*(1+$J68)-$F68,"")) ->  | M68: =IF($J68="Multiple",VLOOKUP(A68,Produits_composes!$A$1:$AA$30,26,FALSE),IF($J68=20%,$F68*(1+$J68)-$F68,"")) -> 4.733332 | N68: 3760219062240 | O68: 1040 | P68: 66
A69: 24F | B69: Pruneaux fourrés + Prunchoco® - Boîte Or des 100 ans | C69: 290g | D69: Boite métal | E69: 6 | F69: =IF(J69="Multiple",VLOOKUP(A69,Produits_composes!$A$1:$AA$30,24,FALSE),ROUNDDOWN(G69*100/(100+J69*100),5)) -> 12.25 | G69: 14.7 | H69: 0.2 | I69: 9.8 | J69: 0.2 | K69: 2.45 | L69: =IF($J69="Multiple",VLOOKUP($A69,Produits_composes!$A$1:$AA$30,25,FALSE),IF($J69=5.5%,$F69*(1+$J69)-$F69,"")) ->  | M69: =IF($J69="Multiple",VLOOKUP(A69,Produits_composes!$A$1:$AA$30,26,FALSE),IF($J69=20%,$F69*(1+$J69)-$F69,"")) -> 2.45 | N69: 3760219062233 | O69: 450 | P69: 67
A70: 24G | B70: Pruneaux fourrés + Prunchoco® - Boîte Or des 100 ans | C70: 500g | D70: Boite métal | E70: 6 | F70: =IF(J70="Multiple",VLOOKUP(A70,Produits_composes!$A$1:$AA$30,24,FALSE),ROUNDDOWN(G70*100/(100+J70*100),5)) -> 17.75 | G70: 21.3 | H70: 0.2 | I70: 14.2 | J70: 0.2 | K70: 3.55 | L70: =IF($J70="Multiple",VLOOKUP($A70,Produits_composes!$A$1:$AA$30,25,FALSE),IF($J70=5.5%,$F70*(1+$J70)-$F70,"")) ->  | M70: =IF($J70="Multiple",VLOOKUP(A70,Produits_composes!$A$1:$AA$30,26,FALSE),IF($J70=20%,$F70*(1+$J70)-$F70,"")) -> 3.55 | N70: 3760219062226 | O70: 735 | P70: 68
A71: 25A | B71: Claie Agenaise (Pruneaux fourrés) | C71: 350g | D71: Claie Agen. | E71: 1 | F71: =IF(J71="Multiple",VLOOKUP(A71,Produits_composes!$A$1:$AA$30,24,FALSE),ROUNDDOWN(G71*100/(100+J71*100),5)) -> 12.83333 | G71: 15.4 | H71: 0.2 | I71: 10.27 | J71: 0.2 | K71: 2.56667 | L71: =IF($J71="Multiple",VLOOKUP($A71,Produits_composes!$A$1:$AA$30,25,FALSE),IF($J71=5.5%,$F71*(1+$J71)-$F71,"")) ->  | M71: =IF($J71="Multiple",VLOOKUP(A71,Produits_composes!$A$1:$AA$30,26,FALSE),IF($J71=20%,$F71*(1+$J71)-$F71,"")) -> 2.566666 | N71: 3760219062219 | O71: 410 | P71: 69
A72: 25B | B72: Claie Agenaise (Pruneaux fourrés) | C72: 600g | D72: Claie Agen. | E72: 1 | F72: =IF(J72="Multiple",VLOOKUP(A72,Produits_composes!$A$1:$AA$30,24,FALSE),ROUNDDOWN(G72*100/(100+J72*100),5)) -> 19.58333 | G72: 23.5 | H72: 0.2 | I72: 15.67 | J72: 0.2 | K72: 3.91667 | L72: =IF($J72="Multiple",VLOOKUP($A72,Produits_composes!$A$1:$AA$30,25,FALSE),IF($J72=5.5%,$F72*(1+$J72)-$F72,"")) ->  | M72: =IF($J72="Multiple",VLOOKUP(A72,Produits_composes!$A$1:$AA$30,26,FALSE),IF($J72=20%,$F72*(1+$J72)-$F72,"")) -> 3.916666 | N72: 3760219062202 | O72: 725 | P72: 70
A73: 25C | B73: Claie Agenaise (Pruneaux fourrés) | C73: 850g | D73: Claie Agen. | E73: 1 | F73: =IF(J73="Multiple",VLOOKUP(A73,Produits_composes!$A$1:$AA$30,24,FALSE),ROUNDDOWN(G73*100/(100+J73*100),5)) -> 26.16666 | G73: 31.4 | H73: 0.2 | I73: 20.94 | J73: 0.2 | K73: 5.23334 | L73: =IF($J73="Multiple",VLOOKUP($A73,Produits_composes!$A$1:$AA$30,25,FALSE),IF($J73=5.5%,$F73*(1+$J73)-$F73,"")) ->  | M73: =IF($J73="Multiple",VLOOKUP(A73,Produits_composes!$A$1:$AA$30,26,FALSE),IF($J73=20%,$F73*(1+$J73)-$F73,"")) -> 5.233332 | N73: 3760219062196 | O73: 1010 | P73: 71
A74: 25D | B74: Claie Agenaise (Pruneaux fourrés) | C74: 1,1kg | D74: Claie Agen. | E74: 1 | F74: =IF(J74="Multiple",VLOOKUP(A74,Produits_composes!$A$1:$AA$30,24,FALSE),ROUNDDOWN(G74*100/(100+J74*100),5)) -> 32.08333 | G74: 38.5 | H74: 0.2 | I74: 25.67 | J74: 0.2 | K74: 6.41667 | L74: =IF($J74="Multiple",VLOOKUP($A74,Produits_composes!$A$1:$AA$30,25,FALSE),IF($J74=5.5%,$F74*(1+$J74)-$F74,"")) ->  | M74: =IF($J74="Multiple",VLOOKUP(A74,Produits_composes!$A$1:$AA$30,26,FALSE),IF($J74=20%,$F74*(1+$J74)-$F74,"")) -> 6.416666 | N74: 3760219062189 | O74: 1425 | P74: 72
A75: 25E | B75: Petit panier (Pruneaux fourrés) | C75: 220g | D75: Panier bois | E75: 1 | F75: =IF(J75="Multiple",VLOOKUP(A75,Produits_composes!$A$1:$AA$30,24,FALSE),ROUNDDOWN(G75*100/(100+J75*100),5)) -> 7.91666 | G75: 9.5 | H75: 0.2 | I75: 6.34 | J75: 0.2 | K75: 1.58334 | L75: =IF($J75="Multiple",VLOOKUP($A75,Produits_composes!$A$1:$AA$30,25,FALSE),IF($J75=5.5%,$F75*(1+$J75)-$F75,"")) ->  | M75: =IF($J75="Multiple",VLOOKUP(A75,Produits_composes!$A$1:$AA$30,26,FALSE),IF($J75=20%,$F75*(1+$J75)-$F75,"")) -> 1.583332 | N75: 3760219062172 | O75: 340 | P75: 73
A76: 25F | B76: Petit panier (Pruneaux fourrés) | C76: 320g | D76: Panier bois | E76: 1 | F76: =IF(J76="Multiple",VLOOKUP(A76,Produits_composes!$A$1:$AA$30,24,FALSE),ROUNDDOWN(G76*100/(100+J76*100),5)) -> 10.83333 | G76: 13 | H76: 0.2 | I76: 8.67 | J76: 0.2 | K76: 2.16667 | L76: =IF($J76="Multiple",VLOOKUP($A76,Produits_composes!$A$1:$AA$30,25,FALSE),IF($J76=5.5%,$F76*(1+$J76)-$F76,"")) ->  | M76: =IF($J76="Multiple",VLOOKUP(A76,Produits_composes!$A$1:$AA$30,26,FALSE),IF($J76=20%,$F76*(1+$J76)-$F76,"")) -> 2.166666 | N76: 3760219062165 | O76: 435 | P76: 74
A77: 25G | B77: Panier moyen (Pruneaux fourrés + Prun'Choco® noir) | C77: 470g | D77: Panier bois | E77: 1 | F77: =IF(J77="Multiple",VLOOKUP(A77,Produits_composes!$A$1:$AA$30,24,FALSE),ROUNDDOWN(G77*100/(100+J77*100),5)) -> 16.08333 | G77: 19.3 | H77: 0.2 | I77: 12.87 | J77: 0.2 | K77: 3.21667 | L77: =IF($J77="Multiple",VLOOKUP($A77,Produits_composes!$A$1:$AA$30,25,FALSE),IF($J77=5.5%,$F77*(1+$J77)-$F77,"")) ->  | M77: =IF($J77="Multiple",VLOOKUP(A77,Produits_composes!$A$1:$AA$30,26,FALSE),IF($J77=20%,$F77*(1+$J77)-$F77,"")) -> 3.216666 | N77: 3760219062158 | O77: 760 | P77: 75
A78: 25H | B78: Plateau moyen (pruneaux fourrés + Prun’Choco® noir) | C78: 590g | D78: Plateau bois | E78: 1 | F78: =IF(J78="Multiple",VLOOKUP(A78,Produits_composes!$A$1:$AA$30,24,FALSE),ROUNDDOWN(G78*100/(100+J78*100),5)) -> 19.16666 | G78: 23 | H78: 0.2 | I78: 15.34 | J78: 0.2 | K78: 3.83334 | L78: =IF($J78="Multiple",VLOOKUP($A78,Produits_composes!$A$1:$AA$30,25,FALSE),IF($J78=5.5%,$F78*(1+$J78)-$F78,"")) ->  | M78: =IF($J78="Multiple",VLOOKUP(A78,Produits_composes!$A$1:$AA$30,26,FALSE),IF($J78=20%,$F78*(1+$J78)-$F78,"")) -> 3.833332 | N78: 3760219062141 | O78: 900 | P78: 76
A79: 25I | B79: Grand plateau (pruneaux fourrés + Prun’Choco® noir) | C79: 800g | D79: Plateau bois | E79: 1 | F79: =IF(J79="Multiple",VLOOKUP(A79,Produits_composes!$A$1:$AA$30,24,FALSE),ROUNDDOWN(G79*100/(100+J79*100),5)) -> 26.66666 | G79: 32 | H79: 0.2 | I79: 21.34 | J79: 0.2 | K79: 5.33334 | L79: =IF($J79="Multiple",VLOOKUP($A79,Produits_composes!$A$1:$AA$30,25,FALSE),IF($J79=5.5%,$F79*(1+$J79)-$F79,"")) ->  | M79: =IF($J79="Multiple",VLOOKUP(A79,Produits_composes!$A$1:$AA$30,26,FALSE),IF($J79=20%,$F79*(1+$J79)-$F79,"")) -> 5.333332 | N79: 3760219062134 | O79: 1165 | P79: 77
A80: 26P | B80: Prun’Choco® (saveur à préciser) | C80: 200g | D80: Pochette | E80: 5 | F80: =IF(J80="Multiple",VLOOKUP(A80,Produits_composes!$A$1:$AA$30,24,FALSE),ROUNDDOWN(G80*100/(100+J80*100),5)) -> 4.45 | G80: 8.9 | H80: =$Q$2 -> 0.2 | I80: 3.56 | J80: TRUE | K80: 4.45 | L80: =IF($J80="Multiple",VLOOKUP($A80,Produits_composes!$A$1:$AA$30,25,FALSE),IF($J80=5.5%,$F80*(1+$J80)-$F80,"")) ->  | M80: =IF($J80="Multiple",VLOOKUP(A80,Produits_composes!$A$1:$AA$30,26,FALSE),IF($J80=20%,$F80*(1+$J80)-$F80,"")) ->  | N80: 3760219062127 | O80: 225 | P80: 78
A81: 26B1 | B81: Prun’Choco® (saveur à préciser) | C81: 95g | D81: Ballotin | E81: 5 | F81: =IF(J81="Multiple",VLOOKUP(A81,Produits_composes!$A$1:$AA$30,24,FALSE),ROUNDDOWN(G81*100/(100+J81*100),5)) -> 4.64454 | G81: 4.9 | H81: 0.2 | I81: 3.72 | J81: 0.055 | K81: 0.25546 | L81: =IF($J81="Multiple",VLOOKUP($A81,Produits_composes!$A$1:$AA$30,25,FALSE),IF($J81=5.5%,$F81*(1+$J81)-$F81,"")) -> 0.2554497 | M81: =IF($J81="Multiple",VLOOKUP(A81,Produits_composes!$A$1:$AA$30,26,FALSE),IF($J81=20%,$F81*(1+$J81)-$F81,"")) ->  | N81: 3760219062110 | O81: 115 | P81: 79
A82: 26B2 | B82: Prun’Choco® (saveur à préciser) | C82: 200g | D82: Ballotin | E82: 5 | F82: =IF(J82="Multiple",VLOOKUP(A82,Produits_composes!$A$1:$AA$30,24,FALSE),ROUNDDOWN(G82*100/(100+J82*100),5)) -> 9.38388 | G82: 9.9 | H82: 0.2 | I82: 7.51 | J82: 0.055 | K82: 0.51612 | L82: =IF($J82="Multiple",VLOOKUP($A82,Produits_composes!$A$1:$AA$30,25,FALSE),IF($J82=5.5%,$F82*(1+$J82)-$F82,"")) -> 0.5161134 | M82: =IF($J82="Multiple",VLOOKUP(A82,Produits_composes!$A$1:$AA$30,26,FALSE),IF($J82=20%,$F82*(1+$J82)-$F82,"")) ->  | N82: 3760219062103 | O82: 225 | P82: 80
A83: 26B3 | B83: Prun’Choco® (saveur à préciser) | C83: 300g | D83: Ballotin | E83: 5 | F83: =IF(J83="Multiple",VLOOKUP(A83,Produits_composes!$A$1:$AA$30,24,FALSE),ROUNDDOWN(G83*100/(100+J83*100),5)) -> 7.1 | G83: 14.2 | H83: 0.2 | I83: 5.68 | J83: TRUE | K83: 7.1 | L83: =IF($J83="Multiple",VLOOKUP($A83,Produits_composes!$A$1:$AA$30,25,FALSE),IF($J83=5.5%,$F83*(1+$J83)-$F83,"")) ->  | M83: =IF($J83="Multiple",VLOOKUP(A83,Produits_composes!$A$1:$AA$30,26,FALSE),IF($J83=20%,$F83*(1+$J83)-$F83,"")) ->  | N83: 3760219062097 | O83: 330 | P83: 81
A84: 26E1 | B84: Prun’Choco® (saveur à préciser) | C84: 200g | D84: Écrin élég. | E84: 5 | F84: =IF(J84="Multiple",VLOOKUP(A84,Produits_composes!$A$1:$AA$30,24,FALSE),ROUNDDOWN(G84*100/(100+J84*100),5)) -> 12.7962 | G84: 13.5 | H84: 0.2 | I84: 10.24 | J84: 0.055 | K84: 0.7038 | L84: =IF($J84="Multiple",VLOOKUP($A84,Produits_composes!$A$1:$AA$30,25,FALSE),IF($J84=5.5%,$F84*(1+$J84)-$F84,"")) -> 0.703791 | M84: =IF($J84="Multiple",VLOOKUP(A84,Produits_composes!$A$1:$AA$30,26,FALSE),IF($J84=20%,$F84*(1+$J84)-$F84,"")) ->  | N84: 3760219062080 | O84: 295 | P84: 82
A85: 26E2 | B85: Prun’Choco® (saveur à préciser) | C85: 300g | D85: Écrin élég. | E85: 5 | F85: =IF(J85="Multiple",VLOOKUP(A85,Produits_composes!$A$1:$AA$30,24,FALSE),ROUNDDOWN(G85*100/(100+J85*100),5)) -> 19.81042 | G85: 20.9 | H85: 0.2 | I85: 15.85 | J85: 0.055 | K85: 1.08958 | L85: =IF($J85="Multiple",VLOOKUP($A85,Produits_composes!$A$1:$AA$30,25,FALSE),IF($J85=5.5%,$F85*(1+$J85)-$F85,"")) -> 1.0895731 | M85: =IF($J85="Multiple",VLOOKUP(A85,Produits_composes!$A$1:$AA$30,26,FALSE),IF($J85=20%,$F85*(1+$J85)-$F85,"")) ->  | N85: 3760219062073 | O85: 430 | P85: 83
A86: 26V | B86: Prun’Choco® (saveur à préciser) | C86: 1kg | D86: VRAC | E86: 1 | F86: =IF(J86="Multiple",VLOOKUP(A86,Produits_composes!$A$1:$AA$30,24,FALSE),ROUNDDOWN(G86*100/(100+J86*100),5)) -> 37.8199 | G86: 39.9 | H86: 0.2 | I86: 30.26 | J86: 0.055 | K86: 2.0801 | L86: =IF($J86="Multiple",VLOOKUP($A86,Produits_composes!$A$1:$AA$30,25,FALSE),IF($J86=5.5%,$F86*(1+$J86)-$F86,"")) -> 2.0800945 | M86: =IF($J86="Multiple",VLOOKUP(A86,Produits_composes!$A$1:$AA$30,26,FALSE),IF($J86=20%,$F86*(1+$J86)-$F86,"")) ->  | N86: 3760219062066 | O86: 1000 | P86: 84
A87: 27P | B87: Pruneaux fourrés | C87: 250g | D87: Pochette | E87: 5 | F87: =IF(J87="Multiple",VLOOKUP(A87,Produits_composes!$A$1:$AA$30,24,FALSE),ROUNDDOWN(G87*100/(100+J87*100),5)) -> 4.45 | G87: 8.9 | H87: 0.2 | I87: 3.56 | J87: TRUE | K87: 4.45 | L87: =IF($J87="Multiple",VLOOKUP($A87,Produits_composes!$A$1:$AA$30,25,FALSE),IF($J87=5.5%,$F87*(1+$J87)-$F87,"")) ->  | M87: =IF($J87="Multiple",VLOOKUP(A87,Produits_composes!$A$1:$AA$30,26,FALSE),IF($J87=20%,$F87*(1+$J87)-$F87,"")) ->  | N87: 3760219062059 | O87: 275 | P87: 85
A88: 27B1 | B88: Pruneaux fourrés | C88: 100g | D88: Ballotin | E88: 5 | F88: =IF(J88="Multiple",VLOOKUP(A88,Produits_composes!$A$1:$AA$30,24,FALSE),ROUNDDOWN(G88*100/(100+J88*100),5)) -> 4.08333 | G88: 4.9 | H88: 0.2 | I88: 3.27 | J88: 0.2 | K88: 0.81667 | L88: =IF($J88="Multiple",VLOOKUP($A88,Produits_composes!$A$1:$AA$30,25,FALSE),IF($J88=5.5%,$F88*(1+$J88)-$F88,"")) ->  | M88: =IF($J88="Multiple",VLOOKUP(A88,Produits_composes!$A$1:$AA$30,26,FALSE),IF($J88=20%,$F88*(1+$J88)-$F88,"")) -> 0.816666 | N88: 3760219062042 | O88: 115 | P88: 86
A89: 27E1 | B89: Pruneaux fourrés | C89: 400g | D89: Écrin élég. | E89: 5 | F89: =IF(J89="Multiple",VLOOKUP(A89,Produits_composes!$A$1:$AA$30,24,FALSE),ROUNDDOWN(G89*100/(100+J89*100),5)) -> 14.08333 | G89: 16.9 | H89: 0.2 | I89: 11.27 | J89: 0.2 | K89: 2.81667 | L89: =IF($J89="Multiple",VLOOKUP($A89,Produits_composes!$A$1:$AA$30,25,FALSE),IF($J89=5.5%,$F89*(1+$J89)-$F89,"")) ->  | M89: =IF($J89="Multiple",VLOOKUP(A89,Produits_composes!$A$1:$AA$30,26,FALSE),IF($J89=20%,$F89*(1+$J89)-$F89,"")) -> 2.816666 | N89: 3760219062035 | O89: 495 | P89: 87
A90: 27E2 | B90: Pruneaux fourrés | C90: 550g | D90: Écrin élég. | E90: 5 | F90: =IF(J90="Multiple",VLOOKUP(A90,Produits_composes!$A$1:$AA$30,24,FALSE),ROUNDDOWN(G90*100/(100+J90*100),5)) -> 17.5 | G90: 21 | H90: 0.2 | I90: 14 | J90: 0.2 | K90: 3.5 | L90: =IF($J90="Multiple",VLOOKUP($A90,Produits_composes!$A$1:$AA$30,25,FALSE),IF($J90=5.5%,$F90*(1+$J90)-$F90,"")) ->  | M90: =IF($J90="Multiple",VLOOKUP(A90,Produits_composes!$A$1:$AA$30,26,FALSE),IF($J90=20%,$F90*(1+$J90)-$F90,"")) -> 3.5 | N90: 3760219062028 | O90: 680 | P90: 88
A91: 28P | B91: Pruneaux fourrés orangette | C91: 250g | D91: Pochette | E91: 5 | F91: =IF(J91="Multiple",VLOOKUP(A91,Produits_composes!$A$1:$AA$30,24,FALSE),ROUNDDOWN(G91*100/(100+J91*100),5)) -> 7.66666 | G91: 9.2 | H91: 0.2 | I91: 6.14 | J91: 0.2 | K91: 1.53334 | L91: =IF($J91="Multiple",VLOOKUP($A91,Produits_composes!$A$1:$AA$30,25,FALSE),IF($J91=5.5%,$F91*(1+$J91)-$F91,"")) ->  | M91: =IF($J91="Multiple",VLOOKUP(A91,Produits_composes!$A$1:$AA$30,26,FALSE),IF($J91=20%,$F91*(1+$J91)-$F91,"")) -> 1.533332 | N91: 3760219062011 | O91: 275 | P91: 89
A92: 28B1 | B92: Pruneaux fourrés orangette | C92: 100g | D92: Ballotin | E92: 5 | F92: =IF(J92="Multiple",VLOOKUP(A92,Produits_composes!$A$1:$AA$30,24,FALSE),ROUNDDOWN(G92*100/(100+J92*100),5)) -> 4.16666 | G92: 5 | H92: 0.2 | I92: 3.34 | J92: 0.2 | K92: 0.83334 | L92: =IF($J92="Multiple",VLOOKUP($A92,Produits_composes!$A$1:$AA$30,25,FALSE),IF($J92=5.5%,$F92*(1+$J92)-$F92,"")) ->  | M92: =IF($J92="Multiple",VLOOKUP(A92,Produits_composes!$A$1:$AA$30,26,FALSE),IF($J92=20%,$F92*(1+$J92)-$F92,"")) -> 0.833332 | N92: 3760219062004 | O92: 115 | P92: 90
A93: 28E1 | B93: Pruneaux fourrés orangette | C93: 400g | D93: Écrin élég. | E93: 5 | F93: =IF(J93="Multiple",VLOOKUP(A93,Produits_composes!$A$1:$AA$30,24,FALSE),ROUNDDOWN(G93*100/(100+J93*100),5)) -> 14.58333 | G93: 17.5 | H93: 0.2 | I93: 11.67 | J93: 0.2 | K93: 2.91667 | L93: =IF($J93="Multiple",VLOOKUP($A93,Produits_composes!$A$1:$AA$30,25,FALSE),IF($J93=5.5%,$F93*(1+$J93)-$F93,"")) ->  | M93: =IF($J93="Multiple",VLOOKUP(A93,Produits_composes!$A$1:$AA$30,26,FALSE),IF($J93=20%,$F93*(1+$J93)-$F93,"")) -> 2.916666 | N93: 3760219061991 | O93: 495 | P93: 91
A94: 28E2 | B94: Pruneaux fourrés orangette | C94: 550g | D94: Écrin élég. | E94: 5 | F94: =IF(J94="Multiple",VLOOKUP(A94,Produits_composes!$A$1:$AA$30,24,FALSE),ROUNDDOWN(G94*100/(100+J94*100),5)) -> 18.25 | G94: 21.9 | H94: 0.2 | I94: 14.6 | J94: 0.2 | K94: 3.65 | L94: =IF($J94="Multiple",VLOOKUP($A94,Produits_composes!$A$1:$AA$30,25,FALSE),IF($J94=5.5%,$F94*(1+$J94)-$F94,"")) ->  | M94: =IF($J94="Multiple",VLOOKUP(A94,Produits_composes!$A$1:$AA$30,26,FALSE),IF($J94=20%,$F94*(1+$J94)-$F94,"")) -> 3.65 | N94: 3760219061984 | O94: 680 | P94: 92
A95: 29E1 | B95: Pruneaux d’Agen truffés | C95: 270g | D95: Écrin élég. | E95: 5 | F95: =IF(J95="Multiple",VLOOKUP(A95,Produits_composes!$A$1:$AA$30,24,FALSE),ROUNDDOWN(G95*100/(100+J95*100),5)) -> 14.12322 | G95: 14.9 | H95: 0.2 | I95: 11.3 | J95: 0.055 | K95: 0.77678 | L95: =IF($J95="Multiple",VLOOKUP($A95,Produits_composes!$A$1:$AA$30,25,FALSE),IF($J95=5.5%,$F95*(1+$J95)-$F95,"")) -> 0.7767771 | M95: =IF($J95="Multiple",VLOOKUP(A95,Produits_composes!$A$1:$AA$30,26,FALSE),IF($J95=20%,$F95*(1+$J95)-$F95,"")) ->  | N95: 3760219061977 | O95: 365 | P95: 93
A96: 29E2 | B96: Pruneaux d’Agen truffés | C96: 400g | D96: Écrin élég. | E96: 5 | F96: =IF(J96="Multiple",VLOOKUP(A96,Produits_composes!$A$1:$AA$30,24,FALSE),ROUNDDOWN(G96*100/(100+J96*100),5)) -> 20.85308 | G96: 22 | H96: 0.2 | I96: 16.69 | J96: 0.055 | K96: 1.14692 | L96: =IF($J96="Multiple",VLOOKUP($A96,Produits_composes!$A$1:$AA$30,25,FALSE),IF($J96=5.5%,$F96*(1+$J96)-$F96,"")) -> 1.1469194 | M96: =IF($J96="Multiple",VLOOKUP(A96,Produits_composes!$A$1:$AA$30,26,FALSE),IF($J96=20%,$F96*(1+$J96)-$F96,"")) ->  | N96: 3760219061960 | O96: 530 | P96: 94
A97: 30A | B97: Pruneaux aromatisés au vin blanc MonBazillac | C97: 320g | D97: Bocal | E97: 14 | F97: =IF(J97="Multiple",VLOOKUP(A97,Produits_composes!$A$1:$AA$30,24,FALSE),ROUNDDOWN(G97*100/(100+J97*100),5)) -> 6.63507 | G97: 7 | H97: =$Q$2+5% -> 0.25 | I97: 4.98 | J97: 0.055 | K97: 0.36493 | L97: =IF($J97="Multiple",VLOOKUP($A97,Produits_composes!$A$1:$AA$30,25,FALSE),IF($J97=5.5%,$F97*(1+$J97)-$F97,"")) -> 0.36492885 | M97: =IF($J97="Multiple",VLOOKUP(A97,Produits_composes!$A$1:$AA$30,26,FALSE),IF($J97=20%,$F97*(1+$J97)-$F97,"")) ->  | N97: 3760219061953 | O97: 565 | P97: 95
A98: 30B | B98: Pruneaux aromatisés au vin rouge de pays vanille | C98: 320g | D98: Bocal | E98: 14 | F98: =IF(J98="Multiple",VLOOKUP(A98,Produits_composes!$A$1:$AA$30,24,FALSE),ROUNDDOWN(G98*100/(100+J98*100),5)) -> 5.78199 | G98: 6.1 | H98: =$Q$2+5% -> 0.25 | I98: 4.34 | J98: 0.055 | K98: 0.31801 | L98: =IF($J98="Multiple",VLOOKUP($A98,Produits_composes!$A$1:$AA$30,25,FALSE),IF($J98=5.5%,$F98*(1+$J98)-$F98,"")) -> 0.31800945 | M98: =IF($J98="Multiple",VLOOKUP(A98,Produits_composes!$A$1:$AA$30,26,FALSE),IF($J98=20%,$F98*(1+$J98)-$F98,"")) ->  | N98: 3760219061946 | O98: 565 | P98: 96
A99: 30C | B99: Pruneaux aromatisés au vin rouge de pays canelle | C99: 320g | D99: Bocal | E99: 14 | F99: =IF(J99="Multiple",VLOOKUP(A99,Produits_composes!$A$1:$AA$30,24,FALSE),ROUNDDOWN(G99*100/(100+J99*100),5)) -> 5.78199 | G99: 6.1 | H99: =$Q$2+5% -> 0.25 | I99: 4.34 | J99: 0.055 | K99: 0.31801 | L99: =IF($J99="Multiple",VLOOKUP($A99,Produits_composes!$A$1:$AA$30,25,FALSE),IF($J99=5.5%,$F99*(1+$J99)-$F99,"")) -> 0.31800945 | M99: =IF($J99="Multiple",VLOOKUP(A99,Produits_composes!$A$1:$AA$30,26,FALSE),IF($J99=20%,$F99*(1+$J99)-$F99,"")) ->  | N99: 3760219061939 | O99: 565 | P99: 97
A100: 31A | B100: Pruneaux à l’Armagnac - 20° | C100: 0,5L | D100: Bocal | E100: 6 | F100: =IF(J100="Multiple",VLOOKUP(A100,Produits_composes!$A$1:$AA$30,24,FALSE),ROUNDDOWN(G100*100/(100+J100*100),5)) -> 16.08333 | G100: 19.3 | H100: =IF($Q$2>=20%,20%,$Q$2) -> 0.2 | I100: 12.87 | J100: 0.2 | K100: 3.21667 | L100: =IF($J100="Multiple",VLOOKUP($A100,Produits_composes!$A$1:$AA$30,25,FALSE),IF($J100=5.5%,$F100*(1+$J100)-$F100,"")) ->  | M100: =IF($J100="Multiple",VLOOKUP(A100,Produits_composes!$A$1:$AA$30,26,FALSE),IF($J100=20%,$F100*(1+$J100)-$F100,"")) -> 3.216666 | N100: 3760219061922 | O100: 1155 | P100: 98
A101: 31B | B101: Pruneaux à l’Armagnac - 20° | C101: 0,7L | D101: Bocal | E101: 6 | F101: =IF(J101="Multiple",VLOOKUP(A101,Produits_composes!$A$1:$AA$30,24,FALSE),ROUNDDOWN(G101*100/(100+J101*100),5)) -> 20.41666 | G101: 24.5 | H101: 0.2 | I101: 16.34 | J101: 0.2 | K101: 4.08334 | L101: =IF($J101="Multiple",VLOOKUP($A101,Produits_composes!$A$1:$AA$30,25,FALSE),IF($J101=5.5%,$F101*(1+$J101)-$F101,"")) ->  | M101: =IF($J101="Multiple",VLOOKUP(A101,Produits_composes!$A$1:$AA$30,26,FALSE),IF($J101=20%,$F101*(1+$J101)-$F101,"")) -> 4.083332 | N101: 3760219061915 | O101: 1295 | P101: 99
A102: 31C | B102: Pruneaux à l’Armagnac - 20° | C102: 1L | D102: Bocal | E102: 6 | F102: =IF(J102="Multiple",VLOOKUP(A102,Produits_composes!$A$1:$AA$30,24,FALSE),ROUNDDOWN(G102*100/(100+J102*100),5)) -> 24.91666 | G102: 29.9 | H102: 0.2 | I102: 19.94 | J102: 0.2 | K102: 4.98334 | L102: =IF($J102="Multiple",VLOOKUP($A102,Produits_composes!$A$1:$AA$30,25,FALSE),IF($J102=5.5%,$F102*(1+$J102)-$F102,"")) ->  | M102: =IF($J102="Multiple",VLOOKUP(A102,Produits_composes!$A$1:$AA$30,26,FALSE),IF($J102=20%,$F102*(1+$J102)-$F102,"")) -> 4.983332 | N102: 3760219061908 | O102: 1715 | P102: 100
A103: 32A | B103: Pruneaux à l’eau de vie - 20° | C103: 0,5L | D103: Bocal | E103: 6 | F103: =IF(J103="Multiple",VLOOKUP(A103,Produits_composes!$A$1:$AA$30,24,FALSE),ROUNDDOWN(G103*100/(100+J103*100),5)) -> 16.08333 | G103: 19.3 | H103: 0.2 | I103: 12.87 | J103: 0.2 | K103: 3.21667 | L103: =IF($J103="Multiple",VLOOKUP($A103,Produits_composes!$A$1:$AA$30,25,FALSE),IF($J103=5.5%,$F103*(1+$J103)-$F103,"")) ->  | M103: =IF($J103="Multiple",VLOOKUP(A103,Produits_composes!$A$1:$AA$30,26,FALSE),IF($J103=20%,$F103*(1+$J103)-$F103,"")) -> 3.216666 | N103: 3760219061892 | O103: 1155 | P103: 101
A104: 32B | B104: Pruneaux à l’eau de vie - 20° | C104: 0,7L | D104: Bocal | E104: 6 | F104: =IF(J104="Multiple",VLOOKUP(A104,Produits_composes!$A$1:$AA$30,24,FALSE),ROUNDDOWN(G104*100/(100+J104*100),5)) -> 20.41666 | G104: 24.5 | H104: 0.2 | I104: 16.34 | J104: 0.2 | K104: 4.08334 | L104: =IF($J104="Multiple",VLOOKUP($A104,Produits_composes!$A$1:$AA$30,25,FALSE),IF($J104=5.5%,$F104*(1+$J104)-$F104,"")) ->  | M104: =IF($J104="Multiple",VLOOKUP(A104,Produits_composes!$A$1:$AA$30,26,FALSE),IF($J104=20%,$F104*(1+$J104)-$F104,"")) -> 4.083332 | N104: 3760219061885 | O104: 1295 | P104: 102
A105: 32C | B105: Pruneaux à l’eau de vie - 20° | C105: 1L | D105: Bocal | E105: 6 | F105: =IF(J105="Multiple",VLOOKUP(A105,Produits_composes!$A$1:$AA$30,24,FALSE),ROUNDDOWN(G105*100/(100+J105*100),5)) -> 24.91666 | G105: 29.9 | H105: 0.2 | I105: 19.94 | J105: 0.2 | K105: 4.98334 | L105: =IF($J105="Multiple",VLOOKUP($A105,Produits_composes!$A$1:$AA$30,25,FALSE),IF($J105=5.5%,$F105*(1+$J105)-$F105,"")) ->  | M105: =IF($J105="Multiple",VLOOKUP(A105,Produits_composes!$A$1:$AA$30,26,FALSE),IF($J105=20%,$F105*(1+$J105)-$F105,"")) -> 4.983332 | N105: 3760219061878 | O105: 1715 | P105: 103
A106: 33A-EDV | B106: Pruneaux d'Agen Eau de vie - 20° | C106: 200ml | D106: Bocal | E106: 6 | F106: =IF(J106="Multiple",VLOOKUP(A106,Produits_composes!$A$1:$AA$30,24,FALSE),ROUNDDOWN(G106*100/(100+J106*100),5)) -> 7.08333 | G106: 8.5 | H106: 0.2 | I106: 5.67 | J106: 0.2 | K106: 1.41667 | L106: =IF($J106="Multiple",VLOOKUP($A106,Produits_composes!$A$1:$AA$30,25,FALSE),IF($J106=5.5%,$F106*(1+$J106)-$F106,"")) ->  | M106: =IF($J106="Multiple",VLOOKUP(A106,Produits_composes!$A$1:$AA$30,26,FALSE),IF($J106=20%,$F106*(1+$J106)-$F106,"")) -> 1.416666 | N106: 3760219062950 | O106: 430 | P106: 104
A107: 33A-ARM | B107: Pruneaux d'Agen Armagnac - 20° | C107: 200ml | D107: Bocal | E107: 6 | F107: =IF(J107="Multiple",VLOOKUP(A107,Produits_composes!$A$1:$AA$30,24,FALSE),ROUNDDOWN(G107*100/(100+J107*100),5)) -> 7.08333 | G107: 8.5 | H107: 0.2 | I107: 5.67 | J107: 0.2 | K107: 1.41667 | L107: =IF($J107="Multiple",VLOOKUP($A107,Produits_composes!$A$1:$AA$30,25,FALSE),IF($J107=5.5%,$F107*(1+$J107)-$F107,"")) ->  | M107: =IF($J107="Multiple",VLOOKUP(A107,Produits_composes!$A$1:$AA$30,26,FALSE),IF($J107=20%,$F107*(1+$J107)-$F107,"")) -> 1.416666 | N107: 3760219062967 | O107: 430 | P107: 105
A108: 33B-RHM | B108: Pruneaux d'Agen Rhum - 18° | C108: 200ml | D108: Bocal | E108: 6 | F108: =IF(J108="Multiple",VLOOKUP(A108,Produits_composes!$A$1:$AA$30,24,FALSE),ROUNDDOWN(G108*100/(100+J108*100),5)) -> 4.75 | G108: 9.5 | H108: 0.2 | I108: 3.8 | J108: TRUE | K108: 4.75 | L108: =IF($J108="Multiple",VLOOKUP($A108,Produits_composes!$A$1:$AA$30,25,FALSE),IF($J108=5.5%,$F108*(1+$J108)-$F108,"")) ->  | M108: =IF($J108="Multiple",VLOOKUP(A108,Produits_composes!$A$1:$AA$30,26,FALSE),IF($J108=20%,$F108*(1+$J108)-$F108,"")) ->  | N108: 3760219062998 | O108: 430 | P108: 106
A109: 33B-WSK | B109: Pruneaux d'Agen Whisky - 18° | C109: 200ml | D109: Bocal | E109: 6 | F109: =IF(J109="Multiple",VLOOKUP(A109,Produits_composes!$A$1:$AA$30,24,FALSE),ROUNDDOWN(G109*100/(100+J109*100),5)) -> 7.91666 | G109: 9.5 | H109: 0.2 | I109: 6.34 | J109: 0.2 | K109: 1.58334 | L109: =IF($J109="Multiple",VLOOKUP($A109,Produits_composes!$A$1:$AA$30,25,FALSE),IF($J109=5.5%,$F109*(1+$J109)-$F109,"")) ->  | M109: =IF($J109="Multiple",VLOOKUP(A109,Produits_composes!$A$1:$AA$30,26,FALSE),IF($J109=20%,$F109*(1+$J109)-$F109,"")) -> 1.583332 | N109: 3760219062981 | O109: 430 | P109: 107
A110: 33B-CTR | B110: Pruneaux d'Agen Cointreau - 18° | C110: 200ml | D110: Bocal | E110: 6 | F110: =IF(J110="Multiple",VLOOKUP(A110,Produits_composes!$A$1:$AA$30,24,FALSE),ROUNDDOWN(G110*100/(100+J110*100),5)) -> 7.91666 | G110: 9.5 | H110: 0.2 | I110: 6.34 | J110: 0.2 | K110: 1.58334 | L110: =IF($J110="Multiple",VLOOKUP($A110,Produits_composes!$A$1:$AA$30,25,FALSE),IF($J110=5.5%,$F110*(1+$J110)-$F110,"")) ->  | M110: =IF($J110="Multiple",VLOOKUP(A110,Produits_composes!$A$1:$AA$30,26,FALSE),IF($J110=20%,$F110*(1+$J110)-$F110,"")) -> 1.583332 | N110: 3760219062974 | O110: 430 | P110: 108
A111: 33C | B111: Coffret Pruneaux aux alcools x2 (alcools à préciser) | C111: 200ml | D111: Bocal | E111: 6 | F111: =IF(J111="Multiple",VLOOKUP(A111,Produits_composes!$A$1:$AA$30,24,FALSE),ROUNDDOWN(G111*100/(100+J111*100),5)) -> 15 | G111: 18 | H111: 0.2 | I111: 12 | J111: 0.2 | K111: 3 | L111: =IF($J111="Multiple",VLOOKUP($A111,Produits_composes!$A$1:$AA$30,25,FALSE),IF($J111=5.5%,$F111*(1+$J111)-$F111,"")) ->  | M111: =IF($J111="Multiple",VLOOKUP(A111,Produits_composes!$A$1:$AA$30,26,FALSE),IF($J111=20%,$F111*(1+$J111)-$F111,"")) -> 3 | N111: 3760219061847 | O111: 430 | P111: 109
A112: 33D | B112: Coffret Pruneaux aux alcools x3 (alcools à préciser) | C112: 200ml | D112: Bocal | E112: 6 | F112: =IF(J112="Multiple",VLOOKUP(A112,Produits_composes!$A$1:$AA$30,24,FALSE),ROUNDDOWN(G112*100/(100+J112*100),5)) -> 22.91666 | G112: 27.5 | H112: 0.2 | I112: 18.34 | J112: 0.2 | K112: 4.58334 | L112: =IF($J112="Multiple",VLOOKUP($A112,Produits_composes!$A$1:$AA$30,25,FALSE),IF($J112=5.5%,$F112*(1+$J112)-$F112,"")) ->  | M112: =IF($J112="Multiple",VLOOKUP(A112,Produits_composes!$A$1:$AA$30,26,FALSE),IF($J112=20%,$F112*(1+$J112)-$F112,"")) -> 4.583332 | N112: 3760219061830 | O112: 430 | P112: 110
A113: 34A | B113: Petit verre Pruneaux Eau de vie ou Armagnac (à préciser) | C113: 5cl | D113: Petit verre | E113: 48 | F113: =IF(J113="Multiple",VLOOKUP(A113,Produits_composes!$A$1:$AA$30,24,FALSE),ROUNDDOWN(G113*100/(100+J113*100),5)) -> 1.3 | G113: 2.6 | H113: 0.2 | I113: 1.04 | J113: TRUE | K113: 1.3 | L113: =IF($J113="Multiple",VLOOKUP($A113,Produits_composes!$A$1:$AA$30,25,FALSE),IF($J113=5.5%,$F113*(1+$J113)-$F113,"")) ->  | M113: =IF($J113="Multiple",VLOOKUP(A113,Produits_composes!$A$1:$AA$30,26,FALSE),IF($J113=20%,$F113*(1+$J113)-$F113,"")) ->  | N113: 3760219061823 | O113: 105 | P113: 111
A114: 34B | B114: Petit verre Rhum, Whisky ou Cointreau (à préciser) | C114: 5cl | D114: Petit verre | E114: 48 | F114: =IF(J114="Multiple",VLOOKUP(A114,Produits_composes!$A$1:$AA$30,24,FALSE),ROUNDDOWN(G114*100/(100+J114*100),5)) -> 2.41666 | G114: 2.9 | H114: 0.2 | I114: 1.94 | J114: 0.2 | K114: 0.48334 | L114: =IF($J114="Multiple",VLOOKUP($A114,Produits_composes!$A$1:$AA$30,25,FALSE),IF($J114=5.5%,$F114*(1+$J114)-$F114,"")) ->  | M114: =IF($J114="Multiple",VLOOKUP(A114,Produits_composes!$A$1:$AA$30,26,FALSE),IF($J114=20%,$F114*(1+$J114)-$F114,"")) -> 0.483332 | N114: 3760219061816 | O114: 105 | P114: 112
A115: 34C | B115: Coffret petits verres x6 Eau de vie ou Armagnac (à préciser) | C115: 5cl | D115: Petit verre | E115: 1 | F115: =IF(J115="Multiple",VLOOKUP(A115,Produits_composes!$A$1:$AA$30,24,FALSE),ROUNDDOWN(G115*100/(100+J115*100),5)) -> 14.91666 | G115: 17.9 | H115: 0.2 | I115: 11.94 | J115: 0.2 | K115: 2.98334 | L115: =IF($J115="Multiple",VLOOKUP($A115,Produits_composes!$A$1:$AA$30,25,FALSE),IF($J115=5.5%,$F115*(1+$J115)-$F115,"")) ->  | M115: =IF($J115="Multiple",VLOOKUP(A115,Produits_composes!$A$1:$AA$30,26,FALSE),IF($J115=20%,$F115*(1+$J115)-$F115,"")) -> 2.983332 | N115: 3760219061809 | O115: 735 | P115: 113
A116: 34D | B116: Coffret petits verres x6 mix (alcools à préciser) | C116: 5cl | D116: Petit verre | E116: 1 | F116: =IF(J116="Multiple",VLOOKUP(A116,Produits_composes!$A$1:$AA$30,24,FALSE),ROUNDDOWN(G116*100/(100+J116*100),5)) -> 15.91666 | G116: 19.1 | H116: 0.2 | I116: 12.74 | J116: 0.2 | K116: 3.18334 | L116: =IF($J116="Multiple",VLOOKUP($A116,Produits_composes!$A$1:$AA$30,25,FALSE),IF($J116=5.5%,$F116*(1+$J116)-$F116,"")) ->  | M116: =IF($J116="Multiple",VLOOKUP(A116,Produits_composes!$A$1:$AA$30,26,FALSE),IF($J116=20%,$F116*(1+$J116)-$F116,"")) -> 3.183332 | N116: 3760219061793 | O116: 735 | P116: 114
A117: 34E | B117: Coffret petits verres x12 Eau de vie ou Armagnac (à préciser) | C117: 5cl | D117: Petit verre | E117: 1 | F117: =IF(J117="Multiple",VLOOKUP(A117,Produits_composes!$A$1:$AA$30,24,FALSE),ROUNDDOWN(G117*100/(100+J117*100),5)) -> 28 | G117: 33.6 | H117: 0.2 | I117: 22.4 | J117: 0.2 | K117: 5.6 | L117: =IF($J117="Multiple",VLOOKUP($A117,Produits_composes!$A$1:$AA$30,25,FALSE),IF($J117=5.5%,$F117*(1+$J117)-$F117,"")) ->  | M117: =IF($J117="Multiple",VLOOKUP(A117,Produits_composes!$A$1:$AA$30,26,FALSE),IF($J117=20%,$F117*(1+$J117)-$F117,"")) -> 5.6 | N117: 3760219061786 | O117: 1380 | P117: 115
A118: 34F | B118: Coffret petits verres x12 mix (alcools à préciser) | C118: 5cl | D118: Petit verre | E118: 1 | F118: =IF(J118="Multiple",VLOOKUP(A118,Produits_composes!$A$1:$AA$30,24,FALSE),ROUNDDOWN(G118*100/(100+J118*100),5)) -> 30.08333 | G118: 36.1 | H118: 0.2 | I118: 24.07 | J118: 0.2 | K118: 6.01667 | L118: =IF($J118="Multiple",VLOOKUP($A118,Produits_composes!$A$1:$AA$30,25,FALSE),IF($J118=5.5%,$F118*(1+$J118)-$F118,"")) ->  | M118: =IF($J118="Multiple",VLOOKUP(A118,Produits_composes!$A$1:$AA$30,26,FALSE),IF($J118=20%,$F118*(1+$J118)-$F118,"")) -> 6.016666 | N118: 3760219061779 | O118: 1380 | P118: 116
A119: 35A | B119: Apéritif de Pruneau - 16° | C119: 0,375L | D119: Bouteille | E119: 6 | F119: =IF(J119="Multiple",VLOOKUP(A119,Produits_composes!$A$1:$AA$30,24,FALSE),ROUNDDOWN(G119*100/(100+J119*100),5)) -> 5.75 | G119: 11.5 | H119: 0.2 | I119: 4.6 | J119: TRUE | K119: 5.75 | L119: =IF($J119="Multiple",VLOOKUP($A119,Produits_composes!$A$1:$AA$30,25,FALSE),IF($J119=5.5%,$F119*(1+$J119)-$F119,"")) ->  | M119: =IF($J119="Multiple",VLOOKUP(A119,Produits_composes!$A$1:$AA$30,26,FALSE),IF($J119=20%,$F119*(1+$J119)-$F119,"")) ->  | N119: 3760219061762 | O119: 800 | P119: 117
A120: 35B | B120: Apéritif de Pruneau - 16° | C120: 0,7L | D120: Bouteille | E120: 6 | F120: =IF(J120="Multiple",VLOOKUP(A120,Produits_composes!$A$1:$AA$30,24,FALSE),ROUNDDOWN(G120*100/(100+J120*100),5)) -> 15.16666 | G120: 18.2 | H120: 0.2 | I120: 12.14 | J120: 0.2 | K120: 3.03334 | L120: =IF($J120="Multiple",VLOOKUP($A120,Produits_composes!$A$1:$AA$30,25,FALSE),IF($J120=5.5%,$F120*(1+$J120)-$F120,"")) ->  | M120: =IF($J120="Multiple",VLOOKUP(A120,Produits_composes!$A$1:$AA$30,26,FALSE),IF($J120=20%,$F120*(1+$J120)-$F120,"")) -> 3.033332 | N120: 3760219061755 | O120: 1480 | P120: 118
A121: 36A | B121: Liqueur d’Eau de vie de prune d’Ente - 24° | C121: 0,375L | D121: Bouteille | E121: 6 | F121: =IF(J121="Multiple",VLOOKUP(A121,Produits_composes!$A$1:$AA$30,24,FALSE),ROUNDDOWN(G121*100/(100+J121*100),5)) -> 10.5 | G121: 12.6 | H121: 0.2 | I121: 8.4 | J121: 0.2 | K121: 2.1 | L121: =IF($J121="Multiple",VLOOKUP($A121,Produits_composes!$A$1:$AA$30,25,FALSE),IF($J121=5.5%,$F121*(1+$J121)-$F121,"")) ->  | M121: =IF($J121="Multiple",VLOOKUP(A121,Produits_composes!$A$1:$AA$30,26,FALSE),IF($J121=20%,$F121*(1+$J121)-$F121,"")) -> 2.1 | N121: 3760219061748 | O121: 770 | P121: 119
A122: 36B | B122: Liqueur d’Eau de vie de prune d’Ente - 24° | C122: 0,5L | D122: Bouteille | E122: 6 | F122: =IF(J122="Multiple",VLOOKUP(A122,Produits_composes!$A$1:$AA$30,24,FALSE),ROUNDDOWN(G122*100/(100+J122*100),5)) -> 12.25 | G122: 14.7 | H122: 0.2 | I122: 9.8 | J122: 0.2 | K122: 2.45 | L122: =IF($J122="Multiple",VLOOKUP($A122,Produits_composes!$A$1:$AA$30,25,FALSE),IF($J122=5.5%,$F122*(1+$J122)-$F122,"")) ->  | M122: =IF($J122="Multiple",VLOOKUP(A122,Produits_composes!$A$1:$AA$30,26,FALSE),IF($J122=20%,$F122*(1+$J122)-$F122,"")) -> 2.45 | N122: 3760219061731 | O122: 1150 | P122: 120
A123: 36C | B123: Liqueur d’Eau de vie de prune d’Ente - 24° | C123: 0,7L | D123: Bouteille | E123: 6 | F123: =IF(J123="Multiple",VLOOKUP(A123,Produits_composes!$A$1:$AA$30,24,FALSE),ROUNDDOWN(G123*100/(100+J123*100),5)) -> 17.33333 | G123: 20.8 | H123: 0.2 | I123: 13.87 | J123: 0.2 | K123: 3.46667 | L123: =IF($J123="Multiple",VLOOKUP($A123,Produits_composes!$A$1:$AA$30,25,FALSE),IF($J123=5.5%,$F123*(1+$J123)-$F123,"")) ->  | M123: =IF($J123="Multiple",VLOOKUP(A123,Produits_composes!$A$1:$AA$30,26,FALSE),IF($J123=20%,$F123*(1+$J123)-$F123,"")) -> 3.466666 | N123: 3760219061724 | O123: 1155 | P123: 121
A124: 36D | B124: Liqueur d’Eau de vie de prune d’Ente - 24° | C124: 5cl | D124: Mignonette | E124: 6 | F124: =IF(J124="Multiple",VLOOKUP(A124,Produits_composes!$A$1:$AA$30,24,FALSE),ROUNDDOWN(G124*100/(100+J124*100),5)) -> 3.08333 | G124: 3.7 | H124: 0.2 | I124: 2.47 | J124: 0.2 | K124: 0.61667 | L124: =IF($J124="Multiple",VLOOKUP($A124,Produits_composes!$A$1:$AA$30,25,FALSE),IF($J124=5.5%,$F124*(1+$J124)-$F124,"")) ->  | M124: =IF($J124="Multiple",VLOOKUP(A124,Produits_composes!$A$1:$AA$30,26,FALSE),IF($J124=20%,$F124*(1+$J124)-$F124,"")) -> 0.616666 | N124: 3760219061717 | O124: 145 | P124: 122
A125: 37A | B125: Vieille Eau de Vie Ed. limitée des 100 ans - 44.1° | C125: 0,5L | D125: Bouteille | E125: 6 | F125: =IF(J125="Multiple",VLOOKUP(A125,Produits_composes!$A$1:$AA$30,24,FALSE),ROUNDDOWN(G125*100/(100+J125*100),5)) -> 30.83333 | G125: 37 | H125: 0.2 | I125: 24.67 | J125: 0.2 | K125: 6.16667 | L125: =IF($J125="Multiple",VLOOKUP($A125,Produits_composes!$A$1:$AA$30,25,FALSE),IF($J125=5.5%,$F125*(1+$J125)-$F125,"")) ->  | M125: =IF($J125="Multiple",VLOOKUP(A125,Produits_composes!$A$1:$AA$30,26,FALSE),IF($J125=20%,$F125*(1+$J125)-$F125,"")) -> 6.166666 | N125: 3760219061700 | O125: 1090 | P125: 123
A126: 37B | B126: Vieille Eau de Vie Ed. limitée des 100 ans - 44.1° | C126: 5cl | D126: Mignonette | E126: 6 | F126: =IF(J126="Multiple",VLOOKUP(A126,Produits_composes!$A$1:$AA$30,24,FALSE),ROUNDDOWN(G126*100/(100+J126*100),5)) -> 3.08333 | G126: 3.7 | H126: 0.2 | I126: 2.47 | J126: 0.2 | K126: 0.61667 | L126: =IF($J126="Multiple",VLOOKUP($A126,Produits_composes!$A$1:$AA$30,25,FALSE),IF($J126=5.5%,$F126*(1+$J126)-$F126,"")) ->  | M126: =IF($J126="Multiple",VLOOKUP(A126,Produits_composes!$A$1:$AA$30,26,FALSE),IF($J126=20%,$F126*(1+$J126)-$F126,"")) -> 0.616666 | N126: 3760219061694 | O126: 145 | P126: 124
A127: 38A | B127: Eau de vie de prune d’Ente - 42° | C127: 0,375L | D127: Bouteille | E127: 6 | F127: =IF(J127="Multiple",VLOOKUP(A127,Produits_composes!$A$1:$AA$30,24,FALSE),ROUNDDOWN(G127*100/(100+J127*100),5)) -> 13.83333 | G127: 16.6 | H127: 0.2 | I127: 11.07 | J127: 0.2 | K127: 2.76667 | L127: =IF($J127="Multiple",VLOOKUP($A127,Produits_composes!$A$1:$AA$30,25,FALSE),IF($J127=5.5%,$F127*(1+$J127)-$F127,"")) ->  | M127: =IF($J127="Multiple",VLOOKUP(A127,Produits_composes!$A$1:$AA$30,26,FALSE),IF($J127=20%,$F127*(1+$J127)-$F127,"")) -> 2.766666 | N127: 3760219061687 | O127: 770 | P127: 125
A128: 38B | B128: Eau de vie de prune d’Ente - 42° | C128: 0,5L | D128: Bouteille | E128: 6 | F128: =IF(J128="Multiple",VLOOKUP(A128,Produits_composes!$A$1:$AA$30,24,FALSE),ROUNDDOWN(G128*100/(100+J128*100),5)) -> 17.33333 | G128: 20.8 | H128: 0.2 | I128: 13.87 | J128: 0.2 | K128: 3.46667 | L128: =IF($J128="Multiple",VLOOKUP($A128,Produits_composes!$A$1:$AA$30,25,FALSE),IF($J128=5.5%,$F128*(1+$J128)-$F128,"")) ->  | M128: =IF($J128="Multiple",VLOOKUP(A128,Produits_composes!$A$1:$AA$30,26,FALSE),IF($J128=20%,$F128*(1+$J128)-$F128,"")) -> 3.466666 | N128: 3760219061670 | O128: 1150 | P128: 126
A129: 38C | B129: Eau de vie de prune d’Ente - 42° | C129: 0,7L | D129: Bouteille | E129: 6 | F129: =IF(J129="Multiple",VLOOKUP(A129,Produits_composes!$A$1:$AA$30,24,FALSE),ROUNDDOWN(G129*100/(100+J129*100),5)) -> 23.16666 | G129: 27.8 | H129: 0.2 | I129: 18.54 | J129: 0.2 | K129: 4.63334 | L129: =IF($J129="Multiple",VLOOKUP($A129,Produits_composes!$A$1:$AA$30,25,FALSE),IF($J129=5.5%,$F129*(1+$J129)-$F129,"")) ->  | M129: =IF($J129="Multiple",VLOOKUP(A129,Produits_composes!$A$1:$AA$30,26,FALSE),IF($J129=20%,$F129*(1+$J129)-$F129,"")) -> 4.633332 | N129: 3760219061663 | O129: 1155 | P129: 127
A130: 38D | B130: Eau de vie de prune d’Ente - 42° | C130: 5cl | D130: Mignonette | E130: 6 | F130: =IF(J130="Multiple",VLOOKUP(A130,Produits_composes!$A$1:$AA$30,24,FALSE),ROUNDDOWN(G130*100/(100+J130*100),5)) -> 3.08333 | G130: 3.7 | H130: 0.2 | I130: 2.47 | J130: 0.2 | K130: 0.61667 | L130: =IF($J130="Multiple",VLOOKUP($A130,Produits_composes!$A$1:$AA$30,25,FALSE),IF($J130=5.5%,$F130*(1+$J130)-$F130,"")) ->  | M130: =IF($J130="Multiple",VLOOKUP(A130,Produits_composes!$A$1:$AA$30,26,FALSE),IF($J130=20%,$F130*(1+$J130)-$F130,"")) -> 0.616666 | N130: 3760219061656 | O130: 145 | P130: 128
A131: 39A | B131: Eau de vie de pruneau - 42° | C131: 0,375L | D131: Bouteille | E131: 6 | F131: =IF(J131="Multiple",VLOOKUP(A131,Produits_composes!$A$1:$AA$30,24,FALSE),ROUNDDOWN(G131*100/(100+J131*100),5)) -> 13.83333 | G131: 16.6 | H131: 0.2 | I131: 11.07 | J131: 0.2 | K131: 2.76667 | L131: =IF($J131="Multiple",VLOOKUP($A131,Produits_composes!$A$1:$AA$30,25,FALSE),IF($J131=5.5%,$F131*(1+$J131)-$F131,"")) ->  | M131: =IF($J131="Multiple",VLOOKUP(A131,Produits_composes!$A$1:$AA$30,26,FALSE),IF($J131=20%,$F131*(1+$J131)-$F131,"")) -> 2.766666 | N131: 3760219061649 | O131: 770 | P131: 129
A132: 39B | B132: Eau de vie de pruneau - 42° | C132: 0,5L | D132: Bouteille | E132: 6 | F132: =IF(J132="Multiple",VLOOKUP(A132,Produits_composes!$A$1:$AA$30,24,FALSE),ROUNDDOWN(G132*100/(100+J132*100),5)) -> 17.33333 | G132: 20.8 | H132: 0.2 | I132: 13.87 | J132: 0.2 | K132: 3.46667 | L132: =IF($J132="Multiple",VLOOKUP($A132,Produits_composes!$A$1:$AA$30,25,FALSE),IF($J132=5.5%,$F132*(1+$J132)-$F132,"")) ->  | M132: =IF($J132="Multiple",VLOOKUP(A132,Produits_composes!$A$1:$AA$30,26,FALSE),IF($J132=20%,$F132*(1+$J132)-$F132,"")) -> 3.466666 | N132: 3760219061632 | O132: 1150 | P132: 130
A133: 39C | B133: Eau de vie de pruneau - 42° | C133: 0,7L | D133: Bouteille | E133: 6 | F133: =IF(J133="Multiple",VLOOKUP(A133,Produits_composes!$A$1:$AA$30,24,FALSE),ROUNDDOWN(G133*100/(100+J133*100),5)) -> 23.16666 | G133: 27.8 | H133: 0.2 | I133: 18.54 | J133: 0.2 | K133: 4.63334 | L133: =IF($J133="Multiple",VLOOKUP($A133,Produits_composes!$A$1:$AA$30,25,FALSE),IF($J133=5.5%,$F133*(1+$J133)-$F133,"")) ->  | M133: =IF($J133="Multiple",VLOOKUP(A133,Produits_composes!$A$1:$AA$30,26,FALSE),IF($J133=20%,$F133*(1+$J133)-$F133,"")) -> 4.633332 | N133: 3760219061625 | O133: 1155 | P133: 131
A134: 39D | B134: Eau de vie de pruneau - 42° | C134: 5cl | D134: Mignonette | E134: 6 | F134: =IF(J134="Multiple",VLOOKUP(A134,Produits_composes!$A$1:$AA$30,24,FALSE),ROUNDDOWN(G134*100/(100+J134*100),5)) -> 3.08333 | G134: 3.7 | H134: 0.2 | I134: 2.47 | J134: 0.2 | K134: 0.61667 | L134: =IF($J134="Multiple",VLOOKUP($A134,Produits_composes!$A$1:$AA$30,25,FALSE),IF($J134=5.5%,$F134*(1+$J134)-$F134,"")) ->  | M134: =IF($J134="Multiple",VLOOKUP(A134,Produits_composes!$A$1:$AA$30,26,FALSE),IF($J134=20%,$F134*(1+$J134)-$F134,"")) -> 0.616666 | N134: 3760219061618 | O134: 145 | P134: 132
A135: 40A | B135: Eau de vie de prune Reine-Claude - 42° | C135: 0,375L | D135: Bouteille | E135: 6 | F135: =IF(J135="Multiple",VLOOKUP(A135,Produits_composes!$A$1:$AA$30,24,FALSE),ROUNDDOWN(G135*100/(100+J135*100),5)) -> 13.83333 | G135: 16.6 | H135: 0.2 | I135: =IF(H135=0,F135,ROUNDUP($F135-$F135*$H135,2)) -> 11.07 | J135: 0.2 | K135: =G135-F135 -> 2.76667 | L135: =IF($J135="Multiple",VLOOKUP($A135,Produits_composes!$A$1:$AA$30,25,FALSE),IF($J135=5.5%,$F135*(1+$J135)-$F135,"")) ->  | M135: =IF($J135="Multiple",VLOOKUP(A135,Produits_composes!$A$1:$AA$30,26,FALSE),IF($J135=20%,$F135*(1+$J135)-$F135,"")) -> 2.766666 | N135: 3760219061601 | O135: 770 | P135: 133
A136: 40B | B136: Eau de vie de prune Reine-Claude - 42° | C136: 0,5L | D136: Bouteille | E136: 6 | F136: =IF(J136="Multiple",VLOOKUP(A136,Produits_composes!$A$1:$AA$30,24,FALSE),ROUNDDOWN(G136*100/(100+J136*100),5)) -> 17.33333 | G136: 20.8 | H136: 0.2 | I136: 13.87 | J136: 0.2 | K136: 3.46667 | L136: =IF($J136="Multiple",VLOOKUP($A136,Produits_composes!$A$1:$AA$30,25,FALSE),IF($J136=5.5%,$F136*(1+$J136)-$F136,"")) ->  | M136: =IF($J136="Multiple",VLOOKUP(A136,Produits_composes!$A$1:$AA$30,26,FALSE),IF($J136=20%,$F136*(1+$J136)-$F136,"")) -> 3.466666 | N136: 3760219061595 | O136: 1150 | P136: 134
A137: 40C | B137: Eau de vie de prune Reine-Claude - 42° | C137: 0,7L | D137: Bouteille | E137: 6 | F137: =IF(J137="Multiple",VLOOKUP(A137,Produits_composes!$A$1:$AA$30,24,FALSE),ROUNDDOWN(G137*100/(100+J137*100),5)) -> 23.16666 | G137: 27.8 | H137: 0.2 | I137: 18.54 | J137: 0.2 | K137: 4.63334 | L137: =IF($J137="Multiple",VLOOKUP($A137,Produits_composes!$A$1:$AA$30,25,FALSE),IF($J137=5.5%,$F137*(1+$J137)-$F137,"")) ->  | M137: =IF($J137="Multiple",VLOOKUP(A137,Produits_composes!$A$1:$AA$30,26,FALSE),IF($J137=20%,$F137*(1+$J137)-$F137,"")) -> 4.633332 | N137: 3760219061588 | O137: 1155 | P137: 135
A138: 40D | B138: Eau de vie de prune Reine-Claude - 42° | C138: 5cl | D138: Mignonette | E138: 6 | F138: =IF(J138="Multiple",VLOOKUP(A138,Produits_composes!$A$1:$AA$30,24,FALSE),ROUNDDOWN(G138*100/(100+J138*100),5)) -> 3.08333 | G138: 3.7 | H138: 0.2 | I138: 2.47 | J138: 0.2 | K138: 0.61667 | L138: =IF($J138="Multiple",VLOOKUP($A138,Produits_composes!$A$1:$AA$30,25,FALSE),IF($J138=5.5%,$F138*(1+$J138)-$F138,"")) ->  | M138: =IF($J138="Multiple",VLOOKUP(A138,Produits_composes!$A$1:$AA$30,26,FALSE),IF($J138=20%,$F138*(1+$J138)-$F138,"")) -> 0.616666 | N138: 3760219061571 | O138: 145 | P138: 136
A139: 41A | B139: Assort. Supr. Prune'Choco® - Mini cagette gourmande | C139: 400g | D139: Boite bois | E139: 1 | F139: =IF(J139="Multiple",VLOOKUP(A139,Produits_composes!$A$1:$AA$30,24,FALSE),ROUNDDOWN(G139*100/(100+J139*100),5)) -> 15.83 | G139: 18.5 | H139: =$Q$2 -> 0.2 | I139: 12.67 | J139: Multiple | K139: 2.67 | L139: =IF($J139="Multiple",VLOOKUP($A139,Produits_composes!$A$1:$AA$30,25,FALSE),IF($J139=5.5%,$F139*(1+$J139)-$F139,"")) -> 0.2 | M139: =IF($J139="Multiple",VLOOKUP(A139,Produits_composes!$A$1:$AA$30,26,FALSE),IF($J139=20%,$F139*(1+$J139)-$F139,"")) -> 2.47 | N139: 3760219061564 | O139: 485 | P139: 137
A140: 42A | B140: Assort. Supr. Prune'Choco® - Coffret élégance | C140: 450g | D140: Coffret cart. | E140: 1 | F140: =IF(J140="Multiple",VLOOKUP(A140,Produits_composes!$A$1:$AA$30,24,FALSE),ROUNDDOWN(G140*100/(100+J140*100),5)) -> 18.89 | G140: 22 | H140: 0.2 | I140: 15.12 | J140: Multiple | K140: 3.11 | L140: =IF($J140="Multiple",VLOOKUP($A140,Produits_composes!$A$1:$AA$30,25,FALSE),IF($J140=5.5%,$F140*(1+$J140)-$F140,"")) -> 0.26 | M140: =IF($J140="Multiple",VLOOKUP(A140,Produits_composes!$A$1:$AA$30,26,FALSE),IF($J140=20%,$F140*(1+$J140)-$F140,"")) -> 2.86 | N140: 3760219061557 | O140: 580 | P140: 138
A141: 43A | B141: Assort. Supr. Prune'Choco® - Plateau gourmand | C141: 650g | D141: Boite bois | E141: 1 | F141: =IF(J141="Multiple",VLOOKUP(A141,Produits_composes!$A$1:$AA$30,24,FALSE),ROUNDDOWN(G141*100/(100+J141*100),5)) -> 24.33 | G141: 27.9 | H141: 0.2 | I141: 19.47 | J141: Multiple | K141: 3.57 | L141: =IF($J141="Multiple",VLOOKUP($A141,Produits_composes!$A$1:$AA$30,25,FALSE),IF($J141=5.5%,$F141*(1+$J141)-$F141,"")) -> 0.5 | M141: =IF($J141="Multiple",VLOOKUP(A141,Produits_composes!$A$1:$AA$30,26,FALSE),IF($J141=20%,$F141*(1+$J141)-$F141,"")) -> 3.08 | N141: 3760219061540 | O141: 870 | P141: 139
A142: 44A | B142: Assort. Supr. Prune'Choco® - Assiette raffinée | C142: 650g | D142: Assiette | E142: 1 | F142: =IF(J142="Multiple",VLOOKUP(A142,Produits_composes!$A$1:$AA$30,24,FALSE),ROUNDDOWN(G142*100/(100+J142*100),5)) -> 25.36 | G142: 28.9 | H142: 0.2 | I142: 20.29 | J142: Multiple | K142: 3.54 | L142: =IF($J142="Multiple",VLOOKUP($A142,Produits_composes!$A$1:$AA$30,25,FALSE),IF($J142=5.5%,$F142*(1+$J142)-$F142,"")) -> 0.58 | M142: =IF($J142="Multiple",VLOOKUP(A142,Produits_composes!$A$1:$AA$30,26,FALSE),IF($J142=20%,$F142*(1+$J142)-$F142,"")) -> 2.97 | N142: 3760219061533 | O142: 1300 | P142: 140
A143: 45A | B143: Assort. Supr. Prune'Choco® - Claie Agenaise 1 | C143: 800g | D143: Claie Agen. | E143: 1 | F143: =IF(J143="Multiple",VLOOKUP(A143,Produits_composes!$A$1:$AA$30,24,FALSE),ROUNDDOWN(G143*100/(100+J143*100),5)) -> 33.72 | G143: 38.8 | H143: 0.2 | I143: 26.98 | J143: Multiple | K143: 5.08 | L143: =IF($J143="Multiple",VLOOKUP($A143,Produits_composes!$A$1:$AA$30,25,FALSE),IF($J143=5.5%,$F143*(1+$J143)-$F143,"")) -> 0.64 | M143: =IF($J143="Multiple",VLOOKUP(A143,Produits_composes!$A$1:$AA$30,26,FALSE),IF($J143=20%,$F143*(1+$J143)-$F143,"")) -> 4.45 | N143: 3760219061526 | O143: 960 | P143: 141
A144: 46A | B144: Assort. Supr. Prune'Choco® - Claie Agenaise 2 | C144: 1,1kg | D144: Claie Agen. | E144: 1 | F144: =IF(J144="Multiple",VLOOKUP(A144,Produits_composes!$A$1:$AA$30,24,FALSE),ROUNDDOWN(G144*100/(100+J144*100),5)) -> 42.9 | G144: 49.8 | H144: 0.2 | I144: 34.32 | J144: Multiple | K144: 6.9 | L144: =IF($J144="Multiple",VLOOKUP($A144,Produits_composes!$A$1:$AA$30,25,FALSE),IF($J144=5.5%,$F144*(1+$J144)-$F144,"")) -> 0.64 | M144: =IF($J144="Multiple",VLOOKUP(A144,Produits_composes!$A$1:$AA$30,26,FALSE),IF($J144=20%,$F144*(1+$J144)-$F144,"")) -> 6.27 | N144: 3760219061519 | O144: 1425 | P144: 142
A145: 47A | B145: Coffret "Découverte" - 4 produits | D145: Pochette | E145: 1 | F145: =IF(J145="Multiple",VLOOKUP(A145,Produits_composes!$A$1:$AA$30,24,FALSE),ROUNDDOWN(G145*100/(100+J145*100),5)) -> 14.9 | G145: 16.5 | H145: 0.2 | I145: 11.92 | J145: Multiple | K145: 1.6 | L145: =IF($J145="Multiple",VLOOKUP($A145,Produits_composes!$A$1:$AA$30,25,FALSE),IF($J145=5.5%,$F145*(1+$J145)-$F145,"")) -> 0.53 | M145: =IF($J145="Multiple",VLOOKUP(A145,Produits_composes!$A$1:$AA$30,26,FALSE),IF($J145=20%,$F145*(1+$J145)-$F145,"")) -> 1.07 | N145: 3760219061502 | O145: 815 | P145: 143
A146: 47B | B146: Coffret "Découverte" SANS ALCOOL - 4 produits | D146: Pochette | E146: 1 | F146: =IF(J146="Multiple",VLOOKUP(A145,Produits_composes!$A$1:$AA$30,24,FALSE),ROUNDDOWN(G146*100/(100+J146*100),5)) -> 14.9 | G146: 16.5 | H146: 0.2 | I146: =IF(H146=0,F146,ROUNDUP($F146-$F146*$H146,2)) -> 11.92 | J146: Multiple | K146: =G146-F146 -> 1.6 | L146: =IF($J146="Multiple",VLOOKUP($A145,Produits_composes!$A$1:$AA$30,25,FALSE),IF($J146=5.5%,$F146*(1+$J146)-$F146,"")) -> 0.53 | M146: =IF($J146="Multiple",VLOOKUP(A145,Produits_composes!$A$1:$AA$30,26,FALSE),IF($J146=20%,$F146*(1+$J146)-$F146,"")) -> 1.07 | N146: 3760219061502 | O146: 815 | P146: 143
A147: 48A | B147: Coffret "Le Mignon" - 5 produits | D147: Coffret cart. | E147: 1 | F147: =IF(J147="Multiple",VLOOKUP(A147,Produits_composes!$A$1:$AA$30,24,FALSE),ROUNDDOWN(G147*100/(100+J147*100),5)) -> 22.77 | G147: 26.5 | H147: 0.2 | I147: 18.22 | J147: Multiple | K147: 3.73 | L147: =IF($J147="Multiple",VLOOKUP($A147,Produits_composes!$A$1:$AA$30,25,FALSE),IF($J147=5.5%,$F147*(1+$J147)-$F147,"")) -> 0.318 | M147: =IF($J147="Multiple",VLOOKUP(A147,Produits_composes!$A$1:$AA$30,26,FALSE),IF($J147=20%,$F147*(1+$J147)-$F147,"")) -> 3.4 | N147: 3760219061496 | O147: 1020 | P147: 144
A148: 48B | B148: Coffret "Le Mignon" SANS ALCOOL - 5 produits | D148: Coffret cart. | E148: 1 | F148: =IF(J148="Multiple",VLOOKUP(A147,Produits_composes!$A$1:$AA$30,24,FALSE),ROUNDDOWN(G148*100/(100+J148*100),5)) -> 22.77 | G148: 26.5 | H148: 0.2 | I148: =IF(H148=0,F148,ROUNDUP($F148-$F148*$H148,2)) -> 18.22 | J148: Multiple | K148: =G148-F148 -> 3.73 | L148: =IF($J148="Multiple",VLOOKUP($A147,Produits_composes!$A$1:$AA$30,25,FALSE),IF($J148=5.5%,$F148*(1+$J148)-$F148,"")) -> 0.318 | M148: =IF($J148="Multiple",VLOOKUP(A147,Produits_composes!$A$1:$AA$30,26,FALSE),IF($J148=20%,$F148*(1+$J148)-$F148,"")) -> 3.4 | N148: 3760219061496 | O148: 1020 | P148: 144
A149: 49A | B149: Coffret "L'Intrépide" - 7 produits | D149: Coffret cart. | E149: 1 | F149: =IF(J149="Multiple",VLOOKUP(A149,Produits_composes!$A$1:$AA$30,24,FALSE),ROUNDDOWN(G149*100/(100+J149*100),5)) -> 44.02 | G149: 49.5 | H149: 0.2 | I149: 35.22 | J149: Multiple | K149: 5.48 | L149: =IF($J149="Multiple",VLOOKUP($A149,Produits_composes!$A$1:$AA$30,25,FALSE),IF($J149=5.5%,$F149*(1+$J149)-$F149,"")) -> 1.257 | M149: =IF($J149="Multiple",VLOOKUP(A149,Produits_composes!$A$1:$AA$30,26,FALSE),IF($J149=20%,$F149*(1+$J149)-$F149,"")) -> 4.24 | N149: 3760219061489 | O149: 1845 | P149: 145
A150: 49B | B150: Coffret "L'Intrépide" SANS ALCOOL - 7 produits | D150: Coffret cart. | E150: 1 | F150: =IF(J150="Multiple",VLOOKUP(A149,Produits_composes!$A$1:$AA$30,24,FALSE),ROUNDDOWN(G150*100/(100+J150*100),5)) -> 44.02 | G150: 49.5 | H150: 0.2 | I150: =IF(H150=0,F150,ROUNDUP($F150-$F150*$H150,2)) -> 35.22 | J150: Multiple | K150: =G150-F150 -> 5.48 | L150: =IF($J150="Multiple",VLOOKUP($A149,Produits_composes!$A$1:$AA$30,25,FALSE),IF($J150=5.5%,$F150*(1+$J150)-$F150,"")) -> 1.257 | M150: =IF($J150="Multiple",VLOOKUP(A149,Produits_composes!$A$1:$AA$30,26,FALSE),IF($J150=20%,$F150*(1+$J150)-$F150,"")) -> 4.24 | N150: 3760219061489 | O150: 1845 | P150: 145
A151: 50A | B151: Coffret "L'Intense" - 10 produits | D151: Coffret cart. | E151: 1 | F151: =IF(J151="Multiple",VLOOKUP(A151,Produits_composes!$A$1:$AA$30,24,FALSE),ROUNDDOWN(G151*100/(100+J151*100),5)) -> 54.07 | G151: 61 | H151: 0.2 | I151: 43.26 | J151: Multiple | K151: 6.93 | L151: =IF($J151="Multiple",VLOOKUP($A151,Produits_composes!$A$1:$AA$30,25,FALSE),IF($J151=5.5%,$F151*(1+$J151)-$F151,"")) -> 1.517 | M151: =IF($J151="Multiple",VLOOKUP(A151,Produits_composes!$A$1:$AA$30,26,FALSE),IF($J151=20%,$F151*(1+$J151)-$F151,"")) -> 5.3 | N151: 3760219061472 | O151: 3300 | P151: 146
A152: 50B | B152: Coffret "L'Intense" SANS ALCOOL - 10 produits | D152: Coffret cart. | E152: 1 | F152: =IF(J152="Multiple",VLOOKUP(A151,Produits_composes!$A$1:$AA$30,24,FALSE),ROUNDDOWN(G152*100/(100+J152*100),5)) -> 54.07 | G152: 61 | H152: 0.2 | I152: =IF(H152=0,F152,ROUNDUP($F152-$F152*$H152,2)) -> 43.26 | J152: Multiple | K152: =G152-F152 -> 6.93 | L152: =IF($J152="Multiple",VLOOKUP($A151,Produits_composes!$A$1:$AA$30,25,FALSE),IF($J152=5.5%,$F152*(1+$J152)-$F152,"")) -> 1.517 | M152: =IF($J152="Multiple",VLOOKUP(A151,Produits_composes!$A$1:$AA$30,26,FALSE),IF($J152=20%,$F152*(1+$J152)-$F152,"")) -> 5.3 | N152: 3760219061472 | O152: 3300 | P152: 146
A153: CP-M | B153: Coffret à composer vous-même "M" - Taille Medium (5 produits)⁽¹⁾ | D153: Coffret cart. | E153: 1 | F153: ='Bon de commande PRO'!AA43+'Bon de commande PRO'!AB43 ->  | G153: 36.5 | H153: 0.2 | J153: Multiple | L153: ='Bon de commande PRO'!AC42 ->  | M153: ='Bon de commande PRO'!AD42 ->  | O153: 1100 | P153: 146
A154: CP-L | B154: Coffret à composer vous-même "L" - Grande Taille (7 produits)⁽¹⁾ | D154: Coffret cart. | E154: 1 | F154: ='Bon de commande PRO'!AA46+'Bon de commande PRO'!AB46 ->  | G154: 44 | H154: 0.2 | J154: Multiple | L154: ='Bon de commande PRO'!AC45 ->  | M154: ='Bon de commande PRO'!AD45 ->  | O154: 2000 | P154: 146
A155: CP-XL | B155: Coffret à composer vous-même "XL" - Très Grande Taille (10 produits)⁽¹⁾ | D155: Coffret cart. | E155: 1 | F155: ='Bon de commande PRO'!AA49+'Bon de commande PRO'!AB49 ->  | G155: 68 | H155: 0.2 | J155: Multiple | L155: ='Bon de commande PRO'!AC48 ->  | M155: ='Bon de commande PRO'!AD48 ->  | O155: 3100 | P155: 146
A156: 51A | B156: Ferme de Baruteau - Confit de porc | C156: 350g | D156: Bocal | E156: 1 | F156: =IF(J156="Multiple",VLOOKUP(A156,Produits_composes!$A$1:$AA$30,24,FALSE),ROUNDDOWN(G156*100/(100+J156*100),5)) -> 8.34123 | G156: 8.8 | H156: 0.05 | I156: 7.93 | J156: 0.055 | K156: 0.45877 | L156: =IF($J156="Multiple",VLOOKUP($A156,Produits_composes!$A$1:$AA$30,25,FALSE),IF($J156=5.5%,$F156*(1+$J156)-$F156,"")) -> 0.45876765 | M156: =IF($J156="Multiple",VLOOKUP(A156,Produits_composes!$A$1:$AA$30,26,FALSE),IF($J156=20%,$F156*(1+$J156)-$F156,"")) ->  | N156: 3760219061465 | O156: 710 | P156: 147
A157: 51B | B157: Ferme de Baruteau - Jambonneau | C157: 380g | D157: Bocal | E157: 1 | F157: =IF(J157="Multiple",VLOOKUP(A157,Produits_composes!$A$1:$AA$30,24,FALSE),ROUNDDOWN(G157*100/(100+J157*100),5)) -> 6.63507 | G157: 7 | H157: 0.05 | I157: 6.31 | J157: 0.055 | K157: 0.36493 | L157: =IF($J157="Multiple",VLOOKUP($A157,Produits_composes!$A$1:$AA$30,25,FALSE),IF($J157=5.5%,$F157*(1+$J157)-$F157,"")) -> 0.36492885 | M157: =IF($J157="Multiple",VLOOKUP(A157,Produits_composes!$A$1:$AA$30,26,FALSE),IF($J157=20%,$F157*(1+$J157)-$F157,"")) ->  | N157: 3760219061458 | O157: 675 | P157: 148
A158: 51C | B158: Ferme de Baruteau - Jambonneau | C158: 900g | D158: Bocal | E158: 1 | F158: =IF(J158="Multiple",VLOOKUP(A158,Produits_composes!$A$1:$AA$30,24,FALSE),ROUNDDOWN(G158*100/(100+J158*100),5)) -> 12.7962 | G158: 13.5 | H158: 0.05 | I158: 12.16 | J158: 0.055 | K158: 0.7038 | L158: =IF($J158="Multiple",VLOOKUP($A158,Produits_composes!$A$1:$AA$30,25,FALSE),IF($J158=5.5%,$F158*(1+$J158)-$F158,"")) -> 0.703791 | M158: =IF($J158="Multiple",VLOOKUP(A158,Produits_composes!$A$1:$AA$30,26,FALSE),IF($J158=20%,$F158*(1+$J158)-$F158,"")) ->  | N158: 3760219061441 | O158: 1560 | P158: 149
A159: 51D | B159: Ferme de Baruteau - Pâté nature | C159: 200g | D159: Bocal | E159: 1 | F159: =IF(J159="Multiple",VLOOKUP(A159,Produits_composes!$A$1:$AA$30,24,FALSE),ROUNDDOWN(G159*100/(100+J159*100),5)) -> 3.79146 | G159: 4 | H159: 0.05 | I159: 3.61 | J159: 0.055 | K159: 0.20854 | L159: =IF($J159="Multiple",VLOOKUP($A159,Produits_composes!$A$1:$AA$30,25,FALSE),IF($J159=5.5%,$F159*(1+$J159)-$F159,"")) -> 0.2085303 | M159: =IF($J159="Multiple",VLOOKUP(A159,Produits_composes!$A$1:$AA$30,26,FALSE),IF($J159=20%,$F159*(1+$J159)-$F159,"")) ->  | N159: 3760219061434 | O159: 365 | P159: 150
A160: 51E | B160: Ferme de Baruteau - Pâté de campagne | C160: 200g | D160: Bocal | E160: 1 | F160: =IF(J160="Multiple",VLOOKUP(A160,Produits_composes!$A$1:$AA$30,24,FALSE),ROUNDDOWN(G160*100/(100+J160*100),5)) -> 3.79146 | G160: 4 | H160: 0.05 | I160: 3.61 | J160: 0.055 | K160: 0.20854 | L160: =IF($J160="Multiple",VLOOKUP($A160,Produits_composes!$A$1:$AA$30,25,FALSE),IF($J160=5.5%,$F160*(1+$J160)-$F160,"")) -> 0.2085303 | M160: =IF($J160="Multiple",VLOOKUP(A160,Produits_composes!$A$1:$AA$30,26,FALSE),IF($J160=20%,$F160*(1+$J160)-$F160,"")) ->  | N160: 3760219061427 | O160: 365 | P160: 151
A161: 51F | B161: Ferme de Baruteau - Pâté de campagne | C161: 380g | D161: Bocal | E161: 1 | F161: =IF(J161="Multiple",VLOOKUP(A161,Produits_composes!$A$1:$AA$30,24,FALSE),ROUNDDOWN(G161*100/(100+J161*100),5)) -> 5.87677 | G161: 6.2 | H161: 0.05 | I161: 5.59 | J161: 0.055 | K161: 0.32323 | L161: =IF($J161="Multiple",VLOOKUP($A161,Produits_composes!$A$1:$AA$30,25,FALSE),IF($J161=5.5%,$F161*(1+$J161)-$F161,"")) -> 0.32322235 | M161: =IF($J161="Multiple",VLOOKUP(A161,Produits_composes!$A$1:$AA$30,26,FALSE),IF($J161=20%,$F161*(1+$J161)-$F161,"")) ->  | N161: 3760219061410 | O161: 655 | P161: 152
A162: 51G | B162: Ferme de Baruteau - Pâté à l’Armagnac | C162: 200g | D162: Bocal | E162: 1 | F162: =IF(J162="Multiple",VLOOKUP(A162,Produits_composes!$A$1:$AA$30,24,FALSE),ROUNDDOWN(G162*100/(100+J162*100),5)) -> 3.98104 | G162: 4.2 | H162: 0.05 | I162: 3.79 | J162: 0.055 | K162: 0.21896 | L162: =IF($J162="Multiple",VLOOKUP($A162,Produits_composes!$A$1:$AA$30,25,FALSE),IF($J162=5.5%,$F162*(1+$J162)-$F162,"")) -> 0.2189572 | M162: =IF($J162="Multiple",VLOOKUP(A162,Produits_composes!$A$1:$AA$30,26,FALSE),IF($J162=20%,$F162*(1+$J162)-$F162,"")) ->  | N162: 3760219061403 | O162: 365 | P162: 153
A163: 51H | B163: Ferme de Baruteau - Pâté au piment d’Espelette | C163: 200g | D163: Bocal | E163: 1 | F163: =IF(J163="Multiple",VLOOKUP(A163,Produits_composes!$A$1:$AA$30,24,FALSE),ROUNDDOWN(G163*100/(100+J163*100),5)) -> 3.79146 | G163: 4 | H163: 0.05 | I163: 3.61 | J163: 0.055 | K163: 0.20854 | L163: =IF($J163="Multiple",VLOOKUP($A163,Produits_composes!$A$1:$AA$30,25,FALSE),IF($J163=5.5%,$F163*(1+$J163)-$F163,"")) -> 0.2085303 | M163: =IF($J163="Multiple",VLOOKUP(A163,Produits_composes!$A$1:$AA$30,26,FALSE),IF($J163=20%,$F163*(1+$J163)-$F163,"")) ->  | N163: 3760219061397 | O163: 365 | P163: 154
A164: 51I | B164: Ferme de Baruteau - Rillettes de porc | C164: 200g | D164: Bocal | E164: 1 | F164: =IF(J164="Multiple",VLOOKUP(A164,Produits_composes!$A$1:$AA$30,24,FALSE),ROUNDDOWN(G164*100/(100+J164*100),5)) -> 3.69668 | G164: 3.9 | H164: 0.05 | I164: 3.52 | J164: 0.055 | K164: 0.20332 | L164: =IF($J164="Multiple",VLOOKUP($A164,Produits_composes!$A$1:$AA$30,25,FALSE),IF($J164=5.5%,$F164*(1+$J164)-$F164,"")) -> 0.2033174 | M164: =IF($J164="Multiple",VLOOKUP(A164,Produits_composes!$A$1:$AA$30,26,FALSE),IF($J164=20%,$F164*(1+$J164)-$F164,"")) ->  | N164: 3760219061380 | O164: 365 | P164: 155
A165: 51J | B165: Ferme de Baruteau - Mousse de foie de porc | C165: 200g | D165: Bocal | E165: 1 | F165: =IF(J165="Multiple",VLOOKUP(A165,Produits_composes!$A$1:$AA$30,24,FALSE),ROUNDDOWN(G165*100/(100+J165*100),5)) -> 3.60189 | G165: 3.8 | H165: 0.05 | I165: 3.43 | J165: 0.055 | K165: 0.19811 | L165: =IF($J165="Multiple",VLOOKUP($A165,Produits_composes!$A$1:$AA$30,25,FALSE),IF($J165=5.5%,$F165*(1+$J165)-$F165,"")) -> 0.19810395 | M165: =IF($J165="Multiple",VLOOKUP(A165,Produits_composes!$A$1:$AA$30,26,FALSE),IF($J165=20%,$F165*(1+$J165)-$F165,"")) ->  | N165: 3760219061373 | O165: 365 | P165: 156
A166: 51K | B166: Ferme de Baruteau - Boudin | C166: 200g | D166: Bocal | E166: 1 | F166: =IF(J166="Multiple",VLOOKUP(A166,Produits_composes!$A$1:$AA$30,24,FALSE),ROUNDDOWN(G166*100/(100+J166*100),5)) -> 3.60189 | G166: 3.8 | H166: 0.05 | I166: 3.43 | J166: 0.055 | K166: 0.19811 | L166: =IF($J166="Multiple",VLOOKUP($A166,Produits_composes!$A$1:$AA$30,25,FALSE),IF($J166=5.5%,$F166*(1+$J166)-$F166,"")) -> 0.19810395 | M166: =IF($J166="Multiple",VLOOKUP(A166,Produits_composes!$A$1:$AA$30,26,FALSE),IF($J166=20%,$F166*(1+$J166)-$F166,"")) ->  | N166: 3760219061366 | O166: 365 | P166: 157
A167: 52A | B167: Ferme de Ramon - La Ballotine de foie gras de canard | C167: 400g | D167: Conserve | E167: 1 | F167: =IF(J167="Multiple",VLOOKUP(A167,Produits_composes!$A$1:$AA$30,24,FALSE),ROUNDDOWN(G167*100/(100+J167*100),5)) -> 12.22748 | G167: 12.9 | H167: 0.05 | I167: 11.62 | J167: 0.055 | K167: 0.67252 | L167: =IF($J167="Multiple",VLOOKUP($A167,Produits_composes!$A$1:$AA$30,25,FALSE),IF($J167=5.5%,$F167*(1+$J167)-$F167,"")) -> 0.6725114 | M167: =IF($J167="Multiple",VLOOKUP(A167,Produits_composes!$A$1:$AA$30,26,FALSE),IF($J167=20%,$F167*(1+$J167)-$F167,"")) ->  | N167: 3760219061359 | O167: 480 | P167: 158
A168: 52B | B168: Ferme de Ramon - Foie gras de canard entier | C168: 180g | D168: Bocal | E168: 1 | F168: =IF(J168="Multiple",VLOOKUP(A168,Produits_composes!$A$1:$AA$30,24,FALSE),ROUNDDOWN(G168*100/(100+J168*100),5)) -> 11.25 | G168: 22.5 | H168: 0.05 | I168: 10.69 | J168: TRUE | K168: 11.25 | L168: =IF($J168="Multiple",VLOOKUP($A168,Produits_composes!$A$1:$AA$30,25,FALSE),IF($J168=5.5%,$F168*(1+$J168)-$F168,"")) ->  | M168: =IF($J168="Multiple",VLOOKUP(A168,Produits_composes!$A$1:$AA$30,26,FALSE),IF($J168=20%,$F168*(1+$J168)-$F168,"")) ->  | N168: 3760219061342 | O168: 520 | P168: 159
A169: 52C | B169: Ferme de Ramon - Bloc de foie gras de canard | C169: 100g | D169: Conserve | E169: 1 | F169: =IF(J169="Multiple",VLOOKUP(A169,Produits_composes!$A$1:$AA$30,24,FALSE),ROUNDDOWN(G169*100/(100+J169*100),5)) -> 6.16113 | G169: 6.5 | H169: 0.05 | I169: 5.86 | J169: 0.055 | K169: 0.33887 | L169: =IF($J169="Multiple",VLOOKUP($A169,Produits_composes!$A$1:$AA$30,25,FALSE),IF($J169=5.5%,$F169*(1+$J169)-$F169,"")) -> 0.33886215 | M169: =IF($J169="Multiple",VLOOKUP(A169,Produits_composes!$A$1:$AA$30,26,FALSE),IF($J169=20%,$F169*(1+$J169)-$F169,"")) ->  | N169: 3760219061335 | O169: 125 | P169: 160
A170: 52D | B170: Ferme de Ramon - Bloc de foie gras de canard | C170: 195g | D170: Conserve | E170: 1 | F170: =IF(J170="Multiple",VLOOKUP(A170,Produits_composes!$A$1:$AA$30,24,FALSE),ROUNDDOWN(G170*100/(100+J170*100),5)) -> 12.7962 | G170: 13.5 | H170: 0.05 | I170: 12.16 | J170: 0.055 | K170: 0.7038 | L170: =IF($J170="Multiple",VLOOKUP($A170,Produits_composes!$A$1:$AA$30,25,FALSE),IF($J170=5.5%,$F170*(1+$J170)-$F170,"")) -> 0.703791 | M170: =IF($J170="Multiple",VLOOKUP(A170,Produits_composes!$A$1:$AA$30,26,FALSE),IF($J170=20%,$F170*(1+$J170)-$F170,"")) ->  | N170: 3760219061328 | O170: 240 | P170: 161
A171: 52E | B171: Ferme de Ramon - Rillettes de canard | C171: 180g | D171: Bocal | E171: 1 | F171: =IF(J171="Multiple",VLOOKUP(A171,Produits_composes!$A$1:$AA$30,24,FALSE),ROUNDDOWN(G171*100/(100+J171*100),5)) -> 2.25 | G171: 4.5 | H171: 0.05 | I171: 2.14 | J171: TRUE | K171: 2.25 | L171: =IF($J171="Multiple",VLOOKUP($A171,Produits_composes!$A$1:$AA$30,25,FALSE),IF($J171=5.5%,$F171*(1+$J171)-$F171,"")) ->  | M171: =IF($J171="Multiple",VLOOKUP(A171,Produits_composes!$A$1:$AA$30,26,FALSE),IF($J171=20%,$F171*(1+$J171)-$F171,"")) ->  | N171: 3760219061311 | O171: 345 | P171: 162
A172: 52F | B172: Ferme de Ramon - Garbure de confit de canard | C172: 1,6kg | D172: Bocal | E172: 1 | F172: =IF(J172="Multiple",VLOOKUP(A172,Produits_composes!$A$1:$AA$30,24,FALSE),ROUNDDOWN(G172*100/(100+J172*100),5)) -> 17.91469 | G172: 18.9 | H172: 0.05 | I172: 17.02 | J172: 0.055 | K172: 0.98531 | L172: =IF($J172="Multiple",VLOOKUP($A172,Produits_composes!$A$1:$AA$30,25,FALSE),IF($J172=5.5%,$F172*(1+$J172)-$F172,"")) -> 0.98530795 | M172: =IF($J172="Multiple",VLOOKUP(A172,Produits_composes!$A$1:$AA$30,26,FALSE),IF($J172=20%,$F172*(1+$J172)-$F172,"")) ->  | N172: 3760219061304 | O172: 2295 | P172: 163
A173: 52G | B173: Ferme de Ramon - Canard à l’orange | C173: 750g | D173: Bocal | E173: 1 | F173: =IF(J173="Multiple",VLOOKUP(A173,Produits_composes!$A$1:$AA$30,24,FALSE),ROUNDDOWN(G173*100/(100+J173*100),5)) -> 11.27962 | G173: 11.9 | H173: 0.05 | I173: 10.72 | J173: 0.055 | K173: 0.62038 | L173: =IF($J173="Multiple",VLOOKUP($A173,Produits_composes!$A$1:$AA$30,25,FALSE),IF($J173=5.5%,$F173*(1+$J173)-$F173,"")) -> 0.6203791 | M173: =IF($J173="Multiple",VLOOKUP(A173,Produits_composes!$A$1:$AA$30,26,FALSE),IF($J173=20%,$F173*(1+$J173)-$F173,"")) ->  | N173: 3760219061298 | O173: 1180 | P173: 164
A174: 52H | B174: Ferme de Ramon - Cassoulet au confit de canard | C174: 750g | D174: Bocal | E174: 1 | F174: =IF(J174="Multiple",VLOOKUP(A174,Produits_composes!$A$1:$AA$30,24,FALSE),ROUNDDOWN(G174*100/(100+J174*100),5)) -> 10.33175 | G174: 10.9 | H174: 0.05 | I174: 9.82 | J174: 0.055 | K174: 0.56825 | L174: =IF($J174="Multiple",VLOOKUP($A174,Produits_composes!$A$1:$AA$30,25,FALSE),IF($J174=5.5%,$F174*(1+$J174)-$F174,"")) -> 0.56824625 | M174: =IF($J174="Multiple",VLOOKUP(A174,Produits_composes!$A$1:$AA$30,26,FALSE),IF($J174=20%,$F174*(1+$J174)-$F174,"")) ->  | N174: 3760219061281 | O174: 1200 | P174: 165
A175: 52I | B175: Ferme de Ramon - Cassoulet au confit de canard | C175: 1,6kg | D175: Bocal | E175: 1 | F175: =IF(J175="Multiple",VLOOKUP(A175,Produits_composes!$A$1:$AA$30,24,FALSE),ROUNDDOWN(G175*100/(100+J175*100),5)) -> 17.91469 | G175: 18.9 | H175: 0.05 | I175: 17.02 | J175: 0.055 | K175: 0.98531 | L175: =IF($J175="Multiple",VLOOKUP($A175,Produits_composes!$A$1:$AA$30,25,FALSE),IF($J175=5.5%,$F175*(1+$J175)-$F175,"")) -> 0.98530795 | M175: =IF($J175="Multiple",VLOOKUP(A175,Produits_composes!$A$1:$AA$30,26,FALSE),IF($J175=20%,$F175*(1+$J175)-$F175,"")) ->  | N175: 3760219061274 | O175: 2280 | P175: 166
A176: 52J | B176: Ferme de Ramon - Gésiers de canard confits | C176: 150g | D176: Bocal | E176: 1 | F176: =IF(J176="Multiple",VLOOKUP(A176,Produits_composes!$A$1:$AA$30,24,FALSE),ROUNDDOWN(G176*100/(100+J176*100),5)) -> 4.64454 | G176: 4.9 | H176: 0.05 | I176: 4.42 | J176: 0.055 | K176: 0.25546 | L176: =IF($J176="Multiple",VLOOKUP($A176,Produits_composes!$A$1:$AA$30,25,FALSE),IF($J176=5.5%,$F176*(1+$J176)-$F176,"")) -> 0.2554497 | M176: =IF($J176="Multiple",VLOOKUP(A176,Produits_composes!$A$1:$AA$30,26,FALSE),IF($J176=20%,$F176*(1+$J176)-$F176,"")) ->  | N176: 3760219061267 | O176: 375 | P176: 167
A177: 52K | B177: Ferme de Ramon - Gésiers de canard confits | C177: 350g | D177: Bocal | E177: 1 | F177: =IF(J177="Multiple",VLOOKUP(A177,Produits_composes!$A$1:$AA$30,24,FALSE),ROUNDDOWN(G177*100/(100+J177*100),5)) -> 7.39336 | G177: 7.8 | H177: 0.05 | I177: 7.03 | J177: 0.055 | K177: 0.40664 | L177: =IF($J177="Multiple",VLOOKUP($A177,Produits_composes!$A$1:$AA$30,25,FALSE),IF($J177=5.5%,$F177*(1+$J177)-$F177,"")) -> 0.4066348 | M177: =IF($J177="Multiple",VLOOKUP(A177,Produits_composes!$A$1:$AA$30,26,FALSE),IF($J177=20%,$F177*(1+$J177)-$F177,"")) ->  | N177: 3760219061250 | O177: 705 | P177: 168
A178: 52L | B178: Ferme de Ramon - Civet de canard aux pruneaux | C178: 750g | D178: Bocal | E178: 1 | F178: =IF(J178="Multiple",VLOOKUP(A178,Produits_composes!$A$1:$AA$30,24,FALSE),ROUNDDOWN(G178*100/(100+J178*100),5)) -> 11.27962 | G178: 11.9 | H178: 0.05 | I178: 10.72 | J178: 0.055 | K178: 0.62038 | L178: =IF($J178="Multiple",VLOOKUP($A178,Produits_composes!$A$1:$AA$30,25,FALSE),IF($J178=5.5%,$F178*(1+$J178)-$F178,"")) -> 0.6203791 | M178: =IF($J178="Multiple",VLOOKUP(A178,Produits_composes!$A$1:$AA$30,26,FALSE),IF($J178=20%,$F178*(1+$J178)-$F178,"")) ->  | N178: 3760219061243 | O178: 1150 | P178: 169
A179: 52M | B179: Ferme de Ramon - Confit de canard 2 magrets | C179: 750g | D179: Bocal | E179: 1 | F179: =IF(J179="Multiple",VLOOKUP(A179,Produits_composes!$A$1:$AA$30,24,FALSE),ROUNDDOWN(G179*100/(100+J179*100),5)) -> 13.5545 | G179: 14.3 | H179: 0.05 | I179: 12.88 | J179: 0.055 | K179: 0.7455 | L179: =IF($J179="Multiple",VLOOKUP($A179,Produits_composes!$A$1:$AA$30,25,FALSE),IF($J179=5.5%,$F179*(1+$J179)-$F179,"")) -> 0.7454975 | M179: =IF($J179="Multiple",VLOOKUP(A179,Produits_composes!$A$1:$AA$30,26,FALSE),IF($J179=20%,$F179*(1+$J179)-$F179,"")) ->  | N179: 3760219061236 | O179: 1150 | P179: 170
A180: 52N | B180: Ferme de Ramon - Confit de canard 2 cuisses | C180: 750g | D180: Bocal | E180: 1 | F180: =IF(J180="Multiple",VLOOKUP(A180,Produits_composes!$A$1:$AA$30,24,FALSE),ROUNDDOWN(G180*100/(100+J180*100),5)) -> 11.46919 | G180: 12.1 | H180: 0.05 | I180: 10.9 | J180: 0.055 | K180: 0.63081 | L180: =IF($J180="Multiple",VLOOKUP($A180,Produits_composes!$A$1:$AA$30,25,FALSE),IF($J180=5.5%,$F180*(1+$J180)-$F180,"")) -> 0.63080545 | M180: =IF($J180="Multiple",VLOOKUP(A180,Produits_composes!$A$1:$AA$30,26,FALSE),IF($J180=20%,$F180*(1+$J180)-$F180,"")) ->  | N180: 3760219061229 | O180: 1150 | P180: 171
A181: 53A | B181: Vin du Tsar - Rouge "Le Bouquet" | C181: 0,75L | D181: Bouteille | E181: 6 | F181: =IF(J181="Multiple",VLOOKUP(A181,Produits_composes!$A$1:$AA$30,24,FALSE),ROUNDDOWN(G181*100/(100+J181*100),5)) -> 5.66666 | G181: 6.8 | H181: 0.05 | I181: 5.39 | J181: 0.2 | K181: 1.13334 | L181: =IF($J181="Multiple",VLOOKUP($A181,Produits_composes!$A$1:$AA$30,25,FALSE),IF($J181=5.5%,$F181*(1+$J181)-$F181,"")) ->  | M181: =IF($J181="Multiple",VLOOKUP(A181,Produits_composes!$A$1:$AA$30,26,FALSE),IF($J181=20%,$F181*(1+$J181)-$F181,"")) -> 1.133332 | N181: 3760219061212 | O181: 1195 | P181: 172
A182: 53B | B182: Vin du Tsar - Rouge ''Cuvée du Millénaire'' | C182: 0,75L | D182: Bouteille | E182: 6 | F182: =IF(J182="Multiple",VLOOKUP(A182,Produits_composes!$A$1:$AA$30,24,FALSE),ROUNDDOWN(G182*100/(100+J182*100),5)) -> 7.91666 | G182: 9.5 | H182: 0.05 | I182: 7.53 | J182: 0.2 | K182: 1.58334 | L182: =IF($J182="Multiple",VLOOKUP($A182,Produits_composes!$A$1:$AA$30,25,FALSE),IF($J182=5.5%,$F182*(1+$J182)-$F182,"")) ->  | M182: =IF($J182="Multiple",VLOOKUP(A182,Produits_composes!$A$1:$AA$30,26,FALSE),IF($J182=20%,$F182*(1+$J182)-$F182,"")) -> 1.583332 | N182: 3760219061205 | O182: 1195 | P182: 173
A183: 53C | B183: Vin du Tsar - Blanc ''Très’Or du Tsar'' | C183: 0,75L | D183: Bouteille | E183: 6 | F183: =IF(J183="Multiple",VLOOKUP(A183,Produits_composes!$A$1:$AA$30,24,FALSE),ROUNDDOWN(G183*100/(100+J183*100),5)) -> 5.25 | G183: 6.3 | H183: 0.05 | I183: 4.99 | J183: 0.2 | K183: 1.05 | L183: =IF($J183="Multiple",VLOOKUP($A183,Produits_composes!$A$1:$AA$30,25,FALSE),IF($J183=5.5%,$F183*(1+$J183)-$F183,"")) ->  | M183: =IF($J183="Multiple",VLOOKUP(A183,Produits_composes!$A$1:$AA$30,26,FALSE),IF($J183=20%,$F183*(1+$J183)-$F183,"")) -> 1.05 | N183: 3760219061199 | O183: 1195 | P183: 174
A184: 53D | B184: Vin du Tsar - Rosé ''Douceur de l’Impératrice'' | C184: 0,75L | D184: Bouteille | E184: 6 | F184: =IF(J184="Multiple",VLOOKUP(A184,Produits_composes!$A$1:$AA$30,24,FALSE),ROUNDDOWN(G184*100/(100+J184*100),5)) -> 5.25 | G184: 6.3 | H184: 0.05 | I184: 4.99 | J184: 0.2 | K184: 1.05 | L184: =IF($J184="Multiple",VLOOKUP($A184,Produits_composes!$A$1:$AA$30,25,FALSE),IF($J184=5.5%,$F184*(1+$J184)-$F184,"")) ->  | M184: =IF($J184="Multiple",VLOOKUP(A184,Produits_composes!$A$1:$AA$30,26,FALSE),IF($J184=20%,$F184*(1+$J184)-$F184,"")) -> 1.05 | N184: 3760219061182 | O184: 1195 | P184: 175
A185: 53E | B185: Vin du Tsar - Rosé ''Rosé des Pierres'' | C185: 0,75L | D185: Bouteille | E185: 6 | F185: =IF(J185="Multiple",VLOOKUP(A185,Produits_composes!$A$1:$AA$30,24,FALSE),ROUNDDOWN(G185*100/(100+J185*100),5)) -> 4.83333 | G185: 5.8 | H185: 0.05 | I185: 4.6 | J185: 0.2 | K185: 0.96667 | L185: =IF($J185="Multiple",VLOOKUP($A185,Produits_composes!$A$1:$AA$30,25,FALSE),IF($J185=5.5%,$F185*(1+$J185)-$F185,"")) ->  | M185: =IF($J185="Multiple",VLOOKUP(A185,Produits_composes!$A$1:$AA$30,26,FALSE),IF($J185=20%,$F185*(1+$J185)-$F185,"")) -> 0.966666 | N185: 3760219061175 | O185: 1195 | P185: 176
A186: MPV1A | B186: Pruneaux d'Agen BIO | C186: 500g | D186: Sachet | E186: 25 | F186: =IF(J186="Multiple",VLOOKUP(A186,Produits_composes!$A$1:$AA$30,24,FALSE),ROUNDDOWN(G186*100/(100+J186*100),5)) -> 5.21327 | G186: 5.5 | H186: =$Q$2 -> 0.2 | I186: 4.18 | J186: 0.055 | K186: 0.28673 | L186: =IF($J186="Multiple",VLOOKUP($A186,Produits_composes!$A$1:$AA$30,25,FALSE),IF($J186=5.5%,$F186*(1+$J186)-$F186,"")) -> 0.28672985 | M186: =IF($J186="Multiple",VLOOKUP(A186,Produits_composes!$A$1:$AA$30,26,FALSE),IF($J186=20%,$F186*(1+$J186)-$F186,"")) ->  | N186: 3760219060314 | O186: 500 | P186: 177
A187: MPV1B | B187: Pruneaux d'Agen BIO | C187: 1kg | D187: Sachet | E187: 14 | F187: =IF(J187="Multiple",VLOOKUP(A187,Produits_composes!$A$1:$AA$30,24,FALSE),ROUNDDOWN(G187*100/(100+J187*100),5)) -> 9.47867 | G187: 10 | H187: =$Q$2 -> 0.2 | I187: 7.59 | J187: 0.055 | K187: 0.52133 | L187: =IF($J187="Multiple",VLOOKUP($A187,Produits_composes!$A$1:$AA$30,25,FALSE),IF($J187=5.5%,$F187*(1+$J187)-$F187,"")) -> 0.52132685 | M187: =IF($J187="Multiple",VLOOKUP(A187,Produits_composes!$A$1:$AA$30,26,FALSE),IF($J187=20%,$F187*(1+$J187)-$F187,"")) ->  | N187: 3760219060307 | O187: 1000 | P187: 178
A188: MPV1C | B188: Pruneaux d’Agen BIO dénoyautés | C188: 500g | D188: Sachet | E188: 25 | F188: =IF(J188="Multiple",VLOOKUP(A188,Produits_composes!$A$1:$AA$30,24,FALSE),ROUNDDOWN(G188*100/(100+J188*100),5)) -> 7.29857 | G188: 7.7 | H188: =$Q$2 -> 0.2 | I188: 5.84 | J188: 0.055 | K188: 0.40143 | L188: =IF($J188="Multiple",VLOOKUP($A188,Produits_composes!$A$1:$AA$30,25,FALSE),IF($J188=5.5%,$F188*(1+$J188)-$F188,"")) -> 0.40142135 | M188: =IF($J188="Multiple",VLOOKUP(A188,Produits_composes!$A$1:$AA$30,26,FALSE),IF($J188=20%,$F188*(1+$J188)-$F188,"")) ->  | N188: 3760219060321 | O188: 500 | P188: 179
A189: MPV1D | B189: Pruneaux d’Agen BIO dénoyautés | C189: 1kg | D189: Sachet | E189: 14 | F189: =IF(J189="Multiple",VLOOKUP(A189,Produits_composes!$A$1:$AA$30,24,FALSE),ROUNDDOWN(G189*100/(100+J189*100),5)) -> 13.27014 | G189: 14 | H189: =$Q$2 -> 0.2 | I189: 10.62 | J189: 0.055 | K189: 0.72986 | L189: =IF($J189="Multiple",VLOOKUP($A189,Produits_composes!$A$1:$AA$30,25,FALSE),IF($J189=5.5%,$F189*(1+$J189)-$F189,"")) -> 0.7298577 | M189: =IF($J189="Multiple",VLOOKUP(A189,Produits_composes!$A$1:$AA$30,26,FALSE),IF($J189=20%,$F189*(1+$J189)-$F189,"")) ->  | N189: 3760219061137 | O189: 1000 | P189: 180
A190: MPV2A | B190: Crème de pruneaux BIO | C190: 220g | D190: Bocal | E190: 24 | F190: =IF(J190="Multiple",VLOOKUP(A190,Produits_composes!$A$1:$AA$30,24,FALSE),ROUNDDOWN(G190*100/(100+J190*100),5)) -> 3.98104 | G190: 4.2 | H190: =$Q$2 -> 0.2 | I190: 3.19 | J190: 0.055 | K190: 0.21896 | L190: =IF($J190="Multiple",VLOOKUP($A190,Produits_composes!$A$1:$AA$30,25,FALSE),IF($J190=5.5%,$F190*(1+$J190)-$F190,"")) -> 0.2189572 | M190: =IF($J190="Multiple",VLOOKUP(A190,Produits_composes!$A$1:$AA$30,26,FALSE),IF($J190=20%,$F190*(1+$J190)-$F190,"")) ->  | N190: 3760219060338 | O190: 400 | P190: 181
A191: MPV3A | B191: Jus de pruneaux BIO | C191: 25cl | D191: Bouteille | E191: 12 | F191: =IF(J191="Multiple",VLOOKUP(A191,Produits_composes!$A$1:$AA$30,24,FALSE),ROUNDDOWN(G191*100/(100+J191*100),5)) -> 2.36966 | G191: 2.5 | H191: =IF($Q$2>=20%,20%,$Q$2) -> 0.2 | I191: 1.9 | J191: 0.055 | K191: 0.13034 | L191: =IF($J191="Multiple",VLOOKUP($A191,Produits_composes!$A$1:$AA$30,25,FALSE),IF($J191=5.5%,$F191*(1+$J191)-$F191,"")) -> 0.1303313 | M191: =IF($J191="Multiple",VLOOKUP(A191,Produits_composes!$A$1:$AA$30,26,FALSE),IF($J191=20%,$F191*(1+$J191)-$F191,"")) ->  | N191: 3760219061113 | O191: 400 | P191: 182
A192: MPV6A | B192: Pruneaux d’Agen (33/44) - Boîte Or | C192: 1kg | D192: Boite métal | E192: 6 | F192: =IF(J192="Multiple",VLOOKUP(A192,Produits_composes!$A$1:$AA$30,24,FALSE),ROUNDDOWN(G192*100/(100+J192*100),5)) -> 9.9526 | G192: 10.5 | H192: =$Q$2 -> 0.2 | I192: 7.97 | J192: 0.055 | K192: 0.5474 | L192: =IF($J192="Multiple",VLOOKUP($A192,Produits_composes!$A$1:$AA$30,25,FALSE),IF($J192=5.5%,$F192*(1+$J192)-$F192,"")) -> 0.547393 | M192: =IF($J192="Multiple",VLOOKUP(A192,Produits_composes!$A$1:$AA$30,26,FALSE),IF($J192=20%,$F192*(1+$J192)-$F192,"")) ->  | N192: 3760219061106 | O192: 1210 | P192: 183
A193: MPV6A2 | B193: Pruneaux d’Agen (33/44) - Boîte Or | C193: 750g | D193: Boite métal | E193: 6 | F193: =IF(J193="Multiple",VLOOKUP(A193,Produits_composes!$A$1:$AA$30,24,FALSE),ROUNDDOWN(G193*100/(100+J193*100),5)) -> 9.48815 | G193: 10.01 | H193: 0.2 | I193: 7.6 | J193: 0.055 | K193: 0.52185 | L193: =IF($J193="Multiple",VLOOKUP($A193,Produits_composes!$A$1:$AA$30,25,FALSE),IF($J193=5.5%,$F193*(1+$J193)-$F193,"")) -> 0.52184825 | M193: =IF($J193="Multiple",VLOOKUP(A193,Produits_composes!$A$1:$AA$30,26,FALSE),IF($J193=20%,$F193*(1+$J193)-$F193,"")) ->  | N193: 3760219060352 | O193: 875 | P193: 184
A194: MPV6B | B194: Pruneaux d’Agen (30/35) - Boîte Or | C194: 1kg | D194: Boite métal | E194: 6 | F194: =IF(J194="Multiple",VLOOKUP(A194,Produits_composes!$A$1:$AA$30,24,FALSE),ROUNDDOWN(G194*100/(100+J194*100),5)) -> 11.3744 | G194: 12 | H194: 0.2 | I194: 9.1 | J194: 0.055 | K194: 0.6256 | L194: =IF($J194="Multiple",VLOOKUP($A194,Produits_composes!$A$1:$AA$30,25,FALSE),IF($J194=5.5%,$F194*(1+$J194)-$F194,"")) -> 0.625592 | M194: =IF($J194="Multiple",VLOOKUP(A194,Produits_composes!$A$1:$AA$30,26,FALSE),IF($J194=20%,$F194*(1+$J194)-$F194,"")) ->  | N194: 3760219061083 | O194: 1210 | P194: 185
A195: MPV6C | B195: Pruneaux d’Agen dénoyautés (44/55) - Boîte Or | C195: 1kg | D195: Boite métal | E195: 6 | F195: =IF(J195="Multiple",VLOOKUP(A195,Produits_composes!$A$1:$AA$30,24,FALSE),ROUNDDOWN(G195*100/(100+J195*100),5)) -> 12.32227 | G195: 13 | H195: 0.2 | I195: 9.86 | J195: 0.055 | K195: 0.67773 | L195: =IF($J195="Multiple",VLOOKUP($A195,Produits_composes!$A$1:$AA$30,25,FALSE),IF($J195=5.5%,$F195*(1+$J195)-$F195,"")) -> 0.67772485 | M195: =IF($J195="Multiple",VLOOKUP(A195,Produits_composes!$A$1:$AA$30,26,FALSE),IF($J195=20%,$F195*(1+$J195)-$F195,"")) ->  | N195: 3760219061076 | O195: 1210 | P195: 186
A196: MPV7A | B196: Pruneaux d’Agen Mi-Cuit | C196: 500g | D196: Sachet | E196: 25 | F196: =IF(J196="Multiple",VLOOKUP(A196,Produits_composes!$A$1:$AA$30,24,FALSE),ROUNDDOWN(G196*100/(100+J196*100),5)) -> 4.07582 | G196: 4.3 | H196: =IF($Q$2>=25%,25%,$Q$2) -> 0.2 | I196: 3.27 | J196: 0.055 | K196: 0.22418 | L196: =IF($J196="Multiple",VLOOKUP($A196,Produits_composes!$A$1:$AA$30,25,FALSE),IF($J196=5.5%,$F196*(1+$J196)-$F196,"")) -> 0.2241701 | M196: =IF($J196="Multiple",VLOOKUP(A196,Produits_composes!$A$1:$AA$30,26,FALSE),IF($J196=20%,$F196*(1+$J196)-$F196,"")) ->  | N196: 3760219060222 | O196: 500 | P196: 187
A197: MPV7B | B197: Pruneaux d’Agen Mi-Cuit | C197: 1kg | D197: Sachet | E197: 14 | F197: =IF(J197="Multiple",VLOOKUP(A197,Produits_composes!$A$1:$AA$30,24,FALSE),ROUNDDOWN(G197*100/(100+J197*100),5)) -> 6.87203 | G197: 7.25 | H197: =IF($Q$2>=25%,25%,$Q$2) -> 0.2 | I197: 5.5 | J197: 0.055 | K197: 0.37797 | L197: =IF($J197="Multiple",VLOOKUP($A197,Produits_composes!$A$1:$AA$30,25,FALSE),IF($J197=5.5%,$F197*(1+$J197)-$F197,"")) -> 0.37796165 | M197: =IF($J197="Multiple",VLOOKUP(A197,Produits_composes!$A$1:$AA$30,26,FALSE),IF($J197=20%,$F197*(1+$J197)-$F197,"")) ->  | N197: 3760219061052 | O197: 1000 | P197: 188
A198: MPV8A | B198: Pruneaux d’Agen (cal. 33/44) | C198: 250g | D198: Sachet | E198: 50 | F198: =IF(J198="Multiple",VLOOKUP(A198,Produits_composes!$A$1:$AA$30,24,FALSE),ROUNDDOWN(G198*100/(100+J198*100),5)) -> 3.03317 | G198: 3.2 | H198: 0.2 | I198: 2.43 | J198: 0.055 | K198: 0.16683 | L198: =IF($J198="Multiple",VLOOKUP($A198,Produits_composes!$A$1:$AA$30,25,FALSE),IF($J198=5.5%,$F198*(1+$J198)-$F198,"")) -> 0.16682435 | M198: =IF($J198="Multiple",VLOOKUP(A198,Produits_composes!$A$1:$AA$30,26,FALSE),IF($J198=20%,$F198*(1+$J198)-$F198,"")) ->  | N198: 3760219060291 | O198: 250 | P198: 189
A199: MPV8B | B199: Pruneaux d’Agen (cal. 33/44) | C199: 500g | D199: Sachet | E199: 25 | F199: =IF(J199="Multiple",VLOOKUP(A199,Produits_composes!$A$1:$AA$30,24,FALSE),ROUNDDOWN(G199*100/(100+J199*100),5)) -> 3.60189 | G199: 3.8 | H199: 0.2 | I199: 2.89 | J199: 0.055 | K199: 0.19811 | L199: =IF($J199="Multiple",VLOOKUP($A199,Produits_composes!$A$1:$AA$30,25,FALSE),IF($J199=5.5%,$F199*(1+$J199)-$F199,"")) -> 0.19810395 | M199: =IF($J199="Multiple",VLOOKUP(A199,Produits_composes!$A$1:$AA$30,26,FALSE),IF($J199=20%,$F199*(1+$J199)-$F199,"")) ->  | N199: 3760219060284 | O199: 500 | P199: 190
A200: MPV8C | B200: Pruneaux d’Agen (cal. 33/44) | C200: 1kg | D200: Sachet | E200: 14 | F200: =IF(J200="Multiple",VLOOKUP(A200,Produits_composes!$A$1:$AA$30,24,FALSE),ROUNDDOWN(G200*100/(100+J200*100),5)) -> 6.16113 | G200: 6.5 | H200: 0.2 | I200: 4.93 | J200: 0.055 | K200: 0.33887 | L200: =IF($J200="Multiple",VLOOKUP($A200,Produits_composes!$A$1:$AA$30,25,FALSE),IF($J200=5.5%,$F200*(1+$J200)-$F200,"")) -> 0.33886215 | M200: =IF($J200="Multiple",VLOOKUP(A200,Produits_composes!$A$1:$AA$30,26,FALSE),IF($J200=20%,$F200*(1+$J200)-$F200,"")) ->  | N200: 3760219061021 | O200: 1000 | P200: 191
... 162 more rows

Sheet Bon de commande PRO
F1: Bon de Commande PRO | J1: DATE: | L1: =TODAY() -> 2019-09-25
O2: Aide pour utiliser le formulaire: 1. Si un bandeau jaune apparaît, cliquer sur le bouton "activer le contenu" 2. Renseigner chaque champ de coordonnées en orange 3. Sélectionner les quantités de chaque article souhaitées en orange 4. Si vous avez choisi un coffret à composé vous même, cocher les articles de votre choix dans chaque catégorie, correspondant au coffret choisi 5. Pour finir, cliquer sur le bouton en bas de page "Cliquez ici pour envoyer la commande" Note: un seul formulaire par coffret personnalisé, si vous souhaitez plusieurs types coffrets personnalisés (min. 25 unités de chaque), remplissez à nouveau le formulaire et recliquez sur "envoyer le bon de commande". Nous additionnerons les 2 montants pour vous proposer les frais de livraison qui correspondent. Un message vous indique alors que la commande vient de nous être envoyée, vous pouvez donc fermer le document
F4: CE/Entreprise | J4: Tél.:
F5: Adresse:
F7: CP: | J7: Ville:
F8: Nom: | J8: Prénom:
A9: lieu-dit «Braunès» 47320 Lafitte-sur-Lot 05 53 84 04 17 • mdpruneau.vpc@orange.fr www.maisondupruneau.com | F9: Ligne directe: | J9: Mail:
F10: Conditions de règlement: | H10: =Coordonnées_client!$D$4 -> Comptant (1ère commande) puis 30j net (commandes suivantes)
A13: Ref. | B13: Coffrets Composés: | G13: Prix HT | H13: Prix TTC | I13: TVA | J13: Remise | K13: Prix remisé HT | L13: Quantité | M13: TOTAL Ligne remisée HT | N13: Prix unitaire remisé TTC | O13: Total Ligne remisée TTC | P13: Poids Brut | Q13: Total Poids Ligne | R13: Total ligne HT | S13: Total ligne TTC | T13: Total ligne remisé TTC | U13: Remise HT | V13: Remise TTC | W13: TVA 5,5% | X13: TVA 20%
A15: 47A | B15: =IF(ISNA(VLOOKUP($A15,Produits!$A$1:$O$357,2,FALSE)),"",VLOOKUP($A15,Produits!$A$1:$O$357,2,FALSE)) -> Coffret "Découverte" - 4 produits | G15: =IF(ISNA(VLOOKUP($A15,Produits!$A$1:$O$357,6,FALSE)),"",VLOOKUP($A15,Produits!$A$1:$O$357,6,FALSE)) -> 14.9 | H15: =IF(ISNA(VLOOKUP($A15,Produits!$A$1:$O$357,7,FALSE)),"",VLOOKUP($A15,Produits!$A$1:$O$357,7,FALSE)) -> 16.5 | I15: =IF(ISNA(VLOOKUP($A15,Produits!$A$1:$O$357,10,FALSE)),"",VLOOKUP($A15,Produits!$A$1:$O$357,10,FALSE)) -> Multiple | J15: =IFERROR(VLOOKUP(A15,Produits!$A$1:$P$357,8,FALSE),"") -> 0.2 | K15: =IF(J15=0,G15,IFERROR(ROUNDDOWN(G15-G15*J15,2),"")) -> 11.92 | M15: =IFERROR($K15*$L15,"") -> 0 | N15: =H15-H15*J15 -> 13.2 | O15: =T15 -> 0 | P15: =IF(ISNA(VLOOKUP($A15,Produits!$A$1:$O$357,15,FALSE)),"",VLOOKUP($A15,Produits!$A$1:$O$357,15,FALSE)) -> 815 | Q15: =IFERROR($L15*$P15/1000,"") -> 0 | R15: =IFERROR(G15*L15,"") -> 0 | S15: =IFERROR(ROUNDUP(H15*L15,2),"") -> 0 | T15: =IFERROR(IF($I15="Multiple",$M15+$W15+$X15,ROUNDUP($M15*(1+$I15),2)),"") -> 0 | U15: =IFERROR($G15*$L15-ROUNDUP($K15,2)*$L15,"") -> 0 | V15: =IFERROR(ROUND($H15*$L15-$T15,2),"") -> 0 | W15: =IFERROR(IF($I15="Multiple",ROUNDUP((VLOOKUP($A15,Produits_composes!$A$1:$AA$30,25,FALSE)-VLOOKUP($A15,Produits_composes!$A$1:$AA$30,25,FALSE)*J15)*$L15,2),IF($I15=5.5%,ROUNDUP(($K15*(1+$I15)-$K15)*$L15,2),""*$L15)),"") -> 0 | X15: =IFERROR(IF($I15="Multiple",ROUNDUP((VLOOKUP($A15,Produits_composes!$A$1:$AA$30,26,FALSE)-VLOOKUP($A15,Produits_composes!$A$1:$AA$30,26,FALSE)*J15)*$L15,2),IF($I15=20%,ROUNDUP(($K15*(1+$I15)-$K15)*$L15,2),""*$L15)),"") -> 0
A17: 47B | B17: =IF(ISNA(VLOOKUP($A17,Produits!$A$1:$O$357,2,FALSE)),"",VLOOKUP($A17,Produits!$A$1:$O$357,2,FALSE)) -> Coffret "Découverte" SANS ALCOOL - 4 produits | G17: =IF(ISNA(VLOOKUP($A17,Produits!$A$1:$O$357,6,FALSE)),"",VLOOKUP($A17,Produits!$A$1:$O$357,6,FALSE)) -> 14.9 | H17: =IF(ISNA(VLOOKUP($A17,Produits!$A$1:$O$357,7,FALSE)),"",VLOOKUP($A17,Produits!$A$1:$O$357,7,FALSE)) -> 16.5 | I17: =IF(ISNA(VLOOKUP($A17,Produits!$A$1:$O$357,10,FALSE)),"",VLOOKUP($A17,Produits!$A$1:$O$357,10,FALSE)) -> Multiple | J17: =IFERROR(VLOOKUP(A17,Produits!$A$1:$P$357,8,FALSE),"") -> 0.2 | K17: =IF(J17=0,G17,IFERROR(ROUNDDOWN(G17-G17*J17,2),"")) -> 11.92 | M17: =IFERROR($K17*$L17,"") -> 0 | N17: =H17-H17*J17 -> 13.2 | O17: =T17 -> 0 | P17: =IF(ISNA(VLOOKUP($A17,Produits!$A$1:$O$357,15,FALSE)),"",VLOOKUP($A17,Produits!$A$1:$O$357,15,FALSE)) -> 815 | Q17: =IFERROR($L17*$P17/1000,"") -> 0 | R17: =IFERROR(G17*L17,"") -> 0 | S17: =IFERROR(ROUNDUP(H17*L17,2),"") -> 0 | T17: =IFERROR(IF($I17="Multiple",$M17+$W17+$X17,ROUNDUP($M17*(1+$I17),2)),"") -> 0 | U17: =IFERROR($G17*$L17-ROUNDUP($K17,2)*$L17,"") -> 0 | V17: =IFERROR(ROUND($H17*$L17-$T17,2),"") -> 0 | W17: =IFERROR(IF($I17="Multiple",ROUNDUP((VLOOKUP($A15,Produits_composes!$A$1:$AA$30,25,FALSE)-VLOOKUP($A15,Produits_composes!$A$1:$AA$30,25,FALSE)*J17)*$L17,2),IF($I17=5.5%,ROUNDUP(($K17*(1+$I17)-$K17)*$L17,2),""*$L17)),"") -> 0 | X17: =IFERROR(IF($I17="Multiple",ROUNDUP((VLOOKUP($A15,Produits_composes!$A$1:$AA$30,26,FALSE)-VLOOKUP($A15,Produits_composes!$A$1:$AA$30,26,FALSE)*J17)*$L17,2),IF($I17=20%,ROUNDUP(($K17*(1+$I17)-$K17)*$L17,2),""*$L17)),"") -> 0
A19: 48A | B19: =IF(ISNA(VLOOKUP($A19,Produits!$A$1:$O$357,2,FALSE)),"",VLOOKUP($A19,Produits!$A$1:$O$357,2,FALSE)) -> Coffret "Le Mignon" - 5 produits | G19: =IF(ISNA(VLOOKUP($A19,Produits!$A$1:$O$357,6,FALSE)),"",VLOOKUP($A19,Produits!$A$1:$O$357,6,FALSE)) -> 22.77 | H19: =IF(ISNA(VLOOKUP($A19,Produits!$A$1:$O$357,7,FALSE)),"",VLOOKUP($A19,Produits!$A$1:$O$357,7,FALSE)) -> 26.5 | I19: =IF(ISNA(VLOOKUP($A19,Produits!$A$1:$O$357,10,FALSE)),"",VLOOKUP($A19,Produits!$A$1:$O$357,10,FALSE)) -> Multiple | J19: =IFERROR(VLOOKUP(A19,Produits!$A$1:$P$357,8,FALSE),"") -> 0.2 | K19: =IF(J19=0,G19,IFERROR(ROUNDDOWN(G19-G19*J19,2),"")) -> 18.21 | M19: =IFERROR($K19*$L19,"") -> 0 | N19: =H19-H19*J19 -> 21.2 | O19: =T19 -> 0 | P19: =IF(ISNA(VLOOKUP($A19,Produits!$A$1:$O$357,15,FALSE)),"",VLOOKUP($A19,Produits!$A$1:$O$357,15,FALSE)) -> 1020 | Q19: =IFERROR($L19*$P19/1000,"") -> 0 | R19: =IFERROR(G19*L19,"") -> 0 | S19: =IFERROR(ROUNDUP(H19*L19,2),"") -> 0 | T19: =IFERROR(IF($I19="Multiple",$M19+$W19+$X19,ROUNDUP($M19*(1+$I19),2)),"") -> 0 | U19: =IFERROR($G19*$L19-ROUNDUP($K19,2)*$L19,"") -> 0 | V19: =IFERROR(ROUND($H19*$L19-$T19,2),"") -> 0 | W19: =IFERROR(IF($I19="Multiple",ROUNDUP((VLOOKUP($A19,Produits_composes!$A$1:$AA$30,25,FALSE)-VLOOKUP($A19,Produits_composes!$A$1:$AA$30,25,FALSE)*J19)*$L19,2),IF($I19=5.5%,ROUNDUP(($K19*(1+$I19)-$K19)*$L19,2),""*$L19)),"") -> 0 | X19: =IFERROR(IF($I19="Multiple",ROUNDUP((VLOOKUP($A19,Produits_composes!$A$1:$AA$30,26,FALSE)-VLOOKUP($A19,Produits_composes!$A$1:$AA$30,26,FALSE)*J19)*$L19,2),IF($I19=20%,ROUNDUP(($K19*(1+$I19)-$K19)*$L19,2),""*$L19)),"") -> 0
A21: 48B | B21: =IF(ISNA(VLOOKUP($A21,Produits!$A$1:$O$357,2,FALSE)),"",VLOOKUP($A21,Produits!$A$1:$O$357,2,FALSE)) -> Coffret "Le Mignon" SANS ALCOOL - 5 produits | G21: =IF(ISNA(VLOOKUP($A21,Produits!$A$1:$O$357,6,FALSE)),"",VLOOKUP($A21,Produits!$A$1:$O$357,6,FALSE)) -> 22.77 | H21: =IF(ISNA(VLOOKUP($A21,Produits!$A$1:$O$357,7,FALSE)),"",VLOOKUP($A21,Produits!$A$1:$O$357,7,FALSE)) -> 26.5 | I21: =IF(ISNA(VLOOKUP($A21,Produits!$A$1:$O$357,10,FALSE)),"",VLOOKUP($A21,Produits!$A$1:$O$357,10,FALSE)) -> Multiple | J21: =IFERROR(VLOOKUP(A21,Produits!$A$1:$P$357,8,FALSE),"") -> 0.2 | K21: =IF(J21=0,G21,IFERROR(ROUNDDOWN(G21-G21*J21,2),"")) -> 18.21 | M21: =IFERROR($K21*$L21,"") -> 0 | N21: =H21-H21*J21 -> 21.2 | O21: =T21 -> 0 | P21: =IF(ISNA(VLOOKUP($A21,Produits!$A$1:$O$357,15,FALSE)),"",VLOOKUP($A21,Produits!$A$1:$O$357,15,FALSE)) -> 1020 | Q21: =IFERROR($L21*$P21/1000,"") -> 0 | R21: =IFERROR(G21*L21,"") -> 0 | S21: =IFERROR(ROUNDUP(H21*L21,2),"") -> 0 | T21: =IFERROR(IF($I21="Multiple",$M21+$W21+$X21,ROUNDUP($M21*(1+$I21),2)),"") -> 0 | U21: =IFERROR($G21*$L21-ROUNDUP($K21,2)*$L21,"") -> 0 | V21: =IFERROR(ROUND($H21*$L21-$T21,2),"") -> 0 | W21: =IFERROR(IF($I21="Multiple",ROUNDUP((VLOOKUP($A19,Produits_composes!$A$1:$AA$30,25,FALSE)-VLOOKUP($A19,Produits_composes!$A$1:$AA$30,25,FALSE)*J21)*$L21,2),IF($I21=5.5%,ROUNDUP(($K21*(1+$I21)-$K21)*$L21,2),""*$L21)),"") -> 0 | X21: =IFERROR(IF($I21="Multiple",ROUNDUP((VLOOKUP($A19,Produits_composes!$A$1:$AA$30,26,FALSE)-VLOOKUP($A19,Produits_composes!$A$1:$AA$30,26,FALSE)*J21)*$L21,2),IF($I21=20%,ROUNDUP(($K21*(1+$I21)-$K21)*$L21,2),""*$L21)),"") -> 0
A23: 49A | B23: =IF(ISNA(VLOOKUP($A23,Produits!$A$1:$O$357,2,FALSE)),"",VLOOKUP($A23,Produits!$A$1:$O$357,2,FALSE)) -> Coffret "L'Intrépide" - 7 produits | G23: =IF(ISNA(VLOOKUP($A23,Produits!$A$1:$O$357,6,FALSE)),"",VLOOKUP($A23,Produits!$A$1:$O$357,6,FALSE)) -> 44.02 | H23: =IF(ISNA(VLOOKUP($A23,Produits!$A$1:$O$357,7,FALSE)),"",VLOOKUP($A23,Produits!$A$1:$O$357,7,FALSE)) -> 49.5 | I23: =IF(ISNA(VLOOKUP($A23,Produits!$A$1:$O$357,10,FALSE)),"",VLOOKUP($A23,Produits!$A$1:$O$357,10,FALSE)) -> Multiple | J23: =IFERROR(VLOOKUP(A23,Produits!$A$1:$P$357,8,FALSE),"") -> 0.2 | K23: =IF(J23=0,G23,IFERROR(ROUNDDOWN(G23-G23*J23,2),"")) -> 35.21 | M23: =IFERROR($K23*$L23,"") -> 0 | N23: =H23-H23*J23 -> 39.6 | O23: =T23 -> 0 | P23: =IF(ISNA(VLOOKUP($A23,Produits!$A$1:$O$357,15,FALSE)),"",VLOOKUP($A23,Produits!$A$1:$O$357,15,FALSE)) -> 1845 | Q23: =IFERROR($L23*$P23/1000,"") -> 0 | R23: =IFERROR(G23*L23,"") -> 0 | S23: =IFERROR(ROUNDUP(H23*L23,2),"") -> 0 | T23: =IFERROR(IF($I23="Multiple",$M23+$W23+$X23,ROUNDUP($M23*(1+$I23),2)),"") -> 0 | U23: =IFERROR($G23*$L23-ROUNDUP($K23,2)*$L23,"") -> 0 | V23: =IFERROR(ROUND($H23*$L23-$T23,2),"") -> 0 | W23: =IFERROR(IF($I23="Multiple",ROUNDUP((VLOOKUP($A23,Produits_composes!$A$1:$AA$30,25,FALSE)-VLOOKUP($A23,Produits_composes!$A$1:$AA$30,25,FALSE)*J23)*$L23,2),IF($I23=5.5%,ROUNDUP(($K23*(1+$I23)-$K23)*$L23,2),""*$L23)),"") -> 0 | X23: =IFERROR(IF($I23="Multiple",ROUNDUP((VLOOKUP($A23,Produits_composes!$A$1:$AA$30,26,FALSE)-VLOOKUP($A23,Produits_composes!$A$1:$AA$30,26,FALSE)*J23)*$L23,2),IF($I23=20%,ROUNDUP(($K23*(1+$I23)-$K23)*$L23,2),""*$L23)),"") -> 0
A25: 49B | B25: =IF(ISNA(VLOOKUP($A25,Produits!$A$1:$O$357,2,FALSE)),"",VLOOKUP($A25,Produits!$A$1:$O$357,2,FALSE)) -> Coffret "L'Intrépide" SANS ALCOOL - 7 produits | G25: =IF(ISNA(VLOOKUP($A25,Produits!$A$1:$O$357,6,FALSE)),"",VLOOKUP($A25,Produits!$A$1:$O$357,6,FALSE)) -> 44.02 | H25: =IF(ISNA(VLOOKUP($A25,Produits!$A$1:$O$357,7,FALSE)),"",VLOOKUP($A25,Produits!$A$1:$O$357,7,FALSE)) -> 49.5 | I25: =IF(ISNA(VLOOKUP($A25,Produits!$A$1:$O$357,10,FALSE)),"",VLOOKUP($A25,Produits!$A$1:$O$357,10,FALSE)) -> Multiple | J25: =IFERROR(VLOOKUP(A25,Produits!$A$1:$P$357,8,FALSE),"") -> 0.2 | K25: =IF(J25=0,G25,IFERROR(ROUNDDOWN(G25-G25*J25,2),"")) -> 35.21 | M25: =IFERROR($K25*$L25,"") -> 0 | N25: =H25-H25*J25 -> 39.6 | O25: =T25 -> 0 | P25: =IF(ISNA(VLOOKUP($A25,Produits!$A$1:$O$357,15,FALSE)),"",VLOOKUP($A25,Produits!$A$1:$O$357,15,FALSE)) -> 1845 | Q25: =IFERROR($L25*$P25/1000,"") -> 0 | R25: =IFERROR(G25*L25,"") -> 0 | S25: =IFERROR(ROUNDUP(H25*L25,2),"") -> 0 | T25: =IFERROR(IF($I25="Multiple",$M25+$W25+$X25,ROUNDUP($M25*(1+$I25),2)),"") -> 0 | U25: =IFERROR($G25*$L25-ROUNDUP($K25,2)*$L25,"") -> 0 | V25: =IFERROR(ROUND($H25*$L25-$T25,2),"") -> 0 | W25: =IFERROR(IF($I25="Multiple",ROUNDUP((VLOOKUP($A23,Produits_composes!$A$1:$AA$30,25,FALSE)-VLOOKUP($A23,Produits_composes!$A$1:$AA$30,25,FALSE)*J25)*$L25,2),IF($I25=5.5%,ROUNDUP(($K25*(1+$I25)-$K25)*$L25,2),""*$L25)),"") -> 0 | X25: =IFERROR(IF($I25="Multiple",ROUNDUP((VLOOKUP($A23,Produits_composes!$A$1:$AA$30,26,FALSE)-VLOOKUP($A23,Produits_composes!$A$1:$AA$30,26,FALSE)*J25)*$L25,2),IF($I25=20%,ROUNDUP(($K25*(1+$I25)-$K25)*$L25,2),""*$L25)),"") -> 0
A27: 50A | B27: =IF(ISNA(VLOOKUP($A27,Produits!$A$1:$O$357,2,FALSE)),"",VLOOKUP($A27,Produits!$A$1:$O$357,2,FALSE)) -> Coffret "L'Intense" - 10 produits | G27: =IF(ISNA(VLOOKUP($A27,Produits!$A$1:$O$357,6,FALSE)),"",VLOOKUP($A27,Produits!$A$1:$O$357,6,FALSE)) -> 54.07 | H27: =IF(ISNA(VLOOKUP($A27,Produits!$A$1:$O$357,7,FALSE)),"",VLOOKUP($A27,Produits!$A$1:$O$357,7,FALSE)) -> 61 | I27: =IF(ISNA(VLOOKUP($A27,Produits!$A$1:$O$357,10,FALSE)),"",VLOOKUP($A27,Produits!$A$1:$O$357,10,FALSE)) -> Multiple | J27: =IFERROR(VLOOKUP(A27,Produits!$A$1:$P$357,8,FALSE),"") -> 0.2 | K27: =IF(J27=0,G27,IFERROR(ROUNDDOWN(G27-G27*J27,2),"")) -> 43.25 | M27: =IFERROR($K27*$L27,"") -> 0 | N27: =H27-H27*J27 -> 48.8 | O27: =T27 -> 0 | P27: =IF(ISNA(VLOOKUP($A27,Produits!$A$1:$O$357,15,FALSE)),"",VLOOKUP($A27,Produits!$A$1:$O$357,15,FALSE)) -> 3300 | Q27: =IFERROR($L27*$P27/1000,"") -> 0 | R27: =IFERROR(G27*L27,"") -> 0 | S27: =IFERROR(ROUNDUP(H27*L27,2),"") -> 0 | T27: =IFERROR(IF($I27="Multiple",$M27+$W27+$X27,ROUNDUP($M27*(1+$I27),2)),"") -> 0 | U27: =IFERROR($G27*$L27-ROUNDUP($K27,2)*$L27,"") -> 0 | V27: =IFERROR(ROUND($H27*$L27-$T27,2),"") -> 0 | W27: =IFERROR(IF($I27="Multiple",ROUNDUP((VLOOKUP($A27,Produits_composes!$A$1:$AA$30,25,FALSE)-VLOOKUP($A27,Produits_composes!$A$1:$AA$30,25,FALSE)*J27)*$L27,2),IF($I27=5.5%,ROUNDUP(($K27*(1+$I27)-$K27)*$L27,2),""*$L27)),"") -> 0 | X27: =IFERROR(IF($I27="Multiple",ROUNDUP((VLOOKUP($A27,Produits_composes!$A$1:$AA$30,26,FALSE)-VLOOKUP($A27,Produits_composes!$A$1:$AA$30,26,FALSE)*J27)*$L27,2),IF($I27=20%,ROUNDUP(($K27*(1+$I27)-$K27)*$L27,2),""*$L27)),"") -> 0
A29: 50B | B29: =IF(ISNA(VLOOKUP($A29,Produits!$A$1:$O$357,2,FALSE)),"",VLOOKUP($A29,Produits!$A$1:$O$357,2,FALSE)) -> Coffret "L'Intense" SANS ALCOOL - 10 produits | G29: =IF(ISNA(VLOOKUP($A29,Produits!$A$1:$O$357,6,FALSE)),"",VLOOKUP($A29,Produits!$A$1:$O$357,6,FALSE)) -> 54.07 | H29: =IF(ISNA(VLOOKUP($A29,Produits!$A$1:$O$357,7,FALSE)),"",VLOOKUP($A29,Produits!$A$1:$O$357,7,FALSE)) -> 61 | I29: =IF(ISNA(VLOOKUP($A29,Produits!$A$1:$O$357,10,FALSE)),"",VLOOKUP($A29,Produits!$A$1:$O$357,10,FALSE)) -> Multiple | J29: =IFERROR(VLOOKUP(A29,Produits!$A$1:$P$357,8,FALSE),"") -> 0.2 | K29: =IF(J29=0,G29,IFERROR(ROUNDDOWN(G29-G29*J29,2),"")) -> 43.25 | M29: =IFERROR($K29*$L29,"") -> 0 | N29: =H29-H29*J29 -> 48.8 | O29: =T29 -> 0 | P29: =IF(ISNA(VLOOKUP($A29,Produits!$A$1:$O$357,15,FALSE)),"",VLOOKUP($A29,Produits!$A$1:$O$357,15,FALSE)) -> 3300 | Q29: =IFERROR($L29*$P29/1000,"") -> 0 | R29: =IFERROR(G29*L29,"") -> 0 | S29: =IFERROR(ROUNDUP(H29*L29,2),"") -> 0 | T29: =IFERROR(IF($I29="Multiple",$M29+$W29+$X29,ROUNDUP($M29*(1+$I29),2)),"") -> 0 | U29: =IFERROR($G29*$L29-ROUNDUP($K29,2)*$L29,"") -> 0 | V29: =IFERROR(ROUND($H29*$L29-$T29,2),"") -> 0 | W29: =IFERROR(IF($I29="Multiple",ROUNDUP((VLOOKUP($A27,Produits_composes!$A$1:$AA$30,25,FALSE)-VLOOKUP($A27,Produits_composes!$A$1:$AA$30,25,FALSE)*J29)*$L29,2),IF($I29=5.5%,ROUNDUP(($K29*(1+$I29)-$K29)*$L29,2),""*$L29)),"") -> 0 | X29: =IFERROR(IF($I29="Multiple",ROUNDUP((VLOOKUP($A27,Produits_composes!$A$1:$AA$30,26,FALSE)-VLOOKUP($A27,Produits_composes!$A$1:$AA$30,26,FALSE)*J29)*$L29,2),IF($I29=20%,ROUNDUP(($K29*(1+$I29)-$K29)*$L29,2),""*$L29)),"") -> 0
A31: Ref. | B31: Coffrets à composer vous-même | G31: Prix HT | H31: Prix TTC | I31: TVA | J31: Remise | K31: Prix remisé HT | L31: Quantité | M31: TOTAL Ligne remisée HT | N31: Prix unitaire remisé TTC | O31: Total Ligne remisée TTC | P31: Poids Brut | Q31: Total Poids Ligne | R31: Total ligne HT | S31: Total ligne TTC | T31: Total ligne remisé TTC | U31: Remise HT | V31: Remise TTC | W31: TVA 5,5% | X31: TVA 20%
A33: CP-M | B33: =IF(ISNA(VLOOKUP($A33,Produits!$A$1:$O$357,2,FALSE)),"",VLOOKUP($A33,Produits!$A$1:$O$357,2,FALSE)) -> Coffret à composer vous-même "M" - Taille Medium (5 produits)⁽¹⁾ | F33: =IF(ISNA(VLOOKUP($A33,Produits!$A$1:$O$357,3,FALSE)),"",VLOOKUP($A33,Produits!$A$1:$O$357,3,FALSE)) -> 0 | G33: =IFERROR(IF(ISNA(VLOOKUP($A33,Produits!$A$1:$O$357,6,FALSE)),"",VLOOKUP($A33,Produits!$A$1:$O$357,6,FALSE)),"Attente") -> Attente | H33: =IF(ISNA(VLOOKUP($A33,Produits!$A$1:$O$357,7,FALSE)),"",VLOOKUP($A33,Produits!$A$1:$O$357,7,FALSE)) -> 36.5 | I33: =IF(ISNA(VLOOKUP($A33,Produits!$A$1:$O$357,10,FALSE)),"",VLOOKUP($A33,Produits!$A$1:$O$357,10,FALSE)) -> Multiple | J33: =IFERROR(VLOOKUP(A33,Produits!$A$1:$P$357,8,FALSE),"") -> 0.2 | K33: =IF(J33=0,G33,IFERROR(ROUNDDOWN(G33-G33*J33,2),"Cochez vos produits")) -> Cochez vos produits | M33: =IFERROR($K33*$L33,"") ->  | N33: =H33-H33*J33 -> 29.2 | O33: =T33 -> 0 | P33: =IF(ISNA(VLOOKUP($A33,Produits!$A$1:$O$357,15,FALSE)),"",VLOOKUP($A33,Produits!$A$1:$O$357,15,FALSE)) -> 1100 | Q33: =IFERROR($L33*$P33/1000,"") -> 0 | R33: =IFERROR(G33*L33,"") ->  | S33: =IFERROR(ROUNDUP(H33*L33,2),"") -> 0 | T33: =(H33-H33*J33)*L33 -> 0 | U33: =IFERROR($G33*$L33-ROUNDUP($K33,2)*$L33,"") ->  | V33: =IFERROR(ROUND($H33*$L33-$T33,2),"") -> 0 | W33: =IFERROR(AC42*L33,"") ->  | X33: =IFERROR(AD42*L33,"") ->  | Z33: =IF(L33>=1,1,0) -> 0 | AA33: =SUM(Z33:Z38) -> 0
E34: Cochez dessous: 3x produits* + 1x produit** + 1x produit***
A35: CP-L | B35: =IF(ISNA(VLOOKUP($A35,Produits!$A$1:$O$357,2,FALSE)),"",VLOOKUP($A35,Produits!$A$1:$O$357,2,FALSE)) -> Coffret à composer vous-même "L" - Grande Taille (7 produits)⁽¹⁾ | F35: =IF(ISNA(VLOOKUP($A35,Produits!$A$1:$O$357,3,FALSE)),"",VLOOKUP($A35,Produits!$A$1:$O$357,3,FALSE)) -> 0 | G35: =IFERROR(IF(ISNA(VLOOKUP($A35,Produits!$A$1:$O$357,6,FALSE)),"",VLOOKUP($A35,Produits!$A$1:$O$357,6,FALSE)),"Attente") -> Attente | H35: =IF(ISNA(VLOOKUP($A35,Produits!$A$1:$O$357,7,FALSE)),"",VLOOKUP($A35,Produits!$A$1:$O$357,7,FALSE)) -> 44 | I35: =IF(ISNA(VLOOKUP($A35,Produits!$A$1:$O$357,10,FALSE)),"",VLOOKUP($A35,Produits!$A$1:$O$357,10,FALSE)) -> Multiple | J35: =IFERROR(VLOOKUP(A35,Produits!$A$1:$P$357,8,FALSE),"") -> 0.2 | K35: =IF(J35=0,G35,IFERROR(ROUNDDOWN(G35-G35*J35,2),"Cochez vos produits")) -> Cochez vos produits | M35: =IFERROR($K35*$L35,"") ->  | N35: =H35-H35*J35 -> 35.2 | O35: =T35 -> 0 | P35: =IF(ISNA(VLOOKUP($A35,Produits!$A$1:$O$357,15,FALSE)),"",VLOOKUP($A35,Produits!$A$1:$O$357,15,FALSE)) -> 2000 | Q35: =IFERROR($L35*$P35/1000,"") -> 0 | R35: =IFERROR(G35*L35,"") ->  | S35: =IFERROR(ROUNDUP(H35*L35,2),"") -> 0 | T35: =(H35-H35*J35)*L35 -> 0 | U35: =IFERROR($G35*$L35-ROUNDUP($K35,2)*$L35,"") ->  | V35: =IFERROR(ROUND($H35*$L35-$T35,2),"") -> 0 | W35: =IFERROR(AC45*L35,"") ->  | X35: =IFERROR(AD45*L35,"") ->  | Z35: =IF(L35>=1,1,0) -> 0
E36: Cochez dessous: 4x produits* + 2x produits** + 1x produit***
A37: CP-XL | B37: =IF(ISNA(VLOOKUP($A37,Produits!$A$1:$O$357,2,FALSE)),"",VLOOKUP($A37,Produits!$A$1:$O$357,2,FALSE)) -> Coffret à composer vous-même "XL" - Très Grande Taille (10 produits)⁽¹⁾ | F37: =IF(ISNA(VLOOKUP($A37,Produits!$A$1:$O$357,3,FALSE)),"",VLOOKUP($A37,Produits!$A$1:$O$357,3,FALSE)) -> 0 | G37: =IFERROR(IF(ISNA(VLOOKUP($A37,Produits!$A$1:$O$357,6,FALSE)),"",VLOOKUP($A37,Produits!$A$1:$O$357,6,FALSE)),"Attente") -> Attente | H37: =IF(ISNA(VLOOKUP($A37,Produits!$A$1:$O$357,7,FALSE)),"",VLOOKUP($A37,Produits!$A$1:$O$357,7,FALSE)) -> 68 | I37: =IF(ISNA(VLOOKUP($A37,Produits!$A$1:$O$357,10,FALSE)),"",VLOOKUP($A37,Produits!$A$1:$O$357,10,FALSE)) -> Multiple | J37: =IFERROR(VLOOKUP(A37,Produits!$A$1:$P$357,8,FALSE),"") -> 0.2 | K37: =IF(J37=0,G37,IFERROR(ROUNDDOWN(G37-G37*J37,2),"Cochez vos produits")) -> Cochez vos produits | M37: =IFERROR($K37*$L37,"") ->  | N37: =H37-H37*J37 -> 54.4 | O37: =T37 -> 0 | P37: =IF(ISNA(VLOOKUP($A37,Produits!$A$1:$O$357,15,FALSE)),"",VLOOKUP($A37,Produits!$A$1:$O$357,15,FALSE)) -> 3100 | Q37: =IFERROR($L37*$P37/1000,"") -> 0 | R37: =IFERROR(G37*L37,"") ->  | S37: =IFERROR(ROUNDUP(H37*L37,2),"") -> 0 | T37: =(H37-H37*J37)*L37 -> 0 | U37: =IFERROR($G37*$L37-ROUNDUP($K37,2)*$L37,"") ->  | V37: =IFERROR(ROUND($H37*$L37-$T37,2),"") -> 0 | W37: =IFERROR(AC48*L37,"") ->  | X37: =IFERROR(AD48*L37,"") ->  | Z37: =IF(L37>=1,1,0) -> 0
E38: Cochez dessous: 5x produits* + 3x produits** + 2x produits***
A39: Cochez vos Produits: | B39: Sélectionnez vos Produits* | F39: Sélectionnez vos Produits** | J39: Sélectionnez vos Produits*** | N39: =IF(ISNA(VLOOKUP($A39,Produits!$A$1:$O$357,5,FALSE)),"",VLOOKUP($A39,Produits!$A$1:$O$357,5,FALSE)) ->  | O39: =IF(ISNA(VLOOKUP($A39,Produits!$A$1:$O$357,15,FALSE)),"",VLOOKUP($A39,Produits!$A$1:$O$357,15,FALSE)) ->  | P39: =IFERROR($L39*$O39/1000,"") ->  | S39: Nbre art. TVA 5,5% | T39: Nbre art. TVA 20% | V39: Nbre art. TVA 5,5% | W39: Nbre art. TVA 20% | X39: =IFERROR(IF($I39="Multiple",VLOOKUP($A39,Produits_composes!$A$1:$AA$30,26,FALSE)*$L39,IF($I39=20%,ROUNDUP(($K39*(1+$I39)-$K39)*$L39,2),""*$L39)),"") ->  | Y39: Nbre art. TVA 5,5% | Z39: Nbre art. TVA 20% | AA39: % TVA 5,5% | AB39: % TVA 20%
R40: FALSE | S40: =IF($R40=TRUE,1,0) -> 0 | U40: FALSE | V40: =IF($U40=TRUE,1,0) -> 0 | X40: FALSE | Y40: =IF($X40=TRUE,1,0) -> 0 | AA40: =IFERROR(SUM(S49,V49,Y49)/SUM(S49:Z49),"") ->  | AB40: =IFERROR(SUM(T49,W49,Z49)/SUM(S49:Z49),"") -> 
N41: =IF(ISNA(VLOOKUP($A41,Produits!$A$1:$O$357,5,FALSE)),"",VLOOKUP($A41,Produits!$A$1:$O$357,5,FALSE)) ->  | O41: =IF(ISNA(VLOOKUP($A41,Produits!$A$1:$O$357,15,FALSE)),"",VLOOKUP($A41,Produits!$A$1:$O$357,15,FALSE)) ->  | P41: =IFERROR($L41*$O41/1000,"") ->  | R41: FALSE | S41: =IF($R41=TRUE,1,0) -> 0 | U41: FALSE | V41: =IF($U41=TRUE,1,0) -> 0 | X41: FALSE | Z41: =IF($X41=TRUE,1,0) -> 0 | AA41: TTC 5,5% - M | AB41: TTC 20% - M | AC41: TVA 5,5% | AD41: TVA 20%
R42: FALSE | S42: =IF($R42=TRUE,1,0) -> 0 | U42: FALSE | W42: =IF($U42=TRUE,1,0) -> 0 | X42: FALSE | Z42: =IF($X42=TRUE,1,0) -> 0 | AA42: =IFERROR(N33*AA40,"") ->  | AB42: =IFERROR(N33*AB40,"") ->  | AC42: =AA42-AA43 ->  | AD42: =AB42-AB43 -> 
N43: =IF(ISNA(VLOOKUP($A43,Produits!$A$1:$O$357,5,FALSE)),"",VLOOKUP($A43,Produits!$A$1:$O$357,5,FALSE)) ->  | O43: =IF(ISNA(VLOOKUP($A43,Produits!$A$1:$O$357,15,FALSE)),"",VLOOKUP($A43,Produits!$A$1:$O$357,15,FALSE)) ->  | P43: =IFERROR($L43*$O43/1000,"") ->  | R43: FALSE | T43: =IF($R43=TRUE,1,0) -> 0 | U43: FALSE | V43: =IF($U43=TRUE,1,0) -> 0 | X43: FALSE | Y43: =IF($X43=TRUE,1,0) -> 0 | AA43: =IFERROR(ROUNDDOWN(AA42/1.055,2),"") ->  | AB43: =ROUNDDOWN(AB42/1.2,2) ->  | AC43: TVA Totale= | AD43: =AC42+AD42 -> 
R44: FALSE | S44: =IF($R44=TRUE,1,0) -> 0 | U44: FALSE | V44: =IF($U44=TRUE,1,0) -> 0 | X44: FALSE | Y44: =IF($X44=TRUE,1,0) -> 0 | AA44: TTC 5,5% - L | AB44: TTC 20% - L | AC44: TVA 5,5% | AD44: TVA 20%
N45: =IF(ISNA(VLOOKUP($A45,Produits!$A$1:$O$357,5,FALSE)),"",VLOOKUP($A45,Produits!$A$1:$O$357,5,FALSE)) ->  | O45: =IF(ISNA(VLOOKUP($A45,Produits!$A$1:$O$357,15,FALSE)),"",VLOOKUP($A45,Produits!$A$1:$O$357,15,FALSE)) ->  | P45: =IFERROR($L45*$O45/1000,"") ->  | R45: FALSE | S45: =IF($R45=TRUE,1,0) -> 0 | U45: FALSE | V45: =IF($U45=TRUE,1,0) -> 0 | AA45: =IFERROR(N35*$AA$40,"") ->  | AB45: =IFERROR(N35*$AB$40,"") ->  | AC45: =AA45-AA46 ->  | AD45: =AB45-AB46 -> 
R46: FALSE | S46: =IF($R46=TRUE,1,0) -> 0 | U46: FALSE | W46: =IF($U46=TRUE,1,0) -> 0 | AA46: =IFERROR(ROUNDDOWN(AA45/1.055,2),"") ->  | AB46: =ROUNDDOWN(AB45/1.2,2) ->  | AC46: TVA Totale= | AD46: =AC45+AD45 -> 
R47: FALSE | T47: =IF($R47=TRUE,1,0) -> 0 | U47: FALSE | W47: =IF($U47=TRUE,1,0) -> 0 | AA47: TTC 5,5% - XL | AB47: TTC 20% - XL | AC47: TVA 5,5% | AD47: TVA 20%
B48: ="= "& SUM(S40:T48)&" "&"produits * sélectionnés" -> = 0 produits * sélectionnés | F48: ="= "& SUM(V40:W48)&" "&"produits ** sélectionnés" -> = 0 produits ** sélectionnés | J48: ="= "& SUM(Y40:Z44)&" "&"produits *** sélectionnés" -> = 0 produits *** sélectionnés | R48: FALSE | T48: =IF($R48=TRUE,1,0) -> 0 | U48: FALSE | W48: =IF($U48=TRUE,1,0) -> 0 | AA48: =IFERROR(N37*$AA$40,"") ->  | AB48: =IFERROR(N37*$AB$40,"") ->  | AC48: =AA48-AA49 ->  | AD48: =AB48-AB49 -> 
A49: ⁽¹⁾ -1 produit de cat. * si Foie gras de canard entier sélectionné dans la catégorie de produits *** | S49: =SUM(S40:S48) -> 0 | T49: =SUM(T40:T48) -> 0 | V49: =SUM(V40:V48) -> 0 | W49: =SUM(W40:W48) -> 0 | Y49: =SUM(Y40:Y48) -> 0 | Z49: =SUM(Z40:Z48) -> 0 | AA49: =IFERROR(ROUNDDOWN(AA48/1.055,2),"") ->  | AB49: =ROUNDDOWN(AB48/1.2,2) ->  | AC49: TVA Totale= | AD49: =AC48+AD48 -> 
I50: Etiquettes personnalisés au logo de votre CE ou entreprise sur nos produits pour 1€ ttc de plus ? | M50: Non
A51: Notez ici les remarques à prendre en compte pour la commande:
A52: Délai impératif ? Envoi décalé ? Plusieurs destinataires ? Digicode ?... | I52: Sous-total HT: | M52: =SUM(R15:R38) -> 0 | O52: Vérifier que tous les champs de coordonnées en haut de page soient correctement remplis avant de cliquer sur "Envoyer".
I53: Sous-total TTC: | M53: =SUM(S15:S38) -> 0
I54: Votre remise € (HT) | M54: =SUM(U15:U38) -> 0
I55: Votre remise € (TTC) | M55: =SUM(V15:V38) -> 0
I56: Sous-total remisé € (HT) | M56: =SUM(M15:M38) -> 0
A57: Modes de paiements acceptés: | D57: POIDS TOTAL DE LA COMMANDE | I57: Sous-total remisé € (TTC) | M57: =SUM(T15:T38) -> 0
A58: Chèque, CB, Paypal, Virement, Espèces | D58: =MROUND(IF(SUM(Q14:Q49)<=10,SUM(Q14:Q49)*1.1,IF(SUM(Q14:Q49)>=10.01,SUM(Q14:Q49)*1.065)),0.05) -> 0 | I58: (1) Frais de cond. et de livraisons € (HT): | M58: =VLOOKUP(M56,Paramètres!G3:K50,3,TRUE) -> 0
I59: € (TTC) | M59: =VLOOKUP(M56,Paramètres!G3:K50,4,TRUE) -> 0
D60: FRAIS DE CONDITIONNEMENT ET DE LIVRAISON: | I60: Total € (HT) | M60: =SUM(M56,M58,IF(M50="Oui",0.83,0)) -> 0
D61: =VLOOKUP(M56,Paramètres!G3:K50,3,TRUE) -> 0 | F61: =IFERROR(VLOOKUP(D58,Paramètres!G3:K50,5,TRUE),"") -> 0 | I61: Total à régler € (TTC) | M61: =SUM(M57,M59,IF(M50="Oui",1,0)) -> 0
K63: dont TVA à 5,5%: | M63: =SUM(W15:W38) -> 0
K64: dont TVA à 20%: | M64: =IFERROR(SUM(X15:X38,IF(M50="Oui",0.17,0))+(M59-M58),SUM(X15:X38,IF(M50="Oui",0.17,0))) -> 0
A68: SARL au capital de 7 622,45 € - RCS Marmande 402 145 437 - SIRET 402 145 437 00016 - TVA Intracom. FR 84 40 214 54 37 Pas d'escompte pour paiement anticipé - Indemnité forfaitaire de 40€ pour frais de recouvrement en cas de retard de paiement

Sheet Tarifs Pro MDP (hidden)
C1: Tarifs Pro - Maison du Pruneau
C4: Entreprise: | D4: =Coordonnées_client!$C$2 -> 0 | G4: Tél.: | H4: =Coordonnées_client!$I$2 -> 0
C5: Adresse: | D5: =Coordonnées_client!$F$2 -> 0
C7: CP: | D7: =Coordonnées_client!$G$2 -> 0 | G7: Ville: | H7: =Coordonnées_client!$H$2 -> 0
A8: «Braunès» 47320 Lafitte-sur-Lot 05 53 84 04 17 • mdpruneau.vpc@orange.fr www.maisondupruneau.com | C8: Nom: | D8: =Coordonnées_client!$K$2 -> 0 | G8: Prénom: | H8: =Coordonnées_client!$L$2 -> 0
C9: Ligne directe: | D9: =Coordonnées_client!$N$2 -> 0 | G9: Mail: | H9: =Coordonnées_client!$O$2 -> 0
C10: Conditions de règlement: | E10: =Coordonnées_client!$D$4 -> Comptant (1ère commande) puis 30j net (commandes suivantes)
A12: Réf. | B12: Désignation | C12: Contenance | D12: Colisage | E12: Emballage | F12: Prix HT | G12: Prix TTC conseillé | H12: TVA | I12: Taux de remise | J12: Prix remisé HT | K12: Code EAN | L12: #
A13: 1A | B13: =VLOOKUP($A13,Produits!$A$1:$P$357,2,FALSE) -> Pruneaux d'Agen BIO | C13: =VLOOKUP($A13,Produits!$A$1:$P$357,3,FALSE) -> 500g | D13: =VLOOKUP($A13,Produits!$A$1:$P$357,5,FALSE) -> 25 | E13: =VLOOKUP($A13,Produits!$A$1:$P$357,4,FALSE) -> Sachet | F13: =VLOOKUP($A13,Produits!$A$1:$P$357,6,FALSE) -> 5.21327 | G13: =VLOOKUP($A13,Produits!$A$1:$P$357,7,FALSE) -> 5.5 | H13: =VLOOKUP($A13,Produits!$A$1:$P$357,10,FALSE) -> 0.055 | I13: =VLOOKUP($A13,Produits!$A$1:$P$357,8,FALSE) -> 0.2 | J13: =VLOOKUP($A13,Produits!$A$1:$P$357,9,FALSE) -> 4.18 | K13: =IF(ISNA(VLOOKUP($A13,Produits!$A$1:$O$357,14,FALSE)),"",VLOOKUP($A13,Produits!$A$1:$O$357,14,FALSE)) -> 3760219062868 | L13: 1
A14: 1B | B14: =VLOOKUP($A14,Produits!$A$1:$P$357,2,FALSE) -> Pruneaux d'Agen BIO | C14: =VLOOKUP($A14,Produits!$A$1:$P$357,3,FALSE) -> 1kg | D14: =VLOOKUP($A14,Produits!$A$1:$P$357,5,FALSE) -> 14 | E14: =VLOOKUP($A14,Produits!$A$1:$P$357,4,FALSE) -> Sachet | F14: =VLOOKUP($A14,Produits!$A$1:$P$357,6,FALSE) -> 9.47867 | G14: =VLOOKUP($A14,Produits!$A$1:$P$357,7,FALSE) -> 10 | H14: =VLOOKUP($A14,Produits!$A$1:$P$357,10,FALSE) -> 0.055 | I14: =VLOOKUP($A14,Produits!$A$1:$P$357,8,FALSE) -> 0.2 | J14: =VLOOKUP($A14,Produits!$A$1:$P$357,9,FALSE) -> 7.59 | K14: =IF(ISNA(VLOOKUP($A14,Produits!$A$1:$O$357,14,FALSE)),"",VLOOKUP($A14,Produits!$A$1:$O$357,14,FALSE)) -> 3760219062851 | L14: 2
A15: 1C | B15: =VLOOKUP($A15,Produits!$A$1:$P$357,2,FALSE) -> Pruneaux d’Agen BIO dénoyautés | C15: =VLOOKUP($A15,Produits!$A$1:$P$357,3,FALSE) -> 500g | D15: =VLOOKUP($A15,Produits!$A$1:$P$357,5,FALSE) -> 25 | E15: =VLOOKUP($A15,Produits!$A$1:$P$357,4,FALSE) -> Sachet | F15: =VLOOKUP($A15,Produits!$A$1:$P$357,6,FALSE) -> 7.29857 | G15: =VLOOKUP($A15,Produits!$A$1:$P$357,7,FALSE) -> 7.7 | H15: =VLOOKUP($A15,Produits!$A$1:$P$357,10,FALSE) -> 0.055 | I15: =VLOOKUP($A15,Produits!$A$1:$P$357,8,FALSE) -> 0.2 | J15: =VLOOKUP($A15,Produits!$A$1:$P$357,9,FALSE) -> 5.84 | K15: =IF(ISNA(VLOOKUP($A15,Produits!$A$1:$O$357,14,FALSE)),"",VLOOKUP($A15,Produits!$A$1:$O$357,14,FALSE)) -> 3760219062844 | L15: 3
A16: 1D | B16: =VLOOKUP($A16,Produits!$A$1:$P$357,2,FALSE) -> Pruneaux d’Agen BIO dénoyautés | C16: =VLOOKUP($A16,Produits!$A$1:$P$357,3,FALSE) -> 1kg | D16: =VLOOKUP($A16,Produits!$A$1:$P$357,5,FALSE) -> 14 | E16: =VLOOKUP($A16,Produits!$A$1:$P$357,4,FALSE) -> Sachet | F16: =VLOOKUP($A16,Produits!$A$1:$P$357,6,FALSE) -> 13.27014 | G16: =VLOOKUP($A16,Produits!$A$1:$P$357,7,FALSE) -> 14 | H16: =VLOOKUP($A16,Produits!$A$1:$P$357,10,FALSE) -> 0.055 | I16: =VLOOKUP($A16,Produits!$A$1:$P$357,8,FALSE) -> 0.2 | J16: =VLOOKUP($A16,Produits!$A$1:$P$357,9,FALSE) -> 10.62 | K16: =IF(ISNA(VLOOKUP($A16,Produits!$A$1:$O$357,14,FALSE)),"",VLOOKUP($A16,Produits!$A$1:$O$357,14,FALSE)) -> 3760219062837 | L16: 4
A17: 2A | B17: =VLOOKUP($A17,Produits!$A$1:$P$357,2,FALSE) -> Crème de pruneaux BIO | C17: =VLOOKUP($A17,Produits!$A$1:$P$357,3,FALSE) -> 210g | D17: =VLOOKUP($A17,Produits!$A$1:$P$357,5,FALSE) -> 24 | E17: =VLOOKUP($A17,Produits!$A$1:$P$357,4,FALSE) -> Bocal | F17: =VLOOKUP($A17,Produits!$A$1:$P$357,6,FALSE) -> 3.98104 | G17: =VLOOKUP($A17,Produits!$A$1:$P$357,7,FALSE) -> 4.2 | H17: =VLOOKUP($A17,Produits!$A$1:$P$357,10,FALSE) -> 0.055 | I17: =VLOOKUP($A17,Produits!$A$1:$P$357,8,FALSE) -> 0.2 | J17: =VLOOKUP($A17,Produits!$A$1:$P$357,9,FALSE) -> 3.19 | K17: =IF(ISNA(VLOOKUP($A17,Produits!$A$1:$O$357,14,FALSE)),"",VLOOKUP($A17,Produits!$A$1:$O$357,14,FALSE)) -> 3760219062820 | L17: 5
A18: 3A | B18: =VLOOKUP($A18,Produits!$A$1:$P$357,2,FALSE) -> Jus de pruneaux BIO | C18: =VLOOKUP($A18,Produits!$A$1:$P$357,3,FALSE) -> 25cl | D18: =VLOOKUP($A18,Produits!$A$1:$P$357,5,FALSE) -> 12 | E18: =VLOOKUP($A18,Produits!$A$1:$P$357,4,FALSE) -> Bouteille | F18: =VLOOKUP($A18,Produits!$A$1:$P$357,6,FALSE) -> 2.36966 | G18: =VLOOKUP($A18,Produits!$A$1:$P$357,7,FALSE) -> 2.5 | H18: =VLOOKUP($A18,Produits!$A$1:$P$357,10,FALSE) -> 0.055 | I18: =VLOOKUP($A18,Produits!$A$1:$P$357,8,FALSE) -> 0.2 | J18: =VLOOKUP($A18,Produits!$A$1:$P$357,9,FALSE) -> 1.9 | K18: =IF(ISNA(VLOOKUP($A18,Produits!$A$1:$O$357,14,FALSE)),"",VLOOKUP($A18,Produits!$A$1:$O$357,14,FALSE)) -> 3760219062813 | L18: 6
A19: 3B | B19: =VLOOKUP($A19,Produits!$A$1:$P$357,2,FALSE) -> Jus de pruneaux BIO | C19: =VLOOKUP($A19,Produits!$A$1:$P$357,3,FALSE) -> 1L | D19: =VLOOKUP($A19,Produits!$A$1:$P$357,5,FALSE) -> 6 | E19: =VLOOKUP($A19,Produits!$A$1:$P$357,4,FALSE) -> Bouteille | F19: =VLOOKUP($A19,Produits!$A$1:$P$357,6,FALSE) -> 5.59241 | G19: =VLOOKUP($A19,Produits!$A$1:$P$357,7,FALSE) -> 5.9 | H19: =VLOOKUP($A19,Produits!$A$1:$P$357,10,FALSE) -> 0.055 | I19: =VLOOKUP($A19,Produits!$A$1:$P$357,8,FALSE) -> 0.2 | J19: =VLOOKUP($A19,Produits!$A$1:$P$357,9,FALSE) -> 4.48 | K19: =IF(ISNA(VLOOKUP($A19,Produits!$A$1:$O$357,14,FALSE)),"",VLOOKUP($A19,Produits!$A$1:$O$357,14,FALSE)) -> 3760219062899 | L19: 7
A20: 4A | B20: =VLOOKUP($A20,Produits!$A$1:$P$357,2,FALSE) -> Jus de fruit BIO - Pomme / Abricot | C20: =VLOOKUP($A20,Produits!$A$1:$P$357,3,FALSE) -> 25cl | D20: =VLOOKUP($A20,Produits!$A$1:$P$357,5,FALSE) -> 12 | E20: =VLOOKUP($A20,Produits!$A$1:$P$357,4,FALSE) -> Bouteille | F20: =VLOOKUP($A20,Produits!$A$1:$P$357,6,FALSE) -> 2.36966 | G20: =VLOOKUP($A20,Produits!$A$1:$P$357,7,FALSE) -> 2.5 | H20: =VLOOKUP($A20,Produits!$A$1:$P$357,10,FALSE) -> 0.055 | I20: =VLOOKUP($A20,Produits!$A$1:$P$357,8,FALSE) -> 0.05 | J20: =VLOOKUP($A20,Produits!$A$1:$P$357,9,FALSE) -> 2.26 | K20: =IF(ISNA(VLOOKUP($A20,Produits!$A$1:$O$357,14,FALSE)),"",VLOOKUP($A20,Produits!$A$1:$O$357,14,FALSE)) -> 3760219062806 | L20: 8
A21: 4B | B21: =VLOOKUP($A21,Produits!$A$1:$P$357,2,FALSE) -> Jus de fruit BIO - Pomme / Cerise | C21: =VLOOKUP($A21,Produits!$A$1:$P$357,3,FALSE) -> 25cl | D21: =VLOOKUP($A21,Produits!$A$1:$P$357,5,FALSE) -> 12 | E21: =VLOOKUP($A21,Produits!$A$1:$P$357,4,FALSE) -> Bouteille | F21: =VLOOKUP($A21,Produits!$A$1:$P$357,6,FALSE) -> 2.36966 | G21: =VLOOKUP($A21,Produits!$A$1:$P$357,7,FALSE) -> 2.5 | H21: =VLOOKUP($A21,Produits!$A$1:$P$357,10,FALSE) -> 0.055 | I21: =VLOOKUP($A21,Produits!$A$1:$P$357,8,FALSE) -> 0.05 | J21: =VLOOKUP($A21,Produits!$A$1:$P$357,9,FALSE) -> 2.26 | K21: =IF(ISNA(VLOOKUP($A21,Produits!$A$1:$O$357,14,FALSE)),"",VLOOKUP($A21,Produits!$A$1:$O$357,14,FALSE)) -> 3760219062790 | L21: 9
A22: 4C | B22: =VLOOKUP($A22,Produits!$A$1:$P$357,2,FALSE) -> Jus de fruit BIO - Pomme / Poire | C22: =VLOOKUP($A22,Produits!$A$1:$P$357,3,FALSE) -> 25cl | D22: =VLOOKUP($A22,Produits!$A$1:$P$357,5,FALSE) -> 12 | E22: =VLOOKUP($A22,Produits!$A$1:$P$357,4,FALSE) -> Bouteille | F22: =VLOOKUP($A22,Produits!$A$1:$P$357,6,FALSE) -> 2.36966 | G22: =VLOOKUP($A22,Produits!$A$1:$P$357,7,FALSE) -> 2.5 | H22: =VLOOKUP($A22,Produits!$A$1:$P$357,10,FALSE) -> 0.055 | I22: =VLOOKUP($A22,Produits!$A$1:$P$357,8,FALSE) -> 0.05 | J22: =VLOOKUP($A22,Produits!$A$1:$P$357,9,FALSE) -> 2.26 | K22: =IF(ISNA(VLOOKUP($A22,Produits!$A$1:$O$357,14,FALSE)),"",VLOOKUP($A22,Produits!$A$1:$O$357,14,FALSE)) -> 3760219062783 | L22: 10
A23: 4D | B23: =VLOOKUP($A23,Produits!$A$1:$P$357,2,FALSE) -> Jus de fruit BIO - Pomme / Prunes | C23: =VLOOKUP($A23,Produits!$A$1:$P$357,3,FALSE) -> 25cl | D23: =VLOOKUP($A23,Produits!$A$1:$P$357,5,FALSE) -> 12 | E23: =VLOOKUP($A23,Produits!$A$1:$P$357,4,FALSE) -> Bouteille | F23: =VLOOKUP($A23,Produits!$A$1:$P$357,6,FALSE) -> 2.36966 | G23: =VLOOKUP($A23,Produits!$A$1:$P$357,7,FALSE) -> 2.5 | H23: =VLOOKUP($A23,Produits!$A$1:$P$357,10,FALSE) -> 0.055 | I23: =VLOOKUP($A23,Produits!$A$1:$P$357,8,FALSE) -> 0.05 | J23: =VLOOKUP($A23,Produits!$A$1:$P$357,9,FALSE) -> 2.26 | K23: =IF(ISNA(VLOOKUP($A23,Produits!$A$1:$O$357,14,FALSE)),"",VLOOKUP($A23,Produits!$A$1:$O$357,14,FALSE)) -> 3760219062776 | L23: 11
A24: 5A | B24: =VLOOKUP($A24,Produits!$A$1:$P$357,2,FALSE) -> Farine de sarrasin BIO | C24: =VLOOKUP($A24,Produits!$A$1:$P$357,3,FALSE) -> 1kg | D24: =VLOOKUP($A24,Produits!$A$1:$P$357,5,FALSE) -> 6 | E24: =VLOOKUP($A24,Produits!$A$1:$P$357,4,FALSE) -> Sachet | F24: =VLOOKUP($A24,Produits!$A$1:$P$357,6,FALSE) -> 3.79146 | G24: =VLOOKUP($A24,Produits!$A$1:$P$357,7,FALSE) -> 4 | H24: =VLOOKUP($A24,Produits!$A$1:$P$357,10,FALSE) -> 0.055 | I24: =VLOOKUP($A24,Produits!$A$1:$P$357,8,FALSE) -> 0.05 | J24: =VLOOKUP($A24,Produits!$A$1:$P$357,9,FALSE) -> 3.61 | K24: =IF(ISNA(VLOOKUP($A24,Produits!$A$1:$O$357,14,FALSE)),"",VLOOKUP($A24,Produits!$A$1:$O$357,14,FALSE)) -> 3760219062769 | L24: 12
A25: 5B | B25: =VLOOKUP($A25,Produits!$A$1:$P$357,2,FALSE) -> Farine de petit épeautre BIO | C25: =VLOOKUP($A25,Produits!$A$1:$P$357,3,FALSE) -> 1kg | D25: =VLOOKUP($A25,Produits!$A$1:$P$357,5,FALSE) -> 6 | E25: =VLOOKUP($A25,Produits!$A$1:$P$357,4,FALSE) -> Sachet | F25: =VLOOKUP($A25,Produits!$A$1:$P$357,6,FALSE) -> 4.73933 | G25: =VLOOKUP($A25,Produits!$A$1:$P$357,7,FALSE) -> 5 | H25: =VLOOKUP($A25,Produits!$A$1:$P$357,10,FALSE) -> 0.055 | I25: =VLOOKUP($A25,Produits!$A$1:$P$357,8,FALSE) -> 0.05 | J25: =VLOOKUP($A25,Produits!$A$1:$P$357,9,FALSE) -> 4.51 | K25: =IF(ISNA(VLOOKUP($A25,Produits!$A$1:$O$357,14,FALSE)),"",VLOOKUP($A25,Produits!$A$1:$O$357,14,FALSE)) -> 3760219062752 | L25: 13
A26: 5C | B26: =VLOOKUP($A26,Produits!$A$1:$P$357,2,FALSE) -> Farine T80 BIO | C26: =VLOOKUP($A26,Produits!$A$1:$P$357,3,FALSE) -> 1kg | D26: =VLOOKUP($A26,Produits!$A$1:$P$357,5,FALSE) -> 6 | E26: =VLOOKUP($A26,Produits!$A$1:$P$357,4,FALSE) -> Sachet | F26: =VLOOKUP($A26,Produits!$A$1:$P$357,6,FALSE) -> 2.18009 | G26: =VLOOKUP($A26,Produits!$A$1:$P$357,7,FALSE) -> 2.3 | H26: =VLOOKUP($A26,Produits!$A$1:$P$357,10,FALSE) -> 0.055 | I26: =VLOOKUP($A26,Produits!$A$1:$P$357,8,FALSE) -> 0.05 | J26: =VLOOKUP($A26,Produits!$A$1:$P$357,9,FALSE) -> 2.08 | K26: =IF(ISNA(VLOOKUP($A26,Produits!$A$1:$O$357,14,FALSE)),"",VLOOKUP($A26,Produits!$A$1:$O$357,14,FALSE)) -> 3760219062745 | L26: 14
A27: 5D | B27: =VLOOKUP($A27,Produits!$A$1:$P$357,2,FALSE) -> Huile vierge de tournesol BIO | C27: =VLOOKUP($A27,Produits!$A$1:$P$357,3,FALSE) -> 1L | D27: =VLOOKUP($A27,Produits!$A$1:$P$357,5,FALSE) -> 6 | E27: =VLOOKUP($A27,Produits!$A$1:$P$357,4,FALSE) -> Bouteille | F27: =VLOOKUP($A27,Produits!$A$1:$P$357,6,FALSE) -> 4.07582 | G27: =VLOOKUP($A27,Produits!$A$1:$P$357,7,FALSE) -> 4.3 | H27: =VLOOKUP($A27,Produits!$A$1:$P$357,10,FALSE) -> 0.055 | I27: =VLOOKUP($A27,Produits!$A$1:$P$357,8,FALSE) -> 0.05 | J27: =VLOOKUP($A27,Produits!$A$1:$P$357,9,FALSE) -> 3.88 | K27: =IF(ISNA(VLOOKUP($A27,Produits!$A$1:$O$357,14,FALSE)),"",VLOOKUP($A27,Produits!$A$1:$O$357,14,FALSE)) -> 3760219062738 | L27: 15
A28: 6A | B28: =VLOOKUP($A28,Produits!$A$1:$P$357,2,FALSE) -> Pruneaux d’Agen (33/44) - Boîte Or | C28: =VLOOKUP($A28,Produits!$A$1:$P$357,3,FALSE) -> 1kg | D28: =VLOOKUP($A28,Produits!$A$1:$P$357,5,FALSE) -> 6 | E28: =VLOOKUP($A28,Produits!$A$1:$P$357,4,FALSE) -> Boite métal | F28: =VLOOKUP($A28,Produits!$A$1:$P$357,6,FALSE) -> 9.9526 | G28: =VLOOKUP($A28,Produits!$A$1:$P$357,7,FALSE) -> 10.5 | H28: =VLOOKUP($A28,Produits!$A$1:$P$357,10,FALSE) -> 0.055 | I28: =VLOOKUP($A28,Produits!$A$1:$P$357,8,FALSE) -> 0.2 | J28: =VLOOKUP($A28,Produits!$A$1:$P$357,9,FALSE) -> 7.97 | K28: =IF(ISNA(VLOOKUP($A28,Produits!$A$1:$O$357,14,FALSE)),"",VLOOKUP($A28,Produits!$A$1:$O$357,14,FALSE)) -> 3760219062721 | L28: 16
A29: 6B | B29: =VLOOKUP($A29,Produits!$A$1:$P$357,2,FALSE) -> Pruneaux d’Agen (30/35) - Boîte Or | C29: =VLOOKUP($A29,Produits!$A$1:$P$357,3,FALSE) -> 1kg | D29: =VLOOKUP($A29,Produits!$A$1:$P$357,5,FALSE) -> 6 | E29: =VLOOKUP($A29,Produits!$A$1:$P$357,4,FALSE) -> Boite métal | F29: =VLOOKUP($A29,Produits!$A$1:$P$357,6,FALSE) -> 11.3744 | G29: =VLOOKUP($A29,Produits!$A$1:$P$357,7,FALSE) -> 12 | H29: =VLOOKUP($A29,Produits!$A$1:$P$357,10,FALSE) -> 0.055 | I29: =VLOOKUP($A29,Produits!$A$1:$P$357,8,FALSE) -> 0.2 | J29: =VLOOKUP($A29,Produits!$A$1:$P$357,9,FALSE) -> 9.1 | K29: =IF(ISNA(VLOOKUP($A29,Produits!$A$1:$O$357,14,FALSE)),"",VLOOKUP($A29,Produits!$A$1:$O$357,14,FALSE)) -> 3760219062714 | L29: 17
A30: 6C | B30: =VLOOKUP($A30,Produits!$A$1:$P$357,2,FALSE) -> Pruneaux d’Agen dénoyautés (44/55) - Boîte Or | C30: =VLOOKUP($A30,Produits!$A$1:$P$357,3,FALSE) -> 1kg | D30: =VLOOKUP($A30,Produits!$A$1:$P$357,5,FALSE) -> 6 | E30: =VLOOKUP($A30,Produits!$A$1:$P$357,4,FALSE) -> Boite métal | F30: =VLOOKUP($A30,Produits!$A$1:$P$357,6,FALSE) -> 12.32227 | G30: =VLOOKUP($A30,Produits!$A$1:$P$357,7,FALSE) -> 13 | H30: =VLOOKUP($A30,Produits!$A$1:$P$357,10,FALSE) -> 0.055 | I30: =VLOOKUP($A30,Produits!$A$1:$P$357,8,FALSE) -> 0.2 | J30: =VLOOKUP($A30,Produits!$A$1:$P$357,9,FALSE) -> 9.86 | K30: =IF(ISNA(VLOOKUP($A30,Produits!$A$1:$O$357,14,FALSE)),"",VLOOKUP($A30,Produits!$A$1:$O$357,14,FALSE)) -> 3760219062707 | L30: 18
A31: 7A | B31: =VLOOKUP($A31,Produits!$A$1:$P$357,2,FALSE) -> Pruneaux d’Agen Mi-Cuit | C31: =VLOOKUP($A31,Produits!$A$1:$P$357,3,FALSE) -> 500g | D31: =VLOOKUP($A31,Produits!$A$1:$P$357,5,FALSE) -> 25 | E31: =VLOOKUP($A31,Produits!$A$1:$P$357,4,FALSE) -> Sachet | F31: =VLOOKUP($A31,Produits!$A$1:$P$357,6,FALSE) -> 4.07582 | G31: =VLOOKUP($A31,Produits!$A$1:$P$357,7,FALSE) -> 4.3 | H31: =VLOOKUP($A31,Produits!$A$1:$P$357,10,FALSE) -> 0.055 | I31: =VLOOKUP($A31,Produits!$A$1:$P$357,8,FALSE) -> 0.2 | J31: =VLOOKUP($A31,Produits!$A$1:$P$357,9,FALSE) -> 3.27 | K31: =IF(ISNA(VLOOKUP($A31,Produits!$A$1:$O$357,14,FALSE)),"",VLOOKUP($A31,Produits!$A$1:$O$357,14,FALSE)) -> 3760219062691 | L31: 19
A32: 7B | B32: =VLOOKUP($A32,Produits!$A$1:$P$357,2,FALSE) -> Pruneaux d’Agen Mi-Cuit | C32: =VLOOKUP($A32,Produits!$A$1:$P$357,3,FALSE) -> 1kg | D32: =VLOOKUP($A32,Produits!$A$1:$P$357,5,FALSE) -> 14 | E32: =VLOOKUP($A32,Produits!$A$1:$P$357,4,FALSE) -> Sachet | F32: =VLOOKUP($A32,Produits!$A$1:$P$357,6,FALSE) -> 6.87203 | G32: =VLOOKUP($A32,Produits!$A$1:$P$357,7,FALSE) -> 7.25 | H32: =VLOOKUP($A32,Produits!$A$1:$P$357,10,FALSE) -> 0.055 | I32: =VLOOKUP($A32,Produits!$A$1:$P$357,8,FALSE) -> 0.2 | J32: =VLOOKUP($A32,Produits!$A$1:$P$357,9,FALSE) -> 5.5 | K32: =IF(ISNA(VLOOKUP($A32,Produits!$A$1:$O$357,14,FALSE)),"",VLOOKUP($A32,Produits!$A$1:$O$357,14,FALSE)) -> 3760219062684 | L32: 20
A33: 8A | B33: =VLOOKUP($A33,Produits!$A$1:$P$357,2,FALSE) -> Pruneaux d’Agen (cal. 33/44) | C33: =VLOOKUP($A33,Produits!$A$1:$P$357,3,FALSE) -> 250g | D33: =VLOOKUP($A33,Produits!$A$1:$P$357,5,FALSE) -> 50 | E33: =VLOOKUP($A33,Produits!$A$1:$P$357,4,FALSE) -> Sachet | F33: =VLOOKUP($A33,Produits!$A$1:$P$357,6,FALSE) -> 3.03317 | G33: =VLOOKUP($A33,Produits!$A$1:$P$357,7,FALSE) -> 3.2 | H33: =VLOOKUP($A33,Produits!$A$1:$P$357,10,FALSE) -> 0.055 | I33: =VLOOKUP($A33,Produits!$A$1:$P$357,8,FALSE) -> 0.2 | J33: =VLOOKUP($A33,Produits!$A$1:$P$357,9,FALSE) -> 2.43 | K33: =IF(ISNA(VLOOKUP($A33,Produits!$A$1:$O$357,14,FALSE)),"",VLOOKUP($A33,Produits!$A$1:$O$357,14,FALSE)) -> 3760219062677 | L33: 21
A34: 8B | B34: =VLOOKUP($A34,Produits!$A$1:$P$357,2,FALSE) -> Pruneaux d’Agen (cal. 33/44) | C34: =VLOOKUP($A34,Produits!$A$1:$P$357,3,FALSE) -> 500g | D34: =VLOOKUP($A34,Produits!$A$1:$P$357,5,FALSE) -> 25 | E34: =VLOOKUP($A34,Produits!$A$1:$P$357,4,FALSE) -> Sachet | F34: =VLOOKUP($A34,Produits!$A$1:$P$357,6,FALSE) -> 3.60189 | G34: =VLOOKUP($A34,Produits!$A$1:$P$357,7,FALSE) -> 3.8 | H34: =VLOOKUP($A34,Produits!$A$1:$P$357,10,FALSE) -> 0.055 | I34: =VLOOKUP($A34,Produits!$A$1:$P$357,8,FALSE) -> 0.2 | J34: =VLOOKUP($A34,Produits!$A$1:$P$357,9,FALSE) -> 2.89 | K34: =IF(ISNA(VLOOKUP($A34,Produits!$A$1:$O$357,14,FALSE)),"",VLOOKUP($A34,Produits!$A$1:$O$357,14,FALSE)) -> 3760219062660 | L34: 22
A35: 8C | B35: =VLOOKUP($A35,Produits!$A$1:$P$357,2,FALSE) -> Pruneaux d’Agen (cal. 33/44) | C35: =VLOOKUP($A35,Produits!$A$1:$P$357,3,FALSE) -> 1kg | D35: =VLOOKUP($A35,Produits!$A$1:$P$357,5,FALSE) -> 14 | E35: =VLOOKUP($A35,Produits!$A$1:$P$357,4,FALSE) -> Sachet | F35: =VLOOKUP($A35,Produits!$A$1:$P$357,6,FALSE) -> 6.16113 | G35: =VLOOKUP($A35,Produits!$A$1:$P$357,7,FALSE) -> 6.5 | H35: =VLOOKUP($A35,Produits!$A$1:$P$357,10,FALSE) -> 0.055 | I35: =VLOOKUP($A35,Produits!$A$1:$P$357,8,FALSE) -> 0.2 | J35: =VLOOKUP($A35,Produits!$A$1:$P$357,9,FALSE) -> 4.93 | K35: =IF(ISNA(VLOOKUP($A35,Produits!$A$1:$O$357,14,FALSE)),"",VLOOKUP($A35,Produits!$A$1:$O$357,14,FALSE)) -> 3760219062653 | L35: 23
A36: 8D | B36: =VLOOKUP($A36,Produits!$A$1:$P$357,2,FALSE) -> Pruneaux d’Agen (cal. 30/35) | C36: =VLOOKUP($A36,Produits!$A$1:$P$357,3,FALSE) -> 500g | D36: =VLOOKUP($A36,Produits!$A$1:$P$357,5,FALSE) -> 25 | E36: =VLOOKUP($A36,Produits!$A$1:$P$357,4,FALSE) -> Sachet | F36: =VLOOKUP($A36,Produits!$A$1:$P$357,6,FALSE) -> 4.64454 | G36: =VLOOKUP($A36,Produits!$A$1:$P$357,7,FALSE) -> 4.9 | H36: =VLOOKUP($A36,Produits!$A$1:$P$357,10,FALSE) -> 0.055 | I36: =VLOOKUP($A36,Produits!$A$1:$P$357,8,FALSE) -> 0.2 | J36: =VLOOKUP($A36,Produits!$A$1:$P$357,9,FALSE) -> 3.72 | K36: =IF(ISNA(VLOOKUP($A36,Produits!$A$1:$O$357,14,FALSE)),"",VLOOKUP($A36,Produits!$A$1:$O$357,14,FALSE)) -> 3760219062646 | L36: 24
A37: 8E | B37: =VLOOKUP($A37,Produits!$A$1:$P$357,2,FALSE) -> Pruneaux d’Agen (cal. 30/35) | C37: =VLOOKUP($A37,Produits!$A$1:$P$357,3,FALSE) -> 1kg | D37: =VLOOKUP($A37,Produits!$A$1:$P$357,5,FALSE) -> 14 | E37: =VLOOKUP($A37,Produits!$A$1:$P$357,4,FALSE) -> Sachet | F37: =VLOOKUP($A37,Produits!$A$1:$P$357,6,FALSE) -> 7.67772 | G37: =VLOOKUP($A37,Produits!$A$1:$P$357,7,FALSE) -> 8.1 | H37: =VLOOKUP($A37,Produits!$A$1:$P$357,10,FALSE) -> 0.055 | I37: =VLOOKUP($A37,Produits!$A$1:$P$357,8,FALSE) -> 0.2 | J37: =VLOOKUP($A37,Produits!$A$1:$P$357,9,FALSE) -> 6.15 | K37: =IF(ISNA(VLOOKUP($A37,Produits!$A$1:$O$357,14,FALSE)),"",VLOOKUP($A37,Produits!$A$1:$O$357,14,FALSE)) -> 3760219062639 | L37: 25
A38: 8F | B38: =VLOOKUP($A38,Produits!$A$1:$P$357,2,FALSE) -> Pruneaux d’Agen (cal. 25/30) | C38: =VLOOKUP($A38,Produits!$A$1:$P$357,3,FALSE) -> 500g | D38: =VLOOKUP($A38,Produits!$A$1:$P$357,5,FALSE) -> 25 | E38: =VLOOKUP($A38,Produits!$A$1:$P$357,4,FALSE) -> Sachet | F38: =VLOOKUP($A38,Produits!$A$1:$P$357,6,FALSE) -> 4.83412 | G38: =VLOOKUP($A38,Produits!$A$1:$P$357,7,FALSE) -> 5.1 | H38: =VLOOKUP($A38,Produits!$A$1:$P$357,10,FALSE) -> 0.055 | I38: =VLOOKUP($A38,Produits!$A$1:$P$357,8,FALSE) -> 0.2 | J38: =VLOOKUP($A38,Produits!$A$1:$P$357,9,FALSE) -> 3.87 | K38: =IF(ISNA(VLOOKUP($A38,Produits!$A$1:$O$357,14,FALSE)),"",VLOOKUP($A38,Produits!$A$1:$O$357,14,FALSE)) -> 3760219062622 | L38: 26
A39: 8G | B39: =VLOOKUP($A39,Produits!$A$1:$P$357,2,FALSE) -> Pruneaux d’Agen (cal. 25/30) | C39: =VLOOKUP($A39,Produits!$A$1:$P$357,3,FALSE) -> 1kg | D39: =VLOOKUP($A39,Produits!$A$1:$P$357,5,FALSE) -> 14 | E39: =VLOOKUP($A39,Produits!$A$1:$P$357,4,FALSE) -> Sachet | F39: =VLOOKUP($A39,Produits!$A$1:$P$357,6,FALSE) -> 8.05 | G39: =VLOOKUP($A39,Produits!$A$1:$P$357,7,FALSE) -> 8.5 | H39: =VLOOKUP($A39,Produits!$A$1:$P$357,10,FALSE) -> 0.055 | I39: =VLOOKUP($A39,Produits!$A$1:$P$357,8,FALSE) -> 0.2 | J39: =VLOOKUP($A39,Produits!$A$1:$P$357,9,FALSE) -> 6.44 | K39: =IF(ISNA(VLOOKUP($A39,Produits!$A$1:$O$357,14,FALSE)),"",VLOOKUP($A39,Produits!$A$1:$O$357,14,FALSE)) -> 3760219062615 | L39: 27
A40: 8H | B40: =VLOOKUP($A40,Produits!$A$1:$P$357,2,FALSE) -> Pruneaux d’Agen (cal. 33/44) | C40: =VLOOKUP($A40,Produits!$A$1:$P$357,3,FALSE) -> 5kg (2x2,5kg) | D40: =VLOOKUP($A40,Produits!$A$1:$P$357,5,FALSE) -> 4 | E40: =VLOOKUP($A40,Produits!$A$1:$P$357,4,FALSE) -> Sachet | F40: =VLOOKUP($A40,Produits!$A$1:$P$357,6,FALSE) -> 26.91943 | G40: =VLOOKUP($A40,Produits!$A$1:$P$357,7,FALSE) -> 28.4 | H40: =VLOOKUP($A40,Produits!$A$1:$P$357,10,FALSE) -> 0.055 | I40: =VLOOKUP($A40,Produits!$A$1:$P$357,8,FALSE) -> 0.2 | J40: =VLOOKUP($A40,Produits!$A$1:$P$357,9,FALSE) -> 21.54 | K40: =IF(ISNA(VLOOKUP($A40,Produits!$A$1:$O$357,14,FALSE)),"",VLOOKUP($A40,Produits!$A$1:$O$357,14,FALSE)) -> 3760219062608 | L40: 28
A41: 8I | B41: =VLOOKUP($A41,Produits!$A$1:$P$357,2,FALSE) -> Pruneaux d’Agen (cal. 33/44) avec conservateur e200 | C41: =VLOOKUP($A41,Produits!$A$1:$P$357,3,FALSE) -> 14kg | D41: =VLOOKUP($A41,Produits!$A$1:$P$357,5,FALSE) -> 1 | E41: =VLOOKUP($A41,Produits!$A$1:$P$357,4,FALSE) -> Sachet | F41: =VLOOKUP($A41,Produits!$A$1:$P$357,6,FALSE) -> 74.88151 | G41: =VLOOKUP($A41,Produits!$A$1:$P$357,7,FALSE) -> 79 | H41: =VLOOKUP($A41,Produits!$A$1:$P$357,10,FALSE) -> 0.055 | I41: =VLOOKUP($A41,Produits!$A$1:$P$357,8,FALSE) -> 0.2 | J41: =VLOOKUP($A41,Produits!$A$1:$P$357,9,FALSE) -> 59.91 | K41: =IF(ISNA(VLOOKUP($A41,Produits!$A$1:$O$357,14,FALSE)),"",VLOOKUP($A41,Produits!$A$1:$O$357,14,FALSE)) -> 3760219062592 | L41: 29
A42: 9A | B42: =VLOOKUP($A42,Produits!$A$1:$P$357,2,FALSE) -> Pruneaux d’Agen dénoyautés (cal. 44/55) | C42: =VLOOKUP($A42,Produits!$A$1:$P$357,3,FALSE) -> 250g | D42: =VLOOKUP($A42,Produits!$A$1:$P$357,5,FALSE) -> 50 | E42: =VLOOKUP($A42,Produits!$A$1:$P$357,4,FALSE) -> Sachet | F42: =VLOOKUP($A42,Produits!$A$1:$P$357,6,FALSE) -> 3.31 | G42: =VLOOKUP($A42,Produits!$A$1:$P$357,7,FALSE) -> 3.5 | H42: =VLOOKUP($A42,Produits!$A$1:$P$357,10,FALSE) -> 0.055 | I42: =VLOOKUP($A42,Produits!$A$1:$P$357,8,FALSE) -> 0.2 | J42: =VLOOKUP($A42,Produits!$A$1:$P$357,9,FALSE) -> 2.65 | K42: =IF(ISNA(VLOOKUP($A42,Produits!$A$1:$O$357,14,FALSE)),"",VLOOKUP($A42,Produits!$A$1:$O$357,14,FALSE)) -> 3760219062585 | L42: 30
A43: 9B | B43: =VLOOKUP($A43,Produits!$A$1:$P$357,2,FALSE) -> Pruneaux d’Agen dénoyautés (cal. 44/55) | C43: =VLOOKUP($A43,Produits!$A$1:$P$357,3,FALSE) -> 500g | D43: =VLOOKUP($A43,Produits!$A$1:$P$357,5,FALSE) -> 25 | E43: =VLOOKUP($A43,Produits!$A$1:$P$357,4,FALSE) -> Sachet | F43: =VLOOKUP($A43,Produits!$A$1:$P$357,6,FALSE) -> 4.54976 | G43: =VLOOKUP($A43,Produits!$A$1:$P$357,7,FALSE) -> 4.8 | H43: =VLOOKUP($A43,Produits!$A$1:$P$357,10,FALSE) -> 0.055 | I43: =VLOOKUP($A43,Produits!$A$1:$P$357,8,FALSE) -> 0.2 | J43: =VLOOKUP($A43,Produits!$A$1:$P$357,9,FALSE) -> 3.64 | K43: =IF(ISNA(VLOOKUP($A43,Produits!$A$1:$O$357,14,FALSE)),"",VLOOKUP($A43,Produits!$A$1:$O$357,14,FALSE)) -> 3760219062578 | L43: 31
A44: 9C | B44: =VLOOKUP($A44,Produits!$A$1:$P$357,2,FALSE) -> Pruneaux d’Agen dénoyautés (cal. 44/55) | C44: =VLOOKUP($A44,Produits!$A$1:$P$357,3,FALSE) -> 1kg | D44: =VLOOKUP($A44,Produits!$A$1:$P$357,5,FALSE) -> 14 | E44: =VLOOKUP($A44,Produits!$A$1:$P$357,4,FALSE) -> Sachet | F44: =VLOOKUP($A44,Produits!$A$1:$P$357,6,FALSE) -> 8.43601 | G44: =VLOOKUP($A44,Produits!$A$1:$P$357,7,FALSE) -> 8.9 | H44: =VLOOKUP($A44,Produits!$A$1:$P$357,10,FALSE) -> 0.055 | I44: =VLOOKUP($A44,Produits!$A$1:$P$357,8,FALSE) -> 0.2 | J44: =VLOOKUP($A44,Produits!$A$1:$P$357,9,FALSE) -> 6.75 | K44: =IF(ISNA(VLOOKUP($A44,Produits!$A$1:$O$357,14,FALSE)),"",VLOOKUP($A44,Produits!$A$1:$O$357,14,FALSE)) -> 3760219062561 | L44: 32
A45: 9D | B45: =VLOOKUP($A45,Produits!$A$1:$P$357,2,FALSE) -> Pruneaux d’Agen dénoyautés (cal. 30/35) | C45: =VLOOKUP($A45,Produits!$A$1:$P$357,3,FALSE) -> 500g | D45: =VLOOKUP($A45,Produits!$A$1:$P$357,5,FALSE) -> 25 | E45: =VLOOKUP($A45,Produits!$A$1:$P$357,4,FALSE) -> Sachet | F45: =VLOOKUP($A45,Produits!$A$1:$P$357,6,FALSE) -> 5.21327 | G45: =VLOOKUP($A45,Produits!$A$1:$P$357,7,FALSE) -> 5.5 | H45: =VLOOKUP($A45,Produits!$A$1:$P$357,10,FALSE) -> 0.055 | I45: =VLOOKUP($A45,Produits!$A$1:$P$357,8,FALSE) -> 0.2 | J45: =VLOOKUP($A45,Produits!$A$1:$P$357,9,FALSE) -> 4.18 | K45: =IF(ISNA(VLOOKUP($A45,Produits!$A$1:$O$357,14,FALSE)),"",VLOOKUP($A45,Produits!$A$1:$O$357,14,FALSE)) -> 3760219062554 | L45: 33
A46: 9E | B46: =VLOOKUP($A46,Produits!$A$1:$P$357,2,FALSE) -> Pruneaux d’Agen dénoyautés (cal. 30/35) | C46: =VLOOKUP($A46,Produits!$A$1:$P$357,3,FALSE) -> 1kg | D46: =VLOOKUP($A46,Produits!$A$1:$P$357,5,FALSE) -> 14 | E46: =VLOOKUP($A46,Produits!$A$1:$P$357,4,FALSE) -> Sachet | F46: =VLOOKUP($A46,Produits!$A$1:$P$357,6,FALSE) -> 8.72037 | G46: =VLOOKUP($A46,Produits!$A$1:$P$357,7,FALSE) -> 9.2 | H46: =VLOOKUP($A46,Produits!$A$1:$P$357,10,FALSE) -> 0.055 | I46: =VLOOKUP($A46,Produits!$A$1:$P$357,8,FALSE) -> 0.2 | J46: =VLOOKUP($A46,Produits!$A$1:$P$357,9,FALSE) -> 6.98 | K46: =IF(ISNA(VLOOKUP($A46,Produits!$A$1:$O$357,14,FALSE)),"",VLOOKUP($A46,Produits!$A$1:$O$357,14,FALSE)) -> 3760219062547 | L46: 34
A47: 10A | B47: =VLOOKUP($A47,Produits!$A$1:$P$357,2,FALSE) -> Jus de Pruneaux | C47: =VLOOKUP($A47,Produits!$A$1:$P$357,3,FALSE) -> 1L | D47: =VLOOKUP($A47,Produits!$A$1:$P$357,5,FALSE) -> 6 | E47: =VLOOKUP($A47,Produits!$A$1:$P$357,4,FALSE) -> Bouteille | F47: =VLOOKUP($A47,Produits!$A$1:$P$357,6,FALSE) -> 3.98104 | G47: =VLOOKUP($A47,Produits!$A$1:$P$357,7,FALSE) -> 4.2 | H47: =VLOOKUP($A47,Produits!$A$1:$P$357,10,FALSE) -> 0.055 | I47: =VLOOKUP($A47,Produits!$A$1:$P$357,8,FALSE) -> 0.2 | J47: =VLOOKUP($A47,Produits!$A$1:$P$357,9,FALSE) -> 3.19 | K47: =IF(ISNA(VLOOKUP($A47,Produits!$A$1:$O$357,14,FALSE)),"",VLOOKUP($A47,Produits!$A$1:$O$357,14,FALSE)) -> 3760219062530 | L47: 35
A48: 10B | B48: =VLOOKUP($A48,Produits!$A$1:$P$357,2,FALSE) -> Jus de Pruneaux | C48: =VLOOKUP($A48,Produits!$A$1:$P$357,3,FALSE) -> 25cl | D48: =VLOOKUP($A48,Produits!$A$1:$P$357,5,FALSE) -> 12 | E48: =VLOOKUP($A48,Produits!$A$1:$P$357,4,FALSE) -> Bouteille | F48: =VLOOKUP($A48,Produits!$A$1:$P$357,6,FALSE) -> 2.0853 | G48: =VLOOKUP($A48,Produits!$A$1:$P$357,7,FALSE) -> 2.2 | H48: =VLOOKUP($A48,Produits!$A$1:$P$357,10,FALSE) -> 0.055 | I48: =VLOOKUP($A48,Produits!$A$1:$P$357,8,FALSE) -> 0.2 | J48: =VLOOKUP($A48,Produits!$A$1:$P$357,9,FALSE) -> 1.67 | K48: =IF(ISNA(VLOOKUP($A48,Produits!$A$1:$O$357,14,FALSE)),"",VLOOKUP($A48,Produits!$A$1:$O$357,14,FALSE)) -> 3760219062905 | L48: 36
A49: 11A | B49: =VLOOKUP($A49,Produits!$A$1:$P$357,2,FALSE) -> Pétillant de pruneaux | C49: =VLOOKUP($A49,Produits!$A$1:$P$357,3,FALSE) -> 0,75L | D49: =VLOOKUP($A49,Produits!$A$1:$P$357,5,FALSE) -> 6 | E49: =VLOOKUP($A49,Produits!$A$1:$P$357,4,FALSE) -> Bouteille | F49: =VLOOKUP($A49,Produits!$A$1:$P$357,6,FALSE) -> 5.59241 | G49: =VLOOKUP($A49,Produits!$A$1:$P$357,7,FALSE) -> 5.9 | H49: =VLOOKUP($A49,Produits!$A$1:$P$357,10,FALSE) -> 0.055 | I49: =VLOOKUP($A49,Produits!$A$1:$P$357,8,FALSE) -> 0.2 | J49: =VLOOKUP($A49,Produits!$A$1:$P$357,9,FALSE) -> 4.48 | K49: =IF(ISNA(VLOOKUP($A49,Produits!$A$1:$O$357,14,FALSE)),"",VLOOKUP($A49,Produits!$A$1:$O$357,14,FALSE)) -> 3760219062523 | L49: 37
A50: 12A | B50: =VLOOKUP($A50,Produits!$A$1:$P$357,2,FALSE) -> Pruneaux d’Agen secs | C50: =VLOOKUP($A50,Produits!$A$1:$P$357,3,FALSE) -> 500g | D50: =VLOOKUP($A50,Produits!$A$1:$P$357,5,FALSE) -> 25 | E50: =VLOOKUP($A50,Produits!$A$1:$P$357,4,FALSE) -> Sachet | F50: =VLOOKUP($A50,Produits!$A$1:$P$357,6,FALSE) -> 2.36966 | G50: =VLOOKUP($A50,Produits!$A$1:$P$357,7,FALSE) -> 2.5 | H50: =VLOOKUP($A50,Produits!$A$1:$P$357,10,FALSE) -> 0.055 | I50: =VLOOKUP($A50,Produits!$A$1:$P$357,8,FALSE) -> 0.2 | J50: =VLOOKUP($A50,Produits!$A$1:$P$357,9,FALSE) -> 1.9 | K50: =IF(ISNA(VLOOKUP($A50,Produits!$A$1:$O$357,14,FALSE)),"",VLOOKUP($A50,Produits!$A$1:$O$357,14,FALSE)) -> 3760219062516 | L50: 38
A51: 12B | B51: =VLOOKUP($A51,Produits!$A$1:$P$357,2,FALSE) -> Pruneaux d’Agen secs | C51: =VLOOKUP($A51,Produits!$A$1:$P$357,3,FALSE) -> 1kg | D51: =VLOOKUP($A51,Produits!$A$1:$P$357,5,FALSE) -> 14 | E51: =VLOOKUP($A51,Produits!$A$1:$P$357,4,FALSE) -> Sachet | F51: =VLOOKUP($A51,Produits!$A$1:$P$357,6,FALSE) -> 4.64454 | G51: =VLOOKUP($A51,Produits!$A$1:$P$357,7,FALSE) -> 4.9 | H51: =VLOOKUP($A51,Produits!$A$1:$P$357,10,FALSE) -> 0.055 | I51: =VLOOKUP($A51,Produits!$A$1:$P$357,8,FALSE) -> 0.2 | J51: =VLOOKUP($A51,Produits!$A$1:$P$357,9,FALSE) -> 3.72 | K51: =IF(ISNA(VLOOKUP($A51,Produits!$A$1:$O$357,14,FALSE)),"",VLOOKUP($A51,Produits!$A$1:$O$357,14,FALSE)) -> 3760219062509 | L51: 39
A52: 13A | B52: =VLOOKUP($A52,Produits!$A$1:$P$357,2,FALSE) -> Crème de pruneaux | C52: =VLOOKUP($A52,Produits!$A$1:$P$357,3,FALSE) -> 220g | D52: =VLOOKUP($A52,Produits!$A$1:$P$357,5,FALSE) -> 24 | E52: =VLOOKUP($A52,Produits!$A$1:$P$357,4,FALSE) -> Bocal | F52: =VLOOKUP($A52,Produits!$A$1:$P$357,6,FALSE) -> 3.03317 | G52: =VLOOKUP($A52,Produits!$A$1:$P$357,7,FALSE) -> 3.2 | H52: =VLOOKUP($A52,Produits!$A$1:$P$357,10,FALSE) -> 0.055 | I52: =VLOOKUP($A52,Produits!$A$1:$P$357,8,FALSE) -> 0.2 | J52: =VLOOKUP($A52,Produits!$A$1:$P$357,9,FALSE) -> 2.43 | K52: =IF(ISNA(VLOOKUP($A52,Produits!$A$1:$O$357,14,FALSE)),"",VLOOKUP($A52,Produits!$A$1:$O$357,14,FALSE)) -> 3760219062493 | L52: 40
A53: 13B | B53: =VLOOKUP($A53,Produits!$A$1:$P$357,2,FALSE) -> Crème de pruneaux | C53: =VLOOKUP($A53,Produits!$A$1:$P$357,3,FALSE) -> 320g | D53: =VLOOKUP($A53,Produits!$A$1:$P$357,5,FALSE) -> 24 | E53: =VLOOKUP($A53,Produits!$A$1:$P$357,4,FALSE) -> Bocal | F53: =VLOOKUP($A53,Produits!$A$1:$P$357,6,FALSE) -> 3.98104 | G53: =VLOOKUP($A53,Produits!$A$1:$P$357,7,FALSE) -> 4.2 | H53: =VLOOKUP($A53,Produits!$A$1:$P$357,10,FALSE) -> 0.055 | I53: =VLOOKUP($A53,Produits!$A$1:$P$357,8,FALSE) -> 0.28 | J53: =VLOOKUP($A53,Produits!$A$1:$P$357,9,FALSE) -> 2.87 | K53: =IF(ISNA(VLOOKUP($A53,Produits!$A$1:$O$357,14,FALSE)),"",VLOOKUP($A53,Produits!$A$1:$O$357,14,FALSE)) -> 3760219062486 | L53: 41
A54: 14A | B54: =VLOOKUP($A54,Produits!$A$1:$P$357,2,FALSE) -> Pulpe de pruneaux | C54: =VLOOKUP($A54,Produits!$A$1:$P$357,3,FALSE) -> 310g | D54: =VLOOKUP($A54,Produits!$A$1:$P$357,5,FALSE) -> 24 | E54: =VLOOKUP($A54,Produits!$A$1:$P$357,4,FALSE) -> Bocal | F54: =VLOOKUP($A54,Produits!$A$1:$P$357,6,FALSE) -> 3.98104 | G54: =VLOOKUP($A54,Produits!$A$1:$P$357,7,FALSE) -> 4.2 | H54: =VLOOKUP($A54,Produits!$A$1:$P$357,10,FALSE) -> 0.055 | I54: =VLOOKUP($A54,Produits!$A$1:$P$357,8,FALSE) -> 0.28 | J54: =VLOOKUP($A54,Produits!$A$1:$P$357,9,FALSE) -> 2.87 | K54: =IF(ISNA(VLOOKUP($A54,Produits!$A$1:$O$357,14,FALSE)),"",VLOOKUP($A54,Produits!$A$1:$O$357,14,FALSE)) -> 3760219062479 | L54: 42
A55: 15A | B55: =VLOOKUP($A55,Produits!$A$1:$P$357,2,FALSE) -> Pruneaux au sirop | C55: =VLOOKUP($A55,Produits!$A$1:$P$357,3,FALSE) -> 320g | D55: =VLOOKUP($A55,Produits!$A$1:$P$357,5,FALSE) -> 14 | E55: =VLOOKUP($A55,Produits!$A$1:$P$357,4,FALSE) -> Bocal | F55: =VLOOKUP($A55,Produits!$A$1:$P$357,6,FALSE) -> 3.22274 | G55: =VLOOKUP($A55,Produits!$A$1:$P$357,7,FALSE) -> 3.4 | H55: =VLOOKUP($A55,Produits!$A$1:$P$357,10,FALSE) -> 0.055 | I55: =VLOOKUP($A55,Produits!$A$1:$P$357,8,FALSE) -> 0.2 | J55: =VLOOKUP($A55,Produits!$A$1:$P$357,9,FALSE) -> 2.58 | K55: =IF(ISNA(VLOOKUP($A55,Produits!$A$1:$O$357,14,FALSE)),"",VLOOKUP($A55,Produits!$A$1:$O$357,14,FALSE)) -> 3760219062462 | L55: 43
A56: 16A | B56: =VLOOKUP($A56,Produits!$A$1:$P$357,2,FALSE) -> Confiture de Prune d'Ente allégée | C56: =VLOOKUP($A56,Produits!$A$1:$P$357,3,FALSE) -> 250g | D56: =VLOOKUP($A56,Produits!$A$1:$P$357,5,FALSE) -> 10 | E56: =VLOOKUP($A56,Produits!$A$1:$P$357,4,FALSE) -> Bocal | F56: =VLOOKUP($A56,Produits!$A$1:$P$357,6,FALSE) -> 3.79146 | G56: =VLOOKUP($A56,Produits!$A$1:$P$357,7,FALSE) -> 4 | H56: =VLOOKUP($A56,Produits!$A$1:$P$357,10,FALSE) -> 0.055 | I56: =VLOOKUP($A56,Produits!$A$1:$P$357,8,FALSE) -> 0.2 | J56: =VLOOKUP($A56,Produits!$A$1:$P$357,9,FALSE) -> 3.04 | K56: =IF(ISNA(VLOOKUP($A56,Produits!$A$1:$O$357,14,FALSE)),"",VLOOKUP($A56,Produits!$A$1:$O$357,14,FALSE)) -> 3760219062455 | L56: 44
A57: 16B | B57: =VLOOKUP($A57,Produits!$A$1:$P$357,2,FALSE) -> Confiture de Prune Reine-Claude allégée | C57: =VLOOKUP($A57,Produits!$A$1:$P$357,3,FALSE) -> 250g | D57: =VLOOKUP($A57,Produits!$A$1:$P$357,5,FALSE) -> 10 | E57: =VLOOKUP($A57,Produits!$A$1:$P$357,4,FALSE) -> Bocal | F57: =VLOOKUP($A57,Produits!$A$1:$P$357,6,FALSE) -> 3.79146 | G57: =VLOOKUP($A57,Produits!$A$1:$P$357,7,FALSE) -> 4 | H57: =VLOOKUP($A57,Produits!$A$1:$P$357,10,FALSE) -> 0.055 | I57: =VLOOKUP($A57,Produits!$A$1:$P$357,8,FALSE) -> 0.2 | J57: =VLOOKUP($A57,Produits!$A$1:$P$357,9,FALSE) -> 3.04 | K57: =IF(ISNA(VLOOKUP($A57,Produits!$A$1:$O$357,14,FALSE)),"",VLOOKUP($A57,Produits!$A$1:$O$357,14,FALSE)) -> 3760219062448 | L57: 45
A58: 16C | B58: =VLOOKUP($A58,Produits!$A$1:$P$357,2,FALSE) -> Confiture de Fraise | C58: =VLOOKUP($A58,Produits!$A$1:$P$357,3,FALSE) -> 250g | D58: =VLOOKUP($A58,Produits!$A$1:$P$357,5,FALSE) -> 10 | E58: =VLOOKUP($A58,Produits!$A$1:$P$357,4,FALSE) -> Bocal | F58: =VLOOKUP($A58,Produits!$A$1:$P$357,6,FALSE) -> 3.79146 | G58: =VLOOKUP($A58,Produits!$A$1:$P$357,7,FALSE) -> 4 | H58: =VLOOKUP($A58,Produits!$A$1:$P$357,10,FALSE) -> 0.055 | I58: =VLOOKUP($A58,Produits!$A$1:$P$357,8,FALSE) -> 0.2 | J58: =VLOOKUP($A58,Produits!$A$1:$P$357,9,FALSE) -> 3.04 | K58: =IF(ISNA(VLOOKUP($A58,Produits!$A$1:$O$357,14,FALSE)),"",VLOOKUP($A58,Produits!$A$1:$O$357,14,FALSE)) -> 3760219062431 | L58: 46
A59: 17A | B59: =VLOOKUP($A59,Produits!$A$1:$P$357,2,FALSE) -> Confiture de Prune d'Ente allégée | C59: =VLOOKUP($A59,Produits!$A$1:$P$357,3,FALSE) -> 330g | D59: =VLOOKUP($A59,Produits!$A$1:$P$357,5,FALSE) -> 14 | E59: =VLOOKUP($A59,Produits!$A$1:$P$357,4,FALSE) -> Bocal | F59: =VLOOKUP($A59,Produits!$A$1:$P$357,6,FALSE) -> 4.2654 | G59: =VLOOKUP($A59,Produits!$A$1:$P$357,7,FALSE) -> 4.5 | H59: =VLOOKUP($A59,Produits!$A$1:$P$357,10,FALSE) -> 0.055 | I59: =VLOOKUP($A59,Produits!$A$1:$P$357,8,FALSE) -> 0.2 | J59: =VLOOKUP($A59,Produits!$A$1:$P$357,9,FALSE) -> 3.42 | K59: =IF(ISNA(VLOOKUP($A59,Produits!$A$1:$O$357,14,FALSE)),"",VLOOKUP($A59,Produits!$A$1:$O$357,14,FALSE)) -> 3760219062424 | L59: 47
A60: 17B | B60: =VLOOKUP($A60,Produits!$A$1:$P$357,2,FALSE) -> Confiture de Prune Reine-Claude allégée | C60: =VLOOKUP($A60,Produits!$A$1:$P$357,3,FALSE) -> 330g | D60: =VLOOKUP($A60,Produits!$A$1:$P$357,5,FALSE) -> 14 | E60: =VLOOKUP($A60,Produits!$A$1:$P$357,4,FALSE) -> Bocal | F60: =VLOOKUP($A60,Produits!$A$1:$P$357,6,FALSE) -> 4.2654 | G60: =VLOOKUP($A60,Produits!$A$1:$P$357,7,FALSE) -> 4.5 | H60: =VLOOKUP($A60,Produits!$A$1:$P$357,10,FALSE) -> 0.055 | I60: =VLOOKUP($A60,Produits!$A$1:$P$357,8,FALSE) -> 0.2 | J60: =VLOOKUP($A60,Produits!$A$1:$P$357,9,FALSE) -> 3.42 | K60: =IF(ISNA(VLOOKUP($A60,Produits!$A$1:$O$357,14,FALSE)),"",VLOOKUP($A60,Produits!$A$1:$O$357,14,FALSE)) -> 3760219062417 | L60: 48
A61: 17C | B61: =VLOOKUP($A61,Produits!$A$1:$P$357,2,FALSE) -> Confiture de Fraise | C61: =VLOOKUP($A61,Produits!$A$1:$P$357,3,FALSE) -> 330g | D61: =VLOOKUP($A61,Produits!$A$1:$P$357,5,FALSE) -> 14 | E61: =VLOOKUP($A61,Produits!$A$1:$P$357,4,FALSE) -> Bocal | F61: =VLOOKUP($A61,Produits!$A$1:$P$357,6,FALSE) -> 4.2654 | G61: =VLOOKUP($A61,Produits!$A$1:$P$357,7,FALSE) -> 4.5 | H61: =VLOOKUP($A61,Produits!$A$1:$P$357,10,FALSE) -> 0.055 | I61: =VLOOKUP($A61,Produits!$A$1:$P$357,8,FALSE) -> 0.2 | J61: =VLOOKUP($A61,Produits!$A$1:$P$357,9,FALSE) -> 3.42 | K61: =IF(ISNA(VLOOKUP($A61,Produits!$A$1:$O$357,14,FALSE)),"",VLOOKUP($A61,Produits!$A$1:$O$357,14,FALSE)) -> 3760219062400 | L61: 49
A62: 18A | B62: =VLOOKUP($A62,Produits!$A$1:$P$357,2,FALSE) -> Nougat aux pruneaux | C62: =VLOOKUP($A62,Produits!$A$1:$P$357,3,FALSE) -> 100g | D62: =VLOOKUP($A62,Produits!$A$1:$P$357,5,FALSE) -> 10 | E62: =VLOOKUP($A62,Produits!$A$1:$P$357,4,FALSE) -> Sachet | F62: =VLOOKUP($A62,Produits!$A$1:$P$357,6,FALSE) -> 4.58333 | G62: =VLOOKUP($A62,Produits!$A$1:$P$357,7,FALSE) -> 5.5 | H62: =VLOOKUP($A62,Produits!$A$1:$P$357,10,FALSE) -> 0.2 | I62: =VLOOKUP($A62,Produits!$A$1:$P$357,8,FALSE) -> 0.2 | J62: =VLOOKUP($A62,Produits!$A$1:$P$357,9,FALSE) -> 3.67 | K62: =IF(ISNA(VLOOKUP($A62,Produits!$A$1:$O$357,14,FALSE)),"",VLOOKUP($A62,Produits!$A$1:$O$357,14,FALSE)) -> 3760219062394 | L62: 50
A63: 18B | B63: =VLOOKUP($A63,Produits!$A$1:$P$357,2,FALSE) -> Nougat aux pruneaux | C63: =VLOOKUP($A63,Produits!$A$1:$P$357,3,FALSE) -> 150g | D63: =VLOOKUP($A63,Produits!$A$1:$P$357,5,FALSE) -> 10 | E63: =VLOOKUP($A63,Produits!$A$1:$P$357,4,FALSE) -> Sachet | F63: =VLOOKUP($A63,Produits!$A$1:$P$357,6,FALSE) -> 6.66666 | G63: =VLOOKUP($A63,Produits!$A$1:$P$357,7,FALSE) -> 8 | H63: =VLOOKUP($A63,Produits!$A$1:$P$357,10,FALSE) -> 0.2 | I63: =VLOOKUP($A63,Produits!$A$1:$P$357,8,FALSE) -> 0.2 | J63: =VLOOKUP($A63,Produits!$A$1:$P$357,9,FALSE) -> 5.34 | K63: =IF(ISNA(VLOOKUP($A63,Produits!$A$1:$O$357,14,FALSE)),"",VLOOKUP($A63,Produits!$A$1:$O$357,14,FALSE)) -> 3760219062387 | L63: 51
A64: 19A | B64: =VLOOKUP($A64,Produits!$A$1:$P$357,2,FALSE) -> Mendiants chocolat noir | C64: =VLOOKUP($A64,Produits!$A$1:$P$357,3,FALSE) -> 150g | D64: =VLOOKUP($A64,Produits!$A$1:$P$357,5,FALSE) -> 10 | E64: =VLOOKUP($A64,Produits!$A$1:$P$357,4,FALSE) -> Sachet | F64: =VLOOKUP($A64,Produits!$A$1:$P$357,6,FALSE) -> 5.6872 | G64: =VLOOKUP($A64,Produits!$A$1:$P$357,7,FALSE) -> 6 | H64: =VLOOKUP($A64,Produits!$A$1:$P$357,10,FALSE) -> 0.055 | I64: =VLOOKUP($A64,Produits!$A$1:$P$357,8,FALSE) -> 0.2 | J64: =VLOOKUP($A64,Produits!$A$1:$P$357,9,FALSE) -> 4.55 | K64: =IF(ISNA(VLOOKUP($A64,Produits!$A$1:$O$357,14,FALSE)),"",VLOOKUP($A64,Produits!$A$1:$O$357,14,FALSE)) -> 3760219062370 | L64: 52
A65: 19B | B65: =VLOOKUP($A65,Produits!$A$1:$P$357,2,FALSE) -> Mendiants chocolat noir | C65: =VLOOKUP($A65,Produits!$A$1:$P$357,3,FALSE) -> 200g | D65: =VLOOKUP($A65,Produits!$A$1:$P$357,5,FALSE) -> 10 | E65: =VLOOKUP($A65,Produits!$A$1:$P$357,4,FALSE) -> Sachet | F65: =VLOOKUP($A65,Produits!$A$1:$P$357,6,FALSE) -> 3.75 | G65: =VLOOKUP($A65,Produits!$A$1:$P$357,7,FALSE) -> 7.5 | H65: =VLOOKUP($A65,Produits!$A$1:$P$357,10,FALSE) -> TRUE | I65: =VLOOKUP($A65,Produits!$A$1:$P$357,8,FALSE) -> 0.2 | J65: =VLOOKUP($A65,Produits!$A$1:$P$357,9,FALSE) -> 3 | K65: =IF(ISNA(VLOOKUP($A65,Produits!$A$1:$O$357,14,FALSE)),"",VLOOKUP($A65,Produits!$A$1:$O$357,14,FALSE)) -> 3760219062363 | L65: 53
A66: 20A | B66: =VLOOKUP($A66,Produits!$A$1:$P$357,2,FALSE) -> Mendiants chocolat lait | C66: =VLOOKUP($A66,Produits!$A$1:$P$357,3,FALSE) -> 150g | D66: =VLOOKUP($A66,Produits!$A$1:$P$357,5,FALSE) -> 10 | E66: =VLOOKUP($A66,Produits!$A$1:$P$357,4,FALSE) -> Sachet | F66: =VLOOKUP($A66,Produits!$A$1:$P$357,6,FALSE) -> 5.6872 | G66: =VLOOKUP($A66,Produits!$A$1:$P$357,7,FALSE) -> 6 | H66: =VLOOKUP($A66,Produits!$A$1:$P$357,10,FALSE) -> 0.055 | I66: =VLOOKUP($A66,Produits!$A$1:$P$357,8,FALSE) -> 0.2 | J66: =VLOOKUP($A66,Produits!$A$1:$P$357,9,FALSE) -> 4.55 | K66: =IF(ISNA(VLOOKUP($A66,Produits!$A$1:$O$357,14,FALSE)),"",VLOOKUP($A66,Produits!$A$1:$O$357,14,FALSE)) -> 3760219062356 | L66: 54
A67: 20B | B67: =VLOOKUP($A67,Produits!$A$1:$P$357,2,FALSE) -> Mendiants chocolat lait | C67: =VLOOKUP($A67,Produits!$A$1:$P$357,3,FALSE) -> 200g | D67: =VLOOKUP($A67,Produits!$A$1:$P$357,5,FALSE) -> 10 | E67: =VLOOKUP($A67,Produits!$A$1:$P$357,4,FALSE) -> Sachet | F67: =VLOOKUP($A67,Produits!$A$1:$P$357,6,FALSE) -> 7.1 | G67: =VLOOKUP($A67,Produits!$A$1:$P$357,7,FALSE) -> 7.5 | H67: =VLOOKUP($A67,Produits!$A$1:$P$357,10,FALSE) -> 0.055 | I67: =VLOOKUP($A67,Produits!$A$1:$P$357,8,FALSE) -> 0.2 | J67: =VLOOKUP($A67,Produits!$A$1:$P$357,9,FALSE) -> 5.68 | K67: =IF(ISNA(VLOOKUP($A67,Produits!$A$1:$O$357,14,FALSE)),"",VLOOKUP($A67,Produits!$A$1:$O$357,14,FALSE)) -> 3760219062349 | L67: 55
A68: 21A | B68: =VLOOKUP($A68,Produits!$A$1:$P$357,2,FALSE) -> Pâtes de fruit - (saveur à préciser) | C68: =VLOOKUP($A68,Produits!$A$1:$P$357,3,FALSE) -> 150g | D68: =VLOOKUP($A68,Produits!$A$1:$P$357,5,FALSE) -> 10 | E68: =VLOOKUP($A68,Produits!$A$1:$P$357,4,FALSE) -> Sachet | F68: =VLOOKUP($A68,Produits!$A$1:$P$357,6,FALSE) -> 5.6872 | G68: =VLOOKUP($A68,Produits!$A$1:$P$357,7,FALSE) -> 6 | H68: =VLOOKUP($A68,Produits!$A$1:$P$357,10,FALSE) -> 0.055 | I68: =VLOOKUP($A68,Produits!$A$1:$P$357,8,FALSE) -> 0.2 | J68: =VLOOKUP($A68,Produits!$A$1:$P$357,9,FALSE) -> 4.55 | K68: =IF(ISNA(VLOOKUP($A68,Produits!$A$1:$O$357,14,FALSE)),"",VLOOKUP($A68,Produits!$A$1:$O$357,14,FALSE)) -> 3760219062332 | L68: 56
A69: 21B | B69: =VLOOKUP($A69,Produits!$A$1:$P$357,2,FALSE) -> Pâtes de fruit - Mixte (mélange) | C69: =VLOOKUP($A69,Produits!$A$1:$P$357,3,FALSE) -> 150g | D69: =VLOOKUP($A69,Produits!$A$1:$P$357,5,FALSE) -> 10 | E69: =VLOOKUP($A69,Produits!$A$1:$P$357,4,FALSE) -> Sachet | F69: =VLOOKUP($A69,Produits!$A$1:$P$357,6,FALSE) -> 6.16113 | G69: =VLOOKUP($A69,Produits!$A$1:$P$357,7,FALSE) -> 6.5 | H69: =VLOOKUP($A69,Produits!$A$1:$P$357,10,FALSE) -> 0.055 | I69: =VLOOKUP($A69,Produits!$A$1:$P$357,8,FALSE) -> 0.2 | J69: =VLOOKUP($A69,Produits!$A$1:$P$357,9,FALSE) -> 4.93 | K69: =IF(ISNA(VLOOKUP($A69,Produits!$A$1:$O$357,14,FALSE)),"",VLOOKUP($A69,Produits!$A$1:$O$357,14,FALSE)) -> 3760219062325 | L69: 57
A70: 22A | B70: =VLOOKUP($A70,Produits!$A$1:$P$357,2,FALSE) -> Pâtes de velours chocolat | C70: =VLOOKUP($A70,Produits!$A$1:$P$357,3,FALSE) -> 150g | D70: =VLOOKUP($A70,Produits!$A$1:$P$357,5,FALSE) -> 10 | E70: =VLOOKUP($A70,Produits!$A$1:$P$357,4,FALSE) -> Sachet | F70: =VLOOKUP($A70,Produits!$A$1:$P$357,6,FALSE) -> 6.16113 | G70: =VLOOKUP($A70,Produits!$A$1:$P$357,7,FALSE) -> 6.5 | H70: =VLOOKUP($A70,Produits!$A$1:$P$357,10,FALSE) -> 0.055 | I70: =VLOOKUP($A70,Produits!$A$1:$P$357,8,FALSE) -> 0.2 | J70: =VLOOKUP($A70,Produits!$A$1:$P$357,9,FALSE) -> 4.93 | K70: =IF(ISNA(VLOOKUP($A70,Produits!$A$1:$O$357,14,FALSE)),"",VLOOKUP($A70,Produits!$A$1:$O$357,14,FALSE)) -> 3760219062318 | L70: 58
A71: 23A | B71: =VLOOKUP($A71,Produits!$A$1:$P$357,2,FALSE) -> Madeleines à la crème de pruneau (env. 5 unités) | C71: =VLOOKUP($A71,Produits!$A$1:$P$357,3,FALSE) -> 100g | D71: =VLOOKUP($A71,Produits!$A$1:$P$357,5,FALSE) -> 10 | E71: =VLOOKUP($A71,Produits!$A$1:$P$357,4,FALSE) -> Sachet | F71: =VLOOKUP($A71,Produits!$A$1:$P$357,6,FALSE) -> 2.46445 | G71: =VLOOKUP($A71,Produits!$A$1:$P$357,7,FALSE) -> 2.6 | H71: =VLOOKUP($A71,Produits!$A$1:$P$357,10,FALSE) -> 0.055 | I71: =VLOOKUP($A71,Produits!$A$1:$P$357,8,FALSE) -> 0.2 | J71: =VLOOKUP($A71,Produits!$A$1:$P$357,9,FALSE) -> 1.98 | K71: =IF(ISNA(VLOOKUP($A71,Produits!$A$1:$O$357,14,FALSE)),"",VLOOKUP($A71,Produits!$A$1:$O$357,14,FALSE)) -> 3760219062301 | L71: 59
A72: 23B | B72: =VLOOKUP($A72,Produits!$A$1:$P$357,2,FALSE) -> Madeleines à la crème de pruneau (env. 8 unités) | C72: =VLOOKUP($A72,Produits!$A$1:$P$357,3,FALSE) -> 150g | D72: =VLOOKUP($A72,Produits!$A$1:$P$357,5,FALSE) -> 10 | E72: =VLOOKUP($A72,Produits!$A$1:$P$357,4,FALSE) -> Sachet | F72: =VLOOKUP($A72,Produits!$A$1:$P$357,6,FALSE) -> 3.69668 | G72: =VLOOKUP($A72,Produits!$A$1:$P$357,7,FALSE) -> 3.9 | H72: =VLOOKUP($A72,Produits!$A$1:$P$357,10,FALSE) -> 0.055 | I72: =VLOOKUP($A72,Produits!$A$1:$P$357,8,FALSE) -> 0.2 | J72: =VLOOKUP($A72,Produits!$A$1:$P$357,9,FALSE) -> 2.96 | K72: =IF(ISNA(VLOOKUP($A72,Produits!$A$1:$O$357,14,FALSE)),"",VLOOKUP($A72,Produits!$A$1:$O$357,14,FALSE)) -> 3760219062295 | L72: 60
A73: 24A | B73: =VLOOKUP($A73,Produits!$A$1:$P$357,2,FALSE) -> Pruneaux fourrés - Boîte Or des 100 ans | C73: =VLOOKUP($A73,Produits!$A$1:$P$357,3,FALSE) -> 350g | D73: =VLOOKUP($A73,Produits!$A$1:$P$357,5,FALSE) -> 6 | E73: =VLOOKUP($A73,Produits!$A$1:$P$357,4,FALSE) -> Boite métal | F73: =VLOOKUP($A73,Produits!$A$1:$P$357,6,FALSE) -> 12.41666 | G73: =VLOOKUP($A73,Produits!$A$1:$P$357,7,FALSE) -> 14.9 | H73: =VLOOKUP($A73,Produits!$A$1:$P$357,10,FALSE) -> 0.2 | I73: =VLOOKUP($A73,Produits!$A$1:$P$357,8,FALSE) -> 0.2 | J73: =VLOOKUP($A73,Produits!$A$1:$P$357,9,FALSE) -> 9.94 | K73: =IF(ISNA(VLOOKUP($A73,Produits!$A$1:$O$357,14,FALSE)),"",VLOOKUP($A73,Produits!$A$1:$O$357,14,FALSE)) -> 3760219062288 | L73: 61
A74: 24B | B74: =VLOOKUP($A74,Produits!$A$1:$P$357,2,FALSE) -> Pruneaux fourrés Armagnac - Boîte Or des 100 ans | C74: =VLOOKUP($A74,Produits!$A$1:$P$357,3,FALSE) -> 350g | D74: =VLOOKUP($A74,Produits!$A$1:$P$357,5,FALSE) -> 6 | E74: =VLOOKUP($A74,Produits!$A$1:$P$357,4,FALSE) -> Boite métal | F74: =VLOOKUP($A74,Produits!$A$1:$P$357,6,FALSE) -> 12.91666 | G74: =VLOOKUP($A74,Produits!$A$1:$P$357,7,FALSE) -> 15.5 | H74: =VLOOKUP($A74,Produits!$A$1:$P$357,10,FALSE) -> 0.2 | I74: =VLOOKUP($A74,Produits!$A$1:$P$357,8,FALSE) -> 0.2 | J74: =VLOOKUP($A74,Produits!$A$1:$P$357,9,FALSE) -> 10.34 | K74: =IF(ISNA(VLOOKUP($A74,Produits!$A$1:$O$357,14,FALSE)),"",VLOOKUP($A74,Produits!$A$1:$O$357,14,FALSE)) -> 3760219062271 | L74: 62
A75: 24C | B75: =VLOOKUP($A75,Produits!$A$1:$P$357,2,FALSE) -> Pruneaux fourrés - Boîte Or des 100 ans | C75: =VLOOKUP($A75,Produits!$A$1:$P$357,3,FALSE) -> 600g | D75: =VLOOKUP($A75,Produits!$A$1:$P$357,5,FALSE) -> 6 | E75: =VLOOKUP($A75,Produits!$A$1:$P$357,4,FALSE) -> Boite métal | F75: =VLOOKUP($A75,Produits!$A$1:$P$357,6,FALSE) -> 17.83333 | G75: =VLOOKUP($A75,Produits!$A$1:$P$357,7,FALSE) -> 21.4 | H75: =VLOOKUP($A75,Produits!$A$1:$P$357,10,FALSE) -> 0.2 | I75: =VLOOKUP($A75,Produits!$A$1:$P$357,8,FALSE) -> 0.2 | J75: =VLOOKUP($A75,Produits!$A$1:$P$357,9,FALSE) -> 14.27 | K75: =IF(ISNA(VLOOKUP($A75,Produits!$A$1:$O$357,14,FALSE)),"",VLOOKUP($A75,Produits!$A$1:$O$357,14,FALSE)) -> 3760219062264 | L75: 63
A76: 24D | B76: =VLOOKUP($A76,Produits!$A$1:$P$357,2,FALSE) -> Pruneaux fourrés Armagnac - Boîte Or des 100 ans | C76: =VLOOKUP($A76,Produits!$A$1:$P$357,3,FALSE) -> 600g | D76: =VLOOKUP($A76,Produits!$A$1:$P$357,5,FALSE) -> 6 | E76: =VLOOKUP($A76,Produits!$A$1:$P$357,4,FALSE) -> Boite métal | F76: =VLOOKUP($A76,Produits!$A$1:$P$357,6,FALSE) -> 18.33333 | G76: =VLOOKUP($A76,Produits!$A$1:$P$357,7,FALSE) -> 22 | H76: =VLOOKUP($A76,Produits!$A$1:$P$357,10,FALSE) -> 0.2 | I76: =VLOOKUP($A76,Produits!$A$1:$P$357,8,FALSE) -> 0.2 | J76: =VLOOKUP($A76,Produits!$A$1:$P$357,9,FALSE) -> 14.67 | K76: =IF(ISNA(VLOOKUP($A76,Produits!$A$1:$O$357,14,FALSE)),"",VLOOKUP($A76,Produits!$A$1:$O$357,14,FALSE)) -> 3760219062257 | L76: 64
A77: 24E | B77: =VLOOKUP($A77,Produits!$A$1:$P$357,2,FALSE) -> Pruneaux fourrés - Boîte Or des 100 ans | C77: =VLOOKUP($A77,Produits!$A$1:$P$357,3,FALSE) -> 850g | D77: =VLOOKUP($A77,Produits!$A$1:$P$357,5,FALSE) -> 6 | E77: =VLOOKUP($A77,Produits!$A$1:$P$357,4,FALSE) -> Boite métal | F77: =VLOOKUP($A77,Produits!$A$1:$P$357,6,FALSE) -> 23.66666 | G77: =VLOOKUP($A77,Produits!$A$1:$P$357,7,FALSE) -> 28.4 | H77: =VLOOKUP($A77,Produits!$A$1:$P$357,10,FALSE) -> 0.2 | I77: =VLOOKUP($A77,Produits!$A$1:$P$357,8,FALSE) -> 0.2 | J77: =VLOOKUP($A77,Produits!$A$1:$P$357,9,FALSE) -> 18.94 | K77: =IF(ISNA(VLOOKUP($A77,Produits!$A$1:$O$357,14,FALSE)),"",VLOOKUP($A77,Produits!$A$1:$O$357,14,FALSE)) -> 3760219062240 | L77: 65
A78: 24F | B78: =VLOOKUP($A78,Produits!$A$1:$P$357,2,FALSE) -> Pruneaux fourrés + Prunchoco® - Boîte Or des 100 ans | C78: =VLOOKUP($A78,Produits!$A$1:$P$357,3,FALSE) -> 290g | D78: =VLOOKUP($A78,Produits!$A$1:$P$357,5,FALSE) -> 6 | E78: =VLOOKUP($A78,Produits!$A$1:$P$357,4,FALSE) -> Boite métal | F78: =VLOOKUP($A78,Produits!$A$1:$P$357,6,FALSE) -> 12.25 | G78: =VLOOKUP($A78,Produits!$A$1:$P$357,7,FALSE) -> 14.7 | H78: =VLOOKUP($A78,Produits!$A$1:$P$357,10,FALSE) -> 0.2 | I78: =VLOOKUP($A78,Produits!$A$1:$P$357,8,FALSE) -> 0.2 | J78: =VLOOKUP($A78,Produits!$A$1:$P$357,9,FALSE) -> 9.8 | K78: =IF(ISNA(VLOOKUP($A78,Produits!$A$1:$O$357,14,FALSE)),"",VLOOKUP($A78,Produits!$A$1:$O$357,14,FALSE)) -> 3760219062233 | L78: 66
A79: 24G | B79: =VLOOKUP($A79,Produits!$A$1:$P$357,2,FALSE) -> Pruneaux fourrés + Prunchoco® - Boîte Or des 100 ans | C79: =VLOOKUP($A79,Produits!$A$1:$P$357,3,FALSE) -> 500g | D79: =VLOOKUP($A79,Produits!$A$1:$P$357,5,FALSE) -> 6 | E79: =VLOOKUP($A79,Produits!$A$1:$P$357,4,FALSE) -> Boite métal | F79: =VLOOKUP($A79,Produits!$A$1:$P$357,6,FALSE) -> 17.75 | G79: =VLOOKUP($A79,Produits!$A$1:$P$357,7,FALSE) -> 21.3 | H79: =VLOOKUP($A79,Produits!$A$1:$P$357,10,FALSE) -> 0.2 | I79: =VLOOKUP($A79,Produits!$A$1:$P$357,8,FALSE) -> 0.2 | J79: =VLOOKUP($A79,Produits!$A$1:$P$357,9,FALSE) -> 14.2 | K79: =IF(ISNA(VLOOKUP($A79,Produits!$A$1:$O$357,14,FALSE)),"",VLOOKUP($A79,Produits!$A$1:$O$357,14,FALSE)) -> 3760219062226 | L79: 67
A80: 25A | B80: =VLOOKUP($A80,Produits!$A$1:$P$357,2,FALSE) -> Claie Agenaise (Pruneaux fourrés) | C80: =VLOOKUP($A80,Produits!$A$1:$P$357,3,FALSE) -> 350g | D80: =VLOOKUP($A80,Produits!$A$1:$P$357,5,FALSE) -> 1 | E80: =VLOOKUP($A80,Produits!$A$1:$P$357,4,FALSE) -> Claie Agen. | F80: =VLOOKUP($A80,Produits!$A$1:$P$357,6,FALSE) -> 12.83333 | G80: =VLOOKUP($A80,Produits!$A$1:$P$357,7,FALSE) -> 15.4 | H80: =VLOOKUP($A80,Produits!$A$1:$P$357,10,FALSE) -> 0.2 | I80: =VLOOKUP($A80,Produits!$A$1:$P$357,8,FALSE) -> 0.2 | J80: =VLOOKUP($A80,Produits!$A$1:$P$357,9,FALSE) -> 10.27 | K80: =IF(ISNA(VLOOKUP($A80,Produits!$A$1:$O$357,14,FALSE)),"",VLOOKUP($A80,Produits!$A$1:$O$357,14,FALSE)) -> 3760219062219 | L80: 68
A81: 25B | B81: =VLOOKUP($A81,Produits!$A$1:$P$357,2,FALSE) -> Claie Agenaise (Pruneaux fourrés) | C81: =VLOOKUP($A81,Produits!$A$1:$P$357,3,FALSE) -> 600g | D81: =VLOOKUP($A81,Produits!$A$1:$P$357,5,FALSE) -> 1 | E81: =VLOOKUP($A81,Produits!$A$1:$P$357,4,FALSE) -> Claie Agen. | F81: =VLOOKUP($A81,Produits!$A$1:$P$357,6,FALSE) -> 19.58333 | G81: =VLOOKUP($A81,Produits!$A$1:$P$357,7,FALSE) -> 23.5 | H81: =VLOOKUP($A81,Produits!$A$1:$P$357,10,FALSE) -> 0.2 | I81: =VLOOKUP($A81,Produits!$A$1:$P$357,8,FALSE) -> 0.2 | J81: =VLOOKUP($A81,Produits!$A$1:$P$357,9,FALSE) -> 15.67 | K81: =IF(ISNA(VLOOKUP($A81,Produits!$A$1:$O$357,14,FALSE)),"",VLOOKUP($A81,Produits!$A$1:$O$357,14,FALSE)) -> 3760219062202 | L81: 69
A82: 25C | B82: =VLOOKUP($A82,Produits!$A$1:$P$357,2,FALSE) -> Claie Agenaise (Pruneaux fourrés) | C82: =VLOOKUP($A82,Produits!$A$1:$P$357,3,FALSE) -> 850g | D82: =VLOOKUP($A82,Produits!$A$1:$P$357,5,FALSE) -> 1 | E82: =VLOOKUP($A82,Produits!$A$1:$P$357,4,FALSE) -> Claie Agen. | F82: =VLOOKUP($A82,Produits!$A$1:$P$357,6,FALSE) -> 26.16666 | G82: =VLOOKUP($A82,Produits!$A$1:$P$357,7,FALSE) -> 31.4 | H82: =VLOOKUP($A82,Produits!$A$1:$P$357,10,FALSE) -> 0.2 | I82: =VLOOKUP($A82,Produits!$A$1:$P$357,8,FALSE) -> 0.2 | J82: =VLOOKUP($A82,Produits!$A$1:$P$357,9,FALSE) -> 20.94 | K82: =IF(ISNA(VLOOKUP($A82,Produits!$A$1:$O$357,14,FALSE)),"",VLOOKUP($A82,Produits!$A$1:$O$357,14,FALSE)) -> 3760219062196 | L82: 70
A83: 25D | B83: =VLOOKUP($A83,Produits!$A$1:$P$357,2,FALSE) -> Claie Agenaise (Pruneaux fourrés) | C83: =VLOOKUP($A83,Produits!$A$1:$P$357,3,FALSE) -> 1,1kg | D83: =VLOOKUP($A83,Produits!$A$1:$P$357,5,FALSE) -> 1 | E83: =VLOOKUP($A83,Produits!$A$1:$P$357,4,FALSE) -> Claie Agen. | F83: =VLOOKUP($A83,Produits!$A$1:$P$357,6,FALSE) -> 32.08333 | G83: =VLOOKUP($A83,Produits!$A$1:$P$357,7,FALSE) -> 38.5 | H83: =VLOOKUP($A83,Produits!$A$1:$P$357,10,FALSE) -> 0.2 | I83: =VLOOKUP($A83,Produits!$A$1:$P$357,8,FALSE) -> 0.2 | J83: =VLOOKUP($A83,Produits!$A$1:$P$357,9,FALSE) -> 25.67 | K83: =IF(ISNA(VLOOKUP($A83,Produits!$A$1:$O$357,14,FALSE)),"",VLOOKUP($A83,Produits!$A$1:$O$357,14,FALSE)) -> 3760219062189 | L83: 71
A84: 25E | B84: =VLOOKUP($A84,Produits!$A$1:$P$357,2,FALSE) -> Petit panier (Pruneaux fourrés) | C84: =VLOOKUP($A84,Produits!$A$1:$P$357,3,FALSE) -> 220g | D84: =VLOOKUP($A84,Produits!$A$1:$P$357,5,FALSE) -> 1 | E84: =VLOOKUP($A84,Produits!$A$1:$P$357,4,FALSE) -> Panier bois | F84: =VLOOKUP($A84,Produits!$A$1:$P$357,6,FALSE) -> 7.91666 | G84: =VLOOKUP($A84,Produits!$A$1:$P$357,7,FALSE) -> 9.5 | H84: =VLOOKUP($A84,Produits!$A$1:$P$357,10,FALSE) -> 0.2 | I84: =VLOOKUP($A84,Produits!$A$1:$P$357,8,FALSE) -> 0.2 | J84: =VLOOKUP($A84,Produits!$A$1:$P$357,9,FALSE) -> 6.34 | K84: =IF(ISNA(VLOOKUP($A84,Produits!$A$1:$O$357,14,FALSE)),"",VLOOKUP($A84,Produits!$A$1:$O$357,14,FALSE)) -> 3760219062172 | L84: 72
A85: 25F | B85: =VLOOKUP($A85,Produits!$A$1:$P$357,2,FALSE) -> Petit panier (Pruneaux fourrés) | C85: =VLOOKUP($A85,Produits!$A$1:$P$357,3,FALSE) -> 320g | D85: =VLOOKUP($A85,Produits!$A$1:$P$357,5,FALSE) -> 1 | E85: =VLOOKUP($A85,Produits!$A$1:$P$357,4,FALSE) -> Panier bois | F85: =VLOOKUP($A85,Produits!$A$1:$P$357,6,FALSE) -> 10.83333 | G85: =VLOOKUP($A85,Produits!$A$1:$P$357,7,FALSE) -> 13 | H85: =VLOOKUP($A85,Produits!$A$1:$P$357,10,FALSE) -> 0.2 | I85: =VLOOKUP($A85,Produits!$A$1:$P$357,8,FALSE) -> 0.2 | J85: =VLOOKUP($A85,Produits!$A$1:$P$357,9,FALSE) -> 8.67 | K85: =IF(ISNA(VLOOKUP($A85,Produits!$A$1:$O$357,14,FALSE)),"",VLOOKUP($A85,Produits!$A$1:$O$357,14,FALSE)) -> 3760219062165 | L85: 73
A86: 25G | B86: =VLOOKUP($A86,Produits!$A$1:$P$357,2,FALSE) -> Panier moyen (Pruneaux fourrés + Prun'Choco® noir) | C86: =VLOOKUP($A86,Produits!$A$1:$P$357,3,FALSE) -> 470g | D86: =VLOOKUP($A86,Produits!$A$1:$P$357,5,FALSE) -> 1 | E86: =VLOOKUP($A86,Produits!$A$1:$P$357,4,FALSE) -> Panier bois | F86: =VLOOKUP($A86,Produits!$A$1:$P$357,6,FALSE) -> 16.08333 | G86: =VLOOKUP($A86,Produits!$A$1:$P$357,7,FALSE) -> 19.3 | H86: =VLOOKUP($A86,Produits!$A$1:$P$357,10,FALSE) -> 0.2 | I86: =VLOOKUP($A86,Produits!$A$1:$P$357,8,FALSE) -> 0.2 | J86: =VLOOKUP($A86,Produits!$A$1:$P$357,9,FALSE) -> 12.87 | K86: =IF(ISNA(VLOOKUP($A86,Produits!$A$1:$O$357,14,FALSE)),"",VLOOKUP($A86,Produits!$A$1:$O$357,14,FALSE)) -> 3760219062158 | L86: 74
A87: 25H | B87: =VLOOKUP($A87,Produits!$A$1:$P$357,2,FALSE) -> Plateau moyen (pruneaux fourrés + Prun’Choco® noir) | C87: =VLOOKUP($A87,Produits!$A$1:$P$357,3,FALSE) -> 590g | D87: =VLOOKUP($A87,Produits!$A$1:$P$357,5,FALSE) -> 1 | E87: =VLOOKUP($A87,Produits!$A$1:$P$357,4,FALSE) -> Plateau bois | F87: =VLOOKUP($A87,Produits!$A$1:$P$357,6,FALSE) -> 19.16666 | G87: =VLOOKUP($A87,Produits!$A$1:$P$357,7,FALSE) -> 23 | H87: =VLOOKUP($A87,Produits!$A$1:$P$357,10,FALSE) -> 0.2 | I87: =VLOOKUP($A87,Produits!$A$1:$P$357,8,FALSE) -> 0.2 | J87: =VLOOKUP($A87,Produits!$A$1:$P$357,9,FALSE) -> 15.34 | K87: =IF(ISNA(VLOOKUP($A87,Produits!$A$1:$O$357,14,FALSE)),"",VLOOKUP($A87,Produits!$A$1:$O$357,14,FALSE)) -> 3760219062141 | L87: 75
A88: 25I | B88: =VLOOKUP($A88,Produits!$A$1:$P$357,2,FALSE) -> Grand plateau (pruneaux fourrés + Prun’Choco® noir) | C88: =VLOOKUP($A88,Produits!$A$1:$P$357,3,FALSE) -> 800g | D88: =VLOOKUP($A88,Produits!$A$1:$P$357,5,FALSE) -> 1 | E88: =VLOOKUP($A88,Produits!$A$1:$P$357,4,FALSE) -> Plateau bois | F88: =VLOOKUP($A88,Produits!$A$1:$P$357,6,FALSE) -> 26.66666 | G88: =VLOOKUP($A88,Produits!$A$1:$P$357,7,FALSE) -> 32 | H88: =VLOOKUP($A88,Produits!$A$1:$P$357,10,FALSE) -> 0.2 | I88: =VLOOKUP($A88,Produits!$A$1:$P$357,8,FALSE) -> 0.2 | J88: =VLOOKUP($A88,Produits!$A$1:$P$357,9,FALSE) -> 21.34 | K88: =IF(ISNA(VLOOKUP($A88,Produits!$A$1:$O$357,14,FALSE)),"",VLOOKUP($A88,Produits!$A$1:$O$357,14,FALSE)) -> 3760219062134 | L88: 76
A89: 26P | B89: =VLOOKUP($A89,Produits!$A$1:$P$357,2,FALSE) -> Prun’Choco® (saveur à préciser) | C89: =VLOOKUP($A89,Produits!$A$1:$P$357,3,FALSE) -> 200g | D89: =VLOOKUP($A89,Produits!$A$1:$P$357,5,FALSE) -> 5 | E89: =VLOOKUP($A89,Produits!$A$1:$P$357,4,FALSE) -> Pochette | F89: =VLOOKUP($A89,Produits!$A$1:$P$357,6,FALSE) -> 4.45 | G89: =VLOOKUP($A89,Produits!$A$1:$P$357,7,FALSE) -> 8.9 | H89: =VLOOKUP($A89,Produits!$A$1:$P$357,10,FALSE) -> TRUE | I89: =VLOOKUP($A89,Produits!$A$1:$P$357,8,FALSE) -> 0.2 | J89: =VLOOKUP($A89,Produits!$A$1:$P$357,9,FALSE) -> 3.56 | K89: =IF(ISNA(VLOOKUP($A89,Produits!$A$1:$O$357,14,FALSE)),"",VLOOKUP($A89,Produits!$A$1:$O$357,14,FALSE)) -> 3760219062127 | L89: 77
A90: 26B1 | B90: =VLOOKUP($A90,Produits!$A$1:$P$357,2,FALSE) -> Prun’Choco® (saveur à préciser) | C90: =VLOOKUP($A90,Produits!$A$1:$P$357,3,FALSE) -> 95g | D90: =VLOOKUP($A90,Produits!$A$1:$P$357,5,FALSE) -> 5 | E90: =VLOOKUP($A90,Produits!$A$1:$P$357,4,FALSE) -> Ballotin | F90: =VLOOKUP($A90,Produits!$A$1:$P$357,6,FALSE) -> 4.64454 | G90: =VLOOKUP($A90,Produits!$A$1:$P$357,7,FALSE) -> 4.9 | H90: =VLOOKUP($A90,Produits!$A$1:$P$357,10,FALSE) -> 0.055 | I90: =VLOOKUP($A90,Produits!$A$1:$P$357,8,FALSE) -> 0.2 | J90: =VLOOKUP($A90,Produits!$A$1:$P$357,9,FALSE) -> 3.72 | K90: =IF(ISNA(VLOOKUP($A90,Produits!$A$1:$O$357,14,FALSE)),"",VLOOKUP($A90,Produits!$A$1:$O$357,14,FALSE)) -> 3760219062110 | L90: 78
A91: 26B2 | B91: =VLOOKUP($A91,Produits!$A$1:$P$357,2,FALSE) -> Prun’Choco® (saveur à préciser) | C91: =VLOOKUP($A91,Produits!$A$1:$P$357,3,FALSE) -> 200g | D91: =VLOOKUP($A91,Produits!$A$1:$P$357,5,FALSE) -> 5 | E91: =VLOOKUP($A91,Produits!$A$1:$P$357,4,FALSE) -> Ballotin | F91: =VLOOKUP($A91,Produits!$A$1:$P$357,6,FALSE) -> 9.38388 | G91: =VLOOKUP($A91,Produits!$A$1:$P$357,7,FALSE) -> 9.9 | H91: =VLOOKUP($A91,Produits!$A$1:$P$357,10,FALSE) -> 0.055 | I91: =VLOOKUP($A91,Produits!$A$1:$P$357,8,FALSE) -> 0.2 | J91: =VLOOKUP($A91,Produits!$A$1:$P$357,9,FALSE) -> 7.51 | K91: =IF(ISNA(VLOOKUP($A91,Produits!$A$1:$O$357,14,FALSE)),"",VLOOKUP($A91,Produits!$A$1:$O$357,14,FALSE)) -> 3760219062103 | L91: 79
A92: 26B3 | B92: =VLOOKUP($A92,Produits!$A$1:$P$357,2,FALSE) -> Prun’Choco® (saveur à préciser) | C92: =VLOOKUP($A92,Produits!$A$1:$P$357,3,FALSE) -> 300g | D92: =VLOOKUP($A92,Produits!$A$1:$P$357,5,FALSE) -> 5 | E92: =VLOOKUP($A92,Produits!$A$1:$P$357,4,FALSE) -> Ballotin | F92: =VLOOKUP($A92,Produits!$A$1:$P$357,6,FALSE) -> 7.1 | G92: =VLOOKUP($A92,Produits!$A$1:$P$357,7,FALSE) -> 14.2 | H92: =VLOOKUP($A92,Produits!$A$1:$P$357,10,FALSE) -> TRUE | I92: =VLOOKUP($A92,Produits!$A$1:$P$357,8,FALSE) -> 0.2 | J92: =VLOOKUP($A92,Produits!$A$1:$P$357,9,FALSE) -> 5.68 | K92: =IF(ISNA(VLOOKUP($A92,Produits!$A$1:$O$357,14,FALSE)),"",VLOOKUP($A92,Produits!$A$1:$O$357,14,FALSE)) -> 3760219062097 | L92: 80
A93: 26E1 | B93: =VLOOKUP($A93,Produits!$A$1:$P$357,2,FALSE) -> Prun’Choco® (saveur à préciser) | C93: =VLOOKUP($A93,Produits!$A$1:$P$357,3,FALSE) -> 200g | D93: =VLOOKUP($A93,Produits!$A$1:$P$357,5,FALSE) -> 5 | E93: =VLOOKUP($A93,Produits!$A$1:$P$357,4,FALSE) -> Écrin élég. | F93: =VLOOKUP($A93,Produits!$A$1:$P$357,6,FALSE) -> 12.7962 | G93: =VLOOKUP($A93,Produits!$A$1:$P$357,7,FALSE) -> 13.5 | H93: =VLOOKUP($A93,Produits!$A$1:$P$357,10,FALSE) -> 0.055 | I93: =VLOOKUP($A93,Produits!$A$1:$P$357,8,FALSE) -> 0.2 | J93: =VLOOKUP($A93,Produits!$A$1:$P$357,9,FALSE) -> 10.24 | K93: =IF(ISNA(VLOOKUP($A93,Produits!$A$1:$O$357,14,FALSE)),"",VLOOKUP($A93,Produits!$A$1:$O$357,14,FALSE)) -> 3760219062080 | L93: 81
A94: 26E2 | B94: =VLOOKUP($A94,Produits!$A$1:$P$357,2,FALSE) -> Prun’Choco® (saveur à préciser) | C94: =VLOOKUP($A94,Produits!$A$1:$P$357,3,FALSE) -> 300g | D94: =VLOOKUP($A94,Produits!$A$1:$P$357,5,FALSE) -> 5 | E94: =VLOOKUP($A94,Produits!$A$1:$P$357,4,FALSE) -> Écrin élég. | F94: =VLOOKUP($A94,Produits!$A$1:$P$357,6,FALSE) -> 19.81042 | G94: =VLOOKUP($A94,Produits!$A$1:$P$357,7,FALSE) -> 20.9 | H94: =VLOOKUP($A94,Produits!$A$1:$P$357,10,FALSE) -> 0.055 | I94: =VLOOKUP($A94,Produits!$A$1:$P$357,8,FALSE) -> 0.2 | J94: =VLOOKUP($A94,Produits!$A$1:$P$357,9,FALSE) -> 15.85 | K94: =IF(ISNA(VLOOKUP($A94,Produits!$A$1:$O$357,14,FALSE)),"",VLOOKUP($A94,Produits!$A$1:$O$357,14,FALSE)) -> 3760219062073 | L94: 82
A95: 26V | B95: =VLOOKUP($A95,Produits!$A$1:$P$357,2,FALSE) -> Prun’Choco® (saveur à préciser) | C95: =VLOOKUP($A95,Produits!$A$1:$P$357,3,FALSE) -> 1kg | D95: =VLOOKUP($A95,Produits!$A$1:$P$357,5,FALSE) -> 1 | E95: =VLOOKUP($A95,Produits!$A$1:$P$357,4,FALSE) -> VRAC | F95: =VLOOKUP($A95,Produits!$A$1:$P$357,6,FALSE) -> 37.8199 | G95: =VLOOKUP($A95,Produits!$A$1:$P$357,7,FALSE) -> 39.9 | H95: =VLOOKUP($A95,Produits!$A$1:$P$357,10,FALSE) -> 0.055 | I95: =VLOOKUP($A95,Produits!$A$1:$P$357,8,FALSE) -> 0.2 | J95: =VLOOKUP($A95,Produits!$A$1:$P$357,9,FALSE) -> 30.26 | K95: =IF(ISNA(VLOOKUP($A95,Produits!$A$1:$O$357,14,FALSE)),"",VLOOKUP($A95,Produits!$A$1:$O$357,14,FALSE)) -> 3760219062066 | L95: 83
A96: 27P | B96: =VLOOKUP($A96,Produits!$A$1:$P$357,2,FALSE) -> Pruneaux fourrés | C96: =VLOOKUP($A96,Produits!$A$1:$P$357,3,FALSE) -> 250g | D96: =VLOOKUP($A96,Produits!$A$1:$P$357,5,FALSE) -> 5 | E96: =VLOOKUP($A96,Produits!$A$1:$P$357,4,FALSE) -> Pochette | F96: =VLOOKUP($A96,Produits!$A$1:$P$357,6,FALSE) -> 4.45 | G96: =VLOOKUP($A96,Produits!$A$1:$P$357,7,FALSE) -> 8.9 | H96: =VLOOKUP($A96,Produits!$A$1:$P$357,10,FALSE) -> TRUE | I96: =VLOOKUP($A96,Produits!$A$1:$P$357,8,FALSE) -> 0.2 | J96: =VLOOKUP($A96,Produits!$A$1:$P$357,9,FALSE) -> 3.56 | K96: =IF(ISNA(VLOOKUP($A96,Produits!$A$1:$O$357,14,FALSE)),"",VLOOKUP($A96,Produits!$A$1:$O$357,14,FALSE)) -> 3760219062059 | L96: 84
A97: 27B1 | B97: =VLOOKUP($A97,Produits!$A$1:$P$357,2,FALSE) -> Pruneaux fourrés | C97: =VLOOKUP($A97,Produits!$A$1:$P$357,3,FALSE) -> 100g | D97: =VLOOKUP($A97,Produits!$A$1:$P$357,5,FALSE) -> 5 | E97: =VLOOKUP($A97,Produits!$A$1:$P$357,4,FALSE) -> Ballotin | F97: =VLOOKUP($A97,Produits!$A$1:$P$357,6,FALSE) -> 4.08333 | G97: =VLOOKUP($A97,Produits!$A$1:$P$357,7,FALSE) -> 4.9 | H97: =VLOOKUP($A97,Produits!$A$1:$P$357,10,FALSE) -> 0.2 | I97: =VLOOKUP($A97,Produits!$A$1:$P$357,8,FALSE) -> 0.2 | J97: =VLOOKUP($A97,Produits!$A$1:$P$357,9,FALSE) -> 3.27 | K97: =IF(ISNA(VLOOKUP($A97,Produits!$A$1:$O$357,14,FALSE)),"",VLOOKUP($A97,Produits!$A$1:$O$357,14,FALSE)) -> 3760219062042 | L97: 85
A98: 27E1 | B98: =VLOOKUP($A98,Produits!$A$1:$P$357,2,FALSE) -> Pruneaux fourrés | C98: =VLOOKUP($A98,Produits!$A$1:$P$357,3,FALSE) -> 400g | D98: =VLOOKUP($A98,Produits!$A$1:$P$357,5,FALSE) -> 5 | E98: =VLOOKUP($A98,Produits!$A$1:$P$357,4,FALSE) -> Écrin élég. | F98: =VLOOKUP($A98,Produits!$A$1:$P$357,6,FALSE) -> 14.08333 | G98: =VLOOKUP($A98,Produits!$A$1:$P$357,7,FALSE) -> 16.9 | H98: =VLOOKUP($A98,Produits!$A$1:$P$357,10,FALSE) -> 0.2 | I98: =VLOOKUP($A98,Produits!$A$1:$P$357,8,FALSE) -> 0.2 | J98: =VLOOKUP($A98,Produits!$A$1:$P$357,9,FALSE) -> 11.27 | K98: =IF(ISNA(VLOOKUP($A98,Produits!$A$1:$O$357,14,FALSE)),"",VLOOKUP($A98,Produits!$A$1:$O$357,14,FALSE)) -> 3760219062035 | L98: 86
A99: 27E2 | B99: =VLOOKUP($A99,Produits!$A$1:$P$357,2,FALSE) -> Pruneaux fourrés | C99: =VLOOKUP($A99,Produits!$A$1:$P$357,3,FALSE) -> 550g | D99: =VLOOKUP($A99,Produits!$A$1:$P$357,5,FALSE) -> 5 | E99: =VLOOKUP($A99,Produits!$A$1:$P$357,4,FALSE) -> Écrin élég. | F99: =VLOOKUP($A99,Produits!$A$1:$P$357,6,FALSE) -> 17.5 | G99: =VLOOKUP($A99,Produits!$A$1:$P$357,7,FALSE) -> 21 | H99: =VLOOKUP($A99,Produits!$A$1:$P$357,10,FALSE) -> 0.2 | I99: =VLOOKUP($A99,Produits!$A$1:$P$357,8,FALSE) -> 0.2 | J99: =VLOOKUP($A99,Produits!$A$1:$P$357,9,FALSE) -> 14 | K99: =IF(ISNA(VLOOKUP($A99,Produits!$A$1:$O$357,14,FALSE)),"",VLOOKUP($A99,Produits!$A$1:$O$357,14,FALSE)) -> 3760219062028 | L99: 87
A100: 28P | B100: =VLOOKUP($A100,Produits!$A$1:$P$357,2,FALSE) -> Pruneaux fourrés orangette | C100: =VLOOKUP($A100,Produits!$A$1:$P$357,3,FALSE) -> 250g | D100: =VLOOKUP($A100,Produits!$A$1:$P$357,5,FALSE) -> 5 | E100: =VLOOKUP($A100,Produits!$A$1:$P$357,4,FALSE) -> Pochette | F100: =VLOOKUP($A100,Produits!$A$1:$P$357,6,FALSE) -> 7.66666 | G100: =VLOOKUP($A100,Produits!$A$1:$P$357,7,FALSE) -> 9.2 | H100: =VLOOKUP($A100,Produits!$A$1:$P$357,10,FALSE) -> 0.2 | I100: =VLOOKUP($A100,Produits!$A$1:$P$357,8,FALSE) -> 0.2 | J100: =VLOOKUP($A100,Produits!$A$1:$P$357,9,FALSE) -> 6.14 | K100: =IF(ISNA(VLOOKUP($A100,Produits!$A$1:$O$357,14,FALSE)),"",VLOOKUP($A100,Produits!$A$1:$O$357,14,FALSE)) -> 3760219062011 | L100: 88
A101: 28B1 | B101: =VLOOKUP($A101,Produits!$A$1:$P$357,2,FALSE) -> Pruneaux fourrés orangette | C101: =VLOOKUP($A101,Produits!$A$1:$P$357,3,FALSE) -> 100g | D101: =VLOOKUP($A101,Produits!$A$1:$P$357,5,FALSE) -> 5 | E101: =VLOOKUP($A101,Produits!$A$1:$P$357,4,FALSE) -> Ballotin | F101: =VLOOKUP($A101,Produits!$A$1:$P$357,6,FALSE) -> 4.16666 | G101: =VLOOKUP($A101,Produits!$A$1:$P$357,7,FALSE) -> 5 | H101: =VLOOKUP($A101,Produits!$A$1:$P$357,10,FALSE) -> 0.2 | I101: =VLOOKUP($A101,Produits!$A$1:$P$357,8,FALSE) -> 0.2 | J101: =VLOOKUP($A101,Produits!$A$1:$P$357,9,FALSE) -> 3.34 | K101: =IF(ISNA(VLOOKUP($A101,Produits!$A$1:$O$357,14,FALSE)),"",VLOOKUP($A101,Produits!$A$1:$O$357,14,FALSE)) -> 3760219062004 | L101: 89
A102: 28E1 | B102: =VLOOKUP($A102,Produits!$A$1:$P$357,2,FALSE) -> Pruneaux fourrés orangette | C102: =VLOOKUP($A102,Produits!$A$1:$P$357,3,FALSE) -> 400g | D102: =VLOOKUP($A102,Produits!$A$1:$P$357,5,FALSE) -> 5 | E102: =VLOOKUP($A102,Produits!$A$1:$P$357,4,FALSE) -> Écrin élég. | F102: =VLOOKUP($A102,Produits!$A$1:$P$357,6,FALSE) -> 14.58333 | G102: =VLOOKUP($A102,Produits!$A$1:$P$357,7,FALSE) -> 17.5 | H102: =VLOOKUP($A102,Produits!$A$1:$P$357,10,FALSE) -> 0.2 | I102: =VLOOKUP($A102,Produits!$A$1:$P$357,8,FALSE) -> 0.2 | J102: =VLOOKUP($A102,Produits!$A$1:$P$357,9,FALSE) -> 11.67 | K102: =IF(ISNA(VLOOKUP($A102,Produits!$A$1:$O$357,14,FALSE)),"",VLOOKUP($A102,Produits!$A$1:$O$357,14,FALSE)) -> 3760219061991 | L102: 90
A103: 28E2 | B103: =VLOOKUP($A103,Produits!$A$1:$P$357,2,FALSE) -> Pruneaux fourrés orangette | C103: =VLOOKUP($A103,Produits!$A$1:$P$357,3,FALSE) -> 550g | D103: =VLOOKUP($A103,Produits!$A$1:$P$357,5,FALSE) -> 5 | E103: =VLOOKUP($A103,Produits!$A$1:$P$357,4,FALSE) -> Écrin élég. | F103: =VLOOKUP($A103,Produits!$A$1:$P$357,6,FALSE) -> 18.25 | G103: =VLOOKUP($A103,Produits!$A$1:$P$357,7,FALSE) -> 21.9 | H103: =VLOOKUP($A103,Produits!$A$1:$P$357,10,FALSE) -> 0.2 | I103: =VLOOKUP($A103,Produits!$A$1:$P$357,8,FALSE) -> 0.2 | J103: =VLOOKUP($A103,Produits!$A$1:$P$357,9,FALSE) -> 14.6 | K103: =IF(ISNA(VLOOKUP($A103,Produits!$A$1:$O$357,14,FALSE)),"",VLOOKUP($A103,Produits!$A$1:$O$357,14,FALSE)) -> 3760219061984 | L103: 91
A104: 29E1 | B104: =VLOOKUP($A104,Produits!$A$1:$P$357,2,FALSE) -> Pruneaux d’Agen truffés | C104: =VLOOKUP($A104,Produits!$A$1:$P$357,3,FALSE) -> 270g | D104: =VLOOKUP($A104,Produits!$A$1:$P$357,5,FALSE) -> 5 | E104: =VLOOKUP($A104,Produits!$A$1:$P$357,4,FALSE) -> Écrin élég. | F104: =VLOOKUP($A104,Produits!$A$1:$P$357,6,FALSE) -> 14.12322 | G104: =VLOOKUP($A104,Produits!$A$1:$P$357,7,FALSE) -> 14.9 | H104: =VLOOKUP($A104,Produits!$A$1:$P$357,10,FALSE) -> 0.055 | I104: =VLOOKUP($A104,Produits!$A$1:$P$357,8,FALSE) -> 0.2 | J104: =VLOOKUP($A104,Produits!$A$1:$P$357,9,FALSE) -> 11.3 | K104: =IF(ISNA(VLOOKUP($A104,Produits!$A$1:$O$357,14,FALSE)),"",VLOOKUP($A104,Produits!$A$1:$O$357,14,FALSE)) -> 3760219061977 | L104: 92
A105: 29E2 | B105: =VLOOKUP($A105,Produits!$A$1:$P$357,2,FALSE) -> Pruneaux d’Agen truffés | C105: =VLOOKUP($A105,Produits!$A$1:$P$357,3,FALSE) -> 400g | D105: =VLOOKUP($A105,Produits!$A$1:$P$357,5,FALSE) -> 5 | E105: =VLOOKUP($A105,Produits!$A$1:$P$357,4,FALSE) -> Écrin élég. | F105: =VLOOKUP($A105,Produits!$A$1:$P$357,6,FALSE) -> 20.85308 | G105: =VLOOKUP($A105,Produits!$A$1:$P$357,7,FALSE) -> 22 | H105: =VLOOKUP($A105,Produits!$A$1:$P$357,10,FALSE) -> 0.055 | I105: =VLOOKUP($A105,Produits!$A$1:$P$357,8,FALSE) -> 0.2 | J105: =VLOOKUP($A105,Produits!$A$1:$P$357,9,FALSE) -> 16.69 | K105: =IF(ISNA(VLOOKUP($A105,Produits!$A$1:$O$357,14,FALSE)),"",VLOOKUP($A105,Produits!$A$1:$O$357,14,FALSE)) -> 3760219061960 | L105: 93
A106: 30A | B106: =VLOOKUP($A106,Produits!$A$1:$P$357,2,FALSE) -> Pruneaux aromatisés au vin blanc MonBazillac | C106: =VLOOKUP($A106,Produits!$A$1:$P$357,3,FALSE) -> 320g | D106: =VLOOKUP($A106,Produits!$A$1:$P$357,5,FALSE) -> 14 | E106: =VLOOKUP($A106,Produits!$A$1:$P$357,4,FALSE) -> Bocal | F106: =VLOOKUP($A106,Produits!$A$1:$P$357,6,FALSE) -> 6.63507 | G106: =VLOOKUP($A106,Produits!$A$1:$P$357,7,FALSE) -> 7 | H106: =VLOOKUP($A106,Produits!$A$1:$P$357,10,FALSE) -> 0.055 | I106: =VLOOKUP($A106,Produits!$A$1:$P$357,8,FALSE) -> 0.25 | J106: =VLOOKUP($A106,Produits!$A$1:$P$357,9,FALSE) -> 4.98 | K106: =IF(ISNA(VLOOKUP($A106,Produits!$A$1:$O$357,14,FALSE)),"",VLOOKUP($A106,Produits!$A$1:$O$357,14,FALSE)) -> 3760219061953 | L106: 94
A107: 30B | B107: =VLOOKUP($A107,Produits!$A$1:$P$357,2,FALSE) -> Pruneaux aromatisés au vin rouge de pays vanille | C107: =VLOOKUP($A107,Produits!$A$1:$P$357,3,FALSE) -> 320g | D107: =VLOOKUP($A107,Produits!$A$1:$P$357,5,FALSE) -> 14 | E107: =VLOOKUP($A107,Produits!$A$1:$P$357,4,FALSE) -> Bocal | F107: =VLOOKUP($A107,Produits!$A$1:$P$357,6,FALSE) -> 5.78199 | G107: =VLOOKUP($A107,Produits!$A$1:$P$357,7,FALSE) -> 6.1 | H107: =VLOOKUP($A107,Produits!$A$1:$P$357,10,FALSE) -> 0.055 | I107: =VLOOKUP($A107,Produits!$A$1:$P$357,8,FALSE) -> 0.25 | J107: =VLOOKUP($A107,Produits!$A$1:$P$357,9,FALSE) -> 4.34 | K107: =IF(ISNA(VLOOKUP($A107,Produits!$A$1:$O$357,14,FALSE)),"",VLOOKUP($A107,Produits!$A$1:$O$357,14,FALSE)) -> 3760219061946 | L107: 95
A108: 30C | B108: =VLOOKUP($A108,Produits!$A$1:$P$357,2,FALSE) -> Pruneaux aromatisés au vin rouge de pays canelle | C108: =VLOOKUP($A108,Produits!$A$1:$P$357,3,FALSE) -> 320g | D108: =VLOOKUP($A108,Produits!$A$1:$P$357,5,FALSE) -> 14 | E108: =VLOOKUP($A108,Produits!$A$1:$P$357,4,FALSE) -> Bocal | F108: =VLOOKUP($A108,Produits!$A$1:$P$357,6,FALSE) -> 5.78199 | G108: =VLOOKUP($A108,Produits!$A$1:$P$357,7,FALSE) -> 6.1 | H108: =VLOOKUP($A108,Produits!$A$1:$P$357,10,FALSE) -> 0.055 | I108: =VLOOKUP($A108,Produits!$A$1:$P$357,8,FALSE) -> 0.25 | J108: =VLOOKUP($A108,Produits!$A$1:$P$357,9,FALSE) -> 4.34 | K108: =IF(ISNA(VLOOKUP($A108,Produits!$A$1:$O$357,14,FALSE)),"",VLOOKUP($A108,Produits!$A$1:$O$357,14,FALSE)) -> 3760219061939 | L108: 96
A109: 31A | B109: =VLOOKUP($A109,Produits!$A$1:$P$357,2,FALSE) -> Pruneaux à l’Armagnac - 20° | C109: =VLOOKUP($A109,Produits!$A$1:$P$357,3,FALSE) -> 0,5L | D109: =VLOOKUP($A109,Produits!$A$1:$P$357,5,FALSE) -> 6 | E109: =VLOOKUP($A109,Produits!$A$1:$P$357,4,FALSE) -> Bocal | F109: =VLOOKUP($A109,Produits!$A$1:$P$357,6,FALSE) -> 16.08333 | G109: =VLOOKUP($A109,Produits!$A$1:$P$357,7,FALSE) -> 19.3 | H109: =VLOOKUP($A109,Produits!$A$1:$P$357,10,FALSE) -> 0.2 | I109: =VLOOKUP($A109,Produits!$A$1:$P$357,8,FALSE) -> 0.2 | J109: =VLOOKUP($A109,Produits!$A$1:$P$357,9,FALSE) -> 12.87 | K109: =IF(ISNA(VLOOKUP($A109,Produits!$A$1:$O$357,14,FALSE)),"",VLOOKUP($A109,Produits!$A$1:$O$357,14,FALSE)) -> 3760219061922 | L109: 97
A110: 31B | B110: =VLOOKUP($A110,Produits!$A$1:$P$357,2,FALSE) -> Pruneaux à l’Armagnac - 20° | C110: =VLOOKUP($A110,Produits!$A$1:$P$357,3,FALSE) -> 0,7L | D110: =VLOOKUP($A110,Produits!$A$1:$P$357,5,FALSE) -> 6 | E110: =VLOOKUP($A110,Produits!$A$1:$P$357,4,FALSE) -> Bocal | F110: =VLOOKUP($A110,Produits!$A$1:$P$357,6,FALSE) -> 20.41666 | G110: =VLOOKUP($A110,Produits!$A$1:$P$357,7,FALSE) -> 24.5 | H110: =VLOOKUP($A110,Produits!$A$1:$P$357,10,FALSE) -> 0.2 | I110: =VLOOKUP($A110,Produits!$A$1:$P$357,8,FALSE) -> 0.2 | J110: =VLOOKUP($A110,Produits!$A$1:$P$357,9,FALSE) -> 16.34 | K110: =IF(ISNA(VLOOKUP($A110,Produits!$A$1:$O$357,14,FALSE)),"",VLOOKUP($A110,Produits!$A$1:$O$357,14,FALSE)) -> 3760219061915 | L110: 98
A111: 31C | B111: =VLOOKUP($A111,Produits!$A$1:$P$357,2,FALSE) -> Pruneaux à l’Armagnac - 20° | C111: =VLOOKUP($A111,Produits!$A$1:$P$357,3,FALSE) -> 1L | D111: =VLOOKUP($A111,Produits!$A$1:$P$357,5,FALSE) -> 6 | E111: =VLOOKUP($A111,Produits!$A$1:$P$357,4,FALSE) -> Bocal | F111: =VLOOKUP($A111,Produits!$A$1:$P$357,6,FALSE) -> 24.91666 | G111: =VLOOKUP($A111,Produits!$A$1:$P$357,7,FALSE) -> 29.9 | H111: =VLOOKUP($A111,Produits!$A$1:$P$357,10,FALSE) -> 0.2 | I111: =VLOOKUP($A111,Produits!$A$1:$P$357,8,FALSE) -> 0.2 | J111: =VLOOKUP($A111,Produits!$A$1:$P$357,9,FALSE) -> 19.94 | K111: =IF(ISNA(VLOOKUP($A111,Produits!$A$1:$O$357,14,FALSE)),"",VLOOKUP($A111,Produits!$A$1:$O$357,14,FALSE)) -> 3760219061908 | L111: 99
A112: 32A | B112: =VLOOKUP($A112,Produits!$A$1:$P$357,2,FALSE) -> Pruneaux à l’eau de vie - 20° | C112: =VLOOKUP($A112,Produits!$A$1:$P$357,3,FALSE) -> 0,5L | D112: =VLOOKUP($A112,Produits!$A$1:$P$357,5,FALSE) -> 6 | E112: =VLOOKUP($A112,Produits!$A$1:$P$357,4,FALSE) -> Bocal | F112: =VLOOKUP($A112,Produits!$A$1:$P$357,6,FALSE) -> 16.08333 | G112: =VLOOKUP($A112,Produits!$A$1:$P$357,7,FALSE) -> 19.3 | H112: =VLOOKUP($A112,Produits!$A$1:$P$357,10,FALSE) -> 0.2 | I112: =VLOOKUP($A112,Produits!$A$1:$P$357,8,FALSE) -> 0.2 | J112: =VLOOKUP($A112,Produits!$A$1:$P$357,9,FALSE) -> 12.87 | K112: =IF(ISNA(VLOOKUP($A112,Produits!$A$1:$O$357,14,FALSE)),"",VLOOKUP($A112,Produits!$A$1:$O$357,14,FALSE)) -> 3760219061892 | L112: 100
A113: 32B | B113: =VLOOKUP($A113,Produits!$A$1:$P$357,2,FALSE) -> Pruneaux à l’eau de vie - 20° | C113: =VLOOKUP($A113,Produits!$A$1:$P$357,3,FALSE) -> 0,7L | D113: =VLOOKUP($A113,Produits!$A$1:$P$357,5,FALSE) -> 6 | E113: =VLOOKUP($A113,Produits!$A$1:$P$357,4,FALSE) -> Bocal | F113: =VLOOKUP($A113,Produits!$A$1:$P$357,6,FALSE) -> 20.41666 | G113: =VLOOKUP($A113,Produits!$A$1:$P$357,7,FALSE) -> 24.5 | H113: =VLOOKUP($A113,Produits!$A$1:$P$357,10,FALSE) -> 0.2 | I113: =VLOOKUP($A113,Produits!$A$1:$P$357,8,FALSE) -> 0.2 | J113: =VLOOKUP($A113,Produits!$A$1:$P$357,9,FALSE) -> 16.34 | K113: =IF(ISNA(VLOOKUP($A113,Produits!$A$1:$O$357,14,FALSE)),"",VLOOKUP($A113,Produits!$A$1:$O$357,14,FALSE)) -> 3760219061885 | L113: 101
A114: 32C | B114: =VLOOKUP($A114,Produits!$A$1:$P$357,2,FALSE) -> Pruneaux à l’eau de vie - 20° | C114: =VLOOKUP($A114,Produits!$A$1:$P$357,3,FALSE) -> 1L | D114: =VLOOKUP($A114,Produits!$A$1:$P$357,5,FALSE) -> 6 | E114: =VLOOKUP($A114,Produits!$A$1:$P$357,4,FALSE) -> Bocal | F114: =VLOOKUP($A114,Produits!$A$1:$P$357,6,FALSE) -> 24.91666 | G114: =VLOOKUP($A114,Produits!$A$1:$P$357,7,FALSE) -> 29.9 | H114: =VLOOKUP($A114,Produits!$A$1:$P$357,10,FALSE) -> 0.2 | I114: =VLOOKUP($A114,Produits!$A$1:$P$357,8,FALSE) -> 0.2 | J114: =VLOOKUP($A114,Produits!$A$1:$P$357,9,FALSE) -> 19.94 | K114: =IF(ISNA(VLOOKUP($A114,Produits!$A$1:$O$357,14,FALSE)),"",VLOOKUP($A114,Produits!$A$1:$O$357,14,FALSE)) -> 3760219061878 | L114: 102
A115: 33A-EDV | B115: =VLOOKUP($A115,Produits!$A$1:$P$357,2,FALSE) -> Pruneaux d'Agen Eau de vie - 20° | C115: =VLOOKUP($A115,Produits!$A$1:$P$357,3,FALSE) -> 200ml | D115: =VLOOKUP($A115,Produits!$A$1:$P$357,5,FALSE) -> 6 | E115: =VLOOKUP($A115,Produits!$A$1:$P$357,4,FALSE) -> Bocal | F115: =VLOOKUP($A115,Produits!$A$1:$P$357,6,FALSE) -> 7.08333 | G115: =VLOOKUP($A115,Produits!$A$1:$P$357,7,FALSE) -> 8.5 | H115: =VLOOKUP($A115,Produits!$A$1:$P$357,10,FALSE) -> 0.2 | I115: =VLOOKUP($A115,Produits!$A$1:$P$357,8,FALSE) -> 0.2 | J115: =VLOOKUP($A115,Produits!$A$1:$P$357,9,FALSE) -> 5.67 | K115: =IF(ISNA(VLOOKUP($A115,Produits!$A$1:$O$357,14,FALSE)),"",VLOOKUP($A115,Produits!$A$1:$O$357,14,FALSE)) -> 3760219062950 | L115: 103
A116: 33A-ARM | B116: =VLOOKUP($A116,Produits!$A$1:$P$357,2,FALSE) -> Pruneaux d'Agen Armagnac - 20° | C116: =VLOOKUP($A116,Produits!$A$1:$P$357,3,FALSE) -> 200ml | D116: =VLOOKUP($A116,Produits!$A$1:$P$357,5,FALSE) -> 6 | E116: =VLOOKUP($A116,Produits!$A$1:$P$357,4,FALSE) -> Bocal | F116: =VLOOKUP($A116,Produits!$A$1:$P$357,6,FALSE) -> 7.08333 | G116: =VLOOKUP($A116,Produits!$A$1:$P$357,7,FALSE) -> 8.5 | H116: =VLOOKUP($A116,Produits!$A$1:$P$357,10,FALSE) -> 0.2 | I116: =VLOOKUP($A116,Produits!$A$1:$P$357,8,FALSE) -> 0.2 | J116: =VLOOKUP($A116,Produits!$A$1:$P$357,9,FALSE) -> 5.67 | K116: =IF(ISNA(VLOOKUP($A116,Produits!$A$1:$O$357,14,FALSE)),"",VLOOKUP($A116,Produits!$A$1:$O$357,14,FALSE)) -> 3760219062967 | L116: 104
A117: 33B-RHM | B117: =VLOOKUP($A117,Produits!$A$1:$P$357,2,FALSE) -> Pruneaux d'Agen Rhum - 18° | C117: =VLOOKUP($A117,Produits!$A$1:$P$357,3,FALSE) -> 200ml | D117: =VLOOKUP($A117,Produits!$A$1:$P$357,5,FALSE) -> 6 | E117: =VLOOKUP($A117,Produits!$A$1:$P$357,4,FALSE) -> Bocal | F117: =VLOOKUP($A117,Produits!$A$1:$P$357,6,FALSE) -> 4.75 | G117: =VLOOKUP($A117,Produits!$A$1:$P$357,7,FALSE) -> 9.5 | H117: =VLOOKUP($A117,Produits!$A$1:$P$357,10,FALSE) -> TRUE | I117: =VLOOKUP($A117,Produits!$A$1:$P$357,8,FALSE) -> 0.2 | J117: =VLOOKUP($A117,Produits!$A$1:$P$357,9,FALSE) -> 3.8 | K117: =IF(ISNA(VLOOKUP($A117,Produits!$A$1:$O$357,14,FALSE)),"",VLOOKUP($A117,Produits!$A$1:$O$357,14,FALSE)) -> 3760219062998 | L117: 105
A118: 33B-WSK | B118: =VLOOKUP($A118,Produits!$A$1:$P$357,2,FALSE) -> Pruneaux d'Agen Whisky - 18° | C118: =VLOOKUP($A118,Produits!$A$1:$P$357,3,FALSE) -> 200ml | D118: =VLOOKUP($A118,Produits!$A$1:$P$357,5,FALSE) -> 6 | E118: =VLOOKUP($A118,Produits!$A$1:$P$357,4,FALSE) -> Bocal | F118: =VLOOKUP($A118,Produits!$A$1:$P$357,6,FALSE) -> 7.91666 | G118: =VLOOKUP($A118,Produits!$A$1:$P$357,7,FALSE) -> 9.5 | H118: =VLOOKUP($A118,Produits!$A$1:$P$357,10,FALSE) -> 0.2 | I118: =VLOOKUP($A118,Produits!$A$1:$P$357,8,FALSE) -> 0.2 | J118: =VLOOKUP($A118,Produits!$A$1:$P$357,9,FALSE) -> 6.34 | K118: =IF(ISNA(VLOOKUP($A118,Produits!$A$1:$O$357,14,FALSE)),"",VLOOKUP($A118,Produits!$A$1:$O$357,14,FALSE)) -> 3760219062981 | L118: 106
A119: 33B-CTR | B119: =VLOOKUP($A119,Produits!$A$1:$P$357,2,FALSE) -> Pruneaux d'Agen Cointreau - 18° | C119: =VLOOKUP($A119,Produits!$A$1:$P$357,3,FALSE) -> 200ml | D119: =VLOOKUP($A119,Produits!$A$1:$P$357,5,FALSE) -> 6 | E119: =VLOOKUP($A119,Produits!$A$1:$P$357,4,FALSE) -> Bocal | F119: =VLOOKUP($A119,Produits!$A$1:$P$357,6,FALSE) -> 7.91666 | G119: =VLOOKUP($A119,Produits!$A$1:$P$357,7,FALSE) -> 9.5 | H119: =VLOOKUP($A119,Produits!$A$1:$P$357,10,FALSE) -> 0.2 | I119: =VLOOKUP($A119,Produits!$A$1:$P$357,8,FALSE) -> 0.2 | J119: =VLOOKUP($A119,Produits!$A$1:$P$357,9,FALSE) -> 6.34 | K119: =IF(ISNA(VLOOKUP($A119,Produits!$A$1:$O$357,14,FALSE)),"",VLOOKUP($A119,Produits!$A$1:$O$357,14,FALSE)) -> 3760219062974 | L119: 107
A120: 33C | B120: =VLOOKUP($A120,Produits!$A$1:$P$357,2,FALSE) -> Coffret Pruneaux aux alcools x2 (alcools à préciser) | C120: =VLOOKUP($A120,Produits!$A$1:$P$357,3,FALSE) -> 200ml | D120: =VLOOKUP($A120,Produits!$A$1:$P$357,5,FALSE) -> 6 | E120: =VLOOKUP($A120,Produits!$A$1:$P$357,4,FALSE) -> Bocal | F120: =VLOOKUP($A120,Produits!$A$1:$P$357,6,FALSE) -> 15 | G120: =VLOOKUP($A120,Produits!$A$1:$P$357,7,FALSE) -> 18 | H120: =VLOOKUP($A120,Produits!$A$1:$P$357,10,FALSE) -> 0.2 | I120: =VLOOKUP($A120,Produits!$A$1:$P$357,8,FALSE) -> 0.2 | J120: =VLOOKUP($A120,Produits!$A$1:$P$357,9,FALSE) -> 12 | K120: =IF(ISNA(VLOOKUP($A120,Produits!$A$1:$O$357,14,FALSE)),"",VLOOKUP($A120,Produits!$A$1:$O$357,14,FALSE)) -> 3760219061847 | L120: 108
A121: 33D | B121: =VLOOKUP($A121,Produits!$A$1:$P$357,2,FALSE) -> Coffret Pruneaux aux alcools x3 (alcools à préciser) | C121: =VLOOKUP($A121,Produits!$A$1:$P$357,3,FALSE) -> 200ml | D121: =VLOOKUP($A121,Produits!$A$1:$P$357,5,FALSE) -> 6 | E121: =VLOOKUP($A121,Produits!$A$1:$P$357,4,FALSE) -> Bocal | F121: =VLOOKUP($A121,Produits!$A$1:$P$357,6,FALSE) -> 22.91666 | G121: =VLOOKUP($A121,Produits!$A$1:$P$357,7,FALSE) -> 27.5 | H121: =VLOOKUP($A121,Produits!$A$1:$P$357,10,FALSE) -> 0.2 | I121: =VLOOKUP($A121,Produits!$A$1:$P$357,8,FALSE) -> 0.2 | J121: =VLOOKUP($A121,Produits!$A$1:$P$357,9,FALSE) -> 18.34 | K121: =IF(ISNA(VLOOKUP($A121,Produits!$A$1:$O$357,14,FALSE)),"",VLOOKUP($A121,Produits!$A$1:$O$357,14,FALSE)) -> 3760219061830 | L121: 109
A122: 34A | B122: =VLOOKUP($A122,Produits!$A$1:$P$357,2,FALSE) -> Petit verre Pruneaux Eau de vie ou Armagnac (à préciser) | C122: =VLOOKUP($A122,Produits!$A$1:$P$357,3,FALSE) -> 5cl | D122: =VLOOKUP($A122,Produits!$A$1:$P$357,5,FALSE) -> 48 | E122: =VLOOKUP($A122,Produits!$A$1:$P$357,4,FALSE) -> Petit verre | F122: =VLOOKUP($A122,Produits!$A$1:$P$357,6,FALSE) -> 1.3 | G122: =VLOOKUP($A122,Produits!$A$1:$P$357,7,FALSE) -> 2.6 | H122: =VLOOKUP($A122,Produits!$A$1:$P$357,10,FALSE) -> TRUE | I122: =VLOOKUP($A122,Produits!$A$1:$P$357,8,FALSE) -> 0.2 | J122: =VLOOKUP($A122,Produits!$A$1:$P$357,9,FALSE) -> 1.04 | K122: =IF(ISNA(VLOOKUP($A122,Produits!$A$1:$O$357,14,FALSE)),"",VLOOKUP($A122,Produits!$A$1:$O$357,14,FALSE)) -> 3760219061823 | L122: 110
A123: 34B | B123: =VLOOKUP($A123,Produits!$A$1:$P$357,2,FALSE) -> Petit verre Rhum, Whisky ou Cointreau (à préciser) | C123: =VLOOKUP($A123,Produits!$A$1:$P$357,3,FALSE) -> 5cl | D123: =VLOOKUP($A123,Produits!$A$1:$P$357,5,FALSE) -> 48 | E123: =VLOOKUP($A123,Produits!$A$1:$P$357,4,FALSE) -> Petit verre | F123: =VLOOKUP($A123,Produits!$A$1:$P$357,6,FALSE) -> 2.41666 | G123: =VLOOKUP($A123,Produits!$A$1:$P$357,7,FALSE) -> 2.9 | H123: =VLOOKUP($A123,Produits!$A$1:$P$357,10,FALSE) -> 0.2 | I123: =VLOOKUP($A123,Produits!$A$1:$P$357,8,FALSE) -> 0.2 | J123: =VLOOKUP($A123,Produits!$A$1:$P$357,9,FALSE) -> 1.94 | K123: =IF(ISNA(VLOOKUP($A123,Produits!$A$1:$O$357,14,FALSE)),"",VLOOKUP($A123,Produits!$A$1:$O$357,14,FALSE)) -> 3760219061816 | L123: 111
A124: 34C | B124: =VLOOKUP($A124,Produits!$A$1:$P$357,2,FALSE) -> Coffret petits verres x6 Eau de vie ou Armagnac (à préciser) | C124: =VLOOKUP($A124,Produits!$A$1:$P$357,3,FALSE) -> 5cl | D124: =VLOOKUP($A124,Produits!$A$1:$P$357,5,FALSE) -> 1 | E124: =VLOOKUP($A124,Produits!$A$1:$P$357,4,FALSE) -> Petit verre | F124: =VLOOKUP($A124,Produits!$A$1:$P$357,6,FALSE) -> 14.91666 | G124: =VLOOKUP($A124,Produits!$A$1:$P$357,7,FALSE) -> 17.9 | H124: =VLOOKUP($A124,Produits!$A$1:$P$357,10,FALSE) -> 0.2 | I124: =VLOOKUP($A124,Produits!$A$1:$P$357,8,FALSE) -> 0.2 | J124: =VLOOKUP($A124,Produits!$A$1:$P$357,9,FALSE) -> 11.94 | K124: =IF(ISNA(VLOOKUP($A124,Produits!$A$1:$O$357,14,FALSE)),"",VLOOKUP($A124,Produits!$A$1:$O$357,14,FALSE)) -> 3760219061809 | L124: 112
A125: 34D | B125: =VLOOKUP($A125,Produits!$A$1:$P$357,2,FALSE) -> Coffret petits verres x6 mix (alcools à préciser) | C125: =VLOOKUP($A125,Produits!$A$1:$P$357,3,FALSE) -> 5cl | D125: =VLOOKUP($A125,Produits!$A$1:$P$357,5,FALSE) -> 1 | E125: =VLOOKUP($A125,Produits!$A$1:$P$357,4,FALSE) -> Petit verre | F125: =VLOOKUP($A125,Produits!$A$1:$P$357,6,FALSE) -> 15.91666 | G125: =VLOOKUP($A125,Produits!$A$1:$P$357,7,FALSE) -> 19.1 | H125: =VLOOKUP($A125,Produits!$A$1:$P$357,10,FALSE) -> 0.2 | I125: =VLOOKUP($A125,Produits!$A$1:$P$357,8,FALSE) -> 0.2 | J125: =VLOOKUP($A125,Produits!$A$1:$P$357,9,FALSE) -> 12.74 | K125: =IF(ISNA(VLOOKUP($A125,Produits!$A$1:$O$357,14,FALSE)),"",VLOOKUP($A125,Produits!$A$1:$O$357,14,FALSE)) -> 3760219061793 | L125: 113
A126: 34E | B126: =VLOOKUP($A126,Produits!$A$1:$P$357,2,FALSE) -> Coffret petits verres x12 Eau de vie ou Armagnac (à préciser) | C126: =VLOOKUP($A126,Produits!$A$1:$P$357,3,FALSE) -> 5cl | D126: =VLOOKUP($A126,Produits!$A$1:$P$357,5,FALSE) -> 1 | E126: =VLOOKUP($A126,Produits!$A$1:$P$357,4,FALSE) -> Petit verre | F126: =VLOOKUP($A126,Produits!$A$1:$P$357,6,FALSE) -> 28 | G126: =VLOOKUP($A126,Produits!$A$1:$P$357,7,FALSE) -> 33.6 | H126: =VLOOKUP($A126,Produits!$A$1:$P$357,10,FALSE) -> 0.2 | I126: =VLOOKUP($A126,Produits!$A$1:$P$357,8,FALSE) -> 0.2 | J126: =VLOOKUP($A126,Produits!$A$1:$P$357,9,FALSE) -> 22.4 | K126: =IF(ISNA(VLOOKUP($A126,Produits!$A$1:$O$357,14,FALSE)),"",VLOOKUP($A126,Produits!$A$1:$O$357,14,FALSE)) -> 3760219061786 | L126: 114
A127: 34F | B127: =VLOOKUP($A127,Produits!$A$1:$P$357,2,FALSE) -> Coffret petits verres x12 mix (alcools à préciser) | C127: =VLOOKUP($A127,Produits!$A$1:$P$357,3,FALSE) -> 5cl | D127: =VLOOKUP($A127,Produits!$A$1:$P$357,5,FALSE) -> 1 | E127: =VLOOKUP($A127,Produits!$A$1:$P$357,4,FALSE) -> Petit verre | F127: =VLOOKUP($A127,Produits!$A$1:$P$357,6,FALSE) -> 30.08333 | G127: =VLOOKUP($A127,Produits!$A$1:$P$357,7,FALSE) -> 36.1 | H127: =VLOOKUP($A127,Produits!$A$1:$P$357,10,FALSE) -> 0.2 | I127: =VLOOKUP($A127,Produits!$A$1:$P$357,8,FALSE) -> 0.2 | J127: =VLOOKUP($A127,Produits!$A$1:$P$357,9,FALSE) -> 24.07 | K127: =IF(ISNA(VLOOKUP($A127,Produits!$A$1:$O$357,14,FALSE)),"",VLOOKUP($A127,Produits!$A$1:$O$357,14,FALSE)) -> 3760219061779 | L127: 115
A128: 35A | B128: =VLOOKUP($A128,Produits!$A$1:$P$357,2,FALSE) -> Apéritif de Pruneau - 16° | C128: =VLOOKUP($A128,Produits!$A$1:$P$357,3,FALSE) -> 0,375L | D128: =VLOOKUP($A128,Produits!$A$1:$P$357,5,FALSE) -> 6 | E128: =VLOOKUP($A128,Produits!$A$1:$P$357,4,FALSE) -> Bouteille | F128: =VLOOKUP($A128,Produits!$A$1:$P$357,6,FALSE) -> 5.75 | G128: =VLOOKUP($A128,Produits!$A$1:$P$357,7,FALSE) -> 11.5 | H128: =VLOOKUP($A128,Produits!$A$1:$P$357,10,FALSE) -> TRUE | I128: =VLOOKUP($A128,Produits!$A$1:$P$357,8,FALSE) -> 0.2 | J128: =VLOOKUP($A128,Produits!$A$1:$P$357,9,FALSE) -> 4.6 | K128: =IF(ISNA(VLOOKUP($A128,Produits!$A$1:$O$357,14,FALSE)),"",VLOOKUP($A128,Produits!$A$1:$O$357,14,FALSE)) -> 3760219061762 | L128: 116
A129: 35B | B129: =VLOOKUP($A129,Produits!$A$1:$P$357,2,FALSE) -> Apéritif de Pruneau - 16° | C129: =VLOOKUP($A129,Produits!$A$1:$P$357,3,FALSE) -> 0,7L | D129: =VLOOKUP($A129,Produits!$A$1:$P$357,5,FALSE) -> 6 | E129: =VLOOKUP($A129,Produits!$A$1:$P$357,4,FALSE) -> Bouteille | F129: =VLOOKUP($A129,Produits!$A$1:$P$357,6,FALSE) -> 15.16666 | G129: =VLOOKUP($A129,Produits!$A$1:$P$357,7,FALSE) -> 18.2 | H129: =VLOOKUP($A129,Produits!$A$1:$P$357,10,FALSE) -> 0.2 | I129: =VLOOKUP($A129,Produits!$A$1:$P$357,8,FALSE) -> 0.2 | J129: =VLOOKUP($A129,Produits!$A$1:$P$357,9,FALSE) -> 12.14 | K129: =IF(ISNA(VLOOKUP($A129,Produits!$A$1:$O$357,14,FALSE)),"",VLOOKUP($A129,Produits!$A$1:$O$357,14,FALSE)) -> 3760219061755 | L129: 117
A130: 36A | B130: =VLOOKUP($A130,Produits!$A$1:$P$357,2,FALSE) -> Liqueur d’Eau de vie de prune d’Ente - 24° | C130: =VLOOKUP($A130,Produits!$A$1:$P$357,3,FALSE) -> 0,375L | D130: =VLOOKUP($A130,Produits!$A$1:$P$357,5,FALSE) -> 6 | E130: =VLOOKUP($A130,Produits!$A$1:$P$357,4,FALSE) -> Bouteille | F130: =VLOOKUP($A130,Produits!$A$1:$P$357,6,FALSE) -> 10.5 | G130: =VLOOKUP($A130,Produits!$A$1:$P$357,7,FALSE) -> 12.6 | H130: =VLOOKUP($A130,Produits!$A$1:$P$357,10,FALSE) -> 0.2 | I130: =VLOOKUP($A130,Produits!$A$1:$P$357,8,FALSE) -> 0.2 | J130: =VLOOKUP($A130,Produits!$A$1:$P$357,9,FALSE) -> 8.4 | K130: =IF(ISNA(VLOOKUP($A130,Produits!$A$1:$O$357,14,FALSE)),"",VLOOKUP($A130,Produits!$A$1:$O$357,14,FALSE)) -> 3760219061748 | L130: 118
A131: 36B | B131: =VLOOKUP($A131,Produits!$A$1:$P$357,2,FALSE) -> Liqueur d’Eau de vie de prune d’Ente - 24° | C131: =VLOOKUP($A131,Produits!$A$1:$P$357,3,FALSE) -> 0,5L | D131: =VLOOKUP($A131,Produits!$A$1:$P$357,5,FALSE) -> 6 | E131: =VLOOKUP($A131,Produits!$A$1:$P$357,4,FALSE) -> Bouteille | F131: =VLOOKUP($A131,Produits!$A$1:$P$357,6,FALSE) -> 12.25 | G131: =VLOOKUP($A131,Produits!$A$1:$P$357,7,FALSE) -> 14.7 | H131: =VLOOKUP($A131,Produits!$A$1:$P$357,10,FALSE) -> 0.2 | I131: =VLOOKUP($A131,Produits!$A$1:$P$357,8,FALSE) -> 0.2 | J131: =VLOOKUP($A131,Produits!$A$1:$P$357,9,FALSE) -> 9.8 | K131: =IF(ISNA(VLOOKUP($A131,Produits!$A$1:$O$357,14,FALSE)),"",VLOOKUP($A131,Produits!$A$1:$O$357,14,FALSE)) -> 3760219061731 | L131: 119
A132: 36C | B132: =VLOOKUP($A132,Produits!$A$1:$P$357,2,FALSE) -> Liqueur d’Eau de vie de prune d’Ente - 24° | C132: =VLOOKUP($A132,Produits!$A$1:$P$357,3,FALSE) -> 0,7L | D132: =VLOOKUP($A132,Produits!$A$1:$P$357,5,FALSE) -> 6 | E132: =VLOOKUP($A132,Produits!$A$1:$P$357,4,FALSE) -> Bouteille | F132: =VLOOKUP($A132,Produits!$A$1:$P$357,6,FALSE) -> 17.33333 | G132: =VLOOKUP($A132,Produits!$A$1:$P$357,7,FALSE) -> 20.8 | H132: =VLOOKUP($A132,Produits!$A$1:$P$357,10,FALSE) -> 0.2 | I132: =VLOOKUP($A132,Produits!$A$1:$P$357,8,FALSE) -> 0.2 | J132: =VLOOKUP($A132,Produits!$A$1:$P$357,9,FALSE) -> 13.87 | K132: =IF(ISNA(VLOOKUP($A132,Produits!$A$1:$O$357,14,FALSE)),"",VLOOKUP($A132,Produits!$A$1:$O$357,14,FALSE)) -> 3760219061724 | L132: 120
A133: 36D | B133: =VLOOKUP($A133,Produits!$A$1:$P$357,2,FALSE) -> Liqueur d’Eau de vie de prune d’Ente - 24° | C133: =VLOOKUP($A133,Produits!$A$1:$P$357,3,FALSE) -> 5cl | D133: =VLOOKUP($A133,Produits!$A$1:$P$357,5,FALSE) -> 6 | E133: =VLOOKUP($A133,Produits!$A$1:$P$357,4,FALSE) -> Mignonette | F133: =VLOOKUP($A133,Produits!$A$1:$P$357,6,FALSE) -> 3.08333 | G133: =VLOOKUP($A133,Produits!$A$1:$P$357,7,FALSE) -> 3.7 | H133: =VLOOKUP($A133,Produits!$A$1:$P$357,10,FALSE) -> 0.2 | I133: =VLOOKUP($A133,Produits!$A$1:$P$357,8,FALSE) -> 0.2 | J133: =VLOOKUP($A133,Produits!$A$1:$P$357,9,FALSE) -> 2.47 | K133: =IF(ISNA(VLOOKUP($A133,Produits!$A$1:$O$357,14,FALSE)),"",VLOOKUP($A133,Produits!$A$1:$O$357,14,FALSE)) -> 3760219061717 | L133: 121
A134: 37A | B134: =VLOOKUP($A134,Produits!$A$1:$P$357,2,FALSE) -> Vieille Eau de Vie Ed. limitée des 100 ans - 44.1° | C134: =VLOOKUP($A134,Produits!$A$1:$P$357,3,FALSE) -> 0,5L | D134: =VLOOKUP($A134,Produits!$A$1:$P$357,5,FALSE) -> 6 | E134: =VLOOKUP($A134,Produits!$A$1:$P$357,4,FALSE) -> Bouteille | F134: =VLOOKUP($A134,Produits!$A$1:$P$357,6,FALSE) -> 30.83333 | G134: =VLOOKUP($A134,Produits!$A$1:$P$357,7,FALSE) -> 37 | H134: =VLOOKUP($A134,Produits!$A$1:$P$357,10,FALSE) -> 0.2 | I134: =VLOOKUP($A134,Produits!$A$1:$P$357,8,FALSE) -> 0.2 | J134: =VLOOKUP($A134,Produits!$A$1:$P$357,9,FALSE) -> 24.67 | K134: =IF(ISNA(VLOOKUP($A134,Produits!$A$1:$O$357,14,FALSE)),"",VLOOKUP($A134,Produits!$A$1:$O$357,14,FALSE)) -> 3760219061700 | L134: 122
A135: 37B | B135: =VLOOKUP($A135,Produits!$A$1:$P$357,2,FALSE) -> Vieille Eau de Vie Ed. limitée des 100 ans - 44.1° | C135: =VLOOKUP($A135,Produits!$A$1:$P$357,3,FALSE) -> 5cl | D135: =VLOOKUP($A135,Produits!$A$1:$P$357,5,FALSE) -> 6 | E135: =VLOOKUP($A135,Produits!$A$1:$P$357,4,FALSE) -> Mignonette | F135: =VLOOKUP($A135,Produits!$A$1:$P$357,6,FALSE) -> 3.08333 | G135: =VLOOKUP($A135,Produits!$A$1:$P$357,7,FALSE) -> 3.7 | H135: =VLOOKUP($A135,Produits!$A$1:$P$357,10,FALSE) -> 0.2 | I135: =VLOOKUP($A135,Produits!$A$1:$P$357,8,FALSE) -> 0.2 | J135: =VLOOKUP($A135,Produits!$A$1:$P$357,9,FALSE) -> 2.47 | K135: =IF(ISNA(VLOOKUP($A135,Produits!$A$1:$O$357,14,FALSE)),"",VLOOKUP($A135,Produits!$A$1:$O$357,14,FALSE)) -> 3760219061694 | L135: 123
A136: 38A | B136: =VLOOKUP($A136,Produits!$A$1:$P$357,2,FALSE) -> Eau de vie de prune d’Ente - 42° | C136: =VLOOKUP($A136,Produits!$A$1:$P$357,3,FALSE) -> 0,375L | D136: =VLOOKUP($A136,Produits!$A$1:$P$357,5,FALSE) -> 6 | E136: =VLOOKUP($A136,Produits!$A$1:$P$357,4,FALSE) -> Bouteille | F136: =VLOOKUP($A136,Produits!$A$1:$P$357,6,FALSE) -> 13.83333 | G136: =VLOOKUP($A136,Produits!$A$1:$P$357,7,FALSE) -> 16.6 | H136: =VLOOKUP($A136,Produits!$A$1:$P$357,10,FALSE) -> 0.2 | I136: =VLOOKUP($A136,Produits!$A$1:$P$357,8,FALSE) -> 0.2 | J136: =VLOOKUP($A136,Produits!$A$1:$P$357,9,FALSE) -> 11.07 | K136: =IF(ISNA(VLOOKUP($A136,Produits!$A$1:$O$357,14,FALSE)),"",VLOOKUP($A136,Produits!$A$1:$O$357,14,FALSE)) -> 3760219061687 | L136: 124
A137: 38B | B137: =VLOOKUP($A137,Produits!$A$1:$P$357,2,FALSE) -> Eau de vie de prune d’Ente - 42° | C137: =VLOOKUP($A137,Produits!$A$1:$P$357,3,FALSE) -> 0,5L | D137: =VLOOKUP($A137,Produits!$A$1:$P$357,5,FALSE) -> 6 | E137: =VLOOKUP($A137,Produits!$A$1:$P$357,4,FALSE) -> Bouteille | F137: =VLOOKUP($A137,Produits!$A$1:$P$357,6,FALSE) -> 17.33333 | G137: =VLOOKUP($A137,Produits!$A$1:$P$357,7,FALSE) -> 20.8 | H137: =VLOOKUP($A137,Produits!$A$1:$P$357,10,FALSE) -> 0.2 | I137: =VLOOKUP($A137,Produits!$A$1:$P$357,8,FALSE) -> 0.2 | J137: =VLOOKUP($A137,Produits!$A$1:$P$357,9,FALSE) -> 13.87 | K137: =IF(ISNA(VLOOKUP($A137,Produits!$A$1:$O$357,14,FALSE)),"",VLOOKUP($A137,Produits!$A$1:$O$357,14,FALSE)) -> 3760219061670 | L137: 125
A138: 38C | B138: =VLOOKUP($A138,Produits!$A$1:$P$357,2,FALSE) -> Eau de vie de prune d’Ente - 42° | C138: =VLOOKUP($A138,Produits!$A$1:$P$357,3,FALSE) -> 0,7L | D138: =VLOOKUP($A138,Produits!$A$1:$P$357,5,FALSE) -> 6 | E138: =VLOOKUP($A138,Produits!$A$1:$P$357,4,FALSE) -> Bouteille | F138: =VLOOKUP($A138,Produits!$A$1:$P$357,6,FALSE) -> 23.16666 | G138: =VLOOKUP($A138,Produits!$A$1:$P$357,7,FALSE) -> 27.8 | H138: =VLOOKUP($A138,Produits!$A$1:$P$357,10,FALSE) -> 0.2 | I138: =VLOOKUP($A138,Produits!$A$1:$P$357,8,FALSE) -> 0.2 | J138: =VLOOKUP($A138,Produits!$A$1:$P$357,9,FALSE) -> 18.54 | K138: =IF(ISNA(VLOOKUP($A138,Produits!$A$1:$O$357,14,FALSE)),"",VLOOKUP($A138,Produits!$A$1:$O$357,14,FALSE)) -> 3760219061663 | L138: 126
A139: 38D | B139: =VLOOKUP($A139,Produits!$A$1:$P$357,2,FALSE) -> Eau de vie de prune d’Ente - 42° | C139: =VLOOKUP($A139,Produits!$A$1:$P$357,3,FALSE) -> 5cl | D139: =VLOOKUP($A139,Produits!$A$1:$P$357,5,FALSE) -> 6 | E139: =VLOOKUP($A139,Produits!$A$1:$P$357,4,FALSE) -> Mignonette | F139: =VLOOKUP($A139,Produits!$A$1:$P$357,6,FALSE) -> 3.08333 | G139: =VLOOKUP($A139,Produits!$A$1:$P$357,7,FALSE) -> 3.7 | H139: =VLOOKUP($A139,Produits!$A$1:$P$357,10,FALSE) -> 0.2 | I139: =VLOOKUP($A139,Produits!$A$1:$P$357,8,FALSE) -> 0.2 | J139: =VLOOKUP($A139,Produits!$A$1:$P$357,9,FALSE) -> 2.47 | K139: =IF(ISNA(VLOOKUP($A139,Produits!$A$1:$O$357,14,FALSE)),"",VLOOKUP($A139,Produits!$A$1:$O$357,14,FALSE)) -> 3760219061656 | L139: 127
A140: 39A | B140: =VLOOKUP($A140,Produits!$A$1:$P$357,2,FALSE) -> Eau de vie de pruneau - 42° | C140: =VLOOKUP($A140,Produits!$A$1:$P$357,3,FALSE) -> 0,375L | D140: =VLOOKUP($A140,Produits!$A$1:$P$357,5,FALSE) -> 6 | E140: =VLOOKUP($A140,Produits!$A$1:$P$357,4,FALSE) -> Bouteille | F140: =VLOOKUP($A140,Produits!$A$1:$P$357,6,FALSE) -> 13.83333 | G140: =VLOOKUP($A140,Produits!$A$1:$P$357,7,FALSE) -> 16.6 | H140: =VLOOKUP($A140,Produits!$A$1:$P$357,10,FALSE) -> 0.2 | I140: =VLOOKUP($A140,Produits!$A$1:$P$357,8,FALSE) -> 0.2 | J140: =VLOOKUP($A140,Produits!$A$1:$P$357,9,FALSE) -> 11.07 | K140: =IF(ISNA(VLOOKUP($A140,Produits!$A$1:$O$357,14,FALSE)),"",VLOOKUP($A140,Produits!$A$1:$O$357,14,FALSE)) -> 3760219061649 | L140: 128
A141: 39B | B141: =VLOOKUP($A141,Produits!$A$1:$P$357,2,FALSE) -> Eau de vie de pruneau - 42° | C141: =VLOOKUP($A141,Produits!$A$1:$P$357,3,FALSE) -> 0,5L | D141: =VLOOKUP($A141,Produits!$A$1:$P$357,5,FALSE) -> 6 | E141: =VLOOKUP($A141,Produits!$A$1:$P$357,4,FALSE) -> Bouteille | F141: =VLOOKUP($A141,Produits!$A$1:$P$357,6,FALSE) -> 17.33333 | G141: =VLOOKUP($A141,Produits!$A$1:$P$357,7,FALSE) -> 20.8 | H141: =VLOOKUP($A141,Produits!$A$1:$P$357,10,FALSE) -> 0.2 | I141: =VLOOKUP($A141,Produits!$A$1:$P$357,8,FALSE) -> 0.2 | J141: =VLOOKUP($A141,Produits!$A$1:$P$357,9,FALSE) -> 13.87 | K141: =IF(ISNA(VLOOKUP($A141,Produits!$A$1:$O$357,14,FALSE)),"",VLOOKUP($A141,Produits!$A$1:$O$357,14,FALSE)) -> 3760219061632 | L141: 129
A142: 39C | B142: =VLOOKUP($A142,Produits!$A$1:$P$357,2,FALSE) -> Eau de vie de pruneau - 42° | C142: =VLOOKUP($A142,Produits!$A$1:$P$357,3,FALSE) -> 0,7L | D142: =VLOOKUP($A142,Produits!$A$1:$P$357,5,FALSE) -> 6 | E142: =VLOOKUP($A142,Produits!$A$1:$P$357,4,FALSE) -> Bouteille | F142: =VLOOKUP($A142,Produits!$A$1:$P$357,6,FALSE) -> 23.16666 | G142: =VLOOKUP($A142,Produits!$A$1:$P$357,7,FALSE) -> 27.8 | H142: =VLOOKUP($A142,Produits!$A$1:$P$357,10,FALSE) -> 0.2 | I142: =VLOOKUP($A142,Produits!$A$1:$P$357,8,FALSE) -> 0.2 | J142: =VLOOKUP($A142,Produits!$A$1:$P$357,9,FALSE) -> 18.54 | K142: =IF(ISNA(VLOOKUP($A142,Produits!$A$1:$O$357,14,FALSE)),"",VLOOKUP($A142,Produits!$A$1:$O$357,14,FALSE)) -> 3760219061625 | L142: 130
A143: 39D | B143: =VLOOKUP($A143,Produits!$A$1:$P$357,2,FALSE) -> Eau de vie de pruneau - 42° | C143: =VLOOKUP($A143,Produits!$A$1:$P$357,3,FALSE) -> 5cl | D143: =VLOOKUP($A143,Produits!$A$1:$P$357,5,FALSE) -> 6 | E143: =VLOOKUP($A143,Produits!$A$1:$P$357,4,FALSE) -> Mignonette | F143: =VLOOKUP($A143,Produits!$A$1:$P$357,6,FALSE) -> 3.08333 | G143: =VLOOKUP($A143,Produits!$A$1:$P$357,7,FALSE) -> 3.7 | H143: =VLOOKUP($A143,Produits!$A$1:$P$357,10,FALSE) -> 0.2 | I143: =VLOOKUP($A143,Produits!$A$1:$P$357,8,FALSE) -> 0.2 | J143: =VLOOKUP($A143,Produits!$A$1:$P$357,9,FALSE) -> 2.47 | K143: =IF(ISNA(VLOOKUP($A143,Produits!$A$1:$O$357,14,FALSE)),"",VLOOKUP($A143,Produits!$A$1:$O$357,14,FALSE)) -> 3760219061618 | L143: 131
A144: 40A | B144: =VLOOKUP($A144,Produits!$A$1:$P$357,2,FALSE) -> Eau de vie de prune Reine-Claude - 42° | C144: =VLOOKUP($A144,Produits!$A$1:$P$357,3,FALSE) -> 0,375L | D144: =VLOOKUP($A144,Produits!$A$1:$P$357,5,FALSE) -> 6 | E144: =VLOOKUP($A144,Produits!$A$1:$P$357,4,FALSE) -> Bouteille | F144: =VLOOKUP($A144,Produits!$A$1:$P$357,6,FALSE) -> 13.83333 | G144: =VLOOKUP($A144,Produits!$A$1:$P$357,7,FALSE) -> 16.6 | H144: =VLOOKUP($A144,Produits!$A$1:$P$357,10,FALSE) -> 0.2 | I144: =VLOOKUP($A144,Produits!$A$1:$P$357,8,FALSE) -> 0.2 | J144: =VLOOKUP($A144,Produits!$A$1:$P$357,9,FALSE) -> 11.07 | K144: =IF(ISNA(VLOOKUP($A144,Produits!$A$1:$O$357,14,FALSE)),"",VLOOKUP($A144,Produits!$A$1:$O$357,14,FALSE)) -> 3760219061601 | L144: 132
A145: 40B | B145: =VLOOKUP($A145,Produits!$A$1:$P$357,2,FALSE) -> Eau de vie de prune Reine-Claude - 42° | C145: =VLOOKUP($A145,Produits!$A$1:$P$357,3,FALSE) -> 0,5L | D145: =VLOOKUP($A145,Produits!$A$1:$P$357,5,FALSE) -> 6 | E145: =VLOOKUP($A145,Produits!$A$1:$P$357,4,FALSE) -> Bouteille | F145: =VLOOKUP($A145,Produits!$A$1:$P$357,6,FALSE) -> 17.33333 | G145: =VLOOKUP($A145,Produits!$A$1:$P$357,7,FALSE) -> 20.8 | H145: =VLOOKUP($A145,Produits!$A$1:$P$357,10,FALSE) -> 0.2 | I145: =VLOOKUP($A145,Produits!$A$1:$P$357,8,FALSE) -> 0.2 | J145: =VLOOKUP($A145,Produits!$A$1:$P$357,9,FALSE) -> 13.87 | K145: =IF(ISNA(VLOOKUP($A145,Produits!$A$1:$O$357,14,FALSE)),"",VLOOKUP($A145,Produits!$A$1:$O$357,14,FALSE)) -> 3760219061595 | L145: 133
A146: 40C | B146: =VLOOKUP($A146,Produits!$A$1:$P$357,2,FALSE) -> Eau de vie de prune Reine-Claude - 42° | C146: =VLOOKUP($A146,Produits!$A$1:$P$357,3,FALSE) -> 0,7L | D146: =VLOOKUP($A146,Produits!$A$1:$P$357,5,FALSE) -> 6 | E146: =VLOOKUP($A146,Produits!$A$1:$P$357,4,FALSE) -> Bouteille | F146: =VLOOKUP($A146,Produits!$A$1:$P$357,6,FALSE) -> 23.16666 | G146: =VLOOKUP($A146,Produits!$A$1:$P$357,7,FALSE) -> 27.8 | H146: =VLOOKUP($A146,Produits!$A$1:$P$357,10,FALSE) -> 0.2 | I146: =VLOOKUP($A146,Produits!$A$1:$P$357,8,FALSE) -> 0.2 | J146: =VLOOKUP($A146,Produits!$A$1:$P$357,9,FALSE) -> 18.54 | K146: =IF(ISNA(VLOOKUP($A146,Produits!$A$1:$O$357,14,FALSE)),"",VLOOKUP($A146,Produits!$A$1:$O$357,14,FALSE)) -> 3760219061588 | L146: 134
A147: 40D | B147: =VLOOKUP($A147,Produits!$A$1:$P$357,2,FALSE) -> Eau de vie de prune Reine-Claude - 42° | C147: =VLOOKUP($A147,Produits!$A$1:$P$357,3,FALSE) -> 5cl | D147: =VLOOKUP($A147,Produits!$A$1:$P$357,5,FALSE) -> 6 | E147: =VLOOKUP($A147,Produits!$A$1:$P$357,4,FALSE) -> Mignonette | F147: =VLOOKUP($A147,Produits!$A$1:$P$357,6,FALSE) -> 3.08333 | G147: =VLOOKUP($A147,Produits!$A$1:$P$357,7,FALSE) -> 3.7 | H147: =VLOOKUP($A147,Produits!$A$1:$P$357,10,FALSE) -> 0.2 | I147: =VLOOKUP($A147,Produits!$A$1:$P$357,8,FALSE) -> 0.2 | J147: =VLOOKUP($A147,Produits!$A$1:$P$357,9,FALSE) -> 2.47 | K147: =IF(ISNA(VLOOKUP($A147,Produits!$A$1:$O$357,14,FALSE)),"",VLOOKUP($A147,Produits!$A$1:$O$357,14,FALSE)) -> 3760219061571 | L147: 135
A148: 41A | B148: =VLOOKUP($A148,Produits!$A$1:$P$357,2,FALSE) -> Assort. Supr. Prune'Choco® - Mini cagette gourmande | C148: =VLOOKUP($A148,Produits!$A$1:$P$357,3,FALSE) -> 400g | D148: =VLOOKUP($A148,Produits!$A$1:$P$357,5,FALSE) -> 1 | E148: =VLOOKUP($A148,Produits!$A$1:$P$357,4,FALSE) -> Boite bois | F148: =VLOOKUP($A148,Produits!$A$1:$P$357,6,FALSE) -> 15.83 | G148: =VLOOKUP($A148,Produits!$A$1:$P$357,7,FALSE) -> 18.5 | H148: =VLOOKUP($A148,Produits!$A$1:$P$357,10,FALSE) -> Multiple | I148: =VLOOKUP($A148,Produits!$A$1:$P$357,8,FALSE) -> 0.2 | J148: =VLOOKUP($A148,Produits!$A$1:$P$357,9,FALSE) -> 12.67 | K148: =IF(ISNA(VLOOKUP($A148,Produits!$A$1:$O$357,14,FALSE)),"",VLOOKUP($A148,Produits!$A$1:$O$357,14,FALSE)) -> 3760219061564 | L148: 136
A149: 42A | B149: =VLOOKUP($A149,Produits!$A$1:$P$357,2,FALSE) -> Assort. Supr. Prune'Choco® - Coffret élégance | C149: =VLOOKUP($A149,Produits!$A$1:$P$357,3,FALSE) -> 450g | D149: =VLOOKUP($A149,Produits!$A$1:$P$357,5,FALSE) -> 1 | E149: =VLOOKUP($A149,Produits!$A$1:$P$357,4,FALSE) -> Coffret cart. | F149: =VLOOKUP($A149,Produits!$A$1:$P$357,6,FALSE) -> 18.89 | G149: =VLOOKUP($A149,Produits!$A$1:$P$357,7,FALSE) -> 22 | H149: =VLOOKUP($A149,Produits!$A$1:$P$357,10,FALSE) -> Multiple | I149: =VLOOKUP($A149,Produits!$A$1:$P$357,8,FALSE) -> 0.2 | J149: =VLOOKUP($A149,Produits!$A$1:$P$357,9,FALSE) -> 15.12 | K149: =IF(ISNA(VLOOKUP($A149,Produits!$A$1:$O$357,14,FALSE)),"",VLOOKUP($A149,Produits!$A$1:$O$357,14,FALSE)) -> 3760219061557 | L149: 137
A150: 43A | B150: =VLOOKUP($A150,Produits!$A$1:$P$357,2,FALSE) -> Assort. Supr. Prune'Choco® - Plateau gourmand | C150: =VLOOKUP($A150,Produits!$A$1:$P$357,3,FALSE) -> 650g | D150: =VLOOKUP($A150,Produits!$A$1:$P$357,5,FALSE) -> 1 | E150: =VLOOKUP($A150,Produits!$A$1:$P$357,4,FALSE) -> Boite bois | F150: =VLOOKUP($A150,Produits!$A$1:$P$357,6,FALSE) -> 24.33 | G150: =VLOOKUP($A150,Produits!$A$1:$P$357,7,FALSE) -> 27.9 | H150: =VLOOKUP($A150,Produits!$A$1:$P$357,10,FALSE) -> Multiple | I150: =VLOOKUP($A150,Produits!$A$1:$P$357,8,FALSE) -> 0.2 | J150: =VLOOKUP($A150,Produits!$A$1:$P$357,9,FALSE) -> 19.47 | K150: =IF(ISNA(VLOOKUP($A150,Produits!$A$1:$O$357,14,FALSE)),"",VLOOKUP($A150,Produits!$A$1:$O$357,14,FALSE)) -> 3760219061540 | L150: 138
A151: 44A | B151: =VLOOKUP($A151,Produits!$A$1:$P$357,2,FALSE) -> Assort. Supr. Prune'Choco® - Assiette raffinée | C151: =VLOOKUP($A151,Produits!$A$1:$P$357,3,FALSE) -> 650g | D151: =VLOOKUP($A151,Produits!$A$1:$P$357,5,FALSE) -> 1 | E151: =VLOOKUP($A151,Produits!$A$1:$P$357,4,FALSE) -> Assiette | F151: =VLOOKUP($A151,Produits!$A$1:$P$357,6,FALSE) -> 25.36 | G151: =VLOOKUP($A151,Produits!$A$1:$P$357,7,FALSE) -> 28.9 | H151: =VLOOKUP($A151,Produits!$A$1:$P$357,10,FALSE) -> Multiple | I151: =VLOOKUP($A151,Produits!$A$1:$P$357,8,FALSE) -> 0.2 | J151: =VLOOKUP($A151,Produits!$A$1:$P$357,9,FALSE) -> 20.29 | K151: =IF(ISNA(VLOOKUP($A151,Produits!$A$1:$O$357,14,FALSE)),"",VLOOKUP($A151,Produits!$A$1:$O$357,14,FALSE)) -> 3760219061533 | L151: 139
A152: 45A | B152: =VLOOKUP($A152,Produits!$A$1:$P$357,2,FALSE) -> Assort. Supr. Prune'Choco® - Claie Agenaise 1 | C152: =VLOOKUP($A152,Produits!$A$1:$P$357,3,FALSE) -> 800g | D152: =VLOOKUP($A152,Produits!$A$1:$P$357,5,FALSE) -> 1 | E152: =VLOOKUP($A152,Produits!$A$1:$P$357,4,FALSE) -> Claie Agen. | F152: =VLOOKUP($A152,Produits!$A$1:$P$357,6,FALSE) -> 33.72 | G152: =VLOOKUP($A152,Produits!$A$1:$P$357,7,FALSE) -> 38.8 | H152: =VLOOKUP($A152,Produits!$A$1:$P$357,10,FALSE) -> Multiple | I152: =VLOOKUP($A152,Produits!$A$1:$P$357,8,FALSE) -> 0.2 | J152: =VLOOKUP($A152,Produits!$A$1:$P$357,9,FALSE) -> 26.98 | K152: =IF(ISNA(VLOOKUP($A152,Produits!$A$1:$O$357,14,FALSE)),"",VLOOKUP($A152,Produits!$A$1:$O$357,14,FALSE)) -> 3760219061526 | L152: 140
A153: 46A | B153: =VLOOKUP($A153,Produits!$A$1:$P$357,2,FALSE) -> Assort. Supr. Prune'Choco® - Claie Agenaise 2 | C153: =VLOOKUP($A153,Produits!$A$1:$P$357,3,FALSE) -> 1,1kg | D153: =VLOOKUP($A153,Produits!$A$1:$P$357,5,FALSE) -> 1 | E153: =VLOOKUP($A153,Produits!$A$1:$P$357,4,FALSE) -> Claie Agen. | F153: =VLOOKUP($A153,Produits!$A$1:$P$357,6,FALSE) -> 42.9 | G153: =VLOOKUP($A153,Produits!$A$1:$P$357,7,FALSE) -> 49.8 | H153: =VLOOKUP($A153,Produits!$A$1:$P$357,10,FALSE) -> Multiple | I153: =VLOOKUP($A153,Produits!$A$1:$P$357,8,FALSE) -> 0.2 | J153: =VLOOKUP($A153,Produits!$A$1:$P$357,9,FALSE) -> 34.32 | K153: =IF(ISNA(VLOOKUP($A153,Produits!$A$1:$O$357,14,FALSE)),"",VLOOKUP($A153,Produits!$A$1:$O$357,14,FALSE)) -> 3760219061519 | L153: 141
A154: 47A | B154: =VLOOKUP($A154,Produits!$A$1:$P$357,2,FALSE) -> Coffret "Découverte" - 4 produits | C154: =VLOOKUP($A154,Produits!$A$1:$P$357,3,FALSE) -> 0 | D154: =VLOOKUP($A154,Produits!$A$1:$P$357,5,FALSE) -> 1 | E154: =VLOOKUP($A154,Produits!$A$1:$P$357,4,FALSE) -> Pochette | F154: =VLOOKUP($A154,Produits!$A$1:$P$357,6,FALSE) -> 14.9 | G154: =VLOOKUP($A154,Produits!$A$1:$P$357,7,FALSE) -> 16.5 | H154: =VLOOKUP($A154,Produits!$A$1:$P$357,10,FALSE) -> Multiple | I154: =VLOOKUP($A154,Produits!$A$1:$P$357,8,FALSE) -> 0.2 | J154: =VLOOKUP($A154,Produits!$A$1:$P$357,9,FALSE) -> 11.92 | K154: =IF(ISNA(VLOOKUP($A154,Produits!$A$1:$O$357,14,FALSE)),"",VLOOKUP($A154,Produits!$A$1:$O$357,14,FALSE)) -> 3760219061502 | L154: 142
A155: 48A | B155: =VLOOKUP($A155,Produits!$A$1:$P$357,2,FALSE) -> Coffret "Le Mignon" - 5 produits | C155: =VLOOKUP($A155,Produits!$A$1:$P$357,3,FALSE) -> 0 | D155: =VLOOKUP($A155,Produits!$A$1:$P$357,5,FALSE) -> 1 | E155: =VLOOKUP($A155,Produits!$A$1:$P$357,4,FALSE) -> Coffret cart. | F155: =VLOOKUP($A155,Produits!$A$1:$P$357,6,FALSE) -> 22.77 | G155: =VLOOKUP($A155,Produits!$A$1:$P$357,7,FALSE) -> 26.5 | H155: =VLOOKUP($A155,Produits!$A$1:$P$357,10,FALSE) -> Multiple | I155: =VLOOKUP($A155,Produits!$A$1:$P$357,8,FALSE) -> 0.2 | J155: =VLOOKUP($A155,Produits!$A$1:$P$357,9,FALSE) -> 18.22 | K155: =IF(ISNA(VLOOKUP($A155,Produits!$A$1:$O$357,14,FALSE)),"",VLOOKUP($A155,Produits!$A$1:$O$357,14,FALSE)) -> 3760219061496 | L155: 143
A156: 49A | B156: =VLOOKUP($A156,Produits!$A$1:$P$357,2,FALSE) -> Coffret "L'Intrépide" - 7 produits | C156: =VLOOKUP($A156,Produits!$A$1:$P$357,3,FALSE) -> 0 | D156: =VLOOKUP($A156,Produits!$A$1:$P$357,5,FALSE) -> 1 | E156: =VLOOKUP($A156,Produits!$A$1:$P$357,4,FALSE) -> Coffret cart. | F156: =VLOOKUP($A156,Produits!$A$1:$P$357,6,FALSE) -> 44.02 | G156: =VLOOKUP($A156,Produits!$A$1:$P$357,7,FALSE) -> 49.5 | H156: =VLOOKUP($A156,Produits!$A$1:$P$357,10,FALSE) -> Multiple | I156: =VLOOKUP($A156,Produits!$A$1:$P$357,8,FALSE) -> 0.2 | J156: =VLOOKUP($A156,Produits!$A$1:$P$357,9,FALSE) -> 35.22 | K156: =IF(ISNA(VLOOKUP($A156,Produits!$A$1:$O$357,14,FALSE)),"",VLOOKUP($A156,Produits!$A$1:$O$357,14,FALSE)) -> 3760219061489 | L156: 144
A157: 50A | B157: =VLOOKUP($A157,Produits!$A$1:$P$357,2,FALSE) -> Coffret "L'Intense" - 10 produits | C157: =VLOOKUP($A157,Produits!$A$1:$P$357,3,FALSE) -> 0 | D157: =VLOOKUP($A157,Produits!$A$1:$P$357,5,FALSE) -> 1 | E157: =VLOOKUP($A157,Produits!$A$1:$P$357,4,FALSE) -> Coffret cart. | F157: =VLOOKUP($A157,Produits!$A$1:$P$357,6,FALSE) -> 54.07 | G157: =VLOOKUP($A157,Produits!$A$1:$P$357,7,FALSE) -> 61 | H157: =VLOOKUP($A157,Produits!$A$1:$P$357,10,FALSE) -> Multiple | I157: =VLOOKUP($A157,Produits!$A$1:$P$357,8,FALSE) -> 0.2 | J157: =VLOOKUP($A157,Produits!$A$1:$P$357,9,FALSE) -> 43.26 | K157: =IF(ISNA(VLOOKUP($A157,Produits!$A$1:$O$357,14,FALSE)),"",VLOOKUP($A157,Produits!$A$1:$O$357,14,FALSE)) -> 3760219061472 | L157: 145
A158: TSVRAC | B158: =VLOOKUP($A158,Produits!$A$1:$P$357,2,FALSE) -> Tomates séchées VRAC | C158: =VLOOKUP($A158,Produits!$A$1:$P$357,3,FALSE) -> 6kg | D158: =VLOOKUP($A158,Produits!$A$1:$P$357,5,FALSE) -> 1 | E158: =VLOOKUP($A158,Produits!$A$1:$P$357,4,FALSE) -> Carton | F158: =VLOOKUP($A158,Produits!$A$1:$P$357,6,FALSE) -> 255.92417 | G158: =VLOOKUP($A158,Produits!$A$1:$P$357,7,FALSE) -> 270 | H158: =VLOOKUP($A158,Produits!$A$1:$P$357,10,FALSE) -> 0.055 | I158: =VLOOKUP($A158,Produits!$A$1:$P$357,8,FALSE) -> 0.2 | J158: =VLOOKUP($A158,Produits!$A$1:$P$357,9,FALSE) -> 204.74 | L158: 146
A159: TSPOCH | B159: =VLOOKUP($A159,Produits!$A$1:$P$357,2,FALSE) -> Tomates séchées pochettes 100g | C159: =VLOOKUP($A159,Produits!$A$1:$P$357,3,FALSE) -> 100g | D159: =VLOOKUP($A159,Produits!$A$1:$P$357,5,FALSE) -> 9 | E159: =VLOOKUP($A159,Produits!$A$1:$P$357,4,FALSE) -> Pichette Fizz | F159: =VLOOKUP($A159,Produits!$A$1:$P$357,6,FALSE) -> 4.64454 | G159: =VLOOKUP($A159,Produits!$A$1:$P$357,7,FALSE) -> 4.9 | H159: =VLOOKUP($A159,Produits!$A$1:$P$357,10,FALSE) -> 0.055 | I159: =VLOOKUP($A159,Produits!$A$1:$P$357,8,FALSE) -> 0.2 | J159: =VLOOKUP($A159,Produits!$A$1:$P$357,9,FALSE) -> 3.72 | L159: 147
A160: S10PX | B160: =VLOOKUP($A160,Produits!$A$1:$P$357,2,FALSE) -> Pruneaux d'Agen IGP Cal. 33/44 | C160: =VLOOKUP($A160,Produits!$A$1:$P$357,3,FALSE) -> 10kg | D160: =VLOOKUP($A160,Produits!$A$1:$P$357,5,FALSE) -> 1 | E160: =VLOOKUP($A160,Produits!$A$1:$P$357,4,FALSE) -> Seau | F160: =VLOOKUP($A160,Produits!$A$1:$P$357,6,FALSE) -> 53.08056 | G160: =VLOOKUP($A160,Produits!$A$1:$P$357,7,FALSE) -> 56 | H160: =VLOOKUP($A160,Produits!$A$1:$P$357,10,FALSE) -> 0.055 | I160: =VLOOKUP($A160,Produits!$A$1:$P$357,8,FALSE) -> 0.2 | J160: =VLOOKUP($A160,Produits!$A$1:$P$357,9,FALSE) -> 42.47 | L160: 148
A161: S10PXDN | B161: =VLOOKUP($A161,Produits!$A$1:$P$357,2,FALSE) -> Pruneaux d'Agen IGP dénoyautés Cal. 44/55 avec e200 | C161: =VLOOKUP($A161,Produits!$A$1:$P$357,3,FALSE) -> 10kg | D161: =VLOOKUP($A161,Produits!$A$1:$P$357,5,FALSE) -> 1 | E161: =VLOOKUP($A161,Produits!$A$1:$P$357,4,FALSE) -> Seau | F161: =VLOOKUP($A161,Produits!$A$1:$P$357,6,FALSE) -> 77.72511 | G161: =VLOOKUP($A161,Produits!$A$1:$P$357,7,FALSE) -> 82 | H161: =VLOOKUP($A161,Produits!$A$1:$P$357,10,FALSE) -> 0.055 | I161: =VLOOKUP($A161,Produits!$A$1:$P$357,8,FALSE) -> 0.2 | J161: =VLOOKUP($A161,Produits!$A$1:$P$357,9,FALSE) -> 62.19 | L161: 149

Sheet Avec champs sélectionnables (hidden)
C1: Tarifs Pro - Maison du Pruneau
C4: Entreprise: | D4: =Coordonnées_client!$C$2 -> 0 | G4: Tél.: | H4: =Coordonnées_client!$I$2 -> 0
C5: Adresse: | D5: =Coordonnées_client!$F$2 -> 0
C7: CP: | D7: =Coordonnées_client!$G$2 -> 0 | G7: Ville: | H7: =Coordonnées_client!$H$2 -> 0
A8: «Braunès» 47320 Lafitte-sur-Lot 05 53 84 04 17 • mdpruneau.vpc@orange.fr www.maisondupruneau.com | C8: Nom: | D8: =Coordonnées_client!$K$2 -> 0 | G8: Prénom: | H8: =Coordonnées_client!$L$2 -> 0
C9: Ligne directe: | D9: =Coordonnées_client!$N$2 -> 0 | G9: Mail: | H9: =Coordonnées_client!$O$2 -> 0
C10: Conditions de règlement: | E10: =Coordonnées_client!$D$4 -> Comptant (1ère commande) puis 30j net (commandes suivantes)
A12: Réf. | B12: Désignation | C12: Contenance | D12: Colisage | E12: Emballage | F12: Prix HT | G12: Prix TTC conseillé | H12: TVA | I12: Taux de remise | J12: Prix remisé HT | K12: Code EAN | L12: SKU + Désignation + Contenance
A13: 1A | B13: =VLOOKUP($A13,Produits!$A$1:$P$357,2,FALSE) -> Pruneaux d'Agen BIO | C13: =VLOOKUP($A13,Produits!$A$1:$P$357,3,FALSE) -> 500g | D13: =VLOOKUP($A13,Produits!$A$1:$P$357,5,FALSE) -> 25 | E13: =VLOOKUP($A13,Produits!$A$1:$P$357,4,FALSE) -> Sachet | F13: =VLOOKUP($A13,Produits!$A$1:$P$357,6,FALSE) -> 5.21327 | G13: =VLOOKUP($A13,Produits!$A$1:$P$357,7,FALSE) -> 5.5 | H13: =VLOOKUP($A13,Produits!$A$1:$P$357,10,FALSE) -> 0.055 | I13: =VLOOKUP($A13,Produits!$A$1:$P$357,8,FALSE) -> 0.2 | J13: =VLOOKUP($A13,Produits!$A$1:$P$357,9,FALSE) -> 4.18 | K13: =IF(ISNA(VLOOKUP($A13,Produits!$A$1:$O$357,14,FALSE)),"",VLOOKUP($A13,Produits!$A$1:$O$357,14,FALSE)) -> 3760219062868 | L13: =Tableau15[[#This Row],[Réf.]]&" - "&Tableau15[[#This Row],[Désignation]]&" - "&Tableau15[[#This Row],[Contenance]] -> 1A - Pruneaux d'Agen BIO - 500g
A14: 1B | B14: =VLOOKUP($A14,Produits!$A$1:$P$357,2,FALSE) -> Pruneaux d'Agen BIO | C14: =VLOOKUP($A14,Produits!$A$1:$P$357,3,FALSE) -> 1kg | D14: =VLOOKUP($A14,Produits!$A$1:$P$357,5,FALSE) -> 14 | E14: =VLOOKUP($A14,Produits!$A$1:$P$357,4,FALSE) -> Sachet | F14: =VLOOKUP($A14,Produits!$A$1:$P$357,6,FALSE) -> 9.47867 | G14: =VLOOKUP($A14,Produits!$A$1:$P$357,7,FALSE) -> 10 | H14: =VLOOKUP($A14,Produits!$A$1:$P$357,10,FALSE) -> 0.055 | I14: =VLOOKUP($A14,Produits!$A$1:$P$357,8,FALSE) -> 0.2 | J14: =VLOOKUP($A14,Produits!$A$1:$P$357,9,FALSE) -> 7.59 | K14: =IF(ISNA(VLOOKUP($A14,Produits!$A$1:$O$357,14,FALSE)),"",VLOOKUP($A14,Produits!$A$1:$O$357,14,FALSE)) -> 3760219062851 | L14: =Tableau15[[#This Row],[Réf.]]&" - "&Tableau15[[#This Row],[Désignation]]&" - "&Tableau15[[#This Row],[Contenance]] -> 1B - Pruneaux d'Agen BIO - 1kg
A15: 1C | B15: =VLOOKUP($A15,Produits!$A$1:$P$357,2,FALSE) -> Pruneaux d’Agen BIO dénoyautés | C15: =VLOOKUP($A15,Produits!$A$1:$P$357,3,FALSE) -> 500g | D15: =VLOOKUP($A15,Produits!$A$1:$P$357,5,FALSE) -> 25 | E15: =VLOOKUP($A15,Produits!$A$1:$P$357,4,FALSE) -> Sachet | F15: =VLOOKUP($A15,Produits!$A$1:$P$357,6,FALSE) -> 7.29857 | G15: =VLOOKUP($A15,Produits!$A$1:$P$357,7,FALSE) -> 7.7 | H15: =VLOOKUP($A15,Produits!$A$1:$P$357,10,FALSE) -> 0.055 | I15: =VLOOKUP($A15,Produits!$A$1:$P$357,8,FALSE) -> 0.2 | J15: =VLOOKUP($A15,Produits!$A$1:$P$357,9,FALSE) -> 5.84 | K15: =IF(ISNA(VLOOKUP($A15,Produits!$A$1:$O$357,14,FALSE)),"",VLOOKUP($A15,Produits!$A$1:$O$357,14,FALSE)) -> 3760219062844 | L15: =Tableau15[[#This Row],[Réf.]]&" - "&Tableau15[[#This Row],[Désignation]]&" - "&Tableau15[[#This Row],[Contenance]] -> 1C - Pruneaux d’Agen BIO dénoyautés - 500g
A16: 1D | B16: =VLOOKUP($A16,Produits!$A$1:$P$357,2,FALSE) -> Pruneaux d’Agen BIO dénoyautés | C16: =VLOOKUP($A16,Produits!$A$1:$P$357,3,FALSE) -> 1kg | D16: =VLOOKUP($A16,Produits!$A$1:$P$357,5,FALSE) -> 14 | E16: =VLOOKUP($A16,Produits!$A$1:$P$357,4,FALSE) -> Sachet | F16: =VLOOKUP($A16,Produits!$A$1:$P$357,6,FALSE) -> 13.27014 | G16: =VLOOKUP($A16,Produits!$A$1:$P$357,7,FALSE) -> 14 | H16: =VLOOKUP($A16,Produits!$A$1:$P$357,10,FALSE) -> 0.055 | I16: =VLOOKUP($A16,Produits!$A$1:$P$357,8,FALSE) -> 0.2 | J16: =VLOOKUP($A16,Produits!$A$1:$P$357,9,FALSE) -> 10.62 | K16: =IF(ISNA(VLOOKUP($A16,Produits!$A$1:$O$357,14,FALSE)),"",VLOOKUP($A16,Produits!$A$1:$O$357,14,FALSE)) -> 3760219062837 | L16: =Tableau15[[#This Row],[Réf.]]&" - "&Tableau15[[#This Row],[Désignation]]&" - "&Tableau15[[#This Row],[Contenance]] -> 1D - Pruneaux d’Agen BIO dénoyautés - 1kg
A17: 2A | B17: =VLOOKUP($A17,Produits!$A$1:$P$357,2,FALSE) -> Crème de pruneaux BIO | C17: =VLOOKUP($A17,Produits!$A$1:$P$357,3,FALSE) -> 210g | D17: =VLOOKUP($A17,Produits!$A$1:$P$357,5,FALSE) -> 24 | E17: =VLOOKUP($A17,Produits!$A$1:$P$357,4,FALSE) -> Bocal | F17: =VLOOKUP($A17,Produits!$A$1:$P$357,6,FALSE) -> 3.98104 | G17: =VLOOKUP($A17,Produits!$A$1:$P$357,7,FALSE) -> 4.2 | H17: =VLOOKUP($A17,Produits!$A$1:$P$357,10,FALSE) -> 0.055 | I17: =VLOOKUP($A17,Produits!$A$1:$P$357,8,FALSE) -> 0.2 | J17: =VLOOKUP($A17,Produits!$A$1:$P$357,9,FALSE) -> 3.19 | K17: =IF(ISNA(VLOOKUP($A17,Produits!$A$1:$O$357,14,FALSE)),"",VLOOKUP($A17,Produits!$A$1:$O$357,14,FALSE)) -> 3760219062820 | L17: =Tableau15[[#This Row],[Réf.]]&" - "&Tableau15[[#This Row],[Désignation]]&" - "&Tableau15[[#This Row],[Contenance]] -> 2A - Crème de pruneaux BIO - 210g
A18: 3A | B18: =VLOOKUP($A18,Produits!$A$1:$P$357,2,FALSE) -> Jus de pruneaux BIO | C18: =VLOOKUP($A18,Produits!$A$1:$P$357,3,FALSE) -> 25cl | D18: =VLOOKUP($A18,Produits!$A$1:$P$357,5,FALSE) -> 12 | E18: =VLOOKUP($A18,Produits!$A$1:$P$357,4,FALSE) -> Bouteille | F18: =VLOOKUP($A18,Produits!$A$1:$P$357,6,FALSE) -> 2.36966 | G18: =VLOOKUP($A18,Produits!$A$1:$P$357,7,FALSE) -> 2.5 | H18: =VLOOKUP($A18,Produits!$A$1:$P$357,10,FALSE) -> 0.055 | I18: =VLOOKUP($A18,Produits!$A$1:$P$357,8,FALSE) -> 0.2 | J18: =VLOOKUP($A18,Produits!$A$1:$P$357,9,FALSE) -> 1.9 | K18: =IF(ISNA(VLOOKUP($A18,Produits!$A$1:$O$357,14,FALSE)),"",VLOOKUP($A18,Produits!$A$1:$O$357,14,FALSE)) -> 3760219062813 | L18: =Tableau15[[#This Row],[Réf.]]&" - "&Tableau15[[#This Row],[Désignation]]&" - "&Tableau15[[#This Row],[Contenance]] -> 3A - Jus de pruneaux BIO - 25cl
A19: 3B | B19: =VLOOKUP($A19,Produits!$A$1:$P$357,2,FALSE) -> Jus de pruneaux BIO | C19: =VLOOKUP($A19,Produits!$A$1:$P$357,3,FALSE) -> 1L | D19: =VLOOKUP($A19,Produits!$A$1:$P$357,5,FALSE) -> 6 | E19: =VLOOKUP($A19,Produits!$A$1:$P$357,4,FALSE) -> Bouteille | F19: =VLOOKUP($A19,Produits!$A$1:$P$357,6,FALSE) -> 5.59241 | G19: =VLOOKUP($A19,Produits!$A$1:$P$357,7,FALSE) -> 5.9 | H19: =VLOOKUP($A19,Produits!$A$1:$P$357,10,FALSE) -> 0.055 | I19: =VLOOKUP($A19,Produits!$A$1:$P$357,8,FALSE) -> 0.2 | J19: =VLOOKUP($A19,Produits!$A$1:$P$357,9,FALSE) -> 4.48 | K19: =IF(ISNA(VLOOKUP($A19,Produits!$A$1:$O$357,14,FALSE)),"",VLOOKUP($A19,Produits!$A$1:$O$357,14,FALSE)) -> 3760219062899 | L19: =Tableau15[[#This Row],[Réf.]]&" - "&Tableau15[[#This Row],[Désignation]]&" - "&Tableau15[[#This Row],[Contenance]] -> 3B - Jus de pruneaux BIO - 1L
A20: 4A | B20: =VLOOKUP($A20,Produits!$A$1:$P$357,2,FALSE) -> Jus de fruit BIO - Pomme / Abricot | C20: =VLOOKUP($A20,Produits!$A$1:$P$357,3,FALSE) -> 25cl | D20: =VLOOKUP($A20,Produits!$A$1:$P$357,5,FALSE) -> 12 | E20: =VLOOKUP($A20,Produits!$A$1:$P$357,4,FALSE) -> Bouteille | F20: =VLOOKUP($A20,Produits!$A$1:$P$357,6,FALSE) -> 2.36966 | G20: =VLOOKUP($A20,Produits!$A$1:$P$357,7,FALSE) -> 2.5 | H20: =VLOOKUP($A20,Produits!$A$1:$P$357,10,FALSE) -> 0.055 | I20: =VLOOKUP($A20,Produits!$A$1:$P$357,8,FALSE) -> 0.05 | J20: =VLOOKUP($A20,Produits!$A$1:$P$357,9,FALSE) -> 2.26 | K20: =IF(ISNA(VLOOKUP($A20,Produits!$A$1:$O$357,14,FALSE)),"",VLOOKUP($A20,Produits!$A$1:$O$357,14,FALSE)) -> 3760219062806 | L20: =Tableau15[[#This Row],[Réf.]]&" - "&Tableau15[[#This Row],[Désignation]]&" - "&Tableau15[[#This Row],[Contenance]] -> 4A - Jus de fruit BIO - Pomme / Abricot - 25cl
A21: 4B | B21: =VLOOKUP($A21,Produits!$A$1:$P$357,2,FALSE) -> Jus de fruit BIO - Pomme / Cerise | C21: =VLOOKUP($A21,Produits!$A$1:$P$357,3,FALSE) -> 25cl | D21: =VLOOKUP($A21,Produits!$A$1:$P$357,5,FALSE) -> 12 | E21: =VLOOKUP($A21,Produits!$A$1:$P$357,4,FALSE) -> Bouteille | F21: =VLOOKUP($A21,Produits!$A$1:$P$357,6,FALSE) -> 2.36966 | G21: =VLOOKUP($A21,Produits!$A$1:$P$357,7,FALSE) -> 2.5 | H21: =VLOOKUP($A21,Produits!$A$1:$P$357,10,FALSE) -> 0.055 | I21: =VLOOKUP($A21,Produits!$A$1:$P$357,8,FALSE) -> 0.05 | J21: =VLOOKUP($A21,Produits!$A$1:$P$357,9,FALSE) -> 2.26 | K21: =IF(ISNA(VLOOKUP($A21,Produits!$A$1:$O$357,14,FALSE)),"",VLOOKUP($A21,Produits!$A$1:$O$357,14,FALSE)) -> 3760219062790 | L21: =Tableau15[[#This Row],[Réf.]]&" - "&Tableau15[[#This Row],[Désignation]]&" - "&Tableau15[[#This Row],[Contenance]] -> 4B - Jus de fruit BIO - Pomme / Cerise - 25cl
A22: 4C | B22: =VLOOKUP($A22,Produits!$A$1:$P$357,2,FALSE) -> Jus de fruit BIO - Pomme / Poire | C22: =VLOOKUP($A22,Produits!$A$1:$P$357,3,FALSE) -> 25cl | D22: =VLOOKUP($A22,Produits!$A$1:$P$357,5,FALSE) -> 12 | E22: =VLOOKUP($A22,Produits!$A$1:$P$357,4,FALSE) -> Bouteille | F22: =VLOOKUP($A22,Produits!$A$1:$P$357,6,FALSE) -> 2.36966 | G22: =VLOOKUP($A22,Produits!$A$1:$P$357,7,FALSE) -> 2.5 | H22: =VLOOKUP($A22,Produits!$A$1:$P$357,10,FALSE) -> 0.055 | I22: =VLOOKUP($A22,Produits!$A$1:$P$357,8,FALSE) -> 0.05 | J22: =VLOOKUP($A22,Produits!$A$1:$P$357,9,FALSE) -> 2.26 | K22: =IF(ISNA(VLOOKUP($A22,Produits!$A$1:$O$357,14,FALSE)),"",VLOOKUP($A22,Produits!$A$1:$O$357,14,FALSE)) -> 3760219062783 | L22: =Tableau15[[#This Row],[Réf.]]&" - "&Tableau15[[#This Row],[Désignation]]&" - "&Tableau15[[#This Row],[Contenance]] -> 4C - Jus de fruit BIO - Pomme / Poire - 25cl
A23: 4D | B23: =VLOOKUP($A23,Produits!$A$1:$P$357,2,FALSE) -> Jus de fruit BIO - Pomme / Prunes | C23: =VLOOKUP($A23,Produits!$A$1:$P$357,3,FALSE) -> 25cl | D23: =VLOOKUP($A23,Produits!$A$1:$P$357,5,FALSE) -> 12 | E23: =VLOOKUP($A23,Produits!$A$1:$P$357,4,FALSE) -> Bouteille | F23: =VLOOKUP($A23,Produits!$A$1:$P$357,6,FALSE) -> 2.36966 | G23: =VLOOKUP($A23,Produits!$A$1:$P$357,7,FALSE) -> 2.5 | H23: =VLOOKUP($A23,Produits!$A$1:$P$357,10,FALSE) -> 0.055 | I23: =VLOOKUP($A23,Produits!$A$1:$P$357,8,FALSE) -> 0.05 | J23: =VLOOKUP($A23,Produits!$A$1:$P$357,9,FALSE) -> 2.26 | K23: =IF(ISNA(VLOOKUP($A23,Produits!$A$1:$O$357,14,FALSE)),"",VLOOKUP($A23,Produits!$A$1:$O$357,14,FALSE)) -> 3760219062776 | L23: =Tableau15[[#This Row],[Réf.]]&" - "&Tableau15[[#This Row],[Désignation]]&" - "&Tableau15[[#This Row],[Contenance]] -> 4D - Jus de fruit BIO - Pomme / Prunes - 25cl
A24: 5A | B24: =VLOOKUP($A24,Produits!$A$1:$P$357,2,FALSE) -> Farine de sarrasin BIO | C24: =VLOOKUP($A24,Produits!$A$1:$P$357,3,FALSE) -> 1kg | D24: =VLOOKUP($A24,Produits!$A$1:$P$357,5,FALSE) -> 6 | E24: =VLOOKUP($A24,Produits!$A$1:$P$357,4,FALSE) -> Sachet | F24: =VLOOKUP($A24,Produits!$A$1:$P$357,6,FALSE) -> 3.79146 | G24: =VLOOKUP($A24,Produits!$A$1:$P$357,7,FALSE) -> 4 | H24: =VLOOKUP($A24,Produits!$A$1:$P$357,10,FALSE) -> 0.055 | I24: =VLOOKUP($A24,Produits!$A$1:$P$357,8,FALSE) -> 0.05 | J24: =VLOOKUP($A24,Produits!$A$1:$P$357,9,FALSE) -> 3.61 | K24: =IF(ISNA(VLOOKUP($A24,Produits!$A$1:$O$357,14,FALSE)),"",VLOOKUP($A24,Produits!$A$1:$O$357,14,FALSE)) -> 3760219062769 | L24: =Tableau15[[#This Row],[Réf.]]&" - "&Tableau15[[#This Row],[Désignation]]&" - "&Tableau15[[#This Row],[Contenance]] -> 5A - Farine de sarrasin BIO - 1kg
A25: 5B | B25: =VLOOKUP($A25,Produits!$A$1:$P$357,2,FALSE) -> Farine de petit épeautre BIO | C25: =VLOOKUP($A25,Produits!$A$1:$P$357,3,FALSE) -> 1kg | D25: =VLOOKUP($A25,Produits!$A$1:$P$357,5,FALSE) -> 6 | E25: =VLOOKUP($A25,Produits!$A$1:$P$357,4,FALSE) -> Sachet | F25: =VLOOKUP($A25,Produits!$A$1:$P$357,6,FALSE) -> 4.73933 | G25: =VLOOKUP($A25,Produits!$A$1:$P$357,7,FALSE) -> 5 | H25: =VLOOKUP($A25,Produits!$A$1:$P$357,10,FALSE) -> 0.055 | I25: =VLOOKUP($A25,Produits!$A$1:$P$357,8,FALSE) -> 0.05 | J25: =VLOOKUP($A25,Produits!$A$1:$P$357,9,FALSE) -> 4.51 | K25: =IF(ISNA(VLOOKUP($A25,Produits!$A$1:$O$357,14,FALSE)),"",VLOOKUP($A25,Produits!$A$1:$O$357,14,FALSE)) -> 3760219062752 | L25: =Tableau15[[#This Row],[Réf.]]&" - "&Tableau15[[#This Row],[Désignation]]&" - "&Tableau15[[#This Row],[Contenance]] -> 5B - Farine de petit épeautre BIO - 1kg
A26: 5C | B26: =VLOOKUP($A26,Produits!$A$1:$P$357,2,FALSE) -> Farine T80 BIO | C26: =VLOOKUP($A26,Produits!$A$1:$P$357,3,FALSE) -> 1kg | D26: =VLOOKUP($A26,Produits!$A$1:$P$357,5,FALSE) -> 6 | E26: =VLOOKUP($A26,Produits!$A$1:$P$357,4,FALSE) -> Sachet | F26: =VLOOKUP($A26,Produits!$A$1:$P$357,6,FALSE) -> 2.18009 | G26: =VLOOKUP($A26,Produits!$A$1:$P$357,7,FALSE) -> 2.3 | H26: =VLOOKUP($A26,Produits!$A$1:$P$357,10,FALSE) -> 0.055 | I26: =VLOOKUP($A26,Produits!$A$1:$P$357,8,FALSE) -> 0.05 | J26: =VLOOKUP($A26,Produits!$A$1:$P$357,9,FALSE) -> 2.08 | K26: =IF(ISNA(VLOOKUP($A26,Produits!$A$1:$O$357,14,FALSE)),"",VLOOKUP($A26,Produits!$A$1:$O$357,14,FALSE)) -> 3760219062745 | L26: =Tableau15[[#This Row],[Réf.]]&" - "&Tableau15[[#This Row],[Désignation]]&" - "&Tableau15[[#This Row],[Contenance]] -> 5C - Farine T80 BIO - 1kg
A27: 5D | B27: =VLOOKUP($A27,Produits!$A$1:$P$357,2,FALSE) -> Huile vierge de tournesol BIO | C27: =VLOOKUP($A27,Produits!$A$1:$P$357,3,FALSE) -> 1L | D27: =VLOOKUP($A27,Produits!$A$1:$P$357,5,FALSE) -> 6 | E27: =VLOOKUP($A27,Produits!$A$1:$P$357,4,FALSE) -> Bouteille | F27: =VLOOKUP($A27,Produits!$A$1:$P$357,6,FALSE) -> 4.07582 | G27: =VLOOKUP($A27,Produits!$A$1:$P$357,7,FALSE) -> 4.3 | H27: =VLOOKUP($A27,Produits!$A$1:$P$357,10,FALSE) -> 0.055 | I27: =VLOOKUP($A27,Produits!$A$1:$P$357,8,FALSE) -> 0.05 | J27: =VLOOKUP($A27,Produits!$A$1:$P$357,9,FALSE) -> 3.88 | K27: =IF(ISNA(VLOOKUP($A27,Produits!$A$1:$O$357,14,FALSE)),"",VLOOKUP($A27,Produits!$A$1:$O$357,14,FALSE)) -> 3760219062738 | L27: =Tableau15[[#This Row],[Réf.]]&" - "&Tableau15[[#This Row],[Désignation]]&" - "&Tableau15[[#This Row],[Contenance]] -> 5D - Huile vierge de tournesol BIO - 1L
A28: 6A | B28: =VLOOKUP($A28,Produits!$A$1:$P$357,2,FALSE) -> Pruneaux d’Agen (33/44) - Boîte Or | C28: =VLOOKUP($A28,Produits!$A$1:$P$357,3,FALSE) -> 1kg | D28: =VLOOKUP($A28,Produits!$A$1:$P$357,5,FALSE) -> 6 | E28: =VLOOKUP($A28,Produits!$A$1:$P$357,4,FALSE) -> Boite métal | F28: =VLOOKUP($A28,Produits!$A$1:$P$357,6,FALSE) -> 9.9526 | G28: =VLOOKUP($A28,Produits!$A$1:$P$357,7,FALSE) -> 10.5 | H28: =VLOOKUP($A28,Produits!$A$1:$P$357,10,FALSE) -> 0.055 | I28: =VLOOKUP($A28,Produits!$A$1:$P$357,8,FALSE) -> 0.2 | J28: =VLOOKUP($A28,Produits!$A$1:$P$357,9,FALSE) -> 7.97 | K28: =IF(ISNA(VLOOKUP($A28,Produits!$A$1:$O$357,14,FALSE)),"",VLOOKUP($A28,Produits!$A$1:$O$357,14,FALSE)) -> 3760219062721 | L28: =Tableau15[[#This Row],[Réf.]]&" - "&Tableau15[[#This Row],[Désignation]]&" - "&Tableau15[[#This Row],[Contenance]] -> 6A - Pruneaux d’Agen (33/44) - Boîte Or - 1kg
A29: 6B | B29: =VLOOKUP($A29,Produits!$A$1:$P$357,2,FALSE) -> Pruneaux d’Agen (30/35) - Boîte Or | C29: =VLOOKUP($A29,Produits!$A$1:$P$357,3,FALSE) -> 1kg | D29: =VLOOKUP($A29,Produits!$A$1:$P$357,5,FALSE) -> 6 | E29: =VLOOKUP($A29,Produits!$A$1:$P$357,4,FALSE) -> Boite métal | F29: =VLOOKUP($A29,Produits!$A$1:$P$357,6,FALSE) -> 11.3744 | G29: =VLOOKUP($A29,Produits!$A$1:$P$357,7,FALSE) -> 12 | H29: =VLOOKUP($A29,Produits!$A$1:$P$357,10,FALSE) -> 0.055 | I29: =VLOOKUP($A29,Produits!$A$1:$P$357,8,FALSE) -> 0.2 | J29: =VLOOKUP($A29,Produits!$A$1:$P$357,9,FALSE) -> 9.1 | K29: =IF(ISNA(VLOOKUP($A29,Produits!$A$1:$O$357,14,FALSE)),"",VLOOKUP($A29,Produits!$A$1:$O$357,14,FALSE)) -> 3760219062714 | L29: =Tableau15[[#This Row],[Réf.]]&" - "&Tableau15[[#This Row],[Désignation]]&" - "&Tableau15[[#This Row],[Contenance]] -> 6B - Pruneaux d’Agen (30/35) - Boîte Or - 1kg
A30: 6C | B30: =VLOOKUP($A30,Produits!$A$1:$P$357,2,FALSE) -> Pruneaux d’Agen dénoyautés (44/55) - Boîte Or | C30: =VLOOKUP($A30,Produits!$A$1:$P$357,3,FALSE) -> 1kg | D30: =VLOOKUP($A30,Produits!$A$1:$P$357,5,FALSE) -> 6 | E30: =VLOOKUP($A30,Produits!$A$1:$P$357,4,FALSE) -> Boite métal | F30: =VLOOKUP($A30,Produits!$A$1:$P$357,6,FALSE) -> 12.32227 | G30: =VLOOKUP($A30,Produits!$A$1:$P$357,7,FALSE) -> 13 | H30: =VLOOKUP($A30,Produits!$A$1:$P$357,10,FALSE) -> 0.055 | I30: =VLOOKUP($A30,Produits!$A$1:$P$357,8,FALSE) -> 0.2 | J30: =VLOOKUP($A30,Produits!$A$1:$P$357,9,FALSE) -> 9.86 | K30: =IF(ISNA(VLOOKUP($A30,Produits!$A$1:$O$357,14,FALSE)),"",VLOOKUP($A30,Produits!$A$1:$O$357,14,FALSE)) -> 3760219062707 | L30: =Tableau15[[#This Row],[Réf.]]&" - "&Tableau15[[#This Row],[Désignation]]&" - "&Tableau15[[#This Row],[Contenance]] -> 6C - Pruneaux d’Agen dénoyautés (44/55) - Boîte Or - 1kg
A31: 7A | B31: =VLOOKUP($A31,Produits!$A$1:$P$357,2,FALSE) -> Pruneaux d’Agen Mi-Cuit | C31: =VLOOKUP($A31,Produits!$A$1:$P$357,3,FALSE) -> 500g | D31: =VLOOKUP($A31,Produits!$A$1:$P$357,5,FALSE) -> 25 | E31: =VLOOKUP($A31,Produits!$A$1:$P$357,4,FALSE) -> Sachet | F31: =VLOOKUP($A31,Produits!$A$1:$P$357,6,FALSE) -> 4.07582 | G31: =VLOOKUP($A31,Produits!$A$1:$P$357,7,FALSE) -> 4.3 | H31: =VLOOKUP($A31,Produits!$A$1:$P$357,10,FALSE) -> 0.055 | I31: =VLOOKUP($A31,Produits!$A$1:$P$357,8,FALSE) -> 0.2 | J31: =VLOOKUP($A31,Produits!$A$1:$P$357,9,FALSE) -> 3.27 | K31: =IF(ISNA(VLOOKUP($A31,Produits!$A$1:$O$357,14,FALSE)),"",VLOOKUP($A31,Produits!$A$1:$O$357,14,FALSE)) -> 3760219062691 | L31: =Tableau15[[#This Row],[Réf.]]&" - "&Tableau15[[#This Row],[Désignation]]&" - "&Tableau15[[#This Row],[Contenance]] -> 7A - Pruneaux d’Agen Mi-Cuit - 500g
A32: 7B | B32: =VLOOKUP($A32,Produits!$A$1:$P$357,2,FALSE) -> Pruneaux d’Agen Mi-Cuit | C32: =VLOOKUP($A32,Produits!$A$1:$P$357,3,FALSE) -> 1kg | D32: =VLOOKUP($A32,Produits!$A$1:$P$357,5,FALSE) -> 14 | E32: =VLOOKUP($A32,Produits!$A$1:$P$357,4,FALSE) -> Sachet | F32: =VLOOKUP($A32,Produits!$A$1:$P$357,6,FALSE) -> 6.87203 | G32: =VLOOKUP($A32,Produits!$A$1:$P$357,7,FALSE) -> 7.25 | H32: =VLOOKUP($A32,Produits!$A$1:$P$357,10,FALSE) -> 0.055 | I32: =VLOOKUP($A32,Produits!$A$1:$P$357,8,FALSE) -> 0.2 | J32: =VLOOKUP($A32,Produits!$A$1:$P$357,9,FALSE) -> 5.5 | K32: =IF(ISNA(VLOOKUP($A32,Produits!$A$1:$O$357,14,FALSE)),"",VLOOKUP($A32,Produits!$A$1:$O$357,14,FALSE)) -> 3760219062684 | L32: =Tableau15[[#This Row],[Réf.]]&" - "&Tableau15[[#This Row],[Désignation]]&" - "&Tableau15[[#This Row],[Contenance]] -> 7B - Pruneaux d’Agen Mi-Cuit - 1kg
A33: 8A | B33: =VLOOKUP($A33,Produits!$A$1:$P$357,2,FALSE) -> Pruneaux d’Agen (cal. 33/44) | C33: =VLOOKUP($A33,Produits!$A$1:$P$357,3,FALSE) -> 250g | D33: =VLOOKUP($A33,Produits!$A$1:$P$357,5,FALSE) -> 50 | E33: =VLOOKUP($A33,Produits!$A$1:$P$357,4,FALSE) -> Sachet | F33: =VLOOKUP($A33,Produits!$A$1:$P$357,6,FALSE) -> 3.03317 | G33: =VLOOKUP($A33,Produits!$A$1:$P$357,7,FALSE) -> 3.2 | H33: =VLOOKUP($A33,Produits!$A$1:$P$357,10,FALSE) -> 0.055 | I33: =VLOOKUP($A33,Produits!$A$1:$P$357,8,FALSE) -> 0.2 | J33: =VLOOKUP($A33,Produits!$A$1:$P$357,9,FALSE) -> 2.43 | K33: =IF(ISNA(VLOOKUP($A33,Produits!$A$1:$O$357,14,FALSE)),"",VLOOKUP($A33,Produits!$A$1:$O$357,14,FALSE)) -> 3760219062677 | L33: =Tableau15[[#This Row],[Réf.]]&" - "&Tableau15[[#This Row],[Désignation]]&" - "&Tableau15[[#This Row],[Contenance]] -> 8A - Pruneaux d’Agen (cal. 33/44) - 250g
A34: 8B | B34: =VLOOKUP($A34,Produits!$A$1:$P$357,2,FALSE) -> Pruneaux d’Agen (cal. 33/44) | C34: =VLOOKUP($A34,Produits!$A$1:$P$357,3,FALSE) -> 500g | D34: =VLOOKUP($A34,Produits!$A$1:$P$357,5,FALSE) -> 25 | E34: =VLOOKUP($A34,Produits!$A$1:$P$357,4,FALSE) -> Sachet | F34: =VLOOKUP($A34,Produits!$A$1:$P$357,6,FALSE) -> 3.60189 | G34: =VLOOKUP($A34,Produits!$A$1:$P$357,7,FALSE) -> 3.8 | H34: =VLOOKUP($A34,Produits!$A$1:$P$357,10,FALSE) -> 0.055 | I34: =VLOOKUP($A34,Produits!$A$1:$P$357,8,FALSE) -> 0.2 | J34: =VLOOKUP($A34,Produits!$A$1:$P$357,9,FALSE) -> 2.89 | K34: =IF(ISNA(VLOOKUP($A34,Produits!$A$1:$O$357,14,FALSE)),"",VLOOKUP($A34,Produits!$A$1:$O$357,14,FALSE)) -> 3760219062660 | L34: =Tableau15[[#This Row],[Réf.]]&" - "&Tableau15[[#This Row],[Désignation]]&" - "&Tableau15[[#This Row],[Contenance]] -> 8B - Pruneaux d’Agen (cal. 33/44) - 500g
A35: 8C | B35: =VLOOKUP($A35,Produits!$A$1:$P$357,2,FALSE) -> Pruneaux d’Agen (cal. 33/44) | C35: =VLOOKUP($A35,Produits!$A$1:$P$357,3,FALSE) -> 1kg | D35: =VLOOKUP($A35,Produits!$A$1:$P$357,5,FALSE) -> 14 | E35: =VLOOKUP($A35,Produits!$A$1:$P$357,4,FALSE) -> Sachet | F35: =VLOOKUP($A35,Produits!$A$1:$P$357,6,FALSE) -> 6.16113 | G35: =VLOOKUP($A35,Produits!$A$1:$P$357,7,FALSE) -> 6.5 | H35: =VLOOKUP($A35,Produits!$A$1:$P$357,10,FALSE) -> 0.055 | I35: =VLOOKUP($A35,Produits!$A$1:$P$357,8,FALSE) -> 0.2 | J35: =VLOOKUP($A35,Produits!$A$1:$P$357,9,FALSE) -> 4.93 | K35: =IF(ISNA(VLOOKUP($A35,Produits!$A$1:$O$357,14,FALSE)),"",VLOOKUP($A35,Produits!$A$1:$O$357,14,FALSE)) -> 3760219062653 | L35: =Tableau15[[#This Row],[Réf.]]&" - "&Tableau15[[#This Row],[Désignation]]&" - "&Tableau15[[#This Row],[Contenance]] -> 8C - Pruneaux d’Agen (cal. 33/44) - 1kg
A36: 8D | B36: =VLOOKUP($A36,Produits!$A$1:$P$357,2,FALSE) -> Pruneaux d’Agen (cal. 30/35) | C36: =VLOOKUP($A36,Produits!$A$1:$P$357,3,FALSE) -> 500g | D36: =VLOOKUP($A36,Produits!$A$1:$P$357,5,FALSE) -> 25 | E36: =VLOOKUP($A36,Produits!$A$1:$P$357,4,FALSE) -> Sachet | F36: =VLOOKUP($A36,Produits!$A$1:$P$357,6,FALSE) -> 4.64454 | G36: =VLOOKUP($A36,Produits!$A$1:$P$357,7,FALSE) -> 4.9 | H36: =VLOOKUP($A36,Produits!$A$1:$P$357,10,FALSE) -> 0.055 | I36: =VLOOKUP($A36,Produits!$A$1:$P$357,8,FALSE) -> 0.2 | J36: =VLOOKUP($A36,Produits!$A$1:$P$357,9,FALSE) -> 3.72 | K36: =IF(ISNA(VLOOKUP($A36,Produits!$A$1:$O$357,14,FALSE)),"",VLOOKUP($A36,Produits!$A$1:$O$357,14,FALSE)) -> 3760219062646 | L36: =Tableau15[[#This Row],[Réf.]]&" - "&Tableau15[[#This Row],[Désignation]]&" - "&Tableau15[[#This Row],[Contenance]] -> 8D - Pruneaux d’Agen (cal. 30/35) - 500g
A37: 8E | B37: =VLOOKUP($A37,Produits!$A$1:$P$357,2,FALSE) -> Pruneaux d’Agen (cal. 30/35) | C37: =VLOOKUP($A37,Produits!$A$1:$P$357,3,FALSE) -> 1kg | D37: =VLOOKUP($A37,Produits!$A$1:$P$357,5,FALSE) -> 14 | E37: =VLOOKUP($A37,Produits!$A$1:$P$357,4,FALSE) -> Sachet | F37: =VLOOKUP($A37,Produits!$A$1:$P$357,6,FALSE) -> 7.67772 | G37: =VLOOKUP($A37,Produits!$A$1:$P$357,7,FALSE) -> 8.1 | H37: =VLOOKUP($A37,Produits!$A$1:$P$357,10,FALSE) -> 0.055 | I37: =VLOOKUP($A37,Produits!$A$1:$P$357,8,FALSE) -> 0.2 | J37: =VLOOKUP($A37,Produits!$A$1:$P$357,9,FALSE) -> 6.15 | K37: =IF(ISNA(VLOOKUP($A37,Produits!$A$1:$O$357,14,FALSE)),"",VLOOKUP($A37,Produits!$A$1:$O$357,14,FALSE)) -> 3760219062639 | L37: =Tableau15[[#This Row],[Réf.]]&" - "&Tableau15[[#This Row],[Désignation]]&" - "&Tableau15[[#This Row],[Contenance]] -> 8E - Pruneaux d’Agen (cal. 30/35) - 1kg
A38: 8F | B38: =VLOOKUP($A38,Produits!$A$1:$P$357,2,FALSE) -> Pruneaux d’Agen (cal. 25/30) | C38: =VLOOKUP($A38,Produits!$A$1:$P$357,3,FALSE) -> 500g | D38: =VLOOKUP($A38,Produits!$A$1:$P$357,5,FALSE) -> 25 | E38: =VLOOKUP($A38,Produits!$A$1:$P$357,4,FALSE) -> Sachet | F38: =VLOOKUP($A38,Produits!$A$1:$P$357,6,FALSE) -> 4.83412 | G38: =VLOOKUP($A38,Produits!$A$1:$P$357,7,FALSE) -> 5.1 | H38: =VLOOKUP($A38,Produits!$A$1:$P$357,10,FALSE) -> 0.055 | I38: =VLOOKUP($A38,Produits!$A$1:$P$357,8,FALSE) -> 0.2 | J38: =VLOOKUP($A38,Produits!$A$1:$P$357,9,FALSE) -> 3.87 | K38: =IF(ISNA(VLOOKUP($A38,Produits!$A$1:$O$357,14,FALSE)),"",VLOOKUP($A38,Produits!$A$1:$O$357,14,FALSE)) -> 3760219062622 | L38: =Tableau15[[#This Row],[Réf.]]&" - "&Tableau15[[#This Row],[Désignation]]&" - "&Tableau15[[#This Row],[Contenance]] -> 8F - Pruneaux d’Agen (cal. 25/30) - 500g
A39: 8G | B39: =VLOOKUP($A39,Produits!$A$1:$P$357,2,FALSE) -> Pruneaux d’Agen (cal. 25/30) | C39: =VLOOKUP($A39,Produits!$A$1:$P$357,3,FALSE) -> 1kg | D39: =VLOOKUP($A39,Produits!$A$1:$P$357,5,FALSE) -> 14 | E39: =VLOOKUP($A39,Produits!$A$1:$P$357,4,FALSE) -> Sachet | F39: =VLOOKUP($A39,Produits!$A$1:$P$357,6,FALSE) -> 8.05 | G39: =VLOOKUP($A39,Produits!$A$1:$P$357,7,FALSE) -> 8.5 | H39: =VLOOKUP($A39,Produits!$A$1:$P$357,10,FALSE) -> 0.055 | I39: =VLOOKUP($A39,Produits!$A$1:$P$357,8,FALSE) -> 0.2 | J39: =VLOOKUP($A39,Produits!$A$1:$P$357,9,FALSE) -> 6.44 | K39: =IF(ISNA(VLOOKUP($A39,Produits!$A$1:$O$357,14,FALSE)),"",VLOOKUP($A39,Produits!$A$1:$O$357,14,FALSE)) -> 3760219062615 | L39: =Tableau15[[#This Row],[Réf.]]&" - "&Tableau15[[#This Row],[Désignation]]&" - "&Tableau15[[#This Row],[Contenance]] -> 8G - Pruneaux d’Agen (cal. 25/30) - 1kg
A40: 8H | B40: =VLOOKUP($A40,Produits!$A$1:$P$357,2,FALSE) -> Pruneaux d’Agen (cal. 33/44) | C40: =VLOOKUP($A40,Produits!$A$1:$P$357,3,FALSE) -> 5kg (2x2,5kg) | D40: =VLOOKUP($A40,Produits!$A$1:$P$357,5,FALSE) -> 4 | E40: =VLOOKUP($A40,Produits!$A$1:$P$357,4,FALSE) -> Sachet | F40: =VLOOKUP($A40,Produits!$A$1:$P$357,6,FALSE) -> 26.91943 | G40: =VLOOKUP($A40,Produits!$A$1:$P$357,7,FALSE) -> 28.4 | H40: =VLOOKUP($A40,Produits!$A$1:$P$357,10,FALSE) -> 0.055 | I40: =VLOOKUP($A40,Produits!$A$1:$P$357,8,FALSE) -> 0.2 | J40: =VLOOKUP($A40,Produits!$A$1:$P$357,9,FALSE) -> 21.54 | K40: =IF(ISNA(VLOOKUP($A40,Produits!$A$1:$O$357,14,FALSE)),"",VLOOKUP($A40,Produits!$A$1:$O$357,14,FALSE)) -> 3760219062608 | L40: =Tableau15[[#This Row],[Réf.]]&" - "&Tableau15[[#This Row],[Désignation]]&" - "&Tableau15[[#This Row],[Contenance]] -> 8H - Pruneaux d’Agen (cal. 33/44) - 5kg (2x2,5kg)
A41: 8I | B41: =VLOOKUP($A41,Produits!$A$1:$P$357,2,FALSE) -> Pruneaux d’Agen (cal. 33/44) avec conservateur e200 | C41: =VLOOKUP($A41,Produits!$A$1:$P$357,3,FALSE) -> 14kg | D41: =VLOOKUP($A41,Produits!$A$1:$P$357,5,FALSE) -> 1 | E41: =VLOOKUP($A41,Produits!$A$1:$P$357,4,FALSE) -> Sachet | F41: =VLOOKUP($A41,Produits!$A$1:$P$357,6,FALSE) -> 74.88151 | G41: =VLOOKUP($A41,Produits!$A$1:$P$357,7,FALSE) -> 79 | H41: =VLOOKUP($A41,Produits!$A$1:$P$357,10,FALSE) -> 0.055 | I41: =VLOOKUP($A41,Produits!$A$1:$P$357,8,FALSE) -> 0.2 | J41: =VLOOKUP($A41,Produits!$A$1:$P$357,9,FALSE) -> 59.91 | K41: =IF(ISNA(VLOOKUP($A41,Produits!$A$1:$O$357,14,FALSE)),"",VLOOKUP($A41,Produits!$A$1:$O$357,14,FALSE)) -> 3760219062592 | L41: =Tableau15[[#This Row],[Réf.]]&" - "&Tableau15[[#This Row],[Désignation]]&" - "&Tableau15[[#This Row],[Contenance]] -> 8I - Pruneaux d’Agen (cal. 33/44) avec conservateur e200 - 14kg
A42: 9A | B42: =VLOOKUP($A42,Produits!$A$1:$P$357,2,FALSE) -> Pruneaux d’Agen dénoyautés (cal. 44/55) | C42: =VLOOKUP($A42,Produits!$A$1:$P$357,3,FALSE) -> 250g | D42: =VLOOKUP($A42,Produits!$A$1:$P$357,5,FALSE) -> 50 | E42: =VLOOKUP($A42,Produits!$A$1:$P$357,4,FALSE) -> Sachet | F42: =VLOOKUP($A42,Produits!$A$1:$P$357,6,FALSE) -> 3.31 | G42: =VLOOKUP($A42,Produits!$A$1:$P$357,7,FALSE) -> 3.5 | H42: =VLOOKUP($A42,Produits!$A$1:$P$357,10,FALSE) -> 0.055 | I42: =VLOOKUP($A42,Produits!$A$1:$P$357,8,FALSE) -> 0.2 | J42: =VLOOKUP($A42,Produits!$A$1:$P$357,9,FALSE) -> 2.65 | K42: =IF(ISNA(VLOOKUP($A42,Produits!$A$1:$O$357,14,FALSE)),"",VLOOKUP($A42,Produits!$A$1:$O$357,14,FALSE)) -> 3760219062585 | L42: =Tableau15[[#This Row],[Réf.]]&" - "&Tableau15[[#This Row],[Désignation]]&" - "&Tableau15[[#This Row],[Contenance]] -> 9A - Pruneaux d’Agen dénoyautés (cal. 44/55) - 250g
A43: 9B | B43: =VLOOKUP($A43,Produits!$A$1:$P$357,2,FALSE) -> Pruneaux d’Agen dénoyautés (cal. 44/55) | C43: =VLOOKUP($A43,Produits!$A$1:$P$357,3,FALSE) -> 500g | D43: =VLOOKUP($A43,Produits!$A$1:$P$357,5,FALSE) -> 25 | E43: =VLOOKUP($A43,Produits!$A$1:$P$357,4,FALSE) -> Sachet | F43: =VLOOKUP($A43,Produits!$A$1:$P$357,6,FALSE) -> 4.54976 | G43: =VLOOKUP($A43,Produits!$A$1:$P$357,7,FALSE) -> 4.8 | H43: =VLOOKUP($A43,Produits!$A$1:$P$357,10,FALSE) -> 0.055 | I43: =VLOOKUP($A43,Produits!$A$1:$P$357,8,FALSE) -> 0.2 | J43: =VLOOKUP($A43,Produits!$A$1:$P$357,9,FALSE) -> 3.64 | K43: =IF(ISNA(VLOOKUP($A43,Produits!$A$1:$O$357,14,FALSE)),"",VLOOKUP($A43,Produits!$A$1:$O$357,14,FALSE)) -> 3760219062578 | L43: =Tableau15[[#This Row],[Réf.]]&" - "&Tableau15[[#This Row],[Désignation]]&" - "&Tableau15[[#This Row],[Contenance]] -> 9B - Pruneaux d’Agen dénoyautés (cal. 44/55) - 500g
A44: 9C | B44: =VLOOKUP($A44,Produits!$A$1:$P$357,2,FALSE) -> Pruneaux d’Agen dénoyautés (cal. 44/55) | C44: =VLOOKUP($A44,Produits!$A$1:$P$357,3,FALSE) -> 1kg | D44: =VLOOKUP($A44,Produits!$A$1:$P$357,5,FALSE) -> 14 | E44: =VLOOKUP($A44,Produits!$A$1:$P$357,4,FALSE) -> Sachet | F44: =VLOOKUP($A44,Produits!$A$1:$P$357,6,FALSE) -> 8.43601 | G44: =VLOOKUP($A44,Produits!$A$1:$P$357,7,FALSE) -> 8.9 | H44: =VLOOKUP($A44,Produits!$A$1:$P$357,10,FALSE) -> 0.055 | I44: =VLOOKUP($A44,Produits!$A$1:$P$357,8,FALSE) -> 0.2 | J44: =VLOOKUP($A44,Produits!$A$1:$P$357,9,FALSE) -> 6.75 | K44: =IF(ISNA(VLOOKUP($A44,Produits!$A$1:$O$357,14,FALSE)),"",VLOOKUP($A44,Produits!$A$1:$O$357,14,FALSE)) -> 3760219062561 | L44: =Tableau15[[#This Row],[Réf.]]&" - "&Tableau15[[#This Row],[Désignation]]&" - "&Tableau15[[#This Row],[Contenance]] -> 9C - Pruneaux d’Agen dénoyautés (cal. 44/55) - 1kg
A45: 9D | B45: =VLOOKUP($A45,Produits!$A$1:$P$357,2,FALSE) -> Pruneaux d’Agen dénoyautés (cal. 30/35) | C45: =VLOOKUP($A45,Produits!$A$1:$P$357,3,FALSE) -> 500g | D45: =VLOOKUP($A45,Produits!$A$1:$P$357,5,FALSE) -> 25 | E45: =VLOOKUP($A45,Produits!$A$1:$P$357,4,FALSE) -> Sachet | F45: =VLOOKUP($A45,Produits!$A$1:$P$357,6,FALSE) -> 5.21327 | G45: =VLOOKUP($A45,Produits!$A$1:$P$357,7,FALSE) -> 5.5 | H45: =VLOOKUP($A45,Produits!$A$1:$P$357,10,FALSE) -> 0.055 | I45: =VLOOKUP($A45,Produits!$A$1:$P$357,8,FALSE) -> 0.2 | J45: =VLOOKUP($A45,Produits!$A$1:$P$357,9,FALSE) -> 4.18 | K45: =IF(ISNA(VLOOKUP($A45,Produits!$A$1:$O$357,14,FALSE)),"",VLOOKUP($A45,Produits!$A$1:$O$357,14,FALSE)) -> 3760219062554 | L45: =Tableau15[[#This Row],[Réf.]]&" - "&Tableau15[[#This Row],[Désignation]]&" - "&Tableau15[[#This Row],[Contenance]] -> 9D - Pruneaux d’Agen dénoyautés (cal. 30/35) - 500g
A46: 9E | B46: =VLOOKUP($A46,Produits!$A$1:$P$357,2,FALSE) -> Pruneaux d’Agen dénoyautés (cal. 30/35) | C46: =VLOOKUP($A46,Produits!$A$1:$P$357,3,FALSE) -> 1kg | D46: =VLOOKUP($A46,Produits!$A$1:$P$357,5,FALSE) -> 14 | E46: =VLOOKUP($A46,Produits!$A$1:$P$357,4,FALSE) -> Sachet | F46: =VLOOKUP($A46,Produits!$A$1:$P$357,6,FALSE) -> 8.72037 | G46: =VLOOKUP($A46,Produits!$A$1:$P$357,7,FALSE) -> 9.2 | H46: =VLOOKUP($A46,Produits!$A$1:$P$357,10,FALSE) -> 0.055 | I46: =VLOOKUP($A46,Produits!$A$1:$P$357,8,FALSE) -> 0.2 | J46: =VLOOKUP($A46,Produits!$A$1:$P$357,9,FALSE) -> 6.98 | K46: =IF(ISNA(VLOOKUP($A46,Produits!$A$1:$O$357,14,FALSE)),"",VLOOKUP($A46,Produits!$A$1:$O$357,14,FALSE)) -> 3760219062547 | L46: =Tableau15[[#This Row],[Réf.]]&" - "&Tableau15[[#This Row],[Désignation]]&" - "&Tableau15[[#This Row],[Contenance]] -> 9E - Pruneaux d’Agen dénoyautés (cal. 30/35) - 1kg
A47: 10A | B47: =VLOOKUP($A47,Produits!$A$1:$P$357,2,FALSE) -> Jus de Pruneaux | C47: =VLOOKUP($A47,Produits!$A$1:$P$357,3,FALSE) -> 1L | D47: =VLOOKUP($A47,Produits!$A$1:$P$357,5,FALSE) -> 6 | E47: =VLOOKUP($A47,Produits!$A$1:$P$357,4,FALSE) -> Bouteille | F47: =VLOOKUP($A47,Produits!$A$1:$P$357,6,FALSE) -> 3.98104 | G47: =VLOOKUP($A47,Produits!$A$1:$P$357,7,FALSE) -> 4.2 | H47: =VLOOKUP($A47,Produits!$A$1:$P$357,10,FALSE) -> 0.055 | I47: =VLOOKUP($A47,Produits!$A$1:$P$357,8,FALSE) -> 0.2 | J47: =VLOOKUP($A47,Produits!$A$1:$P$357,9,FALSE) -> 3.19 | K47: =IF(ISNA(VLOOKUP($A47,Produits!$A$1:$O$357,14,FALSE)),"",VLOOKUP($A47,Produits!$A$1:$O$357,14,FALSE)) -> 3760219062530 | L47: =Tableau15[[#This Row],[Réf.]]&" - "&Tableau15[[#This Row],[Désignation]]&" - "&Tableau15[[#This Row],[Contenance]] -> 10A - Jus de Pruneaux - 1L
A48: 10B | B48: =VLOOKUP($A48,Produits!$A$1:$P$357,2,FALSE) -> Jus de Pruneaux | C48: =VLOOKUP($A48,Produits!$A$1:$P$357,3,FALSE) -> 25cl | D48: =VLOOKUP($A48,Produits!$A$1:$P$357,5,FALSE) -> 12 | E48: =VLOOKUP($A48,Produits!$A$1:$P$357,4,FALSE) -> Bouteille | F48: =VLOOKUP($A48,Produits!$A$1:$P$357,6,FALSE) -> 2.0853 | G48: =VLOOKUP($A48,Produits!$A$1:$P$357,7,FALSE) -> 2.2 | H48: =VLOOKUP($A48,Produits!$A$1:$P$357,10,FALSE) -> 0.055 | I48: =VLOOKUP($A48,Produits!$A$1:$P$357,8,FALSE) -> 0.2 | J48: =VLOOKUP($A48,Produits!$A$1:$P$357,9,FALSE) -> 1.67 | K48: =IF(ISNA(VLOOKUP($A48,Produits!$A$1:$O$357,14,FALSE)),"",VLOOKUP($A48,Produits!$A$1:$O$357,14,FALSE)) -> 3760219062905 | L48: =Tableau15[[#This Row],[Réf.]]&" - "&Tableau15[[#This Row],[Désignation]]&" - "&Tableau15[[#This Row],[Contenance]] -> 10B - Jus de Pruneaux - 25cl
A49: 11A | B49: =VLOOKUP($A49,Produits!$A$1:$P$357,2,FALSE) -> Pétillant de pruneaux | C49: =VLOOKUP($A49,Produits!$A$1:$P$357,3,FALSE) -> 0,75L | D49: =VLOOKUP($A49,Produits!$A$1:$P$357,5,FALSE) -> 6 | E49: =VLOOKUP($A49,Produits!$A$1:$P$357,4,FALSE) -> Bouteille | F49: =VLOOKUP($A49,Produits!$A$1:$P$357,6,FALSE) -> 5.59241 | G49: =VLOOKUP($A49,Produits!$A$1:$P$357,7,FALSE) -> 5.9 | H49: =VLOOKUP($A49,Produits!$A$1:$P$357,10,FALSE) -> 0.055 | I49: =VLOOKUP($A49,Produits!$A$1:$P$357,8,FALSE) -> 0.2 | J49: =VLOOKUP($A49,Produits!$A$1:$P$357,9,FALSE) -> 4.48 | K49: =IF(ISNA(VLOOKUP($A49,Produits!$A$1:$O$357,14,FALSE)),"",VLOOKUP($A49,Produits!$A$1:$O$357,14,FALSE)) -> 3760219062523 | L49: =Tableau15[[#This Row],[Réf.]]&" - "&Tableau15[[#This Row],[Désignation]]&" - "&Tableau15[[#This Row],[Contenance]] -> 11A - Pétillant de pruneaux - 0,75L
A50: 12A | B50: =VLOOKUP($A50,Produits!$A$1:$P$357,2,FALSE) -> Pruneaux d’Agen secs | C50: =VLOOKUP($A50,Produits!$A$1:$P$357,3,FALSE) -> 500g | D50: =VLOOKUP($A50,Produits!$A$1:$P$357,5,FALSE) -> 25 | E50: =VLOOKUP($A50,Produits!$A$1:$P$357,4,FALSE) -> Sachet | F50: =VLOOKUP($A50,Produits!$A$1:$P$357,6,FALSE) -> 2.36966 | G50: =VLOOKUP($A50,Produits!$A$1:$P$357,7,FALSE) -> 2.5 | H50: =VLOOKUP($A50,Produits!$A$1:$P$357,10,FALSE) -> 0.055 | I50: =VLOOKUP($A50,Produits!$A$1:$P$357,8,FALSE) -> 0.2 | J50: =VLOOKUP($A50,Produits!$A$1:$P$357,9,FALSE) -> 1.9 | K50: =IF(ISNA(VLOOKUP($A50,Produits!$A$1:$O$357,14,FALSE)),"",VLOOKUP($A50,Produits!$A$1:$O$357,14,FALSE)) -> 3760219062516 | L50: =Tableau15[[#This Row],[Réf.]]&" - "&Tableau15[[#This Row],[Désignation]]&" - "&Tableau15[[#This Row],[Contenance]] -> 12A - Pruneaux d’Agen secs - 500g
A51: 12B | B51: =VLOOKUP($A51,Produits!$A$1:$P$357,2,FALSE) -> Pruneaux d’Agen secs | C51: =VLOOKUP($A51,Produits!$A$1:$P$357,3,FALSE) -> 1kg | D51: =VLOOKUP($A51,Produits!$A$1:$P$357,5,FALSE) -> 14 | E51: =VLOOKUP($A51,Produits!$A$1:$P$357,4,FALSE) -> Sachet | F51: =VLOOKUP($A51,Produits!$A$1:$P$357,6,FALSE) -> 4.64454 | G51: =VLOOKUP($A51,Produits!$A$1:$P$357,7,FALSE) -> 4.9 | H51: =VLOOKUP($A51,Produits!$A$1:$P$357,10,FALSE) -> 0.055 | I51: =VLOOKUP($A51,Produits!$A$1:$P$357,8,FALSE) -> 0.2 | J51: =VLOOKUP($A51,Produits!$A$1:$P$357,9,FALSE) -> 3.72 | K51: =IF(ISNA(VLOOKUP($A51,Produits!$A$1:$O$357,14,FALSE)),"",VLOOKUP($A51,Produits!$A$1:$O$357,14,FALSE)) -> 3760219062509 | L51: =Tableau15[[#This Row],[Réf.]]&" - "&Tableau15[[#This Row],[Désignation]]&" - "&Tableau15[[#This Row],[Contenance]] -> 12B - Pruneaux d’Agen secs - 1kg
A52: 13A | B52: =VLOOKUP($A52,Produits!$A$1:$P$357,2,FALSE) -> Crème de pruneaux | C52: =VLOOKUP($A52,Produits!$A$1:$P$357,3,FALSE) -> 220g | D52: =VLOOKUP($A52,Produits!$A$1:$P$357,5,FALSE) -> 24 | E52: =VLOOKUP($A52,Produits!$A$1:$P$357,4,FALSE) -> Bocal | F52: =VLOOKUP($A52,Produits!$A$1:$P$357,6,FALSE) -> 3.03317 | G52: =VLOOKUP($A52,Produits!$A$1:$P$357,7,FALSE) -> 3.2 | H52: =VLOOKUP($A52,Produits!$A$1:$P$357,10,FALSE) -> 0.055 | I52: =VLOOKUP($A52,Produits!$A$1:$P$357,8,FALSE) -> 0.2 | J52: =VLOOKUP($A52,Produits!$A$1:$P$357,9,FALSE) -> 2.43 | K52: =IF(ISNA(VLOOKUP($A52,Produits!$A$1:$O$357,14,FALSE)),"",VLOOKUP($A52,Produits!$A$1:$O$357,14,FALSE)) -> 3760219062493 | L52: =Tableau15[[#This Row],[Réf.]]&" - "&Tableau15[[#This Row],[Désignation]]&" - "&Tableau15[[#This Row],[Contenance]] -> 13A - Crème de pruneaux - 220g
A53: 13B | B53: =VLOOKUP($A53,Produits!$A$1:$P$357,2,FALSE) -> Crème de pruneaux | C53: =VLOOKUP($A53,Produits!$A$1:$P$357,3,FALSE) -> 320g | D53: =VLOOKUP($A53,Produits!$A$1:$P$357,5,FALSE) -> 24 | E53: =VLOOKUP($A53,Produits!$A$1:$P$357,4,FALSE) -> Bocal | F53: =VLOOKUP($A53,Produits!$A$1:$P$357,6,FALSE) -> 3.98104 | G53: =VLOOKUP($A53,Produits!$A$1:$P$357,7,FALSE) -> 4.2 | H53: =VLOOKUP($A53,Produits!$A$1:$P$357,10,FALSE) -> 0.055 | I53: =VLOOKUP($A53,Produits!$A$1:$P$357,8,FALSE) -> 0.28 | J53: =VLOOKUP($A53,Produits!$A$1:$P$357,9,FALSE) -> 2.87 | K53: =IF(ISNA(VLOOKUP($A53,Produits!$A$1:$O$357,14,FALSE)),"",VLOOKUP($A53,Produits!$A$1:$O$357,14,FALSE)) -> 3760219062486 | L53: =Tableau15[[#This Row],[Réf.]]&" - "&Tableau15[[#This Row],[Désignation]]&" - "&Tableau15[[#This Row],[Contenance]] -> 13B - Crème de pruneaux - 320g
A54: 14A | B54: =VLOOKUP($A54,Produits!$A$1:$P$357,2,FALSE) -> Pulpe de pruneaux | C54: =VLOOKUP($A54,Produits!$A$1:$P$357,3,FALSE) -> 310g | D54: =VLOOKUP($A54,Produits!$A$1:$P$357,5,FALSE) -> 24 | E54: =VLOOKUP($A54,Produits!$A$1:$P$357,4,FALSE) -> Bocal | F54: =VLOOKUP($A54,Produits!$A$1:$P$357,6,FALSE) -> 3.98104 | G54: =VLOOKUP($A54,Produits!$A$1:$P$357,7,FALSE) -> 4.2 | H54: =VLOOKUP($A54,Produits!$A$1:$P$357,10,FALSE) -> 0.055 | I54: =VLOOKUP($A54,Produits!$A$1:$P$357,8,FALSE) -> 0.28 | J54: =VLOOKUP($A54,Produits!$A$1:$P$357,9,FALSE) -> 2.87 | K54: =IF(ISNA(VLOOKUP($A54,Produits!$A$1:$O$357,14,FALSE)),"",VLOOKUP($A54,Produits!$A$1:$O$357,14,FALSE)) -> 3760219062479 | L54: =Tableau15[[#This Row],[Réf.]]&" - "&Tableau15[[#This Row],[Désignation]]&" - "&Tableau15[[#This Row],[Contenance]] -> 14A - Pulpe de pruneaux - 310g
A55: 15A | B55: =VLOOKUP($A55,Produits!$A$1:$P$357,2,FALSE) -> Pruneaux au sirop | C55: =VLOOKUP($A55,Produits!$A$1:$P$357,3,FALSE) -> 320g | D55: =VLOOKUP($A55,Produits!$A$1:$P$357,5,FALSE) -> 14 | E55: =VLOOKUP($A55,Produits!$A$1:$P$357,4,FALSE) -> Bocal | F55: =VLOOKUP($A55,Produits!$A$1:$P$357,6,FALSE) -> 3.22274 | G55: =VLOOKUP($A55,Produits!$A$1:$P$357,7,FALSE) -> 3.4 | H55: =VLOOKUP($A55,Produits!$A$1:$P$357,10,FALSE) -> 0.055 | I55: =VLOOKUP($A55,Produits!$A$1:$P$357,8,FALSE) -> 0.2 | J55: =VLOOKUP($A55,Produits!$A$1:$P$357,9,FALSE) -> 2.58 | K55: =IF(ISNA(VLOOKUP($A55,Produits!$A$1:$O$357,14,FALSE)),"",VLOOKUP($A55,Produits!$A$1:$O$357,14,FALSE)) -> 3760219062462 | L55: =Tableau15[[#This Row],[Réf.]]&" - "&Tableau15[[#This Row],[Désignation]]&" - "&Tableau15[[#This Row],[Contenance]] -> 15A - Pruneaux au sirop - 320g
A56: 16A | B56: =VLOOKUP($A56,Produits!$A$1:$P$357,2,FALSE) -> Confiture de Prune d'Ente allégée | C56: =VLOOKUP($A56,Produits!$A$1:$P$357,3,FALSE) -> 250g | D56: =VLOOKUP($A56,Produits!$A$1:$P$357,5,FALSE) -> 10 | E56: =VLOOKUP($A56,Produits!$A$1:$P$357,4,FALSE) -> Bocal | F56: =VLOOKUP($A56,Produits!$A$1:$P$357,6,FALSE) -> 3.79146 | G56: =VLOOKUP($A56,Produits!$A$1:$P$357,7,FALSE) -> 4 | H56: =VLOOKUP($A56,Produits!$A$1:$P$357,10,FALSE) -> 0.055 | I56: =VLOOKUP($A56,Produits!$A$1:$P$357,8,FALSE) -> 0.2 | J56: =VLOOKUP($A56,Produits!$A$1:$P$357,9,FALSE) -> 3.04 | K56: =IF(ISNA(VLOOKUP($A56,Produits!$A$1:$O$357,14,FALSE)),"",VLOOKUP($A56,Produits!$A$1:$O$357,14,FALSE)) -> 3760219062455 | L56: =Tableau15[[#This Row],[Réf.]]&" - "&Tableau15[[#This Row],[Désignation]]&" - "&Tableau15[[#This Row],[Contenance]] -> 16A - Confiture de Prune d'Ente allégée - 250g
A57: 16B | B57: =VLOOKUP($A57,Produits!$A$1:$P$357,2,FALSE) -> Confiture de Prune Reine-Claude allégée | C57: =VLOOKUP($A57,Produits!$A$1:$P$357,3,FALSE) -> 250g | D57: =VLOOKUP($A57,Produits!$A$1:$P$357,5,FALSE) -> 10 | E57: =VLOOKUP($A57,Produits!$A$1:$P$357,4,FALSE) -> Bocal | F57: =VLOOKUP($A57,Produits!$A$1:$P$357,6,FALSE) -> 3.79146 | G57: =VLOOKUP($A57,Produits!$A$1:$P$357,7,FALSE) -> 4 | H57: =VLOOKUP($A57,Produits!$A$1:$P$357,10,FALSE) -> 0.055 | I57: =VLOOKUP($A57,Produits!$A$1:$P$357,8,FALSE) -> 0.2 | J57: =VLOOKUP($A57,Produits!$A$1:$P$357,9,FALSE) -> 3.04 | K57: =IF(ISNA(VLOOKUP($A57,Produits!$A$1:$O$357,14,FALSE)),"",VLOOKUP($A57,Produits!$A$1:$O$357,14,FALSE)) -> 3760219062448 | L57: =Tableau15[[#This Row],[Réf.]]&" - "&Tableau15[[#This Row],[Désignation]]&" - "&Tableau15[[#This Row],[Contenance]] -> 16B - Confiture de Prune Reine-Claude allégée - 250g
A58: 16C | B58: =VLOOKUP($A58,Produits!$A$1:$P$357,2,FALSE) -> Confiture de Fraise | C58: =VLOOKUP($A58,Produits!$A$1:$P$357,3,FALSE) -> 250g | D58: =VLOOKUP($A58,Produits!$A$1:$P$357,5,FALSE) -> 10 | E58: =VLOOKUP($A58,Produits!$A$1:$P$357,4,FALSE) -> Bocal | F58: =VLOOKUP($A58,Produits!$A$1:$P$357,6,FALSE) -> 3.79146 | G58: =VLOOKUP($A58,Produits!$A$1:$P$357,7,FALSE) -> 4 | H58: =VLOOKUP($A58,Produits!$A$1:$P$357,10,FALSE) -> 0.055 | I58: =VLOOKUP($A58,Produits!$A$1:$P$357,8,FALSE) -> 0.2 | J58: =VLOOKUP($A58,Produits!$A$1:$P$357,9,FALSE) -> 3.04 | K58: =IF(ISNA(VLOOKUP($A58,Produits!$A$1:$O$357,14,FALSE)),"",VLOOKUP($A58,Produits!$A$1:$O$357,14,FALSE)) -> 3760219062431 | L58: =Tableau15[[#This Row],[Réf.]]&" - "&Tableau15[[#This Row],[Désignation]]&" - "&Tableau15[[#This Row],[Contenance]] -> 16C - Confiture de Fraise - 250g
A59: 17A | B59: =VLOOKUP($A59,Produits!$A$1:$P$357,2,FALSE) -> Confiture de Prune d'Ente allégée | C59: =VLOOKUP($A59,Produits!$A$1:$P$357,3,FALSE) -> 330g | D59: =VLOOKUP($A59,Produits!$A$1:$P$357,5,FALSE) -> 14 | E59: =VLOOKUP($A59,Produits!$A$1:$P$357,4,FALSE) -> Bocal | F59: =VLOOKUP($A59,Produits!$A$1:$P$357,6,FALSE) -> 4.2654 | G59: =VLOOKUP($A59,Produits!$A$1:$P$357,7,FALSE) -> 4.5 | H59: =VLOOKUP($A59,Produits!$A$1:$P$357,10,FALSE) -> 0.055 | I59: =VLOOKUP($A59,Produits!$A$1:$P$357,8,FALSE) -> 0.2 | J59: =VLOOKUP($A59,Produits!$A$1:$P$357,9,FALSE) -> 3.42 | K59: =IF(ISNA(VLOOKUP($A59,Produits!$A$1:$O$357,14,FALSE)),"",VLOOKUP($A59,Produits!$A$1:$O$357,14,FALSE)) -> 3760219062424 | L59: =Tableau15[[#This Row],[Réf.]]&" - "&Tableau15[[#This Row],[Désignation]]&" - "&Tableau15[[#This Row],[Contenance]] -> 17A - Confiture de Prune d'Ente allégée - 330g
A60: 17B | B60: =VLOOKUP($A60,Produits!$A$1:$P$357,2,FALSE) -> Confiture de Prune Reine-Claude allégée | C60: =VLOOKUP($A60,Produits!$A$1:$P$357,3,FALSE) -> 330g | D60: =VLOOKUP($A60,Produits!$A$1:$P$357,5,FALSE) -> 14 | E60: =VLOOKUP($A60,Produits!$A$1:$P$357,4,FALSE) -> Bocal | F60: =VLOOKUP($A60,Produits!$A$1:$P$357,6,FALSE) -> 4.2654 | G60: =VLOOKUP($A60,Produits!$A$1:$P$357,7,FALSE) -> 4.5 | H60: =VLOOKUP($A60,Produits!$A$1:$P$357,10,FALSE) -> 0.055 | I60: =VLOOKUP($A60,Produits!$A$1:$P$357,8,FALSE) -> 0.2 | J60: =VLOOKUP($A60,Produits!$A$1:$P$357,9,FALSE) -> 3.42 | K60: =IF(ISNA(VLOOKUP($A60,Produits!$A$1:$O$357,14,FALSE)),"",VLOOKUP($A60,Produits!$A$1:$O$357,14,FALSE)) -> 3760219062417 | L60: =Tableau15[[#This Row],[Réf.]]&" - "&Tableau15[[#This Row],[Désignation]]&" - "&Tableau15[[#This Row],[Contenance]] -> 17B - Confiture de Prune Reine-Claude allégée - 330g
A61: 17C | B61: =VLOOKUP($A61,Produits!$A$1:$P$357,2,FALSE) -> Confiture de Fraise | C61: =VLOOKUP($A61,Produits!$A$1:$P$357,3,FALSE) -> 330g | D61: =VLOOKUP($A61,Produits!$A$1:$P$357,5,FALSE) -> 14 | E61: =VLOOKUP($A61,Produits!$A$1:$P$357,4,FALSE) -> Bocal | F61: =VLOOKUP($A61,Produits!$A$1:$P$357,6,FALSE) -> 4.2654 | G61: =VLOOKUP($A61,Produits!$A$1:$P$357,7,FALSE) -> 4.5 | H61: =VLOOKUP($A61,Produits!$A$1:$P$357,10,FALSE) -> 0.055 | I61: =VLOOKUP($A61,Produits!$A$1:$P$357,8,FALSE) -> 0.2 | J61: =VLOOKUP($A61,Produits!$A$1:$P$357,9,FALSE) -> 3.42 | K61: =IF(ISNA(VLOOKUP($A61,Produits!$A$1:$O$357,14,FALSE)),"",VLOOKUP($A61,Produits!$A$1:$O$357,14,FALSE)) -> 3760219062400 | L61: =Tableau15[[#This Row],[Réf.]]&" - "&Tableau15[[#This Row],[Désignation]]&" - "&Tableau15[[#This Row],[Contenance]] -> 17C - Confiture de Fraise - 330g
A62: 18A | B62: =VLOOKUP($A62,Produits!$A$1:$P$357,2,FALSE) -> Nougat aux pruneaux | C62: =VLOOKUP($A62,Produits!$A$1:$P$357,3,FALSE) -> 100g | D62: =VLOOKUP($A62,Produits!$A$1:$P$357,5,FALSE) -> 10 | E62: =VLOOKUP($A62,Produits!$A$1:$P$357,4,FALSE) -> Sachet | F62: =VLOOKUP($A62,Produits!$A$1:$P$357,6,FALSE) -> 4.58333 | G62: =VLOOKUP($A62,Produits!$A$1:$P$357,7,FALSE) -> 5.5 | H62: =VLOOKUP($A62,Produits!$A$1:$P$357,10,FALSE) -> 0.2 | I62: =VLOOKUP($A62,Produits!$A$1:$P$357,8,FALSE) -> 0.2 | J62: =VLOOKUP($A62,Produits!$A$1:$P$357,9,FALSE) -> 3.67 | K62: =IF(ISNA(VLOOKUP($A62,Produits!$A$1:$O$357,14,FALSE)),"",VLOOKUP($A62,Produits!$A$1:$O$357,14,FALSE)) -> 3760219062394 | L62: =Tableau15[[#This Row],[Réf.]]&" - "&Tableau15[[#This Row],[Désignation]]&" - "&Tableau15[[#This Row],[Contenance]] -> 18A - Nougat aux pruneaux - 100g
A63: 18B | B63: =VLOOKUP($A63,Produits!$A$1:$P$357,2,FALSE) -> Nougat aux pruneaux | C63: =VLOOKUP($A63,Produits!$A$1:$P$357,3,FALSE) -> 150g | D63: =VLOOKUP($A63,Produits!$A$1:$P$357,5,FALSE) -> 10 | E63: =VLOOKUP($A63,Produits!$A$1:$P$357,4,FALSE) -> Sachet | F63: =VLOOKUP($A63,Produits!$A$1:$P$357,6,FALSE) -> 6.66666 | G63: =VLOOKUP($A63,Produits!$A$1:$P$357,7,FALSE) -> 8 | H63: =VLOOKUP($A63,Produits!$A$1:$P$357,10,FALSE) -> 0.2 | I63: =VLOOKUP($A63,Produits!$A$1:$P$357,8,FALSE) -> 0.2 | J63: =VLOOKUP($A63,Produits!$A$1:$P$357,9,FALSE) -> 5.34 | K63: =IF(ISNA(VLOOKUP($A63,Produits!$A$1:$O$357,14,FALSE)),"",VLOOKUP($A63,Produits!$A$1:$O$357,14,FALSE)) -> 3760219062387 | L63: =Tableau15[[#This Row],[Réf.]]&" - "&Tableau15[[#This Row],[Désignation]]&" - "&Tableau15[[#This Row],[Contenance]] -> 18B - Nougat aux pruneaux - 150g
A64: 19A | B64: =VLOOKUP($A64,Produits!$A$1:$P$357,2,FALSE) -> Mendiants chocolat noir | C64: =VLOOKUP($A64,Produits!$A$1:$P$357,3,FALSE) -> 150g | D64: =VLOOKUP($A64,Produits!$A$1:$P$357,5,FALSE) -> 10 | E64: =VLOOKUP($A64,Produits!$A$1:$P$357,4,FALSE) -> Sachet | F64: =VLOOKUP($A64,Produits!$A$1:$P$357,6,FALSE) -> 5.6872 | G64: =VLOOKUP($A64,Produits!$A$1:$P$357,7,FALSE) -> 6 | H64: =VLOOKUP($A64,Produits!$A$1:$P$357,10,FALSE) -> 0.055 | I64: =VLOOKUP($A64,Produits!$A$1:$P$357,8,FALSE) -> 0.2 | J64: =VLOOKUP($A64,Produits!$A$1:$P$357,9,FALSE) -> 4.55 | K64: =IF(ISNA(VLOOKUP($A64,Produits!$A$1:$O$357,14,FALSE)),"",VLOOKUP($A64,Produits!$A$1:$O$357,14,FALSE)) -> 3760219062370 | L64: =Tableau15[[#This Row],[Réf.]]&" - "&Tableau15[[#This Row],[Désignation]]&" - "&Tableau15[[#This Row],[Contenance]] -> 19A - Mendiants chocolat noir - 150g
A65: 19B | B65: =VLOOKUP($A65,Produits!$A$1:$P$357,2,FALSE) -> Mendiants chocolat noir | C65: =VLOOKUP($A65,Produits!$A$1:$P$357,3,FALSE) -> 200g | D65: =VLOOKUP($A65,Produits!$A$1:$P$357,5,FALSE) -> 10 | E65: =VLOOKUP($A65,Produits!$A$1:$P$357,4,FALSE) -> Sachet | F65: =VLOOKUP($A65,Produits!$A$1:$P$357,6,FALSE) -> 3.75 | G65: =VLOOKUP($A65,Produits!$A$1:$P$357,7,FALSE) -> 7.5 | H65: =VLOOKUP($A65,Produits!$A$1:$P$357,10,FALSE) -> TRUE | I65: =VLOOKUP($A65,Produits!$A$1:$P$357,8,FALSE) -> 0.2 | J65: =VLOOKUP($A65,Produits!$A$1:$P$357,9,FALSE) -> 3 | K65: =IF(ISNA(VLOOKUP($A65,Produits!$A$1:$O$357,14,FALSE)),"",VLOOKUP($A65,Produits!$A$1:$O$357,14,FALSE)) -> 3760219062363 | L65: =Tableau15[[#This Row],[Réf.]]&" - "&Tableau15[[#This Row],[Désignation]]&" - "&Tableau15[[#This Row],[Contenance]] -> 19B - Mendiants chocolat noir - 200g
A66: 20A | B66: =VLOOKUP($A66,Produits!$A$1:$P$357,2,FALSE) -> Mendiants chocolat lait | C66: =VLOOKUP($A66,Produits!$A$1:$P$357,3,FALSE) -> 150g | D66: =VLOOKUP($A66,Produits!$A$1:$P$357,5,FALSE) -> 10 | E66: =VLOOKUP($A66,Produits!$A$1:$P$357,4,FALSE) -> Sachet | F66: =VLOOKUP($A66,Produits!$A$1:$P$357,6,FALSE) -> 5.6872 | G66: =VLOOKUP($A66,Produits!$A$1:$P$357,7,FALSE) -> 6 | H66: =VLOOKUP($A66,Produits!$A$1:$P$357,10,FALSE) -> 0.055 | I66: =VLOOKUP($A66,Produits!$A$1:$P$357,8,FALSE) -> 0.2 | J66: =VLOOKUP($A66,Produits!$A$1:$P$357,9,FALSE) -> 4.55 | K66: =IF(ISNA(VLOOKUP($A66,Produits!$A$1:$O$357,14,FALSE)),"",VLOOKUP($A66,Produits!$A$1:$O$357,14,FALSE)) -> 3760219062356 | L66: =Tableau15[[#This Row],[Réf.]]&" - "&Tableau15[[#This Row],[Désignation]]&" - "&Tableau15[[#This Row],[Contenance]] -> 20A - Mendiants chocolat lait - 150g
A67: 20B | B67: =VLOOKUP($A67,Produits!$A$1:$P$357,2,FALSE) -> Mendiants chocolat lait | C67: =VLOOKUP($A67,Produits!$A$1:$P$357,3,FALSE) -> 200g | D67: =VLOOKUP($A67,Produits!$A$1:$P$357,5,FALSE) -> 10 | E67: =VLOOKUP($A67,Produits!$A$1:$P$357,4,FALSE) -> Sachet | F67: =VLOOKUP($A67,Produits!$A$1:$P$357,6,FALSE) -> 7.1 | G67: =VLOOKUP($A67,Produits!$A$1:$P$357,7,FALSE) -> 7.5 | H67: =VLOOKUP($A67,Produits!$A$1:$P$357,10,FALSE) -> 0.055 | I67: =VLOOKUP($A67,Produits!$A$1:$P$357,8,FALSE) -> 0.2 | J67: =VLOOKUP($A67,Produits!$A$1:$P$357,9,FALSE) -> 5.68 | K67: =IF(ISNA(VLOOKUP($A67,Produits!$A$1:$O$357,14,FALSE)),"",VLOOKUP($A67,Produits!$A$1:$O$357,14,FALSE)) -> 3760219062349 | L67: =Tableau15[[#This Row],[Réf.]]&" - "&Tableau15[[#This Row],[Désignation]]&" - "&Tableau15[[#This Row],[Contenance]] -> 20B - Mendiants chocolat lait - 200g
A68: 21A | B68: =VLOOKUP($A68,Produits!$A$1:$P$357,2,FALSE) -> Pâtes de fruit - (saveur à préciser) | C68: =VLOOKUP($A68,Produits!$A$1:$P$357,3,FALSE) -> 150g | D68: =VLOOKUP($A68,Produits!$A$1:$P$357,5,FALSE) -> 10 | E68: =VLOOKUP($A68,Produits!$A$1:$P$357,4,FALSE) -> Sachet | F68: =VLOOKUP($A68,Produits!$A$1:$P$357,6,FALSE) -> 5.6872 | G68: =VLOOKUP($A68,Produits!$A$1:$P$357,7,FALSE) -> 6 | H68: =VLOOKUP($A68,Produits!$A$1:$P$357,10,FALSE) -> 0.055 | I68: =VLOOKUP($A68,Produits!$A$1:$P$357,8,FALSE) -> 0.2 | J68: =VLOOKUP($A68,Produits!$A$1:$P$357,9,FALSE) -> 4.55 | K68: =IF(ISNA(VLOOKUP($A68,Produits!$A$1:$O$357,14,FALSE)),"",VLOOKUP($A68,Produits!$A$1:$O$357,14,FALSE)) -> 3760219062332 | L68: =Tableau15[[#This Row],[Réf.]]&" - "&Tableau15[[#This Row],[Désignation]]&" - "&Tableau15[[#This Row],[Contenance]] -> 21A - Pâtes de fruit - (saveur à préciser) - 150g
A69: 21B | B69: =VLOOKUP($A69,Produits!$A$1:$P$357,2,FALSE) -> Pâtes de fruit - Mixte (mélange) | C69: =VLOOKUP($A69,Produits!$A$1:$P$357,3,FALSE) -> 150g | D69: =VLOOKUP($A69,Produits!$A$1:$P$357,5,FALSE) -> 10 | E69: =VLOOKUP($A69,Produits!$A$1:$P$357,4,FALSE) -> Sachet | F69: =VLOOKUP($A69,Produits!$A$1:$P$357,6,FALSE) -> 6.16113 | G69: =VLOOKUP($A69,Produits!$A$1:$P$357,7,FALSE) -> 6.5 | H69: =VLOOKUP($A69,Produits!$A$1:$P$357,10,FALSE) -> 0.055 | I69: =VLOOKUP($A69,Produits!$A$1:$P$357,8,FALSE) -> 0.2 | J69: =VLOOKUP($A69,Produits!$A$1:$P$357,9,FALSE) -> 4.93 | K69: =IF(ISNA(VLOOKUP($A69,Produits!$A$1:$O$357,14,FALSE)),"",VLOOKUP($A69,Produits!$A$1:$O$357,14,FALSE)) -> 3760219062325 | L69: =Tableau15[[#This Row],[Réf.]]&" - "&Tableau15[[#This Row],[Désignation]]&" - "&Tableau15[[#This Row],[Contenance]] -> 21B - Pâtes de fruit - Mixte (mélange) - 150g
A70: 22A | B70: =VLOOKUP($A70,Produits!$A$1:$P$357,2,FALSE) -> Pâtes de velours chocolat | C70: =VLOOKUP($A70,Produits!$A$1:$P$357,3,FALSE) -> 150g | D70: =VLOOKUP($A70,Produits!$A$1:$P$357,5,FALSE) -> 10 | E70: =VLOOKUP($A70,Produits!$A$1:$P$357,4,FALSE) -> Sachet | F70: =VLOOKUP($A70,Produits!$A$1:$P$357,6,FALSE) -> 6.16113 | G70: =VLOOKUP($A70,Produits!$A$1:$P$357,7,FALSE) -> 6.5 | H70: =VLOOKUP($A70,Produits!$A$1:$P$357,10,FALSE) -> 0.055 | I70: =VLOOKUP($A70,Produits!$A$1:$P$357,8,FALSE) -> 0.2 | J70: =VLOOKUP($A70,Produits!$A$1:$P$357,9,FALSE) -> 4.93 | K70: =IF(ISNA(VLOOKUP($A70,Produits!$A$1:$O$357,14,FALSE)),"",VLOOKUP($A70,Produits!$A$1:$O$357,14,FALSE)) -> 3760219062318 | L70: =Tableau15[[#This Row],[Réf.]]&" - "&Tableau15[[#This Row],[Désignation]]&" - "&Tableau15[[#This Row],[Contenance]] -> 22A - Pâtes de velours chocolat - 150g
